Workbook

Sheet Sample
N1: Table 1: Descriptive statistics, ∆VIX and Max[Z]
O2: ∆VIX | P2: Max[Z]
N3: Average | O3: =AVERAGE(H12:H5759) -> -0.00 | P3: =AVERAGE(L12:L5759) -> 2.75 | Q3: Number of re-calculated observations | R3: =SUM(M:M) -> 5
N4: Median | O4: =MEDIAN(H12:H5759) -> -0.08 | P4: =MEDIAN(L12:L5759) -> 2.70 | Q4: Observations | R4: =COUNT(L12:L5759) -> 5748
N5: Std. Dev. | O5: =_xlfn.STDEV.P(H12:H5759) -> 1.83 | P5: =_xlfn.STDEV.P(L12:L5759) -> 0.41
N6: Minimum | O6: =MIN(H12:H5759) -> -17.64 | P6: =MIN(L12:L5759) -> 1.13
N7: Maximum | O7: =MAX(H12:H5759) -> 24.86 | P7: =MAX(L12:L5759) -> 4.79
N8: Skewness | O8: =SKEW(H12:H5759) -> 1.49 | P8: =SKEW(L12:L5759) -> 0.73
N9: Kurtosis | O9: =KURT(H12:H5759) -> 24.67 | P9: =KURT(L12:L5759) -> 1.19
N10: Note: Based on 5748 observations between 1999-01-04 and 2022-08-01. Note that over 99 percent of the daily Max[Z] values have been found on the daily tables section on the GCP website.
B11: Filter | F11: SnP500 (close) | G11: VIX | H11: delta VIX | I11: HK | J11: Nikkei | K11: Sweden | L11: Max[Z]
A12: 1999-01-04 | B12: =IF(C12>0,1,0) -> 1.00 | C12: =SUM(D12:E12) -> 1.00 | E12: =IF(WEEKDAY(A12,2)=1,1,0) -> 1.00 | F12: -0.0009192746679 | G12: 26.17 | I12: -2.38% | J12: -3.08% | K12: 3.68% | L12: 2.24
A13: 1999-01-05 | B13: =IF(C13>0,1,0) -> 0 | C13: =SUM(D13:E13) -> 0 | D13: =IF(A13-A12>1,1,0) -> 0 | E13: =IF(WEEKDAY(A13,2)=1,1,0) -> 0 | F13: 0.01358195587 | G13: 24.46 | H13: =G13-G12 -> -1.71 | I13: 0.83% | J13: -1.37% | K13: 1.24% | L13: 3.21
A14: 1999-01-06 | B14: 0 | C14: 0 | D14: =IF(A14-A13>1,1,0) -> 0 | E14: 0 | F14: 0.02214045855 | G14: 23.34 | H14: =G14-G13 -> -1.12 | I14: 3.47% | J14: 1.78% | K14: 0.00% | L14: 2.9
A15: 1999-01-07 | B15: 0 | C15: 0 | D15: 0 | E15: 0 | F15: -0.002051338479 | G15: 24.37 | H15: 1.03 | I15: 4.49% | J15: 0.51% | K15: 0.51% | L15: 2.19
A16: 1999-01-08 | B16: 0 | C16: 0 | D16: 0 | E16: 0 | F16: 0.004221369898 | G16: 23.28 | H16: -1.09 | I16: 2.14% | J16: -1.07% | K16: -0.15% | L16: 3.19
A17: 1999-01-11 | B17: 1.00 | C17: 2.00 | D17: 1.00 | E17: 1.00 | F17: -0.008791536284 | G17: 25.46 | H17: 2.18 | I17: -2.64% | J17: -0.17% | K17: -2.02% | L17: 2.42
A18: 1999-01-12 | B18: 0 | C18: 0 | D18: 0 | E18: 0 | F18: -0.01928189385 | G18: 28.1 | H18: 2.64 | I18: 0.73% | J18: -0.06% | K18: -1.85% | L18: 3.19
A19: 1999-01-13 | B19: 0 | C19: 0 | D19: 0 | E19: 0 | F19: -0.004122596833 | G19: 30.11 | H19: 2.01 | I19: -4.09% | J19: 0.32% | K19: -3.01% | L19: 2.72
A20: 1999-01-14 | B20: 0 | C20: 0 | D20: 0 | E20: 0 | F20: -0.01799254699 | G20: 32.98 | H20: 2.87 | I20: -0.88% | J20: 2.50% | K20: 1.02% | L20: 2.36
A21: 1999-01-15 | B21: 0 | C21: 0 | D21: 0 | E21: 0 | F21: 0.02563129542 | G21: 29.24 | H21: -3.74 | I21: -0.35% | J21: 0.00% | K21: -0.02% | L21: 4.3
A22: 1999-01-19 | B22: 1.00 | C22: 1.00 | D22: 1.00 | E22: 0 | F22: 0.007029905249 | G22: 29.24 | H22: 0 | I22: -1.08% | J22: -0.25% | K22: 0.36% | L22: 2.69
A23: 1999-01-20 | B23: 0 | C23: 0 | D23: 0 | E23: 0 | F23: 0.003690095847 | G23: 28.6 | H23: -0.64 | I23: 0.24% | J23: 1.87% | K23: -0.33% | L23: 2.8
A24: 1999-01-21 | B24: 0 | C24: 0 | D24: 0 | E24: 0 | F24: -0.01707755726 | G24: 30.92 | H24: 2.32 | I24: -2.58% | J24: 1.55% | K24: -1.61% | L24: 2.2
A25: 1999-01-22 | B25: 0 | C25: 0 | D25: 0 | E25: 0 | F25: -0.008071828751 | G25: 31.95 | H25: 1.03 | I25: -3.09% | J25: -0.64% | K25: -1.85% | L25: 2.5
A26: 1999-01-25 | B26: 1.00 | C26: 2.00 | D26: 1.00 | E26: 1.00 | F26: 0.00717439744 | G26: 31.13 | H26: -0.82 | I26: -2.45% | J26: 0.38% | K26: 0.13% | L26: 2.86
A27: 1999-01-26 | B27: 0 | C27: 0 | D27: 0 | E27: 0 | F27: 0.01485437365 | G27: 29.23 | H27: -1.9 | I27: 0.11% | J27: 1.22% | K27: -0.24% | L27: 2.75
A28: 1999-01-27 | B28: 0 | C28: 0 | D28: 0 | E28: 0 | F28: -0.007298512349 | G28: 29.73 | H28: 0.5 | I28: 2.21% | J28: 0.47% | K28: 1.08% | L28: 2.32
A29: 1999-01-28 | B29: 0 | C29: 0 | D29: 0 | E29: 0 | F29: 0.01785757378 | G29: 28.11 | H29: -1.62 | I29: -3.69% | J29: -0.75% | K29: 2.52% | L29: 2.91
A30: 1999-01-29 | B30: 0 | C30: 0 | D30: 0 | E30: 0 | F30: 0.0112773339 | G30: 26.25 | H30: -1.86 | I30: 1.56% | J30: 1.09% | K30: 0.63% | L30: 2.48 | N30: ∆VIX | O30: Max[Z]
A31: 1999-02-01 | B31: 1.00 | C31: 2.00 | D31: 1.00 | E31: 1.00 | F31: -0.005188959395 | G31: 27.67 | H31: 1.42 | I31: 0.97% | J31: -0.23% | K31: 1.49% | L31: 2.76
A32: 1999-02-02 | B32: 0 | C32: 0 | D32: 0 | E32: 0 | F32: -0.008648860958 | G32: 28.16 | H32: 0.49 | I32: -1.01% | J32: -0.80% | K32: 0.08% | L32: 3
A33: 1999-02-03 | B33: 0 | C33: 0 | D33: 0 | E33: 0 | F33: 0.007987385003 | G33: 27.88 | H33: -0.28 | I33: -0.87% | J33: -1.31% | K33: -0.21% | L33: 2.82
A34: 1999-02-04 | B34: 0 | C34: 0 | D34: 0 | E34: 0 | F34: -0.01853671575 | G34: 29.48 | H34: 1.6 | I34: 0.20% | J34: -0.53% | K34: 0.92% | L34: 2.5
A35: 1999-02-05 | B35: 0 | C35: 0 | D35: 0 | E35: 0 | F35: -0.007280795201 | G35: 29.67 | H35: 0.19 | I35: -2.63% | J35: -1.34% | K35: -0.21% | L35: 2.38
A36: 1999-02-08 | B36: 1.00 | C36: 2.00 | D36: 1.00 | E36: 1.00 | F36: 0.003525899629 | G36: 30.27 | H36: 0.6 | I36: -0.55% | J36: 0.68% | K36: -1.06% | L36: 2.61
A37: 1999-02-09 | B37: 0 | C37: 0 | D37: 0 | E37: 0 | F37: -0.02221471816 | G37: 31.36 | H37: 1.09 | I37: 1.15% | J37: -0.64% | K37: -1.93% | L37: 2.86
A38: 1999-02-10 | B38: 0 | C38: 0 | D38: 0 | E38: 0 | F38: 0.006093048498 | G38: 30.45 | H38: -0.91 | I38: -1.82% | J38: 0.36% | K38: -1.10% | L38: 2.61
A39: 1999-02-11 | B39: 0 | C39: 0 | D39: 0 | E39: 0 | F39: 0.02491929222 | G39: 27.42 | H39: -3.03 | I39: 0.78% | J39: 0.00% | K39: -0.13% | L39: 3.04
A40: 1999-02-12 | B40: 0 | C40: 0 | D40: 0 | E40: 0 | F40: -0.01906637747 | G40: 29.76 | H40: 2.34 | I40: 3.05% | J40: 0.15% | K40: 0.83% | L40: 2.74
A41: 1999-02-16 | B41: 1.00 | C41: 1.00 | D41: 1.00 | E41: 0 | F41: 0.009543706763 | G41: 29.65 | H41: -0.11 | I41: 0.00% | J41: 1.27% | K41: 1.22% | L41: 2.77
A42: 1999-02-17 | B42: 0 | C42: 0 | D42: 0 | E42: 0 | F42: -0.01436543277 | G42: 30.65 | H42: 1 | I42: 0.00% | J42: -0.52% | K42: -1.51% | L42: 2.71
A43: 1999-02-18 | B43: 0 | C43: 0 | D43: 0 | E43: 0 | F43: 0.01082489808 | G43: 30.45 | H43: -0.2 | I43: 0.00% | J43: -0.08% | K43: 0.51% | L43: 2.43
A44: 1999-02-19 | B44: 0 | C44: 0 | D44: 0 | E44: 0 | F44: 0.001567955515 | G44: 29.3 | H44: -1.15 | I44: -1.58% | J44: -0.34% | K44: 1.37% | L44: 2.49
A45: 1999-02-22 | B45: 1.00 | C45: 2.00 | D45: 1.00 | E45: 1.00 | F45: 0.0265650974 | G45: 25.87 | H45: -3.43 | I45: -0.27% | J45: 1.13% | K45: 1.93% | L45: 2.28
A46: 1999-02-23 | B46: 0 | C46: 0 | D46: 0 | E46: 0 | F46: -0.0007546339239 | G46: 26.49 | H46: 0.62 | I46: 2.22% | J46: 1.71% | K46: 0.02% | L46: 2.3
A47: 1999-02-24 | B47: 0 | C47: 0 | D47: 0 | E47: 0 | F47: -0.01397913749 | G47: 27.21 | H47: 0.72 | I47: 2.58% | J47: -1.00% | K47: 0.70% | L47: 2.64
A48: 1999-02-25 | B48: 0 | C48: 0 | D48: 0 | E48: 0 | F48: -0.006693739479 | G48: 28.01 | H48: 0.8 | I48: -0.20% | J48: 0.80% | K48: -1.44% | L48: 3.5
A49: 1999-02-26 | B49: 0 | C49: 0 | D49: 0 | E49: 0 | F49: -0.005373407656 | G49: 27.88 | H49: -0.13 | I49: 2.08% | J49: -0.71% | K49: -0.17% | L49: 2.72
A50: 1999-03-01 | B50: 1.00 | C50: 2.00 | D50: 1.00 | E50: 1.00 | F50: -0.001752360033 | G50: 28.37 | H50: 0.49 | I50: 1.64% | J50: -1.01% | K50: -1.97% | L50: 2.74
A51: 1999-03-02 | B51: 0 | C51: 0 | D51: 0 | E51: 0 | F51: -0.008623479161 | G51: 29.22 | H51: 0.85 | I51: -1.07% | J51: -2.11% | K51: 1.06% | L51: 2.8
A52: 1999-03-03 | B52: 0 | C52: 0 | D52: 0 | E52: 0 | F52: 0.001795185639 | G52: 29.04 | H52: -0.18 | I52: 0.09% | J52: 1.79% | K52: -0.38% | L52: 2.04
A53: 1999-03-04 | B53: 0 | C53: 0 | D53: 0 | E53: 0 | F53: 0.01542722163 | G53: 26.67 | H53: -2.37 | I53: -0.10% | J53: 0.09% | K53: 0.18% | L53: 2.25
A54: 1999-03-05 | B54: 0 | C54: 0 | D54: 0 | E54: 0 | F54: 0.02312616313 | G54: 24.08 | H54: -2.59 | I54: 3.31% | J54: 5.01% | K54: 1.74% | L54: 2.54
A55: 1999-03-08 | B55: 1.00 | C55: 2.00 | D55: 1.00 | E55: 1.00 | F55: 0.005692019412 | G55: 24.54 | H55: 0.46 | I55: 0.22% | J55: -0.77% | K55: -1.06% | L55: 2.38
A56: 1999-03-09 | B56: 0 | C56: 0 | D56: 0 | E56: 0 | F56: -0.002253007258 | G56: 25.02 | H56: 0.48 | I56: 2.62% | J56: 2.15% | K56: 0.35% | L56: 2.49
A57: 1999-03-10 | B57: 0 | C57: 0 | D57: 0 | E57: 0 | F57: 0.005469433679 | G57: 24.79 | H57: -0.23 | I57: 2.05% | J57: 2.54% | K57: -1.37% | L57: 2.65
A58: 1999-03-11 | B58: 0 | C58: 0 | D58: 0 | E58: 0 | F58: 0.008423735663 | G58: 24.37 | H58: -0.42 | I58: -0.80% | J58: 0.14% | K58: 0.58% | L58: 2.78
A59: 1999-03-12 | B59: 0 | C59: 0 | D59: 0 | E59: 0 | F59: -0.002381172554 | G59: 24.84 | H59: 0.47 | I59: 1.30% | J59: -0.09% | K59: -0.08% | L59: 2.3
A60: 1999-03-15 | B60: 1.00 | C60: 2.00 | D60: 1.00 | E60: 1.00 | F60: 0.009786882333 | G60: 25.24 | H60: 0.4 | I60: 0.32% | J60: 1.88% | K60: -0.42% | L60: 2.03
A61: 1999-03-16 | B61: 0 | C61: 0 | D61: 0 | E61: 0 | F61: -0.0006731637165 | G61: 25.15 | H61: -0.09 | I61: 0.69% | J61: 1.86% | K61: 0.53% | L61: 3.02
A62: 1999-03-17 | B62: 0 | C62: 0 | D62: 0 | E62: 0 | F62: -0.006552457937 | G62: 25.57 | H62: 0.42 | I62: 0.26% | J62: 1.22% | K62: -0.93% | L62: 2.21
A63: 1999-03-18 | B63: 0 | C63: 0 | D63: 0 | E63: 0 | F63: 0.01443189348 | G63: 24.13 | H63: -1.44 | I63: -2.57% | J63: -3.38% | K63: -1.53% | L63: 2.54
A64: 1999-03-19 | B64: 0 | C64: 0 | D64: 0 | E64: 0 | F64: -0.01311002241 | G64: 24.32 | H64: 0.19 | I64: 3.97% | J64: 4.20% | K64: 2.28% | L64: 3.12
A65: 1999-03-22 | B65: 1.00 | C65: 2.00 | D65: 1.00 | E65: 1.00 | F65: -0.001754804547 | G65: 25 | H65: 0.68 | I65: 0.22% | J65: 0.00% | K65: -0.80% | L65: 3.5
A66: 1999-03-23 | B66: 0 | C66: 0 | D66: 0 | E66: 0 | F66: -0.02688491222 | G66: 27.27 | H66: 2.27 | I66: -0.60% | J66: -2.20% | K66: -0.06% | L66: 2.78
A67: 1999-03-24 | B67: 0 | C67: 0 | D67: 0 | E67: 0 | F67: 0.005110368105 | G67: 26.6 | H67: -0.67 | I67: -2.99% | J67: -3.14% | K67: -1.67% | L67: 2.75
A68: 1999-03-25 | B68: 0 | C68: 0 | D68: 0 | E68: 0 | F68: 0.01686912241 | G68: 24.33 | H68: -2.27 | I68: 1.07% | J68: 3.03% | K68: 2.96% | L68: 3.18
A69: 1999-03-26 | B69: 0 | C69: 0 | D69: 0 | E69: 0 | F69: -0.005573686618 | G69: 24.04 | H69: -0.29 | I69: -0.21% | J69: 0.19% | K69: 0.64% | L69: 2.92
A70: 1999-03-29 | B70: 1.00 | C70: 2.00 | D70: 1.00 | E70: 1.00 | F70: 0.02133613969 | G70: 23.54 | H70: -0.5 | I70: -1.06% | J70: -0.05% | K70: 0.80% | L70: 2.31
A71: 1999-03-30 | B71: 0 | C71: 0 | D71: 0 | E71: 0 | F71: -0.007189906653 | G71: 22.73 | H71: -0.81 | I71: 2.36% | J71: -0.94% | K71: -0.35% | L71: 2.29
A72: 1999-03-31 | B72: 0 | C72: 0 | D72: 0 | E72: 0 | F72: -0.01105516048 | G72: 23.26 | H72: 0.53 | I72: 0.02% | J72: -0.14% | K72: 1.05% | L72: 2.77
A73: 1999-04-01 | B73: 0 | C73: 0 | D73: 0 | E73: 0 | F73: 0.005713752653 | G73: 22.06 | H73: -1.2 | I73: 1.20% | J73: 3.10% | K73: 0.45% | L73: 3.35
A74: 1999-04-05 | B74: 1.00 | C74: 2.00 | D74: 1.00 | E74: 1.00 | F74: 0.02117923507 | G74: 22.19 | H74: 0.13 | I74: 0.00% | J74: 0.27% | K74: 0.00% | L74: 3.09
A75: 1999-04-06 | B75: 0 | C75: 0 | D75: 0 | E75: 0 | F75: -0.00244489524 | G75: 22.65 | H75: 0.46 | I75: 0.00% | J75: 0.89% | K75: 3.19% | L75: 2.48
A76: 1999-04-07 | B76: 0 | C76: 0 | D76: 0 | E76: 0 | F76: 0.006829098028 | G76: 22.81 | H76: 0.16 | I76: 4.89% | J76: 0.45% | K76: -0.40% | L76: 3.53
A77: 1999-04-08 | B77: =IF(C77>0,1,0) -> 0 | C77: =SUM(D77:E77) -> 0 | D77: 0 | E77: =IF(WEEKDAY(A77,2)=1,1,0) -> 0 | F77: 0.01287974135 | G77: 22.59 | H77: -0.22 | I77: 0.97% | J77: 1.77% | K77: -0.05% | L77: 2.85
A78: 1999-04-09 | B78: 0 | C78: 0 | D78: =IF(A78-A77>1,1,0) -> 0 | E78: 0 | F78: 0.003251536481 | G78: 21.77 | H78: =G78-G77 -> -0.82 | I78: 1.59% | J78: 0.05% | K78: 0.15% | L78: 2.72
A79: 1999-04-12 | B79: 1.00 | C79: 2.00 | D79: 1.00 | E79: 1.00 | F79: 0.007631549672 | G79: 21.93 | H79: 0.16 | I79: -1.42% | J79: -2.07% | K79: -1.08% | L79: 2.66
A80: 1999-04-13 | B80: 0 | C80: 0 | D80: 0 | E80: 0 | F80: -0.006491785904 | G80: 22.73 | H80: 0.8 | I80: 1.32% | J80: 1.26% | K80: 0.94% | L80: 3.13
A81: 1999-04-14 | B81: 0 | C81: 0 | D81: 0 | E81: 0 | F81: -0.01583914892 | G81: 24.94 | H81: 2.21 | I81: -0.55% | J81: 0.30% | K81: 0.52% | L81: 2.65
A82: 1999-04-15 | B82: 0 | C82: 0 | D82: 0 | E82: 0 | F82: -0.004200415525 | G82: 23.93 | H82: -1.01 | I82: 1.08% | J82: -0.22% | K82: -2.03% | L82: 2.6
A83: 1999-04-16 | B83: 0 | C83: 0 | D83: 0 | E83: 0 | F83: -0.002917920264 | G83: 23.9 | H83: -0.03 | I83: 4.41% | J83: 0.74% | K83: 1.43% | L83: 4.02
A84: 1999-04-19 | B84: 1.00 | C84: 2.00 | D84: 1.00 | E84: 1.00 | F84: -0.02238059136 | G84: 26.42 | H84: 2.52 | I84: 2.21% | J84: -1.05% | K84: 1.68% | L84: 2.52
A85: 1999-04-20 | B85: 0 | C85: 0 | D85: 0 | E85: 0 | F85: 0.01294320191 | G85: 25.02 | H85: -1.4 | I85: -2.79% | J85: 0.14% | K85: -1.96% | L85: 2.31
A86: 1999-04-21 | B86: 0 | C86: 0 | D86: 0 | E86: 0 | F86: 0.02292963397 | G86: 23.31 | H86: -1.71 | I86: 1.08% | J86: -1.21% | K86: 1.41% | L86: 2.39
A87: 1999-04-22 | B87: 0 | C87: 0 | D87: 0 | E87: 0 | F87: 0.01698949196 | G87: 22.62 | H87: -0.69 | I87: 3.11% | J87: 1.04% | K87: 0.80% | L87: 3.3
A88: 1999-04-23 | B88: 0 | C88: 0 | D88: 0 | E88: 0 | F88: -0.001449787315 | G88: 22.76 | H88: 0.14 | I88: -0.22% | J88: 1.54% | K88: -0.33% | L88: 2.9
A89: 1999-04-26 | B89: 1.00 | C89: 2.00 | D89: 1.00 | E89: 1.00 | F89: 0.002351033644 | G89: 23.53 | H89: 0.77 | I89: 1.72% | J89: -0.03% | K89: 0.77% | L89: 2.48
A90: 1999-04-27 | B90: 0 | C90: 0 | D90: 0 | E90: 0 | F90: 0.002029352078 | G90: 23.36 | H90: -0.17 | I90: 1.81% | J90: 0.23% | K90: 0.67% | L90: 2.18
A91: 1999-04-28 | B91: 0 | C91: 0 | D91: 0 | E91: 0 | F91: -0.008724684473 | G91: 24.4 | H91: 1.04 | I91: -1.88% | J91: -0.09% | K91: -0.99% | L91: 2.36
A92: 1999-04-29 | B92: 0 | C92: 0 | D92: 0 | E92: 0 | F92: -0.005981153445 | G92: 25.06 | H92: 0.66 | I92: 0.50% | J92: 0.00% | K92: -0.47% | L92: 2.58
A93: 1999-04-30 | B93: 0 | C93: 0 | D93: 0 | E93: 0 | F93: -0.005696923661 | G93: 25.07 | H93: 0.01 | I93: 1.16% | J93: -1.42% | K93: -0.07% | L93: 3.87
A94: 1999-05-03 | B94: 1.00 | C94: 2.00 | D94: 1.00 | E94: 1.00 | F94: 0.01456732426 | G94: 24.15 | H94: -0.92 | I94: 0.03% | J94: 0.00% | K94: 2.05% | L94: 2.31
A95: 1999-05-04 | B95: 0 | C95: 0 | D95: 0 | E95: 0 | F95: -0.01670566871 | G95: 25.62 | H95: 1.47 | I95: 1.67% | J95: 0.00% | K95: -0.07% | L95: 2.12
A96: 1999-05-05 | B96: 0 | C96: 0 | D96: 0 | E96: 0 | F96: 0.01149399399 | G96: 25.19 | H96: -0.43 | I96: 0.20% | J96: 0.00% | K96: -1.85% | L96: 2.34
A97: 1999-05-06 | B97: 0 | C97: 0 | D97: 0 | E97: 0 | F97: -0.01132627235 | G97: 27.44 | H97: 2.25 | I97: -0.12% | J97: 3.59% | K97: -1.37% | L97: 2.55
A98: 1999-05-07 | B98: 0 | C98: 0 | D98: 0 | E98: 0 | F98: 0.009721857288 | G98: 25.36 | H98: -2.08 | I98: -4.22% | J98: -2.05% | K98: -0.25% | L98: 2.5
A99: 1999-05-10 | B99: 1.00 | C99: 2.00 | D99: 1.00 | E99: 1.00 | F99: -0.003494423792 | G99: 26.62 | H99: 1.26 | I99: 1.28% | J99: 0.18% | K99: 0.35% | L99: 3.65
A100: 1999-05-11 | B100: 0 | C100: 0 | D100: 0 | E100: 0 | F100: 0.01142281579 | G100: 25.62 | H100: -1 | I100: -2.19% | J100: -1.38% | K100: 1.08% | L100: 2.11
A101: 1999-05-12 | B101: 0 | C101: 0 | D101: 0 | E101: 0 | F101: 0.006189095684 | G101: 26.13 | H101: 0.51 | I101: 1.08% | J101: 1.22% | K101: 0.27% | L101: 2.44
A102: 1999-05-13 | B102: 0 | C102: 0 | D102: 0 | E102: 0 | F102: 0.002609970674 | G102: 25.02 | H102: -1.11 | I102: 0.31% | J102: -0.57% | K102: 0.00% | L102: 3.37
A103: 1999-05-14 | B103: 0 | C103: 0 | D103: 0 | E103: 0 | F103: -0.02176138524 | G103: 26.86 | H103: 1.84 | I103: -1.52% | J103: -0.24% | K103: -0.49% | L103: 2.73
A104: 1999-05-17 | B104: 1.00 | C104: 2.00 | D104: 1.00 | E104: 1.00 | F104: 0.001263268052 | G104: 27.28 | H104: 0.42 | I104: -2.08% | J104: -2.32% | K104: -0.89% | L104: 2.49
A105: 1999-05-18 | B105: 0 | C105: 0 | D105: 0 | E105: 0 | F105: -0.00460623073 | G105: 27.26 | H105: -0.02 | I105: 0.31% | J105: -0.26% | K105: 1.34% | L105: 3.22
A106: 1999-05-19 | B106: 0 | C106: 0 | D106: 0 | E106: 0 | F106: 0.008182581826 | G106: 25.08 | H106: -2.18 | I106: -1.77% | J106: -1.53% | K106: 1.61% | L106: 2.37
A107: 1999-05-20 | B107: 0 | C107: 0 | D107: 0 | E107: 0 | F107: -0.004017169681 | G107: 24.46 | H107: -0.62 | I107: -0.22% | J107: 0.45% | K107: 0.58% | L107: 2.49
A108: 1999-05-21 | B108: 0 | C108: 0 | D108: 0 | E108: 0 | F108: -0.006378703794 | G108: 24.4 | H108: -0.06 | I108: -0.83% | J108: 0.57% | K108: 0.02% | L108: 2.21
A109: 1999-05-24 | B109: 1.00 | C109: 2.00 | D109: 1.00 | E109: 1.00 | F109: -0.01777056131 | G109: 27.62 | H109: 3.22 | I109: 1.34% | J109: 0.60% | K109: 0.00% | L109: 2.27
A110: 1999-05-25 | B110: 0 | C110: 0 | D110: 0 | E110: 0 | F110: -0.01702827842 | G110: 28.9 | H110: 1.28 | I110: -0.72% | J110: -1.08% | K110: -1.04% | L110: 2.57
A111: 1999-05-26 | B111: 0 | C111: 0 | D111: 0 | E111: 0 | F111: 0.01585175958 | G111: 27.57 | H111: -1.33 | I111: 0.50% | J111: 0.10% | K111: -0.57% | L111: 2.57
A112: 1999-05-27 | B112: 0 | C112: 0 | D112: 0 | E112: 0 | F112: -0.01789601153 | G112: 28.12 | H112: 0.55 | I112: -0.81% | J112: -0.33% | K112: -1.02% | L112: 3.48
A113: 1999-05-28 | B113: 0 | C113: 0 | D113: 0 | E113: 0 | F113: 0.01594337488 | G113: 25.39 | H113: -2.73 | I113: -2.03% | J113: -1.26% | K113: -0.30% | L113: 2.38
A114: 1999-06-01 | B114: 1.00 | C114: 1.00 | D114: 1.00 | E114: 0 | F114: -0.005822528114 | G114: 26.62 | H114: 1.23 | I114: 1.78% | J114: 1.84% | K114: -0.03% | L114: 2.87
A115: 1999-06-02 | B115: 0 | C115: 0 | D115: 0 | E115: 0 | F115: 0.0004249532551 | G115: 26.21 | H115: -0.41 | I115: 0.77% | J115: 0.06% | K115: 0.70% | L115: 2.61
A116: 1999-06-03 | B116: 0 | C116: 0 | D116: 0 | E116: 0 | F116: 0.003653045621 | G116: 26.2 | H116: -0.01 | I116: 0.10% | J116: -1.16% | K116: 1.31% | L116: 2.96
A117: 1999-06-04 | B117: 0 | C117: 0 | D117: 0 | E117: 0 | F117: 0.02170768118 | G117: 23.43 | H117: -2.77 | I117: -0.45% | J117: 0.45% | K117: 0.75% | L117: 2.33
A118: 1999-06-07 | B118: 1.00 | C118: 2.00 | D118: 1.00 | E118: 1.00 | F118: 0.00509885144 | G118: 23.78 | H118: 0.35 | I118: 3.40% | J118: 1.07% | K118: 1.49% | L118: 2.3
A119: 1999-06-08 | B119: 0 | C119: 0 | D119: 0 | E119: 0 | F119: -0.01288103588 | G119: 24.02 | H119: 0.24 | I119: 0.21% | J119: 0.53% | K119: -0.04% | L119: 2.47
A120: 1999-06-09 | B120: 0 | C120: 0 | D120: 0 | E120: 0 | F120: 0.0009944357147 | G120: 23.9 | H120: -0.12 | I120: 0.07% | J120: 0.36% | K120: 1.41% | L120: 2.17
A121: 1999-06-10 | B121: 0 | C121: 0 | D121: 0 | E121: 0 | F121: -0.01199720925 | G121: 25.32 | H121: 1.42 | I121: -0.27% | J121: 2.89% | K121: -1.07% | L121: 2.48
A122: 1999-06-11 | B122: 0 | C122: 0 | D122: 0 | E122: 0 | F122: -0.007046253512 | G122: 25.9 | H122: 0.58 | I122: 1.20% | J122: 0.56% | K122: 1.58% | L122: 2.55
A123: 1999-06-14 | B123: 1.00 | C123: 2.00 | D123: 1.00 | E123: 1.00 | F123: 0.0002782845305 | G123: 26.51 | H123: 0.61 | I123: 0.11% | J123: -0.06% | K123: -0.20% | L123: 2.65
A124: 1999-06-15 | B124: 0 | C124: 0 | D124: 0 | E124: 0 | F124: 0.005533230294 | G124: 25.91 | H124: -0.6 | I124: -0.55% | J124: 0.54% | K124: -1.08% | L124: 3.45
A125: 1999-06-16 | B125: 0 | C125: 0 | D125: 0 | E125: 0 | F125: 0.02247994098 | G125: 22.4 | H125: -3.51 | I125: 1.70% | J125: -0.42% | K125: 1.20% | L125: 2.61
A126: 1999-06-17 | B126: 0 | C126: 0 | D126: 0 | E126: 0 | F126: 0.007133139408 | G126: 21.95 | H126: -0.45 | I126: 1.92% | J126: 1.51% | K126: -0.30% | L126: 3
A127: 1999-06-18 | B127: 0 | C127: 0 | D127: 0 | E127: 0 | F127: 0.002194193597 | G127: 21.75 | H127: -0.2 | I127: 0.00% | J127: -0.22% | K127: 1.76% | L127: 3.26
A128: 1999-06-21 | B128: 1.00 | C128: 2.00 | D128: 1.00 | E128: 1.00 | F128: 0.004587292604 | G128: 21.81 | H128: 0.06 | I128: 4.37% | J128: 1.76% | K128: 1.04% | L128: 2.67
A129: 1999-06-22 | B129: 0 | C129: 0 | D129: 0 | E129: 0 | F129: -0.009725722758 | G129: 21.7 | H129: -0.11 | I129: 0.08% | J129: 0.22% | K129: -0.51% | L129: 3.62
A130: 1999-06-23 | B130: 0 | C130: 0 | D130: 0 | E130: 0 | F130: -0.002110968051 | G130: 21.32 | H130: -0.38 | I130: -0.21% | J130: -1.07% | K130: -0.69% | L130: 2.58
A131: 1999-06-24 | B131: 0 | C131: 0 | D131: 0 | E131: 0 | F131: -0.01296265734 | G131: 23.06 | H131: 1.74 | I131: -1.40% | J131: 0.24% | K131: -0.04% | L131: 3.74
A132: 1999-06-25 | B132: 0 | C132: 0 | D132: 0 | E132: 0 | F132: -0.0003572025719 | G132: 21.76 | H132: -1.3 | I132: 0.03% | J132: -1.09% | K132: 0.00% | L132: 2.25
A133: 1999-06-28 | B133: 1.00 | C133: 2.00 | D133: 1.00 | E133: 1.00 | F133: 0.0121948438 | G133: 22.63 | H133: 0.87 | I133: 0.40% | J133: 1.00% | K133: 0.19% | L133: 2.86
A134: 1999-06-29 | B134: 0 | C134: 0 | D134: 0 | E134: 0 | F134: 0.01509745747 | G134: 22.51 | H134: -0.12 | I134: -0.54% | J134: 0.98% | K134: 0.70% | L134: 2.45
A135: 1999-06-30 | B135: 0 | C135: 0 | D135: 0 | E135: 0 | F135: 0.01573125162 | G135: 21.09 | H135: -1.42 | I135: -1.70% | J135: -1.42% | K135: -1.05% | L135: 2.94
A136: 1999-07-01 | B136: 0 | C136: 0 | D136: 0 | E136: 0 | F136: 0.006010009397 | G136: 19.69 | H136: -1.4 | I136: 0.00% | J136: 1.89% | K136: 0.97% | L136: 2.69
A137: 1999-07-02 | B137: 0 | C137: 0 | D137: 0 | E137: 0 | F137: 0.007429614181 | G137: 18.66 | H137: -1.03 | I137: 4.82% | J137: 0.40% | K137: 1.17% | L137: 2.93
A138: 1999-07-06 | B138: 1.00 | C138: 1.00 | D138: 1.00 | E138: 0 | F138: -0.002228260088 | G138: 20.73 | H138: 2.07 | I138: -0.92% | J138: -0.47% | K138: -0.61% | L138: 2.3
A139: 1999-07-07 | B139: 0 | C139: 0 | D139: 0 | E139: 0 | F139: 0.005575886811 | G139: 20.35 | H139: -0.38 | I139: -0.80% | J139: -0.51% | K139: -2.55% | L139: 2.41
A140: 1999-07-08 | B140: 0 | C140: 0 | D140: 0 | E140: 0 | F140: -0.001031622082 | G140: 20.24 | H140: -0.11 | I140: -0.22% | J140: 0.05% | K140: -0.18% | L140: 2.52
A141: 1999-07-09 | B141: =IF(C141>0,1,0) -> 0 | C141: =SUM(D141:E141) -> 0 | D141: 0 | E141: =IF(WEEKDAY(A141,2)=1,1,0) -> 0 | F141: 0.006353896244 | G141: 17.96 | H141: -2.28 | I141: -0.03% | J141: -0.17% | K141: 0.77% | L141: 2.66
A142: 1999-07-12 | B142: 1.00 | C142: 2.00 | D142: =IF(A142-A141>1,1,0) -> 1.00 | E142: 1.00 | F142: -0.002978735534 | G142: 19.73 | H142: =G142-G141 -> 1.77 | I142: -1.13% | J142: 1.88% | K142: 0.38% | L142: 2.73
A143: 1999-07-13 | B143: 0 | C143: 0 | D143: 0 | E143: 0 | F143: -0.003959688371 | G143: 19.95 | H143: 0.22 | I143: -0.58% | J143: -0.51% | K143: -1.54% | L143: 2.2
A144: 1999-07-14 | B144: 0 | C144: 0 | D144: 0 | E144: 0 | F144: 0.003308074285 | G144: 19.71 | H144: -0.24 | I144: -2.90% | J144: 0.97% | K144: 0.15% | L144: 2.88
A145: 1999-07-15 | B145: 0 | C145: 0 | D145: 0 | E145: 0 | F145: 0.008189275982 | G145: 18.68 | H145: -1.03 | I145: 1.35% | J145: 0.40% | K145: 1.09% | L145: 3
A146: 1999-07-16 | B146: 0 | C146: 0 | D146: 0 | E146: 0 | F146: 0.00649820519 | G146: 17.42 | H146: -1.26 | I146: -1.55% | J146: -1.00% | K146: -0.63% | L146: 3.37
A147: 1999-07-19 | B147: 1.00 | C147: 2.00 | D147: 1.00 | E147: 1.00 | F147: -0.00784476804 | G147: 19.07 | H147: 1.65 | I147: -0.72% | J147: 1.56% | K147: 0.67% | L147: 2.91
A148: 1999-07-20 | B148: 0 | C148: 0 | D148: 0 | E148: 0 | F148: -0.02170283806 | G148: 21.79 | H148: 2.72 | I148: 1.14% | J148: 0.00% | K148: -0.99% | L148: 3.25
A149: 1999-07-21 | B149: 0 | C149: 0 | D149: 0 | E149: 0 | F149: 0.001590298453 | G149: 21.46 | H149: -0.33 | I149: -1.33% | J149: -1.48% | K149: -0.97% | L149: 2.66
A150: 1999-07-22 | B150: 0 | C150: 0 | D150: 0 | E150: 0 | F150: -0.01328219591 | G150: 23.05 | H150: 1.59 | I150: -0.38% | J150: -2.89% | K150: -1.43% | L150: 2.57
A151: 1999-07-23 | B151: 0 | C151: 0 | D151: 0 | E151: 0 | F151: -0.002961123316 | G151: 23.32 | H151: 0.27 | I151: -2.06% | J151: -1.10% | K151: 0.76% | L151: 3.07
A152: 1999-07-26 | B152: 1.00 | C152: 2.00 | D152: 1.00 | E152: 1.00 | F152: -0.006765221749 | G152: 24.98 | H152: 1.66 | I152: -1.74% | J152: -0.25% | K152: 0.36% | L152: 2.79
A153: 1999-07-27 | B153: 0 | C153: 0 | D153: 0 | E153: 0 | F153: 0.01118893572 | G153: 23.23 | H153: -1.75 | I153: 1.62% | J153: -0.16% | K153: 0.46% | L153: 2.29
A154: 1999-07-28 | B154: 0 | C154: 0 | D154: 0 | E154: 0 | F154: 0.001878430337 | G154: 22.85 | H154: -0.38 | I154: 0.50% | J154: 0.67% | K154: 1.16% | L154: 2.14
A155: 1999-07-29 | B155: 0 | C155: 0 | D155: 0 | E155: 0 | F155: -0.0178482496 | G155: 24.52 | H155: 1.67 | I155: -0.17% | J155: 1.65% | K155: -1.81% | L155: 2.61
A156: 1999-07-30 | B156: 0 | C156: 0 | D156: 0 | E156: 0 | F156: -0.009179511271 | G156: 24.64 | H156: 0.12 | I156: 0.53% | J156: -0.05% | K156: 1.50% | L156: 2.71
A157: 1999-08-02 | B157: 1.00 | C157: 2.00 | D157: 1.00 | E157: 1.00 | F157: -0.0005042446866 | G157: 25.59 | H157: 0.95 | I157: 1.88% | J157: -0.20% | K157: -0.56% | L157: 2.64
A158: 1999-08-03 | B158: 0 | C158: 0 | D158: 0 | E158: 0 | F158: -0.004420014307 | G158: 26.27 | H158: 0.68 | I158: 0.29% | J158: 0.81% | K158: -0.67% | L158: 2.86
A159: 1999-08-04 | B159: 0 | C159: 0 | D159: 0 | E159: 0 | F159: -0.01274410443 | G159: 27.4 | H159: 1.13 | I159: 0.87% | J159: -1.58% | K159: -0.38% | L159: 2.67
A160: 1999-08-05 | B160: 0 | C160: 0 | D160: 0 | E160: 0 | F160: 0.006419832533 | G160: 27.01 | H160: -0.39 | I160: -2.48% | J160: -1.85% | K160: -1.92% | L160: 2.81
A161: 1999-08-06 | B161: 0 | C161: 0 | D161: 0 | E161: 0 | F161: -0.01021534433 | G161: 26.6 | H161: -0.41 | I161: -0.66% | J161: -1.58% | K161: 0.86% | L161: 2.75
A162: 1999-08-09 | B162: 1.00 | C162: 2.00 | D162: 1.00 | E162: 1.00 | F162: -0.001914957433 | G162: 27.66 | H162: 1.06 | I162: -1.68% | J162: 0.62% | K162: 1.47% | L162: 2.33
A163: 1999-08-10 | B163: 0 | C163: 0 | D163: 0 | E163: 0 | F163: -0.01261365388 | G163: 28.45 | H163: 0.79 | I163: -2.69% | J163: 0.07% | K163: -1.37% | L163: 2.66
A164: 1999-08-11 | B164: 0 | C164: 0 | D164: 0 | E164: 0 | F164: 0.01599775251 | G164: 25.39 | H164: -3.06 | I164: -1.26% | J164: 0.05% | K164: 1.12% | L164: 2.64
A165: 1999-08-12 | B165: 0 | C165: 0 | D165: 0 | E165: 0 | F165: -0.002895700998 | G165: 25.03 | H165: -0.36 | I165: 2.75% | J165: 1.23% | K165: 1.95% | L165: 2.66
A166: 1999-08-13 | B166: 0 | C166: 0 | D166: 0 | E166: 0 | F166: 0.02273987798 | G166: 22.31 | H166: -2.72 | I166: -1.34% | J166: 0.07% | K166: 0.57% | L166: 2.6
A167: 1999-08-16 | B167: 1.00 | C167: 2.00 | D167: 1.00 | E167: 1.00 | F167: 0.00232736804 | G167: 23.07 | H167: 0.76 | I167: 2.27% | J167: 2.24% | K167: 0.37% | L167: 2.53
A168: 1999-08-17 | B168: 0 | C168: 0 | D168: 0 | E168: 0 | F168: 0.01006184389 | G168: 21.67 | H168: -1.4 | I168: -0.87% | J168: 0.19% | K168: 0.31% | L168: 2.46
A169: 1999-08-18 | B169: 0 | C169: 0 | D169: 0 | E169: 0 | F169: -0.008421616474 | G169: 23.3 | H169: 1.63 | I169: 1.64% | J169: 0.18% | K169: 0.07% | L169: 2.98
A170: 1999-08-19 | B170: 0 | C170: 0 | D170: 0 | E170: 0 | F170: -0.006940067825 | G170: 24.39 | H170: 1.09 | I170: 3.16% | J170: -0.07% | K170: -1.12% | L170: 2.63
A171: 1999-08-20 | B171: 0 | C171: 0 | D171: 0 | E171: 0 | F171: 0.009836883023 | G171: 22.95 | H171: -1.44 | I171: 1.22% | J171: 1.22% | K171: 1.98% | L171: 3.06
A172: 1999-08-23 | B172: 1.00 | C172: 2.00 | D172: 1.00 | E172: 1.00 | F172: 0.0176640905 | G172: 22.55 | H172: -0.4 | I172: 0.05% | J172: 0.75% | K172: 1.65% | L172: 2.8
A173: 1999-08-24 | B173: 0 | C173: 0 | D173: 0 | E173: 0 | F173: 0.002411374631 | G173: 22.4 | H173: -0.15 | I173: 0.44% | J173: -0.76% | K173: -0.26% | L173: 3.01
A174: 1999-08-25 | B174: 0 | C174: 0 | D174: 0 | E174: 0 | F174: 0.01341400807 | G174: 20.96 | H174: -1.44 | I174: -1.13% | J174: -1.33% | K174: 0.91% | L174: 2.44
A175: 1999-08-26 | B175: 0 | C175: 0 | D175: 0 | E175: 0 | F175: -0.01431476563 | G175: 21.21 | H175: 0.25 | I175: 0.96% | J175: -1.06% | K175: 0.32% | L175: 3.36
A176: 1999-08-27 | B176: 0 | C176: 0 | D176: 0 | E176: 0 | F176: -0.01008803166 | G176: 21.83 | H176: 0.62 | I176: -1.66% | J176: -0.38% | K176: -0.13% | L176: 2.55
A177: 1999-08-30 | B177: 1.00 | C177: 2.00 | D177: 1.00 | E177: 1.00 | F177: -0.0179860117 | G177: 24.63 | H177: 2.8 | I177: 2.28% | J177: 1.82% | K177: -1.18% | L177: 2.96
A178: 1999-08-31 | B178: 0 | C178: 0 | D178: 0 | E178: 0 | F178: -0.002726544916 | G178: 24.45 | H178: -0.18 | I178: -1.50% | J178: -2.69% | K178: -2.20% | L178: 2.96
A179: 1999-09-01 | B179: 0 | C179: 0 | D179: 0 | E179: 0 | F179: 0.008073249975 | G179: 22.93 | H179: -1.52 | I179: 0.46% | J179: 2.10% | K179: 0.46% | L179: 2.38
A180: 1999-09-02 | B180: 0 | C180: 0 | D180: 0 | E180: 0 | F180: -0.008985252466 | G180: 24.53 | H180: 1.6 | I180: -1.30% | J180: -0.96% | K180: -1.01% | L180: 2.86
A181: 1999-09-03 | B181: 0 | C181: 0 | D181: 0 | E181: 0 | F181: 0.02890585319 | G181: 20.98 | H181: -3.55 | I181: -1.42% | J181: -0.01% | K181: 2.35% | L181: 2.92
A182: 1999-09-07 | B182: 1.00 | C182: 1.00 | D182: 1.00 | E182: 0 | F182: -0.0050027998 | G182: 23.44 | H182: 2.46 | I182: 0.08% | J182: -0.28% | K182: -0.77% | L182: 2.8
A183: 1999-09-08 | B183: 0 | C183: 0 | D183: 0 | E183: 0 | F183: -0.004665111629 | G183: 23.82 | H183: 0.38 | I183: -0.29% | J183: -0.37% | K183: -0.90% | L183: 2.54
A184: 1999-09-09 | B184: 0 | C184: 0 | D184: 0 | E184: 0 | F184: 0.002611315701 | G184: 23.01 | H184: -0.81 | I184: 3.73% | J184: 0.21% | K184: -0.04% | L184: 2.51
A185: 1999-09-10 | B185: 0 | C185: 0 | D185: 0 | E185: 0 | F185: 0.002968107683 | G185: 22.03 | H185: -0.98 | I185: 0.01% | J185: 0.19% | K185: 0.72% | L185: 2.79
A186: 1999-09-13 | B186: 1.00 | C186: 2.00 | D186: 1.00 | E186: 1.00 | F186: -0.0055709276 | G186: 22.89 | H186: 0.86 | I186: 0.04% | J186: 1.12% | K186: -0.43% | L186: 2.54
A187: 1999-09-14 | B187: 0 | C187: 0 | D187: 0 | E187: 0 | F187: -0.005832769152 | G187: 23.77 | H187: 0.88 | I187: -0.41% | J187: -0.74% | K187: -0.24% | L187: 3.1
A188: 1999-09-15 | B188: 0 | C188: 0 | D188: 0 | E188: 0 | F188: -0.01370959896 | G188: 24.56 | H188: 0.79 | I188: -2.71% | J188: 0.00% | K188: -1.33% | L188: 2.89
A189: 1999-09-16 | B189: 0 | C189: 0 | D189: 0 | E189: 0 | F189: 0.000386958732 | G189: 25.25 | H189: 0.69 | I189: 0.00% | J189: -2.73% | K189: -0.18% | L189: 2.01
A190: 1999-09-17 | B190: 0 | C190: 0 | D190: 0 | E190: 0 | F190: 0.01284812815 | G190: 23.3 | H190: -1.95 | I190: 0.40% | J190: 0.29% | K190: 0.75% | L190: 2.8
A191: 1999-09-20 | B191: 1.00 | C191: 2.00 | D191: 1.00 | E191: 1.00 | F191: 8.237108925e-05 | G191: 24.03 | H191: 0.73 | I191: -0.09% | J191: 1.34% | K191: 1.04% | L191: 2.21
A192: 1999-09-21 | B192: 0 | C192: 0 | D192: 0 | E192: 0 | F192: -0.02092802109 | G192: 25.65 | H192: 1.62 | I192: -0.39% | J192: 2.03% | K192: -0.31% | L192: 2.12
A193: 1999-09-22 | B193: 0 | C193: 0 | D193: 0 | E193: 0 | F193: 0.002240780679 | G193: 25.19 | H193: -0.46 | I193: -1.73% | J193: -3.39% | K193: -0.81% | L193: 2.41
A194: 1999-09-23 | B194: 0 | C194: 0 | D194: 0 | E194: 0 | F194: -0.02296815743 | G194: 27.84 | H194: 2.65 | I194: 0.20% | J194: 0.00% | K194: 0.72% | L194: 3.39
A195: 1999-09-24 | B195: 0 | C195: 0 | D195: 0 | E195: 0 | F195: -0.0023820495 | G195: 27.79 | H195: -0.05 | I195: -1.38% | J195: -2.62% | K195: -1.12% | L195: 2.55
A196: 1999-09-27 | B196: 1.00 | C196: 2.00 | D196: 1.00 | E196: 1.00 | F196: 0.004658044717 | G196: 26.4 | H196: -1.39 | I196: -2.08% | J196: -0.30% | K196: 1.24% | L196: 2.2
A197: 1999-09-28 | B197: 0 | C197: 0 | D197: 0 | E197: 0 | F197: -0.0008649507913 | G197: 26.06 | H197: -0.34 | I197: 0.66% | J197: 3.00% | K197: -0.49% | L197: 3.29
A198: 1999-09-29 | B198: 0 | C198: 0 | D198: 0 | E198: 0 | F198: -0.01078614881 | G198: 26.49 | H198: 0.43 | I198: -0.08% | J198: -0.25% | K198: -1.17% | L198: 2.77
A199: 1999-09-30 | B199: 0 | C199: 0 | D199: 0 | E199: 0 | F199: 0.01130584924 | G199: 25.41 | H199: -1.08 | I199: -0.79% | J199: 1.87% | K199: 0.07% | L199: 2.61
A200: 1999-10-01 | B200: 0 | C200: 0 | D200: 0 | E200: 0 | F200: 7.795994418e-05 | G200: 24.93 | H200: -0.48 | I200: 0.00% | J200: 0.61% | K200: 0.33% | L200: 2.38
... 5559 more rows

Sheet Open (UTC 14.30)
B1: =CB6049 -> Without GCP data | C1: =CK6049 -> With GCP data | ET1: Dependent Variable: SNP500__CLOSE_ | EZ1: Dependent Variable: SNP500__CLOSE_
A2: Average | B2: =CB6050 -> 0.27% | C2: =CK6050 -> 0.31% | ET2: Method: Least Squares | EZ2: Method: Least Squares
A3: Standard deviation | B3: =CB6051 -> 1.00% | C3: =CK6051 -> 0.99% | ET3: Date: 08/28/22 Time: 08:24 | EZ3: Date: 08/28/22 Time: 08:57
A4: Number of trades | B4: =CB6052 -> 200 | C4: =CK6052 -> 200 | D4: Relative predict rate | ET4: Sample (adjusted): 1/06/1999 8/01/2022 | EZ4: Sample (adjusted): 1/06/1999 8/01/2022
A5: Hit rate | B5: =$CE$290 -> 60.8% | C5: =$CM$290 -> 61.3% | D5: =C5-B5 -> 0.50% | ET5: Included observations: 5747 after adjustments | EZ5: Included observations: 5747 after adjustments
A6: Predict rate | B6: =$AP$290 -> 68.7% | C6: =$BJ$290 -> 67.2%
ET7: Variable | EU7: Coefficient | EV7: Std. Error | EW7: t-Statistic | EX7: Prob. | EZ7: Variable | FA7: Coefficient | FB7: Std. Error | FC7: t-Statistic | FD7: Prob.
ET9: C | EU9: 0.000138 | EV9: 0.000154 | EW9: 0.894406 | EX9: 0.3711 | EZ9: C | FA9: -0.000137 | FB9: 0.000914 | FC9: -0.14974 | FD9: 0.881
ET10: SNP500__CLOSE_(-1) | EU10: -0.312193 | EV10: 0.019848 | EW10: -15.72885 | EX10: 0 | EZ10: SNP500__CLOSE_(-1) | FA10: -0.303621 | FB10: 0.019756 | FC10: -15.36844 | FD10: 0
ET11: SWEDEN | EU11: 0.437416 | EV11: 0.011525 | EW11: 37.9549 | EX11: 0 | EZ11: SWEDEN | FA11: 0.545573 | FB11: 0.067655 | FC11: 8.06399 | FD11: 0
ET12: HK | EU12: 0.062292 | EV12: 0.011473 | EW12: 5.429587 | EX12: 0 | EZ12: HK | FA12: 0.604271 | FB12: 0.077849 | FC12: 7.762132 | FD12: 0
ET13: NIKKEI | EU13: 0.054465 | EV13: 0.012999 | EW13: 4.189888 | EX13: 0 | EZ13: NIKKEI | FA13: -0.071439 | FB13: 0.079267 | FC13: -0.901253 | FD13: 0.3675
A14: =BU6049 -> S&P500 | B14: =CA6049 -> Without GCP data | C14: =CJ6049 -> GCP data fund | D14: Relative return | ET14: SNP500__CLOSE_(-1)^2 | EU14: 0.8993 | EV14: 0.270867 | EW14: 3.320077 | EX14: 0.0009 | EZ14: SNP500__CLOSE_(-1)^2 | FA14: 0.881927 | FB14: 0.269822 | FC14: 3.268547 | FD14: 0.0011
A15: =BU6050 -> 11.4% | B15: =CA6050 -> 70.9% | C15: =CJ6050 -> 82.4% | D15: =C15-B15 -> 11.43% | ET15: SWEDEN(-1) | EU15: 0.073438 | EV15: 0.012575 | EW15: 5.839803 | EX15: 0 | EZ15: SWEDEN(-1) | FA15: 7.18E-02 | FB15: 0.012491 | FC15: 5.744433 | FD15: 0
ET16: NIKKEI(-1) | EU16: 0.008674 | EV16: 0.010982 | EW16: 0.789849 | EX16: 0.4296 | EZ16: NIKKEI(-1) | FA16: 0.012168 | FB16: 0.010907 | FC16: 1.115621 | FD16: 0.2646
ET17: FILTER | EU17: -0.000274 | EV17: 0.000345 | EW17: -0.79384 | EX17: 0.4273 | EZ17: FILTER | FA17: -0.000318 | FB17: 0.000343 | FC17: -0.929177 | FD17: 0.3528
A18: FED filter? | B18: MAX[Z] filter? | C18: Filter on closed markets? | ET18: FILTER*(SWEDEN) | EU18: 0.117625 | EV18: 0.023605 | EW18: 4.982987 | EX18: 0 | EZ18: FILTER*(SWEDEN) | FA18: 0.123119 | FB18: 0.023461 | FC18: 5.247901 | FD18: 0
A19: 0 | B19: 0 | C19: 1.00 | ET19: FILTER*(SWEDEN(-1)) | EU19: -0.071424 | EV19: 0.028177 | EW19: -2.534824 | EX19: 0.0113 | EZ19: FILTER*(SWEDEN(-1)) | FA19: -0.084827 | FB19: 0.028007 | FC19: -3.028819 | FD19: 0.0025
B20: filter | ET20: FILTER*(NIKKEI) | EU20: 0.049885 | EV20: 0.026873 | EW20: 1.856352 | EX20: 0.0635 | EZ20: FILTER*(NIKKEI) | FA20: 0.049679 | FB20: 0.026695 | FC20: 1.861016 | FD20: 0.0628
ET21: FILTER*(NIKKEI(-1)) | EU21: 0.067133 | EV21: 0.025483 | EW21: 2.634437 | EX21: 0.0085 | EZ21: FILTER*(NIKKEI(-1)) | FA21: 0.060498 | FB21: 0.025327 | FC21: 2.388703 | FD21: 0.0169
ET22: D(VIX(-1)) | EU22: -1.44e-05 | EV22: 0.000128 | EW22: -0.112002 | EX22: 0.9108 | EZ22: D(VIX(-1)) | FA22: 0.001074 | FB22: 0.000593 | FC22: 1.810997 | FD22: 0.0702
ET23: D(VIX(-1))*NIKKEI(-1) | EU23: -0.001502 | EV23: 0.003477 | EW23: -0.431948 | EX23: 0.6658 | EZ23: D(VIX(-1))*NIKKEI(-1) | FA23: 0.002262 | FB23: 0.003499 | FC23: 0.64655 | FD23: 0.5179
ET24: D(VIX(-1))*NIKKEI(-1)*FILTER | EU24: -0.031378 | EV24: 0.006267 | EW24: -5.007206 | EX24: 0 | EZ24: D(VIX(-1))*NIKKEI(-1)*FILTER | FA24: -0.031357 | FB24: 0.006301 | FC24: -4.976438 | FD24: 0
EZ25: MAX_Z_(-1) | FA25: 0.000113 | FB25: 0.000328 | FC25: 0.343534 | FD25: 0.7312
ET26: R-squared | EU26: 0.341179 | EV26: Mean dependent var | EX26: 0.000274 | EZ26: MAX_Z_(-1)*SWEDEN | FA26: -0.041176 | FB26: 0.024523 | FC26: -1.679076 | FD26: 0.0932
F27: VIX 2022-07-31 | AF27: =ABS(_xlfn.NORM.INV(1%,0,1)) -> 2.326347874 | ET27: Adjusted R-squared | EU27: 0.339455 | EV27: S.D. dependent var | EX27: 0.012465 | EZ27: MAX_Z_(-1)*HK | FA27: -0.20042 | FB27: 0.02817 | FC27: -7.114779 | FD27: 0
F28: 23.34 | Q28: MAX[Z] filter | X28: filter | Y28: Filter | BS28: Adaptive | BU28: B&H | BX28: Control | CA28: Control | CE28: Hit rate without | CF28: Control (alt 1) | CG28: GCP data fund | CJ28: GCP data fund | CK28: With returns | CM28: Hit rate with GCP | CN28: Relative daily | CO28: n | CP28: y1 | CQ28: y2 | CR28: Y1 | CS28: Y2 | CT28: p | CU28: p(1-p) | CV28: p1 | CW28: p2 | CX28: p1-p2 | CY28: z | ET28: S.E. of regression | EU28: 0.010131 | EV28: Akaike info criterion | EX28: -6.343641 | EZ28: MAX_Z_(-1)*NIKKEI | FA28: 0.046053 | FB28: 0.028666 | FC28: 1.606563 | FD28: 0.1082
A29: Start | C29: SnP500 (close) | D29: SnP500 (open adjust) | E29: Aprox buy | F29: VIX | G29: HK | H29: Nikkei | I29: Sweden | L29: Daily tables | M29: Egna | N29: Intradag | O29: Snitt egna och intradag | P29: Max[Z] | Q29: =AF27 -> 1900-01-02T07:49:56.456 | T29: Fed decision week | U29: Fed decision use | V29: Closed markets | W29: Some used markets closed | X29: Some used markets closed | Y29: No Fed decision & no closed markets | AA29: No fed nor market | AC29: Predict no GCP | AD29: predict positive | AE29: predict negative | AF29: Outcome positive | AG29: Ourcome negative | AH29: Positive right? | AI29: Negative right | AJ29: Positive right? | AK29: Negative right | AL29: Predict right no GCP | AM29: No market closed | AO29: No market no fed | AP29: Without GCP | AQ29: Without GCP (alternative 1) | AR29: Without GCP (alternative 2) | AS29: Predict with GCP | AU29: predict positive | AV29: predict negative | AW29: Outcome positive | AX29: Ourcome negative | AY29: Positive right? | AZ29: Negative right | BA29: Positive right? | BB29: Negative right | BC29: Predict right with GCP | BD29: No market closed | BF29: No market no fed | BG29: Different predictions, no market no fed | BH29: With GCP | BI29: Without GCP | BJ29: With GCP | BM29: Trade rule without | BN29: Trade rule with | BO29: Max[Z] effect (comp) | BP29: Max[Z] effect and GCP data | BS29: 100 | BU29: 1900-04-09 | BX29: 100 | CA29: 100 | CF29: 100 | CG29: 100 | CJ29: 100 | DC29: =(CG29-BX29)/100 -> 0 | DD29: =(CJ29-CA29)/100 -> 0 | ET29: Sum squared resid | EU29: 0.588221 | EV29: Schwarz criterion | EX29: -6.325109 | EZ29: MAX_Z_(-1)*D(VIX(-1)) | FA29: -0.000694 | FB29: 0.000217 | FC29: -3.194263 | FD29: 0.0014
A30: =A6050 -> 2022-08-01 | B30: =IF(C30=0,1,IF(WEEKDAY(A30,2)=1,1,0)) -> 1 | C30: =C6050/C6049-1 -> -0.282% | D30: =C30 -> -0.28% | E30: =D30 -> -0.3% | F30: =E6050 -> 22.84 | G30: =F6050/F6049-1 -> 0.05% | H30: =G6050/G6049-1 -> 0.69% | I30: =H6050/H6049-1 -> -1.05% | K30: 2022-08-01 | L30: 2.58 | M30: 2.58 | P30: =M30 -> 2.58 | R30: Intradag | U30: =IF($A$19=1,T30,0) -> 0 | Y30: =IF(SUM(U30:X30)>0,1,0) -> 0 | AB30: =AL30-BC30 -> 0 | AP30: =AP31 -> 100.0% | AQ30: =AQ31 -> 100.0% | AR30: =AR31 -> 100.0% | BR30: =A30 -> 44774 | BS30: 100 | BU30: 1900-04-09 | BV30: =BU30/BU29-1 -> 0 | BX30: 100 | CA30: 100 | CB30: =IF(Y30=0,IF(BM30>0,CA30/CA29-1,CA30/CA29-1),"") -> 0 | CC30: =CA30/CA29-1 -> 0 | CD30: =IF(ABS(CA30-CA29)>0,IF(CA30/CA29-1>=0,1,0),"") ->  | CF30: 100 | CG30: 100 | CH30: =IF(ABS(CG30/CG29-1)>0,CG30/CG29-1,"") ->  | CI30: =IF(X30=0,IF(CG30/CG29-1>=0,1,0),"") -> 1 | CJ30: 100 | CK30: =CJ30/CJ29-1 -> 0 | CL30: =IF(ABS(CJ30-CJ29)>0,IF(CJ30/CJ29-1>=0,1,0),"") ->  | DA30: =IF(ABS(CJ30/CJ29-1)>0,CJ30/CJ29-1,"") ->  | DB30: =IF(Y30=0,IF(CJ30/CJ29-1>=0,1,0),"") -> 1 | DC30: =(CG30-BX30)/100 -> 0 | DD30: =(CJ30-CA30)/100 -> 0 | ET30: Log likelihood | EU30: 18244.45 | EV30: Hannan-Quinn criter. | EX30: -6.337191 | EZ30: MAX_Z_(-1)*D(VIX(-1)^2) | FA30: 4.49e-06 | FB30: 7.8e-07 | FC30: 5.753645 | FD30: 0
A31: =A6051 -> 2022-08-02 | B31: =IF(C30=0,1,IF(WEEKDAY(A31,2)=1,1,0)) -> 0 | C31: =C6051/C6050-1 -> -0.666% | D31: =D6051/C6050-1 -> -0.35% | E31: =D31 -> -0.4% | F31: =E6051 -> 23.93 | G31: =F6051/F6050-1 -> -2.36% | H31: =G6051/G6050-1 -> -1.42% | I31: =H6051/H6050-1 -> -0.85% | K31: 2022-08-02 | L31: 2.61 | M31: 2.88 | N31: 3.38 | O31: =AVERAGE(M31:N31) -> 3.13 | P31: =M31 -> 2.88 | Q31: 2022-08-02 | R31: 3.38 | S31: =IF(P31>$Q$29,1,0) -> 1 | U31: =IF($A$19=1,T31,0) -> 0 | Y31: 0 | AB31: =AL31-BC31 -> 0 | AC31: =$EU$9+$EU$10*C30+$EU$11*I31+$EU$12*G31+$EU$13*H31+$EU$14*C30^2+$EU$15*I30+$EU$16*H30+$EU$17*B31+$EU$18*B31*I31+$EU$19*B31*I30+$EU$20*B31*H31+$EU$21*B31*H30+$EU$22*(F30-F28)+$EU$23*(F30-F28)*H30+$EU$24*(F30-F28)*H30*B31 -> -0.57% | AD31: =IF(AC31>0,1,0) -> 0 | AE31: =IF(AC31<=0,1,0) -> 1 | AF31: =IF(C31>0,1,0) -> 0 | AG31: =IF(C31<0,1,0) -> 1 | AH31: =AD31+AF31 -> 0 | AI31: =AE31+AG31 -> 2 | AJ31: =IF(AH31=2,1,0) -> 0 | AK31: =IF(AI31=2,1,0) -> 1 | AL31: =SUM(AJ31:AK31) -> 1 | AM31: =IF(X31=0,AL31,"") -> 1 | AN31: =SUM($AM31:AM$32)/COUNT($AM31:AM$32) -> 1 | AO31: =IF(Y31=0,AL31,"") -> 1 | AP31: =SUM($AO31:AO$32)/COUNT($AO31:AO$32) -> 100.0% | AQ31: 100.0% | AR31: 100.0% | AS31: =$FA$9+$FA$10*C30+$FA$11*I31+$FA$12*G31+$FA$13*H31+$FA$14*C30^2+$FA$15*I30+$FA$16*H30+$FA$17*B31+$FA$18*B31*I31+$FA$19*B31*I30+$FA$20*B31*H31+$FA$21*B31*H30+$FA$22*(F30-F28)+$FA$23*(F30-F28)*H30+$FA$24*(F30-F28)*H30*B31+$FA$25*P30+$FA$26*P30*I31+$FA$27*P30*G31+$FA$28*P30*H31+$FA$29*P30*(F30-F28)+$FA$30*P30*(F30^2-F28^2) -> -0.61% | AT31: =ABS(AS31)-ABS(AC31) -> 0.0% | AU31: =IF(AS31>0,1,0) -> 0 | AV31: =IF(AS31<=0,1,0) -> 1 | AW31: =IF(C31>0,1,0) -> 0 | AX31: =IF(C31<0,1,0) -> 1 | AY31: =AU31+AW31 -> 0 | AZ31: =AV31+AX31 -> 2 | BA31: =IF(AY31=2,1,0) -> 0 | BB31: =IF(AZ31=2,1,0) -> 1 | BC31: =SUM(BA31:BB31) -> 1 | BD31: =IF(X31=0,BC31,"") -> 1 | BE31: =SUM($BD31:BD$32)/COUNT($BD31:BD$32) -> 1 | BF31: =IF(Y31=0,BC31,"") -> 1 | BG31: =IF(Y31=0,CL31-CD31,"") -> 0 | BH31: =IF(Y31=0,IF(BG31=1,1,0),"") -> 0 | BI31: =IF(Y31=0,IF(BG31=-1,1,0),"") -> 0 | BJ31: =SUM($BF31:BF$32)/COUNT($BF31:BF$32) -> 100.0% | BK31: =BJ31-AP31 -> 0.0% | BM31: =IF(AC31>0,1,0) -> 0.0% | BN31: =IF(AS31>0,1,0) -> 0.00% | BO31: =IF(AS31-AC31>0,1,0) -> 0 | BQ31: =IF(C30>0,1,0) -> 0 | BR31: =A31 -> 44775 | BS31: =IF(ABS(C31)>0,IF(BQ31>0,BS30*(1+(C31-E31)),BS30*(1-(C31-E31))),BS30) -> 100.3161245 | BT31: =BS31/BS30-1 -> 0.003161245366 | BU31: =BU30*(1+C31) -> 1900-04-08T08:00:36.781 | BV31: -0.006662409588 | BW31: =IF(BV31>0,1,0) -> 0 | BX31: =IF(X31=0,IF(BM31>0,BX30*(1+(C31-E31)),BX30*(1-(C31-E31))),BX30) -> 100.3161245 | BY31: =BX31/BX30-1 -> 0.003161245366 | BZ31: =IF(BY31>0,1,0) -> 1 | CA31: =IF(Y31=0,IF(BM31>0,CA30*(1+(C31-E31)),CA30*(1-(C31-E31))),CA30) -> 100.3161245 | CB31: =IF(Y31=0,IF(BM31>0,CA31/CA30-1,CA31/CA30-1),"") -> 0.003161245366 | CC31: 0.003161245366 | CD31: =IF(ABS(CA31-CA30)>0,IF(CA31/CA30-1>=0,1,0),"") -> 1 | CE31: =SUM($CD$30:CD31)/COUNT($CD$30:CD31) -> 1 | CF31: 100.1580623 | CG31: =IF(X31=0,IF(BN31>0,CG30*(1+(C31-E31)),CG30*(1-(C31-E31))),CG30) -> 100.3161245 | CH31: =IF(ABS(CG31/CG30-1)>0,CG31/CG30-1,"") -> 0% | CI31: =IF(X31=0,IF(CG31/CG30-1>=0,1,0),"") -> 1 | CJ31: =IF(Y31=0,IF(BN31>0,CJ30*(1+(C31-E31)),CJ30*(1-(C31-E31))),CJ30) -> 100.3161245 | CK31: =IF(Y31=0,IF(BN31>0,CJ31/CJ30-1,CJ31/CJ30-1),"") -> 0.003161245366 | CL31: =IF(ABS(CJ31-CJ30)>0,IF(CJ31/CJ30-1>=0,1,0),"") -> 1 | CM31: =SUM($CL$30:CL31)/COUNT($CL$30:CL31) -> 1 | CN31: =IF(ABS(CJ55-CJ54)>0,CK31-CC31,"") ->  | DA31: =IF(ABS(CJ31/CJ30-1)>0,CJ31/CJ30-1,"") -> 0.003161245366 | DB31: =IF(Y31=0,IF(CJ31/CJ30-1>=0,1,0),"") -> 1 | DC31: =(CG31-BX31)/100 -> 0 | DD31: =(CJ31-CA31)/100 -> 0 | ET31: F-statistic | EU31: 197.8583 | EV31: Durbin-Watson stat | EX31: 2.05297
A32: =A6052 -> 2022-08-03 | B32: 0 | C32: =C6052/C6051-1 -> 1.564% | D32: =D6052/C6051-1 -> 0.41% | E32: 0.4% | F32: =E6052 -> 21.95 | G32: =F6052/F6051-1 -> 0.40% | H32: =G6052/G6051-1 -> 0.53% | I32: =H6052/H6051-1 -> 0.58% | K32: 2022-08-03 | L32: 3.18 | M32: 3.12 | N32: 3.90 | O32: =AVERAGE(M32:N32) -> 3.51 | P32: 3.12 | Q32: 2022-08-03 | R32: 3.90 | S32: =IF(P32>$Q$29,1,0) -> 1 | U32: =IF($A$19=1,T32,0) -> 0 | Y32: 0 | AB32: =AL32-BC32 -> 0 | AC32: =$EU$9+$EU$10*C31+$EU$11*I32+$EU$12*G32+$EU$13*H32+$EU$14*C31^2+$EU$15*I31+$EU$16*H31+$EU$17*B32+$EU$18*B32*I32+$EU$19*B32*I31+$EU$20*B32*H32+$EU$21*B32*H31+$EU$22*(F31-F30)+$EU$23*(F31-F30)*H31+$EU$24*(F31-F30)*H31*B32 -> 0.46% | AD32: =IF(AC32>0,1,0) -> 1 | AE32: 0 | AF32: 1 | AG32: 0 | AH32: =AD32+AF32 -> 2 | AI32: =AE32+AG32 -> 0 | AJ32: =IF(AH32=2,1,0) -> 1 | AK32: =IF(AI32=2,1,0) -> 0 | AL32: =SUM(AJ32:AK32) -> 1 | AM32: =IF(X32=0,AL32,"") -> 1 | AN32: =SUM($AM$32:AM32)/COUNT($AM$32:AM32) -> 1 | AO32: 1 | AP32: =SUM($AO$32:AO32)/COUNT($AO$32:AO32) -> 100.0% | AQ32: 100.0% | AR32: 100.0% | AS32: =IF($B$19=1,IF(S32=1,$FA$9+$FA$10*C31+$FA$11*I32+$FA$12*G32+$FA$13*H32+$FA$14*C31^2+$FA$15*I31+$FA$16*H31+$FA$17*B32+$FA$18*B32*I32+$FA$19*B32*I31+$FA$20*B32*H32+$FA$21*B32*H31+$FA$22*(F31-F30)+$FA$23*(F31-F30)*H31+$FA$24*(F31-F30)*H31*B32+$FA$25*P31+$FA$26*P31*I32+$FA$27*P31*G32+$FA$28*P31*H32+$FA$29*P31*(F31-F30)+$FA$30*P31*(F31^2-F30^2),AC32),$FA$9+$FA$10*C31+$FA$11*I32+$FA$12*G32+$FA$13*H32+$FA$14*C31^2+$FA$15*I31+$FA$16*H31+$FA$17*B32+$FA$18*B32*I32+$FA$19*B32*I31+$FA$20*B32*H32+$FA$21*B32*H31+$FA$22*(F31-F30)+$FA$23*(F31-F30)*H31+$FA$24*(F31-F30)*H31*B32+$FA$25*P31+$FA$26*P31*I32+$FA$27*P31*G32+$FA$28*P31*H32+$FA$29*P31*(F31-F30)+$FA$30*P31*(F31^2-F30^2)) -> 0.40% | AT32: =ABS(AS32)-ABS(AC32) -> -0.1% | AU32: =IF(AS32>0,1,0) -> 1 | AV32: =IF(AS32<=0,1,0) -> 0 | AW32: 1 | AX32: 0 | AY32: =AU32+AW32 -> 2 | AZ32: =AV32+AX32 -> 0 | BA32: =IF(AY32=2,1,0) -> 1 | BB32: =IF(AZ32=2,1,0) -> 0 | BC32: =SUM(BA32:BB32) -> 1 | BD32: =IF(X32=0,BC32,"") -> 1 | BE32: =SUM($BD$32:BD32)/COUNT($BD$32:BD32) -> 1 | BF32: 1 | BG32: =IF(Y32=0,CL32-CD32,"") -> 0 | BH32: =IF(Y32=0,IF(BG32=1,1,0),"") -> 0 | BI32: 0 | BJ32: =SUM($BF$32:BF32)/COUNT($BF$32:BF32) -> 100.0% | BK32: =BJ32-AP32 -> 0.0% | BM32: =IF(AC32>0,1,0) -> 100.0% | BN32: =IF(AS32>0,1,0) -> 100.00% | BO32: =IF(AS32-AC32>0,1,0) -> 0 | BP32: =IF(BO32+AU32=2,1,0) -> 0 | BQ32: =IF(C31>0,1,0) -> 0 | BR32: =A32 -> 44776 | BS32: =IF(ABS(C32)>0,IF(BQ32>0,BS31*(1+(C32-E32)),BS31*(1-(C32-E32))),BS31) -> 99.15853365 | BT32: -0.01153942985 | BU32: =BU31*(1+C32) -> 1900-04-09T21:17:33.062 | BV32: 0.01563848171 | BW32: =IF(BV32>0,1,0) -> 1 | BX32: =IF(X32=0,IF(BM32>0,BX31*(1+(C32-E32)),BX31*(1-(C32-E32))),BX31) -> 101.4737154 | BY32: 0.01153942985 | BZ32: 1 | CA32: =IF(Y32=0,IF(BM32>0,CA31*(1+(C32-E32)),CA31*(1-(C32-E32))),CA31) -> 101.4737154 | CB32: =IF(Y32=0,IF(BM32>0,CA32/CA31-1,CA32/CA31-1),"") -> 0.01153942985 | CC32: 0.01153942985 | CD32: =IF(ABS(CA32-CA31)>0,IF(CA32/CA31-1>=0,1,0),"") -> 1 | CE32: =SUM($CD$30:CD32)/COUNT($CD$30:CD32) -> 1 | CF32: 100.7359457 | CG32: =IF(X32=0,IF(BN32>0,CG31*(1+(C32-E32)),CG31*(1-(C32-E32))),CG31) -> 101.4737154 | CH32: =IF(ABS(CG32/CG31-1)>0,CG32/CG31-1,"") -> 1% | CI32: =IF(X32=0,IF(CG32/CG31-1>=0,1,0),"") -> 1 | CJ32: =IF(Y32=0,IF(BN32>0,CJ31*(1+(C32-E32)),CJ31*(1-(C32-E32))),CJ31) -> 101.4737154 | CK32: =IF(Y32=0,IF(BN32>0,CJ32/CJ31-1,CJ32/CJ31-1),"") -> 0.01153942985 | CL32: 1 | CM32: =SUM($CL$30:CL32)/COUNT($CL$30:CL32) -> 1 | CN32: =CK32-CC32 -> 0 | CO32: =COUNT($CN$32:CN32) -> 100% | CP32: =IF(CN32="","",IF(CN32>0,1,0)) -> 0% | CQ32: =IF(CN32="","",IF(CN32<0,1,0)) -> 0 | CR32: =SUM($CP$32:CP32) -> 0 | CS32: =SUM($CQ$32:CQ32) -> 0 | CT32: =(CR32+CS32)/(CO32*2) -> 0 | CU32: =CT32*(1-CT32) -> 0 | CV32: =IF(CT32=0,"",CR32/CT32) ->  | CW32: =CS32/CO32 -> 0 | DA32: 0.01153942985 | DB32: =IF(Y32=0,IF(CJ32/CJ31-1>=0,1,0),"") -> 1 | DC32: =(CG32-BX32)/100 -> 0 | DD32: =(CJ32-CA32)/100 -> 0 | ET32: Prob(F-statistic) | EU32: 0 | EZ32: R-squared | FA32: 0.351841 | FB32: Mean dependent var | FD32: 0.000274
A33: =A6053 -> 2022-08-04 | B33: 0 | C33: =C6053/C6052-1 -> -0.078% | D33: =D6053/C6052-1 -> -0.01% | E33: -0.0% | F33: =E6053 -> 21.44 | G33: =F6053/F6052-1 -> 2.06% | H33: =G6053/G6052-1 -> 0.69% | I33: =H6053/H6052-1 -> 0.76% | K33: 2022-08-04 | L33: 2.52 | M33: 2.40 | N33: 3.40 | O33: 2.90 | P33: 2.40 | Q33: 2022-08-04 | R33: 3.40 | S33: =IF(P33>$Q$29,1,0) -> 1 | U33: =IF($A$19=1,T33,0) -> 0 | Y33: 0 | AB33: =AL33-BC33 -> 0 | AC33: =$EU$9+$EU$10*C32+$EU$11*I33+$EU$12*G33+$EU$13*H33+$EU$14*C32^2+$EU$15*I32+$EU$16*H32+$EU$17*B33+$EU$18*B33*I33+$EU$19*B33*I32+$EU$20*B33*H33+$EU$21*B33*H32+$EU$22*(F32-F31)+$EU$23*(F32-F31)*H32+$EU$24*(F32-F31)*H32*B33 -> 0.10% | AD33: =IF(AC33>0,1,0) -> 1 | AE33: 0 | AF33: 0 | AG33: 1 | AH33: =AD33+AF33 -> 1 | AI33: 1 | AJ33: =IF(AH33=2,1,0) -> 0 | AK33: 0 | AL33: =SUM(AJ33:AK33) -> 0 | AM33: =IF(X33=0,AL33,"") -> 0 | AN33: =SUM($AM$32:AM33)/COUNT($AM$32:AM33) -> 0.5 | AO33: 0 | AP33: =SUM($AO$32:AO33)/COUNT($AO$32:AO33) -> 50.0% | AQ33: 50.0% | AR33: 50.0% | AS33: =IF($B$19=1,IF(S33=1,$FA$9+$FA$10*C32+$FA$11*I33+$FA$12*G33+$FA$13*H33+$FA$14*C32^2+$FA$15*I32+$FA$16*H32+$FA$17*B33+$FA$18*B33*I33+$FA$19*B33*I32+$FA$20*B33*H33+$FA$21*B33*H32+$FA$22*(F32-F31)+$FA$23*(F32-F31)*H32+$FA$24*(F32-F31)*H32*B33+$FA$25*P32+$FA$26*P32*I33+$FA$27*P32*G33+$FA$28*P32*H33+$FA$29*P32*(F32-F31)+$FA$30*P32*(F32^2-F31^2),AC33),$FA$9+$FA$10*C32+$FA$11*I33+$FA$12*G33+$FA$13*H33+$FA$14*C32^2+$FA$15*I32+$FA$16*H32+$FA$17*B33+$FA$18*B33*I33+$FA$19*B33*I32+$FA$20*B33*H33+$FA$21*B33*H32+$FA$22*(F32-F31)+$FA$23*(F32-F31)*H32+$FA$24*(F32-F31)*H32*B33+$FA$25*P32+$FA$26*P32*I33+$FA$27*P32*G33+$FA$28*P32*H33+$FA$29*P32*(F32-F31)+$FA$30*P32*(F32^2-F31^2)) -> 0.03% | AT33: =ABS(AS33)-ABS(AC33) -> -0.1% | AU33: =IF(AS33>0,1,0) -> 1 | AV33: 0 | AW33: 0 | AX33: 1 | AY33: =AU33+AW33 -> 1 | AZ33: 1 | BA33: =IF(AY33=2,1,0) -> 0 | BB33: 0 | BC33: =SUM(BA33:BB33) -> 0 | BD33: =IF(X33=0,BC33,"") -> 0 | BE33: =SUM($BD$32:BD33)/COUNT($BD$32:BD33) -> 0.5 | BF33: 0 | BG33: =IF(Y33=0,CL33-CD33,"") -> 0 | BH33: 0 | BI33: 0 | BJ33: =SUM($BF$32:BF33)/COUNT($BF$32:BF33) -> 50.0% | BK33: =BJ33-AP33 -> 0.0% | BM33: =IF(AC33>0,1,0) -> 100.0% | BN33: =IF(AS33>0,1,0) -> 100.00% | BO33: =IF(AS33-AC33>0,1,0) -> 0 | BP33: =IF(BO33+AU33=2,1,0) -> 0 | BQ33: =IF(C32>0,1,0) -> 1 | BR33: =A33 -> 44777 | BS33: =IF(ABS(C33)>0,IF(BQ33>0,BS32*(1+(C33-E33)),BS32*(1-(C33-E33))),BS32) -> 99.08908973 | BT33: -0.000700332357 | BU33: =BU32*(1+C33) -> 1900-04-09T19:24:37.216 | BV33: -0.0007773448499 | BW33: 0 | BX33: =IF(X33=0,IF(BM33>0,BX32*(1+(C33-E33)),BX32*(1-(C33-E33))),BX32) -> 101.4026501 | BY33: -0.000700332357 | BZ33: 0 | CA33: =IF(Y33=0,IF(BM33>0,CA32*(1+(C33-E33)),CA32*(1-(C33-E33))),CA32) -> 101.4026501 | CB33: =IF(Y33=0,IF(BM33>0,CA33/CA32-1,CA33/CA32-1),"") -> -0.000700332357 | CC33: -0.000700332357 | CD33: 0 | CE33: =SUM($CD$30:CD33)/COUNT($CD$30:CD33) -> 0.6666666667 | CF33: 100.7006714 | CG33: =IF(X33=0,IF(BN33>0,CG32*(1+(C33-E33)),CG32*(1-(C33-E33))),CG32) -> 101.4026501 | CH33: =IF(ABS(CG33/CG32-1)>0,CG33/CG32-1,"") -> -0% | CI33: =IF(X33=0,IF(CG33/CG32-1>=0,1,0),"") -> 0 | CJ33: =IF(Y33=0,IF(BN33>0,CJ32*(1+(C33-E33)),CJ32*(1-(C33-E33))),CJ32) -> 101.4026501 | CK33: =IF(Y33=0,IF(BN33>0,CJ33/CJ32-1,CJ33/CJ32-1),"") -> -0.000700332357 | CL33: 0 | CM33: =SUM($CL$30:CL33)/COUNT($CL$30:CL33) -> 0.6666666667 | CN33: =CK33-CC33 -> 0 | CO33: =COUNT($CN$32:CN33) -> 200% | CP33: =IF(CN33="","",IF(CN33>0,1,0)) -> 0% | CQ33: =IF(CN33="","",IF(CN33<0,1,0)) -> 0 | CR33: =SUM($CP$32:CP33) -> 0 | CS33: =SUM($CQ$32:CQ33) -> 0 | CT33: =(CR33+CS33)/(CO33*2) -> 0 | CU33: =CT33*(1-CT33) -> 0 | CV33: =IF(CT33=0,"",CR33/CT33) ->  | CW33: =CS33/CO33 -> 0 | DA33: -0.000700332357 | DB33: =IF(Y33=0,IF(CJ33/CJ32-1>=0,1,0),"") -> 0 | DC33: =(CG33-BX33)/100 -> 0 | DD33: =(CJ33-CA33)/100 -> 0 | EZ33: Adjusted R-squared | FA33: 0.349464 | FB33: S.D. dependent var | FD33: 0.012465
A34: =A6054 -> 2022-08-05 | B34: 0 | C34: =C6054/C6053-1 -> -0.163% | D34: =D6054/C6053-1 -> -0.87% | E34: -0.9% | F34: =E6054 -> 21.15 | G34: =F6054/F6053-1 -> 0.14% | H34: =G6054/G6053-1 -> 0.87% | I34: =H6054/H6053-1 -> -1.10% | K34: 2022-08-05 | L34: 2.41 | M34: 2.33 | N34: 2.86 | O34: 2.59 | P34: 2.33 | Q34: 2022-08-05 | R34: 2.86 | S34: =IF(P34>$Q$29,1,0) -> 0 | U34: =IF($A$19=1,T34,0) -> 0 | Y34: 0 | AB34: 0 | AC34: =$EU$9+$EU$10*C33+$EU$11*I34+$EU$12*G34+$EU$13*H34+$EU$14*C33^2+$EU$15*I33+$EU$16*H33+$EU$17*B34+$EU$18*B34*I34+$EU$19*B34*I33+$EU$20*B34*H34+$EU$21*B34*H33+$EU$22*(F33-F32)+$EU$23*(F33-F32)*H33+$EU$24*(F33-F32)*H33*B34 -> -0.32% | AD34: 0 | AE34: 1 | AF34: 0 | AG34: 1 | AH34: 0 | AI34: 2 | AJ34: 0 | AK34: 1 | AL34: 1 | AM34: 1 | AN34: =SUM($AM$32:AM34)/COUNT($AM$32:AM34) -> 0.6666666667 | AO34: 1 | AP34: =SUM($AO$32:AO34)/COUNT($AO$32:AO34) -> 66.7% | AQ34: 66.7% | AR34: 66.7% | AS34: =IF($B$19=1,IF(S34=1,$FA$9+$FA$10*C33+$FA$11*I34+$FA$12*G34+$FA$13*H34+$FA$14*C33^2+$FA$15*I33+$FA$16*H33+$FA$17*B34+$FA$18*B34*I34+$FA$19*B34*I33+$FA$20*B34*H34+$FA$21*B34*H33+$FA$22*(F33-F32)+$FA$23*(F33-F32)*H33+$FA$24*(F33-F32)*H33*B34+$FA$25*P33+$FA$26*P33*I34+$FA$27*P33*G34+$FA$28*P33*H34+$FA$29*P33*(F33-F32)+$FA$30*P33*(F33^2-F32^2),AC34),$FA$9+$FA$10*C33+$FA$11*I34+$FA$12*G34+$FA$13*H34+$FA$14*C33^2+$FA$15*I33+$FA$16*H33+$FA$17*B34+$FA$18*B34*I34+$FA$19*B34*I33+$FA$20*B34*H34+$FA$21*B34*H33+$FA$22*(F33-F32)+$FA$23*(F33-F32)*H33+$FA$24*(F33-F32)*H33*B34+$FA$25*P33+$FA$26*P33*I34+$FA$27*P33*G34+$FA$28*P33*H34+$FA$29*P33*(F33-F32)+$FA$30*P33*(F33^2-F32^2)) -> -0.34% | AT34: 0.0% | AU34: 0 | AV34: 1 | AW34: 0 | AX34: 1 | AY34: 0 | AZ34: 2 | BA34: 0 | BB34: 1 | BC34: 1 | BD34: 1 | BE34: =SUM($BD$32:BD34)/COUNT($BD$32:BD34) -> 0.6666666667 | BF34: 1 | BG34: =IF(Y34=0,CL34-CD34,"") -> 0 | BH34: 0 | BI34: 0 | BJ34: =SUM($BF$32:BF34)/COUNT($BF$32:BF34) -> 66.7% | BK34: =BJ34-AP34 -> 0.0% | BM34: =IF(AC34>0,1,0) -> 0.0% | BN34: =IF(AS34>0,1,0) -> 0.00% | BO34: =IF(AS34-AC34>0,1,0) -> 0 | BP34: =IF(BO34+AU34=2,1,0) -> 0 | BQ34: =IF(C33>0,1,0) -> 0 | BR34: =A34 -> 44778 | BS34: =IF(ABS(C34)>0,IF(BQ34>0,BS33*(1+(C34-E34)),BS33*(1-(C34-E34))),BS33) -> 98.38934645 | BT34: -0.007061759081 | BU34: =BU33*(1+C34) -> 1900-04-09T15:28:37.168 | BV34: -0.001625746037 | BW34: 0 | BX34: =IF(X34=0,IF(BM34>0,BX33*(1+(C34-E34)),BX33*(1-(C34-E34))),BX33) -> 100.686569 | BY34: -0.007061759081 | BZ34: 0 | CA34: =IF(Y34=0,IF(BM34>0,CA33*(1+(C34-E34)),CA33*(1-(C34-E34))),CA33) -> 100.686569 | CB34: =IF(Y34=0,IF(BM34>0,CA34/CA33-1,CA34/CA33-1),"") -> -0.007061759081 | CC34: -0.007061759081 | CD34: 0 | CE34: =SUM($CD$30:CD34)/COUNT($CD$30:CD34) -> 0.5 | CF34: 100.3451095 | CG34: =IF(X34=0,IF(BN34>0,CG33*(1+(C34-E34)),CG33*(1-(C34-E34))),CG33) -> 100.686569 | CH34: =IF(ABS(CG34/CG33-1)>0,CG34/CG33-1,"") -> -1% | CI34: =IF(X34=0,IF(CG34/CG33-1>=0,1,0),"") -> 0 | CJ34: =IF(Y34=0,IF(BN34>0,CJ33*(1+(C34-E34)),CJ33*(1-(C34-E34))),CJ33) -> 100.686569 | CK34: =IF(Y34=0,IF(BN34>0,CJ34/CJ33-1,CJ34/CJ33-1),"") -> -0.007061759081 | CL34: 0 | CM34: =SUM($CL$30:CL34)/COUNT($CL$30:CL34) -> 0.5 | CN34: =CK34-CC34 -> 0 | CO34: =COUNT($CN$32:CN34) -> 300% | CP34: 0% | CQ34: 0 | CR34: =SUM($CP$32:CP34) -> 0 | CS34: =SUM($CQ$32:CQ34) -> 0 | CT34: 0 | CU34: 0 | CW34: 0 | DA34: -0.007061759081 | DB34: =IF(Y34=0,IF(CJ34/CJ33-1>=0,1,0),"") -> 0 | DC34: =(CG34-BX34)/100 -> 0 | DD34: =(CJ34-CA34)/100 -> 0 | EZ34: S.E. of regression | FA34: 0.010054 | FB34: Akaike info criterion | FD34: -6.357869
A35: =A6055 -> 2022-08-08 | B35: 1 | C35: =C6055/C6054-1 -> -0.124% | D35: =D6055/C6054-1 -> 0.26% | E35: 0.3% | F35: =E6055 -> 21.29 | G35: =F6055/F6054-1 -> -0.77% | H35: =G6055/G6054-1 -> 0.26% | I35: =H6055/H6054-1 -> 0.93% | K35: 2022-08-08 | L35: 3.20 | M35: 3.02 | N35: 3.32 | O35: 3.17 | P35: 3.02 | Q35: 2022-08-08 | R35: 3.32 | S35: =IF(P35>$Q$29,1,0) -> 1 | U35: =IF($A$19=1,T35,0) -> 0 | Y35: 0 | AB35: 0 | AC35: =$EU$9+$EU$10*C34+$EU$11*I35+$EU$12*G35+$EU$13*H35+$EU$14*C34^2+$EU$15*I34+$EU$16*H34+$EU$17*B35+$EU$18*B35*I35+$EU$19*B35*I34+$EU$20*B35*H35+$EU$21*B35*H34+$EU$22*(F34-F33)+$EU$23*(F34-F33)*H34+$EU$24*(F34-F33)*H34*B35 -> 0.61% | AD35: 1 | AE35: 0 | AF35: 0 | AG35: 1 | AH35: 1 | AI35: 1 | AJ35: 0 | AK35: 0 | AL35: 0 | AM35: 0 | AN35: =SUM($AM$32:AM35)/COUNT($AM$32:AM35) -> 0.5 | AO35: 0 | AP35: =SUM($AO$32:AO35)/COUNT($AO$32:AO35) -> 50.0% | AQ35: 50.0% | AR35: 50.0% | AS35: =IF($B$19=1,IF(S35=1,$FA$9+$FA$10*C34+$FA$11*I35+$FA$12*G35+$FA$13*H35+$FA$14*C34^2+$FA$15*I34+$FA$16*H34+$FA$17*B35+$FA$18*B35*I35+$FA$19*B35*I34+$FA$20*B35*H35+$FA$21*B35*H34+$FA$22*(F34-F33)+$FA$23*(F34-F33)*H34+$FA$24*(F34-F33)*H34*B35+$FA$25*P34+$FA$26*P34*I35+$FA$27*P34*G35+$FA$28*P34*H35+$FA$29*P34*(F34-F33)+$FA$30*P34*(F34^2-F33^2),AC35),$FA$9+$FA$10*C34+$FA$11*I35+$FA$12*G35+$FA$13*H35+$FA$14*C34^2+$FA$15*I34+$FA$16*H34+$FA$17*B35+$FA$18*B35*I35+$FA$19*B35*I34+$FA$20*B35*H35+$FA$21*B35*H34+$FA$22*(F34-F33)+$FA$23*(F34-F33)*H34+$FA$24*(F34-F33)*H34*B35+$FA$25*P34+$FA$26*P34*I35+$FA$27*P34*G35+$FA$28*P34*H35+$FA$29*P34*(F34-F33)+$FA$30*P34*(F34^2-F33^2)) -> 0.57% | AT35: -0.0% | AU35: 1 | AV35: 0 | AW35: 0 | AX35: 1 | AY35: 1 | AZ35: 1 | BA35: 0 | BB35: 0 | BC35: 0 | BD35: 0 | BE35: =SUM($BD$32:BD35)/COUNT($BD$32:BD35) -> 0.5 | BF35: 0 | BG35: =IF(Y35=0,CL35-CD35,"") -> 0 | BH35: 0 | BI35: 0 | BJ35: =SUM($BF$32:BF35)/COUNT($BF$32:BF35) -> 50.0% | BK35: =BJ35-AP35 -> 0.0% | BM35: =IF(AC35>0,1,0) -> 100.0% | BN35: =IF(AS35>0,1,0) -> 100.00% | BO35: =IF(AS35-AC35>0,1,0) -> 0 | BP35: =IF(BO35+AU35=2,1,0) -> 0 | BQ35: =IF(C34>0,1,0) -> 0 | BR35: =A35 -> 44781 | BS35: =IF(ABS(C35)>0,IF(BQ35>0,BS34*(1+(C35-E35)),BS34*(1-(C35-E35))),BS34) -> 98.76603338 | BT35: 0.003828533795 | BU35: =BU34*(1+C35) -> 1900-04-09T12:29:15.531 | BV35: -0.001237578977 | BW35: 0 | BX35: =IF(X35=0,IF(BM35>0,BX34*(1+(C35-E35)),BX34*(1-(C35-E35))),BX34) -> 100.3010871 | BY35: -0.003828533795 | BZ35: 0 | CA35: =IF(Y35=0,IF(BM35>0,CA34*(1+(C35-E35)),CA34*(1-(C35-E35))),CA34) -> 100.3010871 | CB35: =IF(Y35=0,IF(BM35>0,CA35/CA34-1,CA35/CA34-1),"") -> -0.003828533795 | CC35: -0.003828533795 | CD35: 0 | CE35: =SUM($CD$30:CD35)/COUNT($CD$30:CD35) -> 0.4 | CF35: 100.1530222 | CG35: =IF(X35=0,IF(BN35>0,CG34*(1+(C35-E35)),CG34*(1-(C35-E35))),CG34) -> 100.3010871 | CH35: =IF(ABS(CG35/CG34-1)>0,CG35/CG34-1,"") -> -0% | CI35: =IF(X35=0,IF(CG35/CG34-1>=0,1,0),"") -> 0 | CJ35: =IF(Y35=0,IF(BN35>0,CJ34*(1+(C35-E35)),CJ34*(1-(C35-E35))),CJ34) -> 100.3010871 | CK35: =IF(Y35=0,IF(BN35>0,CJ35/CJ34-1,CJ35/CJ34-1),"") -> -0.003828533795 | CL35: 0 | CM35: =SUM($CL$30:CL35)/COUNT($CL$30:CL35) -> 0.4 | CN35: =CK35-CC35 -> 0 | CO35: =COUNT($CN$32:CN35) -> 400% | CP35: 0% | CQ35: 0 | CR35: =SUM($CP$32:CP35) -> 0 | CS35: =SUM($CQ$32:CQ35) -> 0 | CT35: 0 | CU35: 0 | CW35: 0 | DA35: -0.003828533795 | DB35: =IF(Y35=0,IF(CJ35/CJ34-1>=0,1,0),"") -> 0 | DC35: =(CG35-BX35)/100 -> 0 | DD35: =(CJ35-CA35)/100 -> 0 | EZ35: Sum squared resid | FA35: 0.578701 | FB35: Schwarz criterion | FD35: -6.332388
A36: =A6056 -> 2022-08-09 | B36: 0 | C36: =C6056/C6055-1 -> -0.425% | D36: =D6056/C6055-1 -> -0.17% | E36: -0.2% | F36: =E6056 -> 21.77 | G36: =F6056/F6055-1 -> -0.21% | H36: =G6056/G6055-1 -> -0.88% | I36: =H6056/H6055-1 -> -1.46% | K36: 2022-08-09 | L36: 2.53 | M36: 2.29 | N36: 2.98 | O36: 2.64 | P36: 2.29 | Q36: 2022-08-09 | R36: 2.98 | S36: =IF(P36>$Q$29,1,0) -> 0 | U36: =IF($A$19=1,T36,0) -> 0 | Y36: 0 | AB36: 0 | AC36: =$EU$9+$EU$10*C35+$EU$11*I36+$EU$12*G36+$EU$13*H36+$EU$14*C35^2+$EU$15*I35+$EU$16*H35+$EU$17*B36+$EU$18*B36*I36+$EU$19*B36*I35+$EU$20*B36*H36+$EU$21*B36*H35+$EU$22*(F35-F34)+$EU$23*(F35-F34)*H35+$EU$24*(F35-F34)*H35*B36 -> -0.58% | AD36: 0 | AE36: 1 | AF36: 0 | AG36: 1 | AH36: 0 | AI36: 2 | AJ36: 0 | AK36: 1 | AL36: 1 | AM36: 1 | AN36: =SUM($AM$32:AM36)/COUNT($AM$32:AM36) -> 0.6 | AO36: 1 | AP36: =SUM($AO$32:AO36)/COUNT($AO$32:AO36) -> 60.0% | AQ36: 60.0% | AR36: 60.0% | AS36: =IF($B$19=1,IF(S36=1,$FA$9+$FA$10*C35+$FA$11*I36+$FA$12*G36+$FA$13*H36+$FA$14*C35^2+$FA$15*I35+$FA$16*H35+$FA$17*B36+$FA$18*B36*I36+$FA$19*B36*I35+$FA$20*B36*H36+$FA$21*B36*H35+$FA$22*(F35-F34)+$FA$23*(F35-F34)*H35+$FA$24*(F35-F34)*H35*B36+$FA$25*P35+$FA$26*P35*I36+$FA$27*P35*G36+$FA$28*P35*H36+$FA$29*P35*(F35-F34)+$FA$30*P35*(F35^2-F34^2),AC36),$FA$9+$FA$10*C35+$FA$11*I36+$FA$12*G36+$FA$13*H36+$FA$14*C35^2+$FA$15*I35+$FA$16*H35+$FA$17*B36+$FA$18*B36*I36+$FA$19*B36*I35+$FA$20*B36*H36+$FA$21*B36*H35+$FA$22*(F35-F34)+$FA$23*(F35-F34)*H35+$FA$24*(F35-F34)*H35*B36+$FA$25*P35+$FA$26*P35*I36+$FA$27*P35*G36+$FA$28*P35*H36+$FA$29*P35*(F35-F34)+$FA$30*P35*(F35^2-F34^2)) -> -0.55% | AT36: -0.0% | AU36: 0 | AV36: 1 | AW36: 0 | AX36: 1 | AY36: 0 | AZ36: 2 | BA36: 0 | BB36: 1 | BC36: 1 | BD36: 1 | BE36: =SUM($BD$32:BD36)/COUNT($BD$32:BD36) -> 0.6 | BF36: 1 | BG36: =IF(Y36=0,CL36-CD36,"") -> 0 | BH36: 0 | BI36: 0 | BJ36: =SUM($BF$32:BF36)/COUNT($BF$32:BF36) -> 60.0% | BK36: =BJ36-AP36 -> 0.0% | BM36: =IF(AC36>0,1,0) -> 0.0% | BN36: =IF(AS36>0,1,0) -> 0.00% | BO36: =IF(AS36-AC36>0,1,0) -> 1 | BP36: =IF(BO36+AU36=2,1,0) -> 0 | BQ36: =IF(C35>0,1,0) -> 0 | BR36: =A36 -> 44782 | BS36: =IF(ABS(C36)>0,IF(BQ36>0,BS35*(1+(C36-E36)),BS35*(1-(C36-E36))),BS35) -> 99.01986318 | BT36: 0.002570011063 | BU36: =BU35*(1+C36) -> 1900-04-09T02:14:15.494 | BV36: -0.004248730695 | BW36: 0 | BX36: =IF(X36=0,IF(BM36>0,BX35*(1+(C36-E36)),BX35*(1-(C36-E36))),BX35) -> 100.558862 | BY36: 0.002570011063 | BZ36: 1 | CA36: =IF(Y36=0,IF(BM36>0,CA35*(1+(C36-E36)),CA35*(1-(C36-E36))),CA35) -> 100.558862 | CB36: =IF(Y36=0,IF(BM36>0,CA36/CA35-1,CA36/CA35-1),"") -> 0.002570011063 | CC36: 0.002570011063 | CD36: 1 | CE36: =SUM($CD$30:CD36)/COUNT($CD$30:CD36) -> 0.5 | CF36: 100.2817193 | CG36: =IF(X36=0,IF(BN36>0,CG35*(1+(C36-E36)),CG35*(1-(C36-E36))),CG35) -> 100.558862 | CH36: =IF(ABS(CG36/CG35-1)>0,CG36/CG35-1,"") -> 0% | CI36: =IF(X36=0,IF(CG36/CG35-1>=0,1,0),"") -> 1 | CJ36: =IF(Y36=0,IF(BN36>0,CJ35*(1+(C36-E36)),CJ35*(1-(C36-E36))),CJ35) -> 100.558862 | CK36: =IF(Y36=0,IF(BN36>0,CJ36/CJ35-1,CJ36/CJ35-1),"") -> 0.002570011063 | CL36: 1 | CM36: =SUM($CL$30:CL36)/COUNT($CL$30:CL36) -> 0.5 | CN36: =CK36-CC36 -> 0 | CO36: =COUNT($CN$32:CN36) -> 500% | CP36: 0% | CQ36: 0 | CR36: =SUM($CP$32:CP36) -> 0 | CS36: =SUM($CQ$32:CQ36) -> 0 | CT36: 0 | CU36: 0 | CW36: 0 | DA36: 0.002570011063 | DB36: =IF(Y36=0,IF(CJ36/CJ35-1>=0,1,0),"") -> 1 | DC36: =(CG36-BX36)/100 -> 0 | DD36: =(CJ36-CA36)/100 -> 0 | EZ36: Log likelihood | FA36: 18291.34 | FB36: Hannan-Quinn criter. | FD36: -6.349001
A37: =A6057 -> 2022-08-10 | B37: 0 | C37: =C6057/C6056-1 -> 2.129% | D37: =D6057/C6056-1 -> 1.42% | E37: 1.4% | F37: =E6057 -> 19.74 | G37: =F6057/F6056-1 -> -1.96% | H37: =G6057/G6056-1 -> -0.65% | I37: =H6057/H6056-1 -> 1.90% | K37: 2022-08-10 | L37: 2.77 | M37: 2.86 | N37: 3.57 | O37: 3.21 | P37: 2.86 | Q37: 2022-08-10 | R37: 3.57 | S37: =IF(P37>$Q$29,1,0) -> 1 | U37: =IF($A$19=1,T37,0) -> 0 | Y37: 0 | AB37: 0 | AC37: =$EU$9+$EU$10*C36+$EU$11*I37+$EU$12*G37+$EU$13*H37+$EU$14*C36^2+$EU$15*I36+$EU$16*H36+$EU$17*B37+$EU$18*B37*I37+$EU$19*B37*I36+$EU$20*B37*H37+$EU$21*B37*H36+$EU$22*(F36-F35)+$EU$23*(F36-F35)*H36+$EU$24*(F36-F35)*H36*B37 -> 0.71% | AD37: 1 | AE37: 0 | AF37: 1 | AG37: 0 | AH37: 2 | AI37: 0 | AJ37: 1 | AK37: 0 | AL37: 1 | AM37: 1 | AN37: =SUM($AM$32:AM37)/COUNT($AM$32:AM37) -> 0.6666666667 | AO37: 1 | AP37: =SUM($AO$32:AO37)/COUNT($AO$32:AO37) -> 66.7% | AQ37: 66.7% | AR37: 66.7% | AS37: =IF($B$19=1,IF(S37=1,$FA$9+$FA$10*C36+$FA$11*I37+$FA$12*G37+$FA$13*H37+$FA$14*C36^2+$FA$15*I36+$FA$16*H36+$FA$17*B37+$FA$18*B37*I37+$FA$19*B37*I36+$FA$20*B37*H37+$FA$21*B37*H36+$FA$22*(F36-F35)+$FA$23*(F36-F35)*H36+$FA$24*(F36-F35)*H36*B37+$FA$25*P36+$FA$26*P36*I37+$FA$27*P36*G37+$FA$28*P36*H37+$FA$29*P36*(F36-F35)+$FA$30*P36*(F36^2-F35^2),AC37),$FA$9+$FA$10*C36+$FA$11*I37+$FA$12*G37+$FA$13*H37+$FA$14*C36^2+$FA$15*I36+$FA$16*H36+$FA$17*B37+$FA$18*B37*I37+$FA$19*B37*I36+$FA$20*B37*H37+$FA$21*B37*H36+$FA$22*(F36-F35)+$FA$23*(F36-F35)*H36+$FA$24*(F36-F35)*H36*B37+$FA$25*P36+$FA$26*P36*I37+$FA$27*P36*G37+$FA$28*P36*H37+$FA$29*P36*(F36-F35)+$FA$30*P36*(F36^2-F35^2)) -> 0.58% | AT37: -0.1% | AU37: 1 | AV37: 0 | AW37: 1 | AX37: 0 | AY37: 2 | AZ37: 0 | BA37: 1 | BB37: 0 | BC37: 1 | BD37: 1 | BE37: =SUM($BD$32:BD37)/COUNT($BD$32:BD37) -> 0.6666666667 | BF37: 1 | BG37: =IF(Y37=0,CL37-CD37,"") -> 0 | BH37: 0 | BI37: 0 | BJ37: =SUM($BF$32:BF37)/COUNT($BF$32:BF37) -> 66.7% | BK37: =BJ37-AP37 -> 0.0% | BM37: =IF(AC37>0,1,0) -> 100.0% | BN37: =IF(AS37>0,1,0) -> 100.00% | BO37: =IF(AS37-AC37>0,1,0) -> 0 | BP37: =IF(BO37+AU37=2,1,0) -> 0 | BQ37: =IF(C36>0,1,0) -> 0 | BR37: =A37 -> 44783 | BS37: =IF(ABS(C37)>0,IF(BQ37>0,BS36*(1+(C37-E37)),BS36*(1-(C37-E37))),BS36) -> 98.31801201 | BT37: -0.00708798366 | BU37: =BU36*(1+C37) -> 1900-04-11T05:22:58.079 | BV37: 0.02129063401 | BW37: 1 | BX37: =IF(X37=0,IF(BM37>0,BX36*(1+(C37-E37)),BX36*(1-(C37-E37))),BX36) -> 101.2716215 | BY37: 0.00708798366 | BZ37: 1 | CA37: =IF(Y37=0,IF(BM37>0,CA36*(1+(C37-E37)),CA36*(1-(C37-E37))),CA36) -> 101.2716215 | CB37: =IF(Y37=0,IF(BM37>0,CA37/CA36-1,CA37/CA36-1),"") -> 0.00708798366 | CC37: 0.00708798366 | CD37: 1 | CE37: =SUM($CD$30:CD37)/COUNT($CD$30:CD37) -> 0.5714285714 | CF37: 100.6371169 | CG37: =IF(X37=0,IF(BN37>0,CG36*(1+(C37-E37)),CG36*(1-(C37-E37))),CG36) -> 101.2716215 | CH37: =IF(ABS(CG37/CG36-1)>0,CG37/CG36-1,"") -> 1% | CI37: =IF(X37=0,IF(CG37/CG36-1>=0,1,0),"") -> 1 | CJ37: =IF(Y37=0,IF(BN37>0,CJ36*(1+(C37-E37)),CJ36*(1-(C37-E37))),CJ36) -> 101.2716215 | CK37: =IF(Y37=0,IF(BN37>0,CJ37/CJ36-1,CJ37/CJ36-1),"") -> 0.00708798366 | CL37: 1 | CM37: =SUM($CL$30:CL37)/COUNT($CL$30:CL37) -> 0.5714285714 | CN37: =CK37-CC37 -> 0 | CO37: =COUNT($CN$32:CN37) -> 600% | CP37: 0% | CQ37: 0 | CR37: =SUM($CP$32:CP37) -> 0 | CS37: =SUM($CQ$32:CQ37) -> 0 | CT37: 0 | CU37: 0 | CW37: 0 | DA37: 0.00708798366 | DB37: =IF(Y37=0,IF(CJ37/CJ36-1>=0,1,0),"") -> 1 | DC37: =(CG37-BX37)/100 -> 0 | DD37: =(CJ37-CA37)/100 -> 0 | EZ37: F-statistic | FA37: 147.9864 | FB37: Durbin-Watson stat | FD37: 2.070444
A38: =A6058 -> 2022-08-11 | B38: 0 | C38: =C6058/C6057-1 -> -0.071% | D38: =D6058/C6057-1 -> 0.41% | E38: 0.4% | F38: =E6058 -> 20.20 | G38: =F6058/F6057-1 -> 2.40% | H38: =G6058/G6057-1 -> 0.00% | I38: =H6058/H6057-1 -> -0.05% | K38: 2022-08-11 | L38: 2.84 | M38: 2.80 | N38: 3.06 | O38: 2.93 | P38: 2.80 | Q38: 2022-08-11 | R38: 3.06 | S38: =IF(P38>$Q$29,1,0) -> 1 | U38: =IF($A$19=1,T38,0) -> 0 | W38: 1 | X38: =IF($C$19=1,W38,0) -> 1 | Y38: =X38+U38 -> 1 | AA38: 1 | AB38: 0 | AC38: =$EU$9+$EU$10*C37+$EU$11*I38+$EU$12*G38+$EU$13*H38+$EU$14*C37^2+$EU$15*I37+$EU$16*H37+$EU$17*B38+$EU$18*B38*I38+$EU$19*B38*I37+$EU$20*B38*H38+$EU$21*B38*H37+$EU$22*(F37-F36)+$EU$23*(F37-F36)*H37+$EU$24*(F37-F36)*H37*B38 -> -0.35% | AD38: 0 | AE38: 1 | AF38: 0 | AG38: 1 | AH38: 0 | AI38: 2 | AJ38: 0 | AK38: 1 | AL38: 1 | AN38: =SUM($AM$32:AM38)/COUNT($AM$32:AM38) -> 0.6666666667 | AP38: =SUM($AO$32:AO38)/COUNT($AO$32:AO38) -> 66.7% | AQ38: 66.7% | AR38: 71.4% | AS38: =IF($B$19=1,IF(S38=1,$FA$9+$FA$10*C37+$FA$11*I38+$FA$12*G38+$FA$13*H38+$FA$14*C37^2+$FA$15*I37+$FA$16*H37+$FA$17*B38+$FA$18*B38*I38+$FA$19*B38*I37+$FA$20*B38*H38+$FA$21*B38*H37+$FA$22*(F37-F36)+$FA$23*(F37-F36)*H37+$FA$24*(F37-F36)*H37*B38+$FA$25*P37+$FA$26*P37*I38+$FA$27*P37*G38+$FA$28*P37*H38+$FA$29*P37*(F37-F36)+$FA$30*P37*(F37^2-F36^2),AC38),$FA$9+$FA$10*C37+$FA$11*I38+$FA$12*G38+$FA$13*H38+$FA$14*C37^2+$FA$15*I37+$FA$16*H37+$FA$17*B38+$FA$18*B38*I38+$FA$19*B38*I37+$FA$20*B38*H38+$FA$21*B38*H37+$FA$22*(F37-F36)+$FA$23*(F37-F36)*H37+$FA$24*(F37-F36)*H37*B38+$FA$25*P37+$FA$26*P37*I38+$FA$27*P37*G38+$FA$28*P37*H38+$FA$29*P37*(F37-F36)+$FA$30*P37*(F37^2-F36^2)) -> -0.32% | AT38: -0.0% | AU38: 0 | AV38: 1 | AW38: 0 | AX38: 1 | AY38: 0 | AZ38: 2 | BA38: 0 | BB38: 1 | BC38: 1 | BE38: =SUM($BD$32:BD38)/COUNT($BD$32:BD38) -> 0.6666666667 | BG38: =IF(Y38=0,CL38-CD38,"") ->  | BJ38: =SUM($BF$32:BF38)/COUNT($BF$32:BF38) -> 66.7% | BK38: =BJ38-AP38 -> 0.0% | BM38: =IF(AC38>0,1,0) -> 0.0% | BN38: =IF(AS38>0,1,0) -> 0.00% | BO38: =IF(AS38-AC38>0,1,0) -> 1 | BP38: =IF(BO38+AU38=2,1,0) -> 0 | BQ38: =IF(C37>0,1,0) -> 1 | BR38: =A38 -> 44784 | BS38: =IF(ABS(C38)>0,IF(BQ38>0,BS37*(1+(C38-E38)),BS37*(1-(C38-E38))),BS37) -> 97.84793392 | BT38: -0.004781200122 | BU38: =BU37*(1+C38) -> 1900-04-11T03:39:07.657 | BV38: -0.0007054229688 | BW38: 0 | BX38: =IF(X38=0,IF(BM38>0,BX37*(1+(C38-E38)),BX37*(1-(C38-E38))),BX37) -> 101.2716215 | CA38: =IF(Y38=0,IF(BM38>0,CA37*(1+(C38-E38)),CA37*(1-(C38-E38))),CA37) -> 101.2716215 | CB38: =IF(Y38=0,IF(BM38>0,CA38/CA37-1,CA38/CA37-1),"") ->  | CE38: =SUM($CD$30:CD38)/COUNT($CD$30:CD38) -> 0.5714285714 | CF38: 100.6371169 | CG38: =IF(X38=0,IF(BN38>0,CG37*(1+(C38-E38)),CG37*(1-(C38-E38))),CG37) -> 101.2716215 | CH38: =IF(ABS(CG38/CG37-1)>0,CG38/CG37-1,"") ->  | CI38: =IF(X38=0,IF(CG38/CG37-1>=0,1,0),"") ->  | CJ38: =IF(Y38=0,IF(BN38>0,CJ37*(1+(C38-E38)),CJ37*(1-(C38-E38))),CJ37) -> 101.2716215 | CK38: =IF(Y38=0,IF(BN38>0,CJ38/CJ37-1,CJ38/CJ37-1),"") ->  | CM38: =SUM($CL$30:CL38)/COUNT($CL$30:CL38) -> 0.5714285714 | CN38: =IF(CK38="","",CK38-CC38) ->  | CO38: =COUNT($CN$32:CN38) -> 600% | CR38: =SUM($CP$32:CP38) -> 0 | CS38: =SUM($CQ$32:CQ38) -> 0 | CT38: 0 | CU38: 0 | CW38: 0 | DB38: =IF(Y38=0,IF(CJ38/CJ37-1>=0,1,0),"") ->  | DC38: =(CG38-BX38)/100 -> 0 | DD38: =(CJ38-CA38)/100 -> 0 | EZ38: Prob(F-statistic) | FA38: 0
A39: =A6059 -> 2022-08-12 | B39: 0 | C39: =C6059/C6058-1 -> 1.732% | D39: =D6059/C6058-1 -> 0.42% | E39: 0.4% | F39: =E6059 -> 19.53 | G39: =F6059/F6058-1 -> 0.46% | H39: =G6059/G6058-1 -> 2.62% | I39: =H6059/H6058-1 -> 0.40% | K39: 2022-08-12 | L39: 3.05 | M39: 3.61 | N39: 4.49 | O39: 4.05 | P39: 3.61 | Q39: 2022-08-12 | R39: 4.49 | S39: =IF(P39>$Q$29,1,0) -> 1 | U39: =IF($A$19=1,T39,0) -> 0 | W39: 1 | X39: =IF($C$19=1,W39,0) -> 1 | Y39: =X39+U39 -> 1 | AB39: 0 | AC39: =$EU$9+$EU$10*C38+$EU$11*I39+$EU$12*G39+$EU$13*H39+$EU$14*C38^2+$EU$15*I38+$EU$16*H38+$EU$17*B39+$EU$18*B39*I39+$EU$19*B39*I38+$EU$20*B39*H39+$EU$21*B39*H38+$EU$22*(F38-F37)+$EU$23*(F38-F37)*H38+$EU$24*(F38-F37)*H38*B39 -> 0.38% | AD39: 1 | AE39: 0 | AF39: 1 | AG39: 0 | AH39: 2 | AI39: 0 | AJ39: 1 | AK39: 0 | AL39: 1 | AN39: =SUM($AM$32:AM39)/COUNT($AM$32:AM39) -> 0.6666666667 | AP39: =SUM($AO$32:AO39)/COUNT($AO$32:AO39) -> 66.7% | AQ39: 66.7% | AR39: 75.0% | AS39: =IF($B$19=1,IF(S39=1,$FA$9+$FA$10*C38+$FA$11*I39+$FA$12*G39+$FA$13*H39+$FA$14*C38^2+$FA$15*I38+$FA$16*H38+$FA$17*B39+$FA$18*B39*I39+$FA$19*B39*I38+$FA$20*B39*H39+$FA$21*B39*H38+$FA$22*(F38-F37)+$FA$23*(F38-F37)*H38+$FA$24*(F38-F37)*H38*B39+$FA$25*P38+$FA$26*P38*I39+$FA$27*P38*G39+$FA$28*P38*H39+$FA$29*P38*(F38-F37)+$FA$30*P38*(F38^2-F37^2),AC39),$FA$9+$FA$10*C38+$FA$11*I39+$FA$12*G39+$FA$13*H39+$FA$14*C38^2+$FA$15*I38+$FA$16*H38+$FA$17*B39+$FA$18*B39*I39+$FA$19*B39*I38+$FA$20*B39*H39+$FA$21*B39*H38+$FA$22*(F38-F37)+$FA$23*(F38-F37)*H38+$FA$24*(F38-F37)*H38*B39+$FA$25*P38+$FA$26*P38*I39+$FA$27*P38*G39+$FA$28*P38*H39+$FA$29*P38*(F38-F37)+$FA$30*P38*(F38^2-F37^2)) -> 0.36% | AT39: -0.0% | AU39: 1 | AV39: 0 | AW39: 1 | AX39: 0 | AY39: 2 | AZ39: 0 | BA39: 1 | BB39: 0 | BC39: 1 | BE39: =SUM($BD$32:BD39)/COUNT($BD$32:BD39) -> 0.6666666667 | BG39: =IF(Y39=0,CL39-CD39,"") ->  | BJ39: =SUM($BF$32:BF39)/COUNT($BF$32:BF39) -> 66.7% | BK39: =BJ39-AP39 -> 0.0% | BM39: =IF(AC39>0,1,0) -> 100.0% | BN39: =IF(AS39>0,1,0) -> 100.00% | BO39: =IF(AS39-AC39>0,1,0) -> 0 | BP39: =IF(BO39+AU39=2,1,0) -> 0 | BQ39: =IF(C38>0,1,0) -> 0 | BR39: =A39 -> 44785 | BS39: =IF(ABS(C39)>0,IF(BQ39>0,BS38*(1+(C39-E39)),BS38*(1-(C39-E39))),BS38) -> 96.56578264 | BT39: -0.01310350893 | BU39: =BU38*(1+C39) -> 1900-04-12T22:07:14.224 | BV39: 0.01732239671 | BW39: 1 | BX39: =IF(X39=0,IF(BM39>0,BX38*(1+(C39-E39)),BX38*(1-(C39-E39))),BX38) -> 101.2716215 | CA39: =IF(Y39=0,IF(BM39>0,CA38*(1+(C39-E39)),CA38*(1-(C39-E39))),CA38) -> 101.2716215 | CB39: =IF(Y39=0,IF(BM39>0,CA39/CA38-1,CA39/CA38-1),"") ->  | CE39: =SUM($CD$30:CD39)/COUNT($CD$30:CD39) -> 0.5714285714 | CF39: 100.6371169 | CG39: =IF(X39=0,IF(BN39>0,CG38*(1+(C39-E39)),CG38*(1-(C39-E39))),CG38) -> 101.2716215 | CH39: =IF(ABS(CG39/CG38-1)>0,CG39/CG38-1,"") ->  | CI39: =IF(X39=0,IF(CG39/CG38-1>=0,1,0),"") ->  | CJ39: =IF(Y39=0,IF(BN39>0,CJ38*(1+(C39-E39)),CJ38*(1-(C39-E39))),CJ38) -> 101.2716215 | CK39: =IF(Y39=0,IF(BN39>0,CJ39/CJ38-1,CJ39/CJ38-1),"") ->  | CM39: =SUM($CL$30:CL39)/COUNT($CL$30:CL39) -> 0.5714285714 | CN39: =IF(CK39="","",CK39-CC39) ->  | CO39: =COUNT($CN$32:CN39) -> 600% | CR39: =SUM($CP$32:CP39) -> 0 | CS39: =SUM($CQ$32:CQ39) -> 0 | CT39: 0 | CU39: 0 | CW39: 0 | DB39: =IF(Y39=0,IF(CJ39/CJ38-1>=0,1,0),"") ->  | DC39: =(CG39-BX39)/100 -> 0 | DD39: =(CJ39-CA39)/100 -> 0
A40: =A6060 -> 2022-08-15 | B40: 1 | C40: =C6060/C6059-1 -> 0.397% | D40: =D6060/C6059-1 -> -0.25% | E40: -0.3% | F40: =E6060 -> 19.95 | G40: =F6060/F6059-1 -> -0.67% | H40: =G6060/G6059-1 -> 1.14% | I40: =H6060/H6059-1 -> 0.20% | K40: 2022-08-15 | L40: 2.69 | M40: 2.39 | N40: 2.96 | O40: 2.68 | P40: 2.39 | Q40: 2022-08-15 | R40: 2.96 | S40: =IF(P40>$Q$29,1,0) -> 1 | U40: =IF($A$19=1,T40,0) -> 0 | Y40: 0 | AB40: -1 | AC40: =$EU$9+$EU$10*C39+$EU$11*I40+$EU$12*G40+$EU$13*H40+$EU$14*C39^2+$EU$15*I39+$EU$16*H39+$EU$17*B40+$EU$18*B40*I40+$EU$19*B40*I39+$EU$20*B40*H40+$EU$21*B40*H39+$EU$22*(F39-F38)+$EU$23*(F39-F38)*H39+$EU$24*(F39-F38)*H39*B40 -> -0.08% | AD40: 0 | AE40: 1 | AF40: 1 | AG40: 0 | AH40: 1 | AI40: 1 | AJ40: 0 | AK40: 0 | AL40: 0 | AM40: 0 | AN40: =SUM($AM$32:AM40)/COUNT($AM$32:AM40) -> 0.5714285714 | AO40: 0 | AP40: =SUM($AO$32:AO40)/COUNT($AO$32:AO40) -> 57.1% | AQ40: 57.1% | AR40: 66.7% | AS40: =IF($B$19=1,IF(S40=1,$FA$9+$FA$10*C39+$FA$11*I40+$FA$12*G40+$FA$13*H40+$FA$14*C39^2+$FA$15*I39+$FA$16*H39+$FA$17*B40+$FA$18*B40*I40+$FA$19*B40*I39+$FA$20*B40*H40+$FA$21*B40*H39+$FA$22*(F39-F38)+$FA$23*(F39-F38)*H39+$FA$24*(F39-F38)*H39*B40+$FA$25*P39+$FA$26*P39*I40+$FA$27*P39*G40+$FA$28*P39*H40+$FA$29*P39*(F39-F38)+$FA$30*P39*(F39^2-F38^2),AC40),$FA$9+$FA$10*C39+$FA$11*I40+$FA$12*G40+$FA$13*H40+$FA$14*C39^2+$FA$15*I39+$FA$16*H39+$FA$17*B40+$FA$18*B40*I40+$FA$19*B40*I39+$FA$20*B40*H40+$FA$21*B40*H39+$FA$22*(F39-F38)+$FA$23*(F39-F38)*H39+$FA$24*(F39-F38)*H39*B40+$FA$25*P39+$FA$26*P39*I40+$FA$27*P39*G40+$FA$28*P39*H40+$FA$29*P39*(F39-F38)+$FA$30*P39*(F39^2-F38^2)) -> 0.13% | AT40: 0.1% | AU40: 1 | AV40: 0 | AW40: 1 | AX40: 0 | AY40: 2 | AZ40: 0 | BA40: 1 | BB40: 0 | BC40: 1 | BD40: 1 | BE40: =SUM($BD$32:BD40)/COUNT($BD$32:BD40) -> 0.7142857143 | BF40: 1 | BG40: =IF(Y40=0,CL40-CD40,"") -> 1 | BH40: 1 | BI40: 0 | BJ40: =SUM($BF$32:BF40)/COUNT($BF$32:BF40) -> 71.4% | BK40: =BJ40-AP40 -> 14.3% | BM40: =IF(AC40>0,1,0) -> 0.0% | BN40: =IF(AS40>0,1,0) -> 100.00% | BO40: =IF(AS40-AC40>0,1,0) -> 1 | BP40: =IF(BO40+AU40=2,1,0) -> 1 | BQ40: =IF(C39>0,1,0) -> 1 | BR40: =A40 -> 44788 | BS40: =IF(ABS(C40)>0,IF(BQ40>0,BS39*(1+(C40-E40)),BS39*(1-(C40-E40))),BS39) -> 97.19231017 | BT40: 0.006488090371 | BU40: =BU39*(1+C40) -> 1900-04-13T08:01:15.590 | BV40: 0.003969487051 | BW40: 1 | BX40: =IF(X40=0,IF(BM40>0,BX39*(1+(C40-E40)),BX39*(1-(C40-E40))),BX39) -> 100.6145621 | BY40: -0.006488090371 | BZ40: 0 | CA40: =IF(Y40=0,IF(BM40>0,CA39*(1+(C40-E40)),CA39*(1-(C40-E40))),CA39) -> 100.6145621 | CB40: =IF(Y40=0,IF(BM40>0,CA40/CA39-1,CA40/CA39-1),"") -> -0.006488090371 | CC40: =CA40/CA39-1 -> -0.006488090371 | CD40: 0 | CE40: =SUM($CD$30:CD40)/COUNT($CD$30:CD40) -> 0.5 | CF40: 100.3106456 | CG40: =IF(X40=0,IF(BN40>0,CG39*(1+(C40-E40)),CG39*(1-(C40-E40))),CG39) -> 101.928681 | CH40: =IF(ABS(CG40/CG39-1)>0,CG40/CG39-1,"") -> 1% | CI40: =IF(X40=0,IF(CG40/CG39-1>=0,1,0),"") -> 1 | CJ40: =IF(Y40=0,IF(BN40>0,CJ39*(1+(C40-E40)),CJ39*(1-(C40-E40))),CJ39) -> 101.928681 | CK40: =IF(Y40=0,IF(BN40>0,CJ40/CJ39-1,CJ40/CJ39-1),"") -> 0.006488090371 | CL40: 1 | CM40: =SUM($CL$30:CL40)/COUNT($CL$30:CL40) -> 0.625 | CN40: =IF(CK40="","",CK40-CC40) -> 0.01297618074 | CO40: =COUNT($CN$32:CN40) -> 700% | CP40: 100% | CQ40: 0 | CR40: =SUM($CP$32:CP40) -> 1.00 | CS40: =SUM($CQ$32:CQ40) -> 0 | CT40: 0.07 | CU40: 0.07 | CV40: =CR40/CO40 -> 14% | CW40: 0 | CX40: =CV40-CW40 -> 14.3% | CY40: =CX40/ ( (SQRT(CU40* (1/CO40+1/CO40))) ) -> 103.8% | CZ40: =1-_xlfn.NORM.DIST(CY40,0,1,TRUE) -> 15.0% | DA40: 0.006488090371 | DB40: =IF(Y40=0,IF(CJ40/CJ39-1>=0,1,0),"") -> 1 | DC40: =(CG40-BX40)/100 -> 0.01314118865 | DD40: =(CJ40-CA40)/100 -> 0.01314118865 | EY40: GCP data contribution | EZ40: =FA32-EU26 -> 0.010662
A41: =A6061 -> 2022-08-16 | B41: 0 | C41: =C6061/C6060-1 -> 0.188% | D41: =D6061/C6060-1 -> -0.16% | E41: -0.2% | F41: =E6061 -> 19.69 | G41: =F6061/F6060-1 -> -1.05% | H41: =G6061/G6060-1 -> -0.01% | I41: =H6061/H6060-1 -> 1.09% | K41: 2022-08-16 | L41: 2.78 | M41: 2.75 | N41: 3.30 | O41: 3.02 | P41: 2.75 | Q41: 2022-08-16 | R41: 3.30 | S41: =IF(P41>$Q$29,1,0) -> 1 | U41: =IF($A$19=1,T41,0) -> 0 | Y41: 0 | AB41: 0 | AC41: =$EU$9+$EU$10*C40+$EU$11*I41+$EU$12*G41+$EU$13*H41+$EU$14*C40^2+$EU$15*I40+$EU$16*H40+$EU$17*B41+$EU$18*B41*I41+$EU$19*B41*I40+$EU$20*B41*H41+$EU$21*B41*H40+$EU$22*(F40-F39)+$EU$23*(F40-F39)*H40+$EU$24*(F40-F39)*H40*B41 -> 0.33% | AD41: 1 | AE41: 0 | AF41: 1 | AG41: 0 | AH41: 2 | AI41: 0 | AJ41: 1 | AK41: 0 | AL41: 1 | AM41: 1 | AN41: =SUM($AM$32:AM41)/COUNT($AM$32:AM41) -> 0.625 | AO41: 1 | AP41: =SUM($AO$32:AO41)/COUNT($AO$32:AO41) -> 62.5% | AQ41: 62.5% | AR41: 70.0% | AS41: =IF($B$19=1,IF(S41=1,$FA$9+$FA$10*C40+$FA$11*I41+$FA$12*G41+$FA$13*H41+$FA$14*C40^2+$FA$15*I40+$FA$16*H40+$FA$17*B41+$FA$18*B41*I41+$FA$19*B41*I40+$FA$20*B41*H41+$FA$21*B41*H40+$FA$22*(F40-F39)+$FA$23*(F40-F39)*H40+$FA$24*(F40-F39)*H40*B41+$FA$25*P40+$FA$26*P40*I41+$FA$27*P40*G41+$FA$28*P40*H41+$FA$29*P40*(F40-F39)+$FA$30*P40*(F40^2-F39^2),AC41),$FA$9+$FA$10*C40+$FA$11*I41+$FA$12*G41+$FA$13*H41+$FA$14*C40^2+$FA$15*I40+$FA$16*H40+$FA$17*B41+$FA$18*B41*I41+$FA$19*B41*I40+$FA$20*B41*H41+$FA$21*B41*H40+$FA$22*(F40-F39)+$FA$23*(F40-F39)*H40+$FA$24*(F40-F39)*H40*B41+$FA$25*P40+$FA$26*P40*I41+$FA$27*P40*G41+$FA$28*P40*H41+$FA$29*P40*(F40-F39)+$FA$30*P40*(F40^2-F39^2)) -> 0.27% | AT41: -0.1% | AU41: 1 | AV41: 0 | AW41: 1 | AX41: 0 | AY41: 2 | AZ41: 0 | BA41: 1 | BB41: 0 | BC41: 1 | BD41: 1 | BE41: =SUM($BD$32:BD41)/COUNT($BD$32:BD41) -> 0.75 | BF41: 1 | BG41: =IF(Y41=0,CL41-CD41,"") -> 0 | BH41: 0 | BI41: 0 | BJ41: =SUM($BF$32:BF41)/COUNT($BF$32:BF41) -> 75.0% | BK41: =BJ41-AP41 -> 12.5% | BM41: =IF(AC41>0,1,0) -> 100.0% | BN41: =IF(AS41>0,1,0) -> 100.00% | BO41: =IF(AS41-AC41>0,1,0) -> 0 | BP41: =IF(BO41+AU41=2,1,0) -> 0 | BQ41: =IF(C40>0,1,0) -> 1 | BR41: =A41 -> 44789 | BS41: =IF(ABS(C41)>0,IF(BQ41>0,BS40*(1+(C41-E41)),BS40*(1-(C41-E41))),BS40) -> 97.52569811 | BT41: 0.003430188451 | BU41: =BU40*(1+C41) -> 1900-04-13T12:43:03.737 | BV41: 0.001875666141 | BW41: 1 | BX41: =IF(X41=0,IF(BM41>0,BX40*(1+(C41-E41)),BX40*(1-(C41-E41))),BX40) -> 100.959689 | BY41: 0.003430188451 | BZ41: 1 | CA41: =IF(Y41=0,IF(BM41>0,CA40*(1+(C41-E41)),CA40*(1-(C41-E41))),CA40) -> 100.959689 | CB41: =IF(Y41=0,IF(BM41>0,CA41/CA40-1,CA41/CA40-1),"") -> 0.003430188451 | CC41: 0.003430188451 | CD41: 1 | CE41: =SUM($CD$30:CD41)/COUNT($CD$30:CD41) -> 0.5555555556 | CF41: 100.4826878 | CG41: =IF(X41=0,IF(BN41>0,CG40*(1+(C41-E41)),CG40*(1-(C41-E41))),CG40) -> 102.2783156 | CH41: 0% | CI41: =IF(X41=0,IF(CG41/CG40-1>=0,1,0),"") -> 1 | CJ41: =IF(Y41=0,IF(BN41>0,CJ40*(1+(C41-E41)),CJ40*(1-(C41-E41))),CJ40) -> 102.2783156 | CK41: =IF(Y41=0,IF(BN41>0,CJ41/CJ40-1,CJ41/CJ40-1),"") -> 0.003430188451 | CL41: 1 | CM41: =SUM($CL$30:CL41)/COUNT($CL$30:CL41) -> 0.6666666667 | CN41: =IF(CK41="","",CK41-CC41) -> 0 | CO41: =COUNT($CN$32:CN41) -> 800% | CP41: 0% | CQ41: 0 | CR41: =SUM($CP$32:CP41) -> 1.00 | CS41: =SUM($CQ$32:CQ41) -> 0 | CT41: 0.06 | CU41: 0.06 | CV41: =CR41/CO41 -> 13% | CW41: 0 | CX41: =CV41-CW41 -> 12.5% | CY41: =CX41/(SQRT(CU41*(1/CO41+1/CO41))) -> 103.3% | CZ41: =1-_xlfn.NORM.DIST(CY41,0,1,TRUE) -> 15.1% | DA41: 0.003430188451 | DB41: =IF(Y41=0,IF(CJ41/CJ40-1>=0,1,0),"") -> 1 | DC41: =(CG41-BX41)/100 -> 0.01318626541 | DD41: =(CJ41-CA41)/100 -> 0.01318626541 | EZ41: =FA33-EU27 -> 0.010009
A42: =A6062 -> 2022-08-17 | B42: 0 | C42: =C6062/C6061-1 -> -0.724% | D42: =D6062/C6061-1 -> -0.58% | E42: -0.6% | F42: =E6062 -> 19.90 | G42: =F6062/F6061-1 -> 0.46% | H42: =G6062/G6061-1 -> 1.23% | I42: =H6062/H6061-1 -> -1.17% | K42: 2022-08-17 | L42: 2.44 | M42: 3.78 | N42: 4.04 | O42: 3.91 | P42: 3.78 | Q42: 2022-08-17 | R42: 4.04 | S42: =IF(P42>$Q$29,1,0) -> 1 | U42: =IF($A$19=1,T42,0) -> 0 | Y42: 0 | AB42: 0 | AC42: =$EU$9+$EU$10*C41+$EU$11*I42+$EU$12*G42+$EU$13*H42+$EU$14*C41^2+$EU$15*I41+$EU$16*H41+$EU$17*B42+$EU$18*B42*I42+$EU$19*B42*I41+$EU$20*B42*H42+$EU$21*B42*H41+$EU$22*(F41-F40)+$EU$23*(F41-F40)*H41+$EU$24*(F41-F40)*H41*B42 -> -0.38% | AD42: 0 | AE42: 1 | AF42: 0 | AG42: 1 | AH42: 0 | AI42: 2 | AJ42: 0 | AK42: 1 | AL42: 1 | AM42: 1 | AN42: =SUM($AM$32:AM42)/COUNT($AM$32:AM42) -> 0.6666666667 | AO42: 1 | AP42: =SUM($AO$32:AO42)/COUNT($AO$32:AO42) -> 66.7% | AQ42: 66.7% | AR42: 72.7% | AS42: =IF($B$19=1,IF(S42=1,$FA$9+$FA$10*C41+$FA$11*I42+$FA$12*G42+$FA$13*H42+$FA$14*C41^2+$FA$15*I41+$FA$16*H41+$FA$17*B42+$FA$18*B42*I42+$FA$19*B42*I41+$FA$20*B42*H42+$FA$21*B42*H41+$FA$22*(F41-F40)+$FA$23*(F41-F40)*H41+$FA$24*(F41-F40)*H41*B42+$FA$25*P41+$FA$26*P41*I42+$FA$27*P41*G42+$FA$28*P41*H42+$FA$29*P41*(F41-F40)+$FA$30*P41*(F41^2-F40^2),AC42),$FA$9+$FA$10*C41+$FA$11*I42+$FA$12*G42+$FA$13*H42+$FA$14*C41^2+$FA$15*I41+$FA$16*H41+$FA$17*B42+$FA$18*B42*I42+$FA$19*B42*I41+$FA$20*B42*H42+$FA$21*B42*H41+$FA$22*(F41-F40)+$FA$23*(F41-F40)*H41+$FA$24*(F41-F40)*H41*B42+$FA$25*P41+$FA$26*P41*I42+$FA$27*P41*G42+$FA$28*P41*H42+$FA$29*P41*(F41-F40)+$FA$30*P41*(F41^2-F40^2)) -> -0.37% | AT42: -0.0% | AU42: 0 | AV42: 1 | AW42: 0 | AX42: 1 | AY42: 0 | AZ42: 2 | BA42: 0 | BB42: 1 | BC42: 1 | BD42: 1 | BE42: =SUM($BD$32:BD42)/COUNT($BD$32:BD42) -> 0.7777777778 | BF42: 1 | BG42: =IF(Y42=0,CL42-CD42,"") -> 0 | BH42: 0 | BI42: 0 | BJ42: =SUM($BF$32:BF42)/COUNT($BF$32:BF42) -> 77.8% | BK42: =BJ42-AP42 -> 11.1% | BM42: =IF(AC42>0,1,0) -> 0.0% | BN42: =IF(AS42>0,1,0) -> 0.00% | BO42: =IF(AS42-AC42>0,1,0) -> 1 | BP42: =IF(BO42+AU42=2,1,0) -> 0 | BQ42: =IF(C41>0,1,0) -> 1 | BR42: =A42 -> 44790 | BS42: =IF(ABS(C42)>0,IF(BQ42>0,BS41*(1+(C42-E42)),BS41*(1-(C42-E42))),BS41) -> 97.38162502 | BT42: -0.001477283285 | BU42: =BU41*(1+C42) -> 1900-04-12T18:33:36.758 | BV42: -0.007237758989 | BW42: 0 | BX42: =IF(X42=0,IF(BM42>0,BX41*(1+(C42-E42)),BX41*(1-(C42-E42))),BX41) -> 101.1088351 | BY42: 0.001477283285 | BZ42: 1 | CA42: =IF(Y42=0,IF(BM42>0,CA41*(1+(C42-E42)),CA41*(1-(C42-E42))),CA41) -> 101.1088351 | CB42: =IF(Y42=0,IF(BM42>0,CA42/CA41-1,CA42/CA41-1),"") -> 0.001477283285 | CC42: 0.001477283285 | CD42: 1 | CE42: =SUM($CD$30:CD42)/COUNT($CD$30:CD42) -> 0.6 | CF42: 100.5569085 | CG42: =IF(X42=0,IF(BN42>0,CG41*(1+(C42-E42)),CG41*(1-(C42-E42))),CG41) -> 102.4294096 | CH42: 0% | CI42: =IF(X42=0,IF(CG42/CG41-1>=0,1,0),"") -> 1 | CJ42: =IF(Y42=0,IF(BN42>0,CJ41*(1+(C42-E42)),CJ41*(1-(C42-E42))),CJ41) -> 102.4294096 | CK42: =IF(Y42=0,IF(BN42>0,CJ42/CJ41-1,CJ42/CJ41-1),"") -> 0.001477283285 | CL42: 1 | CM42: =SUM($CL$30:CL42)/COUNT($CL$30:CL42) -> 0.7 | CN42: =IF(CK42="","",CK42-CC42) -> 0 | CO42: =COUNT($CN$32:CN42) -> 900% | CP42: 0% | CQ42: 0 | CR42: =SUM($CP$32:CP42) -> 1.00 | CS42: =SUM($CQ$32:CQ42) -> 0 | CT42: 0.06 | CU42: 0.05 | CV42: 11% | CW42: 0 | CX42: 11.1% | CY42: 102.9% | CZ42: 15.2% | DA42: 0.001477283285 | DB42: =IF(Y42=0,IF(CJ42/CJ41-1>=0,1,0),"") -> 1 | DC42: =(CG42-BX42)/100 -> 0.01320574525 | DD42: =(CJ42-CA42)/100 -> 0.01320574525
A43: =A6063 -> 2022-08-18 | B43: 0 | C43: =C6063/C6062-1 -> 0.227% | D43: =D6063/C6062-1 -> -0.02% | E43: -0.0% | F43: =E6063 -> 19.56 | G43: =F6063/F6062-1 -> -0.80% | H43: =G6063/G6062-1 -> -0.96% | I43: =H6063/H6062-1 -> 0.91% | K43: 2022-08-18 | L43: 2.39 | M43: 3.41 | N43: 4.10 | O43: 3.76 | P43: 3.41 | Q43: 2022-08-18 | R43: 4.10 | S43: =IF(P43>$Q$29,1,0) -> 1 | U43: =IF($A$19=1,T43,0) -> 0 | Y43: 0 | AB43: 0 | AC43: =$EU$9+$EU$10*C42+$EU$11*I43+$EU$12*G43+$EU$13*H43+$EU$14*C42^2+$EU$15*I42+$EU$16*H42+$EU$17*B43+$EU$18*B43*I43+$EU$19*B43*I42+$EU$20*B43*H43+$EU$21*B43*H42+$EU$22*(F42-F41)+$EU$23*(F42-F41)*H42+$EU$24*(F42-F41)*H42*B43 -> 0.47% | AD43: 1 | AE43: 0 | AF43: 1 | AG43: 0 | AH43: 2 | AI43: 0 | AJ43: 1 | AK43: 0 | AL43: 1 | AM43: 1 | AN43: =SUM($AM$32:AM43)/COUNT($AM$32:AM43) -> 0.7 | AO43: 1 | AP43: =SUM($AO$32:AO43)/COUNT($AO$32:AO43) -> 70.0% | AQ43: 70.0% | AR43: 75.0% | AS43: =IF($B$19=1,IF(S43=1,$FA$9+$FA$10*C42+$FA$11*I43+$FA$12*G43+$FA$13*H43+$FA$14*C42^2+$FA$15*I42+$FA$16*H42+$FA$17*B43+$FA$18*B43*I43+$FA$19*B43*I42+$FA$20*B43*H43+$FA$21*B43*H42+$FA$22*(F42-F41)+$FA$23*(F42-F41)*H42+$FA$24*(F42-F41)*H42*B43+$FA$25*P42+$FA$26*P42*I43+$FA$27*P42*G43+$FA$28*P42*H43+$FA$29*P42*(F42-F41)+$FA$30*P42*(F42^2-F41^2),AC43),$FA$9+$FA$10*C42+$FA$11*I43+$FA$12*G43+$FA$13*H43+$FA$14*C42^2+$FA$15*I42+$FA$16*H42+$FA$17*B43+$FA$18*B43*I43+$FA$19*B43*I42+$FA$20*B43*H43+$FA$21*B43*H42+$FA$22*(F42-F41)+$FA$23*(F42-F41)*H42+$FA$24*(F42-F41)*H42*B43+$FA$25*P42+$FA$26*P42*I43+$FA$27*P42*G43+$FA$28*P42*H43+$FA$29*P42*(F42-F41)+$FA$30*P42*(F42^2-F41^2)) -> 0.55% | AT43: 0.1% | AU43: 1 | AV43: 0 | AW43: 1 | AX43: 0 | AY43: 2 | AZ43: 0 | BA43: 1 | BB43: 0 | BC43: 1 | BD43: 1 | BE43: =SUM($BD$32:BD43)/COUNT($BD$32:BD43) -> 0.8 | BF43: 1 | BG43: =IF(Y43=0,CL43-CD43,"") -> 0 | BH43: 0 | BI43: 0 | BJ43: =SUM($BF$32:BF43)/COUNT($BF$32:BF43) -> 80.0% | BK43: =BJ43-AP43 -> 10.0% | BM43: =IF(AC43>0,1,0) -> 100.0% | BN43: =IF(AS43>0,1,0) -> 100.00% | BO43: =IF(AS43-AC43>0,1,0) -> 1 | BP43: =IF(BO43+AU43=2,1,0) -> 1 | BQ43: =IF(C42>0,1,0) -> 0 | BR43: =A43 -> 44791 | BS43: =IF(ABS(C43)>0,IF(BQ43>0,BS42*(1+(C43-E43)),BS42*(1-(C43-E43))),BS42) -> 97.13988207 | BT43: -0.002482428803 | BU43: =BU42*(1+C43) -> 1900-04-13T00:12:45.272 | BV43: 0.002269515494 | BW43: 1 | BX43: =IF(X43=0,IF(BM43>0,BX42*(1+(C43-E43)),BX42*(1-(C43-E43))),BX42) -> 101.3598306 | BY43: 0.002482428803 | BZ43: 1 | CA43: =IF(Y43=0,IF(BM43>0,CA42*(1+(C43-E43)),CA42*(1-(C43-E43))),CA42) -> 101.3598306 | CB43: =IF(Y43=0,IF(BM43>0,CA43/CA42-1,CA43/CA42-1),"") -> 0.002482428803 | CC43: 0.002482428803 | CD43: 1 | CE43: =SUM($CD$30:CD43)/COUNT($CD$30:CD43) -> 0.6363636364 | CF43: 100.6817212 | CG43: =IF(X43=0,IF(BN43>0,CG42*(1+(C43-E43)),CG42*(1-(C43-E43))),CG42) -> 102.6836833 | CH43: 0% | CI43: =IF(X43=0,IF(CG43/CG42-1>=0,1,0),"") -> 1 | CJ43: =IF(Y43=0,IF(BN43>0,CJ42*(1+(C43-E43)),CJ42*(1-(C43-E43))),CJ42) -> 102.6836833 | CK43: =IF(Y43=0,IF(BN43>0,CJ43/CJ42-1,CJ43/CJ42-1),"") -> 0.002482428803 | CL43: 1 | CM43: =SUM($CL$30:CL43)/COUNT($CL$30:CL43) -> 0.7272727273 | CN43: =IF(CK43="","",CK43-CC43) -> 0 | CO43: =COUNT($CN$32:CN43) -> 1000% | CP43: 0% | CQ43: 0 | CR43: =SUM($CP$32:CP43) -> 1.00 | CS43: =SUM($CQ$32:CQ43) -> 0 | CT43: 0.05 | CU43: 0.05 | CV43: 10% | CW43: 0 | CX43: 10.0% | CY43: 102.6% | CZ43: 15.2% | DA43: 0.002482428803 | DB43: =IF(Y43=0,IF(CJ43/CJ42-1>=0,1,0),"") -> 1 | DC43: =(CG43-BX43)/100 -> 0.01323852758 | DD43: =(CJ43-CA43)/100 -> 0.01323852758
A44: =A6064 -> 2022-08-19 | B44: 0 | C44: =C6064/C6063-1 -> -1.290% | D44: =D6064/C6063-1 -> -0.41% | E44: -0.4% | F44: =E6064 -> 20.60 | G44: =F6064/F6063-1 -> 0.05% | H44: =G6064/G6063-1 -> -0.04% | I44: =H6064/H6063-1 -> -0.75% | K44: 2022-08-19 | L44: 3.25 | M44: 2.25 | N44: 2.96 | O44: 2.61 | P44: 2.25 | Q44: 2022-08-19 | R44: 2.96 | S44: =IF(P44>$Q$29,1,0) -> 0 | U44: =IF($A$19=1,T44,0) -> 0 | Y44: 0 | AB44: 0 | AC44: =$EU$9+$EU$10*C43+$EU$11*I44+$EU$12*G44+$EU$13*H44+$EU$14*C43^2+$EU$15*I43+$EU$16*H43+$EU$17*B44+$EU$18*B44*I44+$EU$19*B44*I43+$EU$20*B44*H44+$EU$21*B44*H43+$EU$22*(F43-F42)+$EU$23*(F43-F42)*H43+$EU$24*(F43-F42)*H43*B44 -> -0.32% | AD44: 0 | AE44: 1 | AF44: 0 | AG44: 1 | AH44: 0 | AI44: 2 | AJ44: 0 | AK44: 1 | AL44: 1 | AM44: 1 | AN44: =SUM($AM$32:AM44)/COUNT($AM$32:AM44) -> 0.7272727273 | AO44: 1 | AP44: =SUM($AO$32:AO44)/COUNT($AO$32:AO44) -> 72.7% | AQ44: 72.7% | AR44: 76.9% | AS44: =IF($B$19=1,IF(S44=1,$FA$9+$FA$10*C43+$FA$11*I44+$FA$12*G44+$FA$13*H44+$FA$14*C43^2+$FA$15*I43+$FA$16*H43+$FA$17*B44+$FA$18*B44*I44+$FA$19*B44*I43+$FA$20*B44*H44+$FA$21*B44*H43+$FA$22*(F43-F42)+$FA$23*(F43-F42)*H43+$FA$24*(F43-F42)*H43*B44+$FA$25*P43+$FA$26*P43*I44+$FA$27*P43*G44+$FA$28*P43*H44+$FA$29*P43*(F43-F42)+$FA$30*P43*(F43^2-F42^2),AC44),$FA$9+$FA$10*C43+$FA$11*I44+$FA$12*G44+$FA$13*H44+$FA$14*C43^2+$FA$15*I43+$FA$16*H43+$FA$17*B44+$FA$18*B44*I44+$FA$19*B44*I43+$FA$20*B44*H44+$FA$21*B44*H43+$FA$22*(F43-F42)+$FA$23*(F43-F42)*H43+$FA$24*(F43-F42)*H43*B44+$FA$25*P43+$FA$26*P43*I44+$FA$27*P43*G44+$FA$28*P43*H44+$FA$29*P43*(F43-F42)+$FA$30*P43*(F43^2-F42^2)) -> -0.28% | AT44: -0.0% | AU44: 0 | AV44: 1 | AW44: 0 | AX44: 1 | AY44: 0 | AZ44: 2 | BA44: 0 | BB44: 1 | BC44: 1 | BD44: 1 | BE44: =SUM($BD$32:BD44)/COUNT($BD$32:BD44) -> 0.8181818182 | BF44: 1 | BG44: =IF(Y44=0,CL44-CD44,"") -> 0 | BH44: 0 | BI44: 0 | BJ44: =SUM($BF$32:BF44)/COUNT($BF$32:BF44) -> 81.8% | BK44: =BJ44-AP44 -> 9.1% | BM44: =IF(AC44>0,1,0) -> 0.0% | BN44: =IF(AS44>0,1,0) -> 0.00% | BO44: =IF(AS44-AC44>0,1,0) -> 1 | BP44: =IF(BO44+AU44=2,1,0) -> 0 | BQ44: =IF(C43>0,1,0) -> 1 | BR44: =A44 -> 44792 | BS44: =IF(ABS(C44)>0,IF(BQ44>0,BS43*(1+(C44-E44)),BS43*(1-(C44-E44))),BS43) -> 96.28203315 | BT44: -0.008831068179 | BU44: =BU43*(1+C44) -> 1900-04-11T16:00:41.676 | BV44: -0.01289994257 | BW44: 0 | BX44: =IF(X44=0,IF(BM44>0,BX43*(1+(C44-E44)),BX43*(1-(C44-E44))),BX43) -> 102.2549461 | BY44: 0.008831068179 | BZ44: 1 | CA44: =IF(Y44=0,IF(BM44>0,CA43*(1+(C44-E44)),CA43*(1-(C44-E44))),CA43) -> 102.2549461 | CB44: =IF(Y44=0,IF(BM44>0,CA44/CA43-1,CA44/CA43-1),"") -> 0.008831068179 | CC44: 0.008831068179 | CD44: 1 | CE44: =SUM($CD$30:CD44)/COUNT($CD$30:CD44) -> 0.6666666667 | CF44: 101.1262847 | CG44: =IF(X44=0,IF(BN44>0,CG43*(1+(C44-E44)),CG43*(1-(C44-E44))),CG43) -> 103.5904899 | CH44: 1% | CI44: =IF(X44=0,IF(CG44/CG43-1>=0,1,0),"") -> 1 | CJ44: =IF(Y44=0,IF(BN44>0,CJ43*(1+(C44-E44)),CJ43*(1-(C44-E44))),CJ43) -> 103.5904899 | CK44: =IF(Y44=0,IF(BN44>0,CJ44/CJ43-1,CJ44/CJ43-1),"") -> 0.008831068179 | CL44: 1 | CM44: =SUM($CL$30:CL44)/COUNT($CL$30:CL44) -> 0.75 | CN44: =IF(CK44="","",CK44-CC44) -> 0 | CO44: =COUNT($CN$32:CN44) -> 1100% | CP44: 0% | CQ44: 0 | CR44: =SUM($CP$32:CP44) -> 1.00 | CS44: =SUM($CQ$32:CQ44) -> 0 | CT44: 0.05 | CU44: 0.04 | CV44: 9% | CW44: 0 | CX44: 9.1% | CY44: 102.4% | CZ44: 15.3% | DA44: 0.008831068179 | DB44: =IF(Y44=0,IF(CJ44/CJ43-1>=0,1,0),"") -> 1 | DC44: =(CG44-BX44)/100 -> 0.01335543792 | DD44: =(CJ44-CA44)/100 -> 0.01335543792
A45: =A6065 -> 2022-08-22 | B45: 1 | C45: =C6065/C6064-1 -> -2.140% | D45: =D6065/C6064-1 -> -0.79% | E45: -0.8% | F45: =E6065 -> 23.80 | G45: =F6065/F6064-1 -> -0.59% | H45: =G6065/G6064-1 -> -0.47% | I45: =H6065/H6064-1 -> -2.06% | K45: 2022-08-22 | L45: 2.86 | M45: 2.79 | N45: 2.93 | O45: 2.86 | P45: 2.79 | Q45: 2022-08-22 | R45: 2.93 | S45: =IF(P45>$Q$29,1,0) -> 1 | U45: =IF($A$19=1,T45,0) -> 0 | Y45: 0 | AB45: 0 | AC45: =$EU$9+$EU$10*C44+$EU$11*I45+$EU$12*G45+$EU$13*H45+$EU$14*C44^2+$EU$15*I44+$EU$16*H44+$EU$17*B45+$EU$18*B45*I45+$EU$19*B45*I44+$EU$20*B45*H45+$EU$21*B45*H44+$EU$22*(F44-F43)+$EU$23*(F44-F43)*H44+$EU$24*(F44-F43)*H44*B45 -> -0.83% | AD45: 0 | AE45: 1 | AF45: 0 | AG45: 1 | AH45: 0 | AI45: 2 | AJ45: 0 | AK45: 1 | AL45: 1 | AM45: 1 | AN45: =SUM($AM$32:AM45)/COUNT($AM$32:AM45) -> 0.75 | AO45: 1 | AP45: =SUM($AO$32:AO45)/COUNT($AO$32:AO45) -> 75.0% | AQ45: 75.0% | AR45: 78.6% | AS45: =IF($B$19=1,IF(S45=1,$FA$9+$FA$10*C44+$FA$11*I45+$FA$12*G45+$FA$13*H45+$FA$14*C44^2+$FA$15*I44+$FA$16*H44+$FA$17*B45+$FA$18*B45*I45+$FA$19*B45*I44+$FA$20*B45*H45+$FA$21*B45*H44+$FA$22*(F44-F43)+$FA$23*(F44-F43)*H44+$FA$24*(F44-F43)*H44*B45+$FA$25*P44+$FA$26*P44*I45+$FA$27*P44*G45+$FA$28*P44*H45+$FA$29*P44*(F44-F43)+$FA$30*P44*(F44^2-F43^2),AC45),$FA$9+$FA$10*C44+$FA$11*I45+$FA$12*G45+$FA$13*H45+$FA$14*C44^2+$FA$15*I44+$FA$16*H44+$FA$17*B45+$FA$18*B45*I45+$FA$19*B45*I44+$FA$20*B45*H45+$FA$21*B45*H44+$FA$22*(F44-F43)+$FA$23*(F44-F43)*H44+$FA$24*(F44-F43)*H44*B45+$FA$25*P44+$FA$26*P44*I45+$FA$27*P44*G45+$FA$28*P44*H45+$FA$29*P44*(F44-F43)+$FA$30*P44*(F44^2-F43^2)) -> -0.93% | AT45: 0.1% | AU45: 0 | AV45: 1 | AW45: 0 | AX45: 1 | AY45: 0 | AZ45: 2 | BA45: 0 | BB45: 1 | BC45: 1 | BD45: 1 | BE45: =SUM($BD$32:BD45)/COUNT($BD$32:BD45) -> 0.8333333333 | BF45: 1 | BG45: =IF(Y45=0,CL45-CD45,"") -> 0 | BH45: 0 | BI45: 0 | BJ45: =SUM($BF$32:BF45)/COUNT($BF$32:BF45) -> 83.3% | BK45: =BJ45-AP45 -> 8.3% | BM45: =IF(AC45>0,1,0) -> 0.0% | BN45: =IF(AS45>0,1,0) -> 0.00% | BO45: =IF(AS45-AC45>0,1,0) -> 0 | BP45: =IF(BO45+AU45=2,1,0) -> 0 | BQ45: =IF(C44>0,1,0) -> 0 | BR45: =A45 -> 44795 | BS45: =IF(ABS(C45)>0,IF(BQ45>0,BS44*(1+(C45-E45)),BS44*(1-(C45-E45))),BS44) -> 97.58196629 | BT45: 0.01350130543 | BU45: =BU44*(1+C45) -> 1900-04-09T11:16:53.116 | BV45: -0.02140012487 | BW45: 0 | BX45: =IF(X45=0,IF(BM45>0,BX44*(1+(C45-E45)),BX44*(1-(C45-E45))),BX44) -> 103.6355214 | BY45: 0.01350130543 | BZ45: 1 | CA45: =IF(Y45=0,IF(BM45>0,CA44*(1+(C45-E45)),CA44*(1-(C45-E45))),CA44) -> 103.6355214 | CB45: =IF(Y45=0,IF(BM45>0,CA45/CA44-1,CA45/CA44-1),"") -> 0.01350130543 | CC45: 0.01350130543 | CD45: 1 | CE45: =SUM($CD$30:CD45)/COUNT($CD$30:CD45) -> 0.6923076923 | CF45: 101.8089532 | CG45: =IF(X45=0,IF(BN45>0,CG44*(1+(C45-E45)),CG44*(1-(C45-E45))),CG44) -> 104.9890968 | CH45: 1% | CI45: =IF(X45=0,IF(CG45/CG44-1>=0,1,0),"") -> 1 | CJ45: =IF(Y45=0,IF(BN45>0,CJ44*(1+(C45-E45)),CJ44*(1-(C45-E45))),CJ44) -> 104.9890968 | CK45: =IF(Y45=0,IF(BN45>0,CJ45/CJ44-1,CJ45/CJ44-1),"") -> 0.01350130543 | CL45: 1 | CM45: =SUM($CL$30:CL45)/COUNT($CL$30:CL45) -> 0.7692307692 | CN45: =IF(CK45="","",CK45-CC45) -> 0 | CO45: =COUNT($CN$32:CN45) -> 1200% | CP45: 0% | CQ45: 0 | CR45: =SUM($CP$32:CP45) -> 1.00 | CS45: =SUM($CQ$32:CQ45) -> 0 | CT45: 0.04 | CU45: 0.04 | CV45: 8% | CW45: 0 | CX45: 8.3% | CY45: 102.2% | CZ45: 15.4% | DA45: 0.01350130543 | DB45: =IF(Y45=0,IF(CJ45/CJ44-1>=0,1,0),"") -> 1 | DC45: =(CG45-BX45)/100 -> 0.01353575376 | DD45: =(CJ45-CA45)/100 -> 0.01353575376
A46: =A6066 -> 2022-08-23 | B46: 0 | C46: =C6066/C6065-1 -> -0.224% | D46: =D6066/C6065-1 -> -0.12% | E46: -0.1% | F46: =E6066 -> 24.11 | G46: =F6066/F6065-1 -> -0.78% | H46: =G6066/G6065-1 -> -1.19% | I46: =H6066/H6065-1 -> -0.52% | K46: 2022-08-23 | L46: 3.14 | M46: 3.63 | N46: 4.07 | O46: 3.85 | P46: 3.63 | Q46: 2022-08-23 | R46: 4.07 | S46: =IF(P46>$Q$29,1,0) -> 1 | U46: =IF($A$19=1,T46,0) -> 0 | Y46: 0 | AB46: 0 | AC46: =$EU$9+$EU$10*C45+$EU$11*I46+$EU$12*G46+$EU$13*H46+$EU$14*C45^2+$EU$15*I45+$EU$16*H45+$EU$17*B46+$EU$18*B46*I46+$EU$19*B46*I45+$EU$20*B46*H46+$EU$21*B46*H45+$EU$22*(F45-F44)+$EU$23*(F45-F44)*H45+$EU$24*(F45-F44)*H45*B46 -> 0.23% | AD46: 1 | AE46: 0 | AF46: 0 | AG46: 1 | AH46: 1 | AI46: 1 | AJ46: 0 | AK46: 0 | AL46: 0 | AM46: 0 | AN46: =SUM($AM$32:AM46)/COUNT($AM$32:AM46) -> 0.6923076923 | AO46: 0 | AP46: =SUM($AO$32:AO46)/COUNT($AO$32:AO46) -> 69.2% | AQ46: 69.2% | AR46: 73.3% | AS46: =IF($B$19=1,IF(S46=1,$FA$9+$FA$10*C45+$FA$11*I46+$FA$12*G46+$FA$13*H46+$FA$14*C45^2+$FA$15*I45+$FA$16*H45+$FA$17*B46+$FA$18*B46*I46+$FA$19*B46*I45+$FA$20*B46*H46+$FA$21*B46*H45+$FA$22*(F45-F44)+$FA$23*(F45-F44)*H45+$FA$24*(F45-F44)*H45*B46+$FA$25*P45+$FA$26*P45*I46+$FA$27*P45*G46+$FA$28*P45*H46+$FA$29*P45*(F45-F44)+$FA$30*P45*(F45^2-F44^2),AC46),$FA$9+$FA$10*C45+$FA$11*I46+$FA$12*G46+$FA$13*H46+$FA$14*C45^2+$FA$15*I45+$FA$16*H45+$FA$17*B46+$FA$18*B46*I46+$FA$19*B46*I45+$FA$20*B46*H46+$FA$21*B46*H45+$FA$22*(F45-F44)+$FA$23*(F45-F44)*H45+$FA$24*(F45-F44)*H45*B46+$FA$25*P45+$FA$26*P45*I46+$FA$27*P45*G46+$FA$28*P45*H46+$FA$29*P45*(F45-F44)+$FA$30*P45*(F45^2-F44^2)) -> 0.13% | AT46: -0.1% | AU46: 1 | AV46: 0 | AW46: 0 | AX46: 1 | AY46: 1 | AZ46: 1 | BA46: 0 | BB46: 0 | BC46: 0 | BD46: 0 | BE46: =SUM($BD$32:BD46)/COUNT($BD$32:BD46) -> 0.7692307692 | BF46: 0 | BG46: =IF(Y46=0,CL46-CD46,"") -> 0 | BH46: 0 | BI46: 0 | BJ46: =SUM($BF$32:BF46)/COUNT($BF$32:BF46) -> 76.9% | BK46: =BJ46-AP46 -> 7.7% | BM46: =IF(AC46>0,1,0) -> 100.0% | BN46: =IF(AS46>0,1,0) -> 100.00% | BO46: =IF(AS46-AC46>0,1,0) -> 0 | BP46: =IF(BO46+AU46=2,1,0) -> 0 | BQ46: =IF(C45>0,1,0) -> 0 | BR46: =A46 -> 44796 | BS46: =IF(ABS(C46)>0,IF(BQ46>0,BS45*(1+(C46-E46)),BS45*(1-(C46-E46))),BS45) -> 97.68478369 | BT46: 0.001053651652 | BU46: =BU45*(1+C46) -> 1900-04-09T05:53:07.628 | BV46: -0.002237801445 | BW46: 0 | BX46: =IF(X46=0,IF(BM46>0,BX45*(1+(C46-E46)),BX45*(1-(C46-E46))),BX45) -> 103.5263257 | BY46: -0.001053651652 | BZ46: 0 | CA46: =IF(Y46=0,IF(BM46>0,CA45*(1+(C46-E46)),CA45*(1-(C46-E46))),CA45) -> 103.5263257 | CB46: =IF(Y46=0,IF(BM46>0,CA46/CA45-1,CA46/CA45-1),"") -> -0.001053651652 | CC46: -0.001053651652 | CD46: 0 | CE46: =SUM($CD$30:CD46)/COUNT($CD$30:CD46) -> 0.6428571429 | CF46: 101.7553176 | CG46: =IF(X46=0,IF(BN46>0,CG45*(1+(C46-E46)),CG45*(1-(C46-E46))),CG45) -> 104.8784748 | CH46: -0% | CI46: =IF(X46=0,IF(CG46/CG45-1>=0,1,0),"") -> 0 | CJ46: =IF(Y46=0,IF(BN46>0,CJ45*(1+(C46-E46)),CJ45*(1-(C46-E46))),CJ45) -> 104.8784748 | CK46: =IF(Y46=0,IF(BN46>0,CJ46/CJ45-1,CJ46/CJ45-1),"") -> -0.001053651652 | CL46: 0 | CM46: =SUM($CL$30:CL46)/COUNT($CL$30:CL46) -> 0.7142857143 | CN46: =IF(CK46="","",CK46-CC46) -> 0 | CO46: =COUNT($CN$32:CN46) -> 1300% | CP46: 0% | CQ46: 0 | CR46: =SUM($CP$32:CP46) -> 1.00 | CS46: =SUM($CQ$32:CQ46) -> 0 | CT46: 0.04 | CU46: 0.04 | CV46: 8% | CW46: 0 | CX46: 7.7% | CY46: 102.0% | CZ46: 15.4% | DA46: -0.001053651652 | DB46: =IF(Y46=0,IF(CJ46/CJ45-1>=0,1,0),"") -> 0 | DC46: =(CG46-BX46)/100 -> 0.01352149179 | DD46: =(CJ46-CA46)/100 -> 0.01352149179
A47: =A6067 -> 2022-08-24 | B47: 0 | C47: =C6067/C6066-1 -> 0.292% | D47: =D6067/C6066-1 -> -0.05% | E47: -0.1% | F47: =E6067 -> 22.82 | G47: =F6067/F6066-1 -> -1.20% | H47: =G6067/G6066-1 -> -0.49% | I47: =H6067/H6066-1 -> -0.10% | K47: 2022-08-24 | L47: 3.59 | M47: 2.81 | N47: 3.43 | O47: 3.12 | P47: 2.81 | Q47: 2022-08-24 | R47: 3.43 | S47: =IF(P47>$Q$29,1,0) -> 1 | U47: =IF($A$19=1,T47,0) -> 0 | Y47: 0 | AB47: -1 | AC47: =$EU$9+$EU$10*C46+$EU$11*I47+$EU$12*G47+$EU$13*H47+$EU$14*C46^2+$EU$15*I46+$EU$16*H46+$EU$17*B47+$EU$18*B47*I47+$EU$19*B47*I46+$EU$20*B47*H47+$EU$21*B47*H46+$EU$22*(F46-F45)+$EU$23*(F46-F45)*H46+$EU$24*(F46-F45)*H46*B47 -> -0.11% | AD47: 0 | AE47: 1 | AF47: 1 | AG47: 0 | AH47: 1 | AI47: 1 | AJ47: 0 | AK47: 0 | AL47: 0 | AM47: 0 | AN47: =SUM($AM$32:AM47)/COUNT($AM$32:AM47) -> 0.6428571429 | AO47: 0 | AP47: =SUM($AO$32:AO47)/COUNT($AO$32:AO47) -> 64.3% | AQ47: 64.3% | AR47: 68.8% | AS47: =IF($B$19=1,IF(S47=1,$FA$9+$FA$10*C46+$FA$11*I47+$FA$12*G47+$FA$13*H47+$FA$14*C46^2+$FA$15*I46+$FA$16*H46+$FA$17*B47+$FA$18*B47*I47+$FA$19*B47*I46+$FA$20*B47*H47+$FA$21*B47*H46+$FA$22*(F46-F45)+$FA$23*(F46-F45)*H46+$FA$24*(F46-F45)*H46*B47+$FA$25*P46+$FA$26*P46*I47+$FA$27*P46*G47+$FA$28*P46*H47+$FA$29*P46*(F46-F45)+$FA$30*P46*(F46^2-F45^2),AC47),$FA$9+$FA$10*C46+$FA$11*I47+$FA$12*G47+$FA$13*H47+$FA$14*C46^2+$FA$15*I46+$FA$16*H46+$FA$17*B47+$FA$18*B47*I47+$FA$19*B47*I46+$FA$20*B47*H47+$FA$21*B47*H46+$FA$22*(F46-F45)+$FA$23*(F46-F45)*H46+$FA$24*(F46-F45)*H46*B47+$FA$25*P46+$FA$26*P46*I47+$FA$27*P46*G47+$FA$28*P46*H47+$FA$29*P46*(F46-F45)+$FA$30*P46*(F46^2-F45^2)) -> 0.08% | AT47: -0.0% | AU47: 1 | AV47: 0 | AW47: 1 | AX47: 0 | AY47: 2 | AZ47: 0 | BA47: 1 | BB47: 0 | BC47: 1 | BD47: 1 | BE47: =SUM($BD$32:BD47)/COUNT($BD$32:BD47) -> 0.7857142857 | BF47: 1 | BG47: =IF(Y47=0,CL47-CD47,"") -> 1 | BH47: 1 | BI47: 0 | BJ47: =SUM($BF$32:BF47)/COUNT($BF$32:BF47) -> 78.6% | BK47: =BJ47-AP47 -> 14.3% | BM47: =IF(AC47>0,1,0) -> 0.0% | BN47: =IF(AS47>0,1,0) -> 100.00% | BO47: =IF(AS47-AC47>0,1,0) -> 1 | BP47: =IF(BO47+AU47=2,1,0) -> 1 | BQ47: =IF(C46>0,1,0) -> 0 | BR47: =A47 -> 44797 | BS47: =IF(ABS(C47)>0,IF(BQ47>0,BS46*(1+(C47-E47)),BS46*(1-(C47-E47))),BS46) -> 97.34834182 | BT47: -0.003444158373 | BU47: =BU46*(1+C47) -> 1900-04-09T12:54:04.959 | BV47: 0.002916150971 | BW47: 1 | BX47: =IF(X47=0,IF(BM47>0,BX46*(1+(C47-E47)),BX46*(1-(C47-E47))),BX46) -> 103.1697646 | BY47: -0.003444158373 | BZ47: 0 | CA47: =IF(Y47=0,IF(BM47>0,CA46*(1+(C47-E47)),CA46*(1-(C47-E47))),CA46) -> 103.1697646 | CB47: =IF(Y47=0,IF(BM47>0,CA47/CA46-1,CA47/CA46-1),"") -> -0.003444158373 | CC47: -0.003444158373 | CD47: 0 | CE47: =SUM($CD$30:CD47)/COUNT($CD$30:CD47) -> 0.6 | CF47: 101.5800869 | CG47: =IF(X47=0,IF(BN47>0,CG46*(1+(C47-E47)),CG46*(1-(C47-E47))),CG46) -> 105.2396929 | CH47: 0% | CI47: =IF(X47=0,IF(CG47/CG46-1>=0,1,0),"") -> 1 | CJ47: =IF(Y47=0,IF(BN47>0,CJ46*(1+(C47-E47)),CJ46*(1-(C47-E47))),CJ46) -> 105.2396929 | CK47: =IF(Y47=0,IF(BN47>0,CJ47/CJ46-1,CJ47/CJ46-1),"") -> 0.003444158373 | CL47: 1 | CM47: =SUM($CL$30:CL47)/COUNT($CL$30:CL47) -> 0.7333333333 | CN47: =IF(CK47="","",CK47-CC47) -> 0.006888316746 | CO47: =COUNT($CN$32:CN47) -> 1400% | CP47: 100% | CQ47: 0 | CR47: =SUM($CP$32:CP47) -> 2.00 | CS47: =SUM($CQ$32:CQ47) -> 0 | CT47: 0.07 | CU47: 0.07 | CV47: 14% | CW47: 0 | CX47: 14.3% | CY47: 146.8% | CZ47: 7.1% | DA47: 0.003444158373 | DB47: =IF(Y47=0,IF(CJ47/CJ46-1>=0,1,0),"") -> 1 | DC47: =(CG47-BX47)/100 -> 0.02069928318 | DD47: =(CJ47-CA47)/100 -> 0.02069928318
A48: =A6068 -> 2022-08-25 | B48: 0 | C48: =C6068/C6067-1 -> 1.409% | D48: =D6068/C6067-1 -> 0.30% | E48: 0.3% | F48: =E6068 -> 21.78 | G48: =F6068/F6067-1 -> 3.63% | H48: =G6068/G6067-1 -> 0.58% | I48: =H6068/H6067-1 -> 0.19% | K48: 2022-08-25 | L48: 2.60 | M48: 2.67 | N48: 3.17 | O48: 2.92 | P48: 2.67 | Q48: 2022-08-25 | R48: 3.17 | S48: =IF(P48>$Q$29,1,0) -> 1 | U48: =IF($A$19=1,T48,0) -> 0 | Y48: 0 | AB48: 0 | AC48: =$EU$9+$EU$10*C47+$EU$11*I48+$EU$12*G48+$EU$13*H48+$EU$14*C47^2+$EU$15*I47+$EU$16*H47+$EU$17*B48+$EU$18*B48*I48+$EU$19*B48*I47+$EU$20*B48*H48+$EU$21*B48*H47+$EU$22*(F47-F46)+$EU$23*(F47-F46)*H47+$EU$24*(F47-F46)*H47*B48 -> 0.25% | AD48: 1 | AE48: 0 | AF48: 1 | AG48: 0 | AH48: 2 | AI48: 0 | AJ48: 1 | AK48: 0 | AL48: 1 | AM48: 1 | AN48: =SUM($AM$32:AM48)/COUNT($AM$32:AM48) -> 0.6666666667 | AO48: 1 | AP48: =SUM($AO$32:AO48)/COUNT($AO$32:AO48) -> 66.7% | AQ48: 66.7% | AR48: 70.6% | AS48: =IF($B$19=1,IF(S48=1,$FA$9+$FA$10*C47+$FA$11*I48+$FA$12*G48+$FA$13*H48+$FA$14*C47^2+$FA$15*I47+$FA$16*H47+$FA$17*B48+$FA$18*B48*I48+$FA$19*B48*I47+$FA$20*B48*H48+$FA$21*B48*H47+$FA$22*(F47-F46)+$FA$23*(F47-F46)*H47+$FA$24*(F47-F46)*H47*B48+$FA$25*P47+$FA$26*P47*I48+$FA$27*P47*G48+$FA$28*P47*H48+$FA$29*P47*(F47-F46)+$FA$30*P47*(F47^2-F46^2),AC48),$FA$9+$FA$10*C47+$FA$11*I48+$FA$12*G48+$FA$13*H48+$FA$14*C47^2+$FA$15*I47+$FA$16*H47+$FA$17*B48+$FA$18*B48*I48+$FA$19*B48*I47+$FA$20*B48*H48+$FA$21*B48*H47+$FA$22*(F47-F46)+$FA$23*(F47-F46)*H47+$FA$24*(F47-F46)*H47*B48+$FA$25*P47+$FA$26*P47*I48+$FA$27*P47*G48+$FA$28*P47*H48+$FA$29*P47*(F47-F46)+$FA$30*P47*(F47^2-F46^2)) -> 0.22% | AT48: -0.0% | AU48: 1 | AV48: 0 | AW48: 1 | AX48: 0 | AY48: 2 | AZ48: 0 | BA48: 1 | BB48: 0 | BC48: 1 | BD48: 1 | BE48: =SUM($BD$32:BD48)/COUNT($BD$32:BD48) -> 0.8 | BF48: 1 | BG48: =IF(Y48=0,CL48-CD48,"") -> 0 | BH48: 0 | BI48: 0 | BJ48: =SUM($BF$32:BF48)/COUNT($BF$32:BF48) -> 80.0% | BK48: =BJ48-AP48 -> 13.3% | BM48: =IF(AC48>0,1,0) -> 100.0% | BN48: =IF(AS48>0,1,0) -> 100.00% | BO48: =IF(AS48-AC48>0,1,0) -> 0 | BP48: =IF(BO48+AU48=2,1,0) -> 0 | BQ48: =IF(C47>0,1,0) -> 1 | BR48: =A48 -> 44798 | BS48: =IF(ABS(C48)>0,IF(BQ48>0,BS47*(1+(C48-E48)),BS47*(1-(C48-E48))),BS47) -> 98.42649757 | BT48: 0.0110752348 | BU48: =BU47*(1+C48) -> 1900-04-10T22:54:10.710 | BV48: 0.014091582 | BW48: 1 | BX48: =IF(X48=0,IF(BM48>0,BX47*(1+(C48-E48)),BX47*(1-(C48-E48))),BX47) -> 104.312394 | BY48: 0.0110752348 | BZ48: 1 | CA48: =IF(Y48=0,IF(BM48>0,CA47*(1+(C48-E48)),CA47*(1-(C48-E48))),CA47) -> 104.312394 | CB48: =IF(Y48=0,IF(BM48>0,CA48/CA47-1,CA48/CA47-1),"") -> 0.0110752348 | CC48: 0.0110752348 | CD48: 1 | CE48: =SUM($CD$30:CD48)/COUNT($CD$30:CD48) -> 0.625 | CF48: 102.1425985 | CG48: =IF(X48=0,IF(BN48>0,CG47*(1+(C48-E48)),CG47*(1-(C48-E48))),CG47) -> 106.4052472 | CH48: 1% | CI48: =IF(X48=0,IF(CG48/CG47-1>=0,1,0),"") -> 1 | CJ48: =IF(Y48=0,IF(BN48>0,CJ47*(1+(C48-E48)),CJ47*(1-(C48-E48))),CJ47) -> 106.4052472 | CK48: =IF(Y48=0,IF(BN48>0,CJ48/CJ47-1,CJ48/CJ47-1),"") -> 0.0110752348 | CL48: 1 | CM48: =SUM($CL$30:CL48)/COUNT($CL$30:CL48) -> 0.75 | CN48: =IF(CK48="","",CK48-CC48) -> 0 | CO48: =COUNT($CN$32:CN48) -> 1500% | CP48: 0% | CQ48: 0 | CR48: =SUM($CP$32:CP48) -> 2.00 | CS48: =SUM($CQ$32:CQ48) -> 0 | CT48: 0.07 | CU48: 0.06 | CV48: 13% | CW48: 0 | CX48: 13.3% | CY48: 146.4% | CZ48: 7.2% | DA48: 0.0110752348 | DB48: =IF(Y48=0,IF(CJ48/CJ47-1>=0,1,0),"") -> 1 | DC48: =(CG48-BX48)/100 -> 0.0209285326 | DD48: =(CJ48-CA48)/100 -> 0.0209285326
A49: =A6069 -> 2022-08-26 | B49: 0 | C49: =C6069/C6068-1 -> -3.369% | D49: =D6069/C6068-1 -> -0.01% | E49: -0.0% | F49: =E6069 -> 25.56 | G49: =F6069/F6068-1 -> 1.01% | H49: =G6069/G6068-1 -> 0.57% | I49: =H6069/H6068-1 -> -1.57% | K49: 2022-08-26 | L49: 2.76 | M49: 2.59 | N49: 3.09 | O49: 2.84 | P49: 2.59 | Q49: 2022-08-26 | R49: 3.09 | S49: =IF(P49>$Q$29,1,0) -> 1 | U49: =IF($A$19=1,T49,0) -> 0 | Y49: 0 | AB49: 0 | AC49: =$EU$9+$EU$10*C48+$EU$11*I49+$EU$12*G49+$EU$13*H49+$EU$14*C48^2+$EU$15*I48+$EU$16*H48+$EU$17*B49+$EU$18*B49*I49+$EU$19*B49*I48+$EU$20*B49*H49+$EU$21*B49*H48+$EU$22*(F48-F47)+$EU$23*(F48-F47)*H48+$EU$24*(F48-F47)*H48*B49 -> -0.98% | AD49: 0 | AE49: 1 | AF49: 0 | AG49: 1 | AH49: 0 | AI49: 2 | AJ49: 0 | AK49: 1 | AL49: 1 | AM49: 1 | AN49: =SUM($AM$32:AM49)/COUNT($AM$32:AM49) -> 0.6875 | AO49: 1 | AP49: =SUM($AO$32:AO49)/COUNT($AO$32:AO49) -> 68.8% | AQ49: 68.8% | AR49: 72.2% | AS49: =IF($B$19=1,IF(S49=1,$FA$9+$FA$10*C48+$FA$11*I49+$FA$12*G49+$FA$13*H49+$FA$14*C48^2+$FA$15*I48+$FA$16*H48+$FA$17*B49+$FA$18*B49*I49+$FA$19*B49*I48+$FA$20*B49*H49+$FA$21*B49*H48+$FA$22*(F48-F47)+$FA$23*(F48-F47)*H48+$FA$24*(F48-F47)*H48*B49+$FA$25*P48+$FA$26*P48*I49+$FA$27*P48*G49+$FA$28*P48*H49+$FA$29*P48*(F48-F47)+$FA$30*P48*(F48^2-F47^2),AC49),$FA$9+$FA$10*C48+$FA$11*I49+$FA$12*G49+$FA$13*H49+$FA$14*C48^2+$FA$15*I48+$FA$16*H48+$FA$17*B49+$FA$18*B49*I49+$FA$19*B49*I48+$FA$20*B49*H49+$FA$21*B49*H48+$FA$22*(F48-F47)+$FA$23*(F48-F47)*H48+$FA$24*(F48-F47)*H48*B49+$FA$25*P48+$FA$26*P48*I49+$FA$27*P48*G49+$FA$28*P48*H49+$FA$29*P48*(F48-F47)+$FA$30*P48*(F48^2-F47^2)) -> -0.93% | AT49: -0.0% | AU49: 0 | AV49: 1 | AW49: 0 | AX49: 1 | AY49: 0 | AZ49: 2 | BA49: 0 | BB49: 1 | BC49: 1 | BD49: 1 | BE49: =SUM($BD$32:BD49)/COUNT($BD$32:BD49) -> 0.8125 | BF49: 1 | BG49: =IF(Y49=0,CL49-CD49,"") -> 0 | BH49: 0 | BI49: 0 | BJ49: =SUM($BF$32:BF49)/COUNT($BF$32:BF49) -> 81.3% | BK49: =BJ49-AP49 -> 12.5% | BM49: =IF(AC49>0,1,0) -> 0.0% | BN49: =IF(AS49>0,1,0) -> 0.00% | BO49: =IF(AS49-AC49>0,1,0) -> 1 | BP49: =IF(BO49+AU49=2,1,0) -> 0 | BQ49: =IF(C48>0,1,0) -> 1 | BR49: =A49 -> 44799 | BS49: =IF(ABS(C49)>0,IF(BQ49>0,BS48*(1+(C49-E49)),BS48*(1-(C49-E49))),BS48) -> 95.11961177 | BT49: -0.03359751567 | BU49: =BU48*(1+C49) -> 1900-04-07T12:28:18.052 | BV49: -0.03368801082 | BW49: 0 | BX49: =IF(X49=0,IF(BM49>0,BX48*(1+(C49-E49)),BX48*(1-(C49-E49))),BX48) -> 107.8170313 | BY49: 0.03359751567 | BZ49: 1 | CA49: =IF(Y49=0,IF(BM49>0,CA48*(1+(C49-E49)),CA48*(1-(C49-E49))),CA48) -> 107.8170313 | CB49: =IF(Y49=0,IF(BM49>0,CA49/CA48-1,CA49/CA48-1),"") -> 0.03359751567 | CC49: 0.03359751567 | CD49: 1 | CE49: =SUM($CD$30:CD49)/COUNT($CD$30:CD49) -> 0.6470588235 | CF49: 103.8584673 | CG49: =IF(X49=0,IF(BN49>0,CG48*(1+(C49-E49)),CG48*(1-(C49-E49))),CG48) -> 109.9801992 | CH49: 3% | CI49: =IF(X49=0,IF(CG49/CG48-1>=0,1,0),"") -> 1 | CJ49: =IF(Y49=0,IF(BN49>0,CJ48*(1+(C49-E49)),CJ48*(1-(C49-E49))),CJ48) -> 109.9801992 | CK49: =IF(Y49=0,IF(BN49>0,CJ49/CJ48-1,CJ49/CJ48-1),"") -> 0.03359751567 | CL49: 1 | CM49: =SUM($CL$30:CL49)/COUNT($CL$30:CL49) -> 0.7647058824 | CN49: =IF(CK49="","",CK49-CC49) -> 0 | CO49: =COUNT($CN$32:CN49) -> 1600% | CP49: 0% | CQ49: 0 | CR49: =SUM($CP$32:CP49) -> 2.00 | CS49: =SUM($CQ$32:CQ49) -> 0 | CT49: 0.06 | CU49: 0.06 | CV49: 13% | CW49: 0 | CX49: 12.5% | CY49: 146.1% | CZ49: 7.2% | DA49: 0.03359751567 | DB49: =IF(Y49=0,IF(CJ49/CJ48-1>=0,1,0),"") -> 1 | DC49: =(CG49-BX49)/100 -> 0.0216316793 | DD49: =(CJ49-CA49)/100 -> 0.0216316793
A50: =A6070 -> 2022-08-29 | B50: 1 | C50: =C6070/C6069-1 -> -0.667% | D50: =D6070/C6069-1 -> -0.57% | E50: -0.6% | F50: =E6070 -> 26.21 | G50: =F6070/F6069-1 -> -0.73% | H50: =G6070/G6069-1 -> -2.66% | I50: =H6070/H6069-1 -> -0.82% | K50: 2022-08-29 | L50: 3.14 | M50: 3.15 | N50: 3.54 | O50: 3.35 | P50: 3.15 | Q50: 2022-08-29 | R50: 3.54 | S50: =IF(P50>$Q$29,1,0) -> 1 | U50: =IF($A$19=1,T50,0) -> 0 | Y50: 0 | AB50: 0 | AC50: =$EU$9+$EU$10*C49+$EU$11*I50+$EU$12*G50+$EU$13*H50+$EU$14*C49^2+$EU$15*I49+$EU$16*H49+$EU$17*B50+$EU$18*B50*I50+$EU$19*B50*I49+$EU$20*B50*H50+$EU$21*B50*H49+$EU$22*(F49-F48)+$EU$23*(F49-F48)*H49+$EU$24*(F49-F48)*H49*B50 -> 0.33% | AD50: 1 | AE50: 0 | AF50: 0 | AG50: 1 | AH50: 1 | AI50: 1 | AJ50: 0 | AK50: 0 | AL50: 0 | AM50: 0 | AN50: =SUM($AM$32:AM50)/COUNT($AM$32:AM50) -> 0.6470588235 | AO50: 0 | AP50: =SUM($AO$32:AO50)/COUNT($AO$32:AO50) -> 64.7% | AQ50: 64.7% | AR50: 68.4% | AS50: =IF($B$19=1,IF(S50=1,$FA$9+$FA$10*C49+$FA$11*I50+$FA$12*G50+$FA$13*H50+$FA$14*C49^2+$FA$15*I49+$FA$16*H49+$FA$17*B50+$FA$18*B50*I50+$FA$19*B50*I49+$FA$20*B50*H50+$FA$21*B50*H49+$FA$22*(F49-F48)+$FA$23*(F49-F48)*H49+$FA$24*(F49-F48)*H49*B50+$FA$25*P49+$FA$26*P49*I50+$FA$27*P49*G50+$FA$28*P49*H50+$FA$29*P49*(F49-F48)+$FA$30*P49*(F49^2-F48^2),AC50),$FA$9+$FA$10*C49+$FA$11*I50+$FA$12*G50+$FA$13*H50+$FA$14*C49^2+$FA$15*I49+$FA$16*H49+$FA$17*B50+$FA$18*B50*I50+$FA$19*B50*I49+$FA$20*B50*H50+$FA$21*B50*H49+$FA$22*(F49-F48)+$FA$23*(F49-F48)*H49+$FA$24*(F49-F48)*H49*B50+$FA$25*P49+$FA$26*P49*I50+$FA$27*P49*G50+$FA$28*P49*H50+$FA$29*P49*(F49-F48)+$FA$30*P49*(F49^2-F48^2)) -> 0.26% | AT50: -0.1% | AU50: 1 | AV50: 0 | AW50: 0 | AX50: 1 | AY50: 1 | AZ50: 1 | BA50: 0 | BB50: 0 | BC50: 0 | BD50: 0 | BE50: =SUM($BD$32:BD50)/COUNT($BD$32:BD50) -> 0.7647058824 | BF50: 0 | BG50: =IF(Y50=0,CL50-CD50,"") -> 0 | BH50: 0 | BI50: 0 | BJ50: =SUM($BF$32:BF50)/COUNT($BF$32:BF50) -> 76.5% | BK50: =BJ50-AP50 -> 11.8% | BM50: =IF(AC50>0,1,0) -> 100.0% | BN50: =IF(AS50>0,1,0) -> 100.00% | BO50: =IF(AS50-AC50>0,1,0) -> 0 | BP50: =IF(BO50+AU50=2,1,0) -> 0 | BQ50: =IF(C49>0,1,0) -> 0 | BR50: =A50 -> 44802 | BS50: =IF(ABS(C50)>0,IF(BQ50>0,BS49*(1+(C50-E50)),BS49*(1-(C50-E50))),BS49) -> 95.21267646 | BT50: 0.0009783964157 | BU50: =BU49*(1+C50) -> 1900-04-06T20:42:32.969 | BV50: -0.006666403789 | BW50: 0 | BX50: =IF(X50=0,IF(BM50>0,BX49*(1+(C50-E50)),BX49*(1-(C50-E50))),BX49) -> 107.7115435 | BY50: -0.0009783964157 | BZ50: 0 | CA50: =IF(Y50=0,IF(BM50>0,CA49*(1+(C50-E50)),CA49*(1-(C50-E50))),CA49) -> 107.7115435 | CB50: =IF(Y50=0,IF(BM50>0,CA50/CA49-1,CA50/CA49-1),"") -> -0.0009783964157 | CC50: -0.0009783964157 | CD50: 0 | CE50: =SUM($CD$30:CD50)/COUNT($CD$30:CD50) -> 0.6111111111 | CF50: 103.8076599 | CG50: =IF(X50=0,IF(BN50>0,CG49*(1+(C50-E50)),CG49*(1-(C50-E50))),CG49) -> 109.872595 | CH50: -0% | CI50: =IF(X50=0,IF(CG50/CG49-1>=0,1,0),"") -> 0 | CJ50: =IF(Y50=0,IF(BN50>0,CJ49*(1+(C50-E50)),CJ49*(1-(C50-E50))),CJ49) -> 109.872595 | CK50: =IF(Y50=0,IF(BN50>0,CJ50/CJ49-1,CJ50/CJ49-1),"") -> -0.0009783964157 | CL50: 0 | CM50: =SUM($CL$30:CL50)/COUNT($CL$30:CL50) -> 0.7222222222 | CN50: =IF(CK50="","",CK50-CC50) -> 0 | CO50: =COUNT($CN$32:CN50) -> 1700% | CP50: 0% | CQ50: 0 | CR50: =SUM($CP$32:CP50) -> 2.00 | CS50: =SUM($CQ$32:CQ50) -> 0 | CT50: 0.06 | CU50: 0.06 | CV50: 12% | CW50: 0 | CX50: 11.8% | CY50: 145.8% | CZ50: 7.2% | DA50: -0.0009783964157 | DB50: =IF(Y50=0,IF(CJ50/CJ49-1>=0,1,0),"") -> 0 | DC50: =(CG50-BX50)/100 -> 0.02161051495 | DD50: =(CJ50-CA50)/100 -> 0.02161051495
A51: =A6071 -> 2022-08-30 | B51: 0 | C51: =C6071/C6070-1 -> -1.103% | D51: =D6071/C6070-1 -> 0.26% | E51: 0.3% | F51: =E6071 -> 26.21 | G51: =F6071/F6070-1 -> -0.37% | H51: =G6071/G6070-1 -> 1.14% | I51: =H6071/H6070-1 -> 0.12% | K51: 2022-08-30 | L51: 3.21 | M51: 3.40 | N51: 3.60 | O51: 3.50 | P51: 3.40 | Q51: 2022-08-30 | R51: 3.60 | S51: =IF(P51>$Q$29,1,0) -> 1 | U51: =IF($A$19=1,T51,0) -> 0 | Y51: 0 | AB51: 0 | AC51: =$EU$9+$EU$10*C50+$EU$11*I51+$EU$12*G51+$EU$13*H51+$EU$14*C50^2+$EU$15*I50+$EU$16*H50+$EU$17*B51+$EU$18*B51*I51+$EU$19*B51*I50+$EU$20*B51*H51+$EU$21*B51*H50+$EU$22*(F50-F49)+$EU$23*(F50-F49)*H50+$EU$24*(F50-F49)*H50*B51 -> 0.23% | AD51: 1 | AE51: 0 | AF51: 0 | AG51: 1 | AH51: 1 | AI51: 1 | AJ51: 0 | AK51: 0 | AL51: 0 | AM51: 0 | AN51: =SUM($AM$32:AM51)/COUNT($AM$32:AM51) -> 0.6111111111 | AO51: 0 | AP51: =SUM($AO$32:AO51)/COUNT($AO$32:AO51) -> 61.1% | AQ51: 61.1% | AR51: 65.0% | AS51: =IF($B$19=1,IF(S51=1,$FA$9+$FA$10*C50+$FA$11*I51+$FA$12*G51+$FA$13*H51+$FA$14*C50^2+$FA$15*I50+$FA$16*H50+$FA$17*B51+$FA$18*B51*I51+$FA$19*B51*I50+$FA$20*B51*H51+$FA$21*B51*H50+$FA$22*(F50-F49)+$FA$23*(F50-F49)*H50+$FA$24*(F50-F49)*H50*B51+$FA$25*P50+$FA$26*P50*I51+$FA$27*P50*G51+$FA$28*P50*H51+$FA$29*P50*(F50-F49)+$FA$30*P50*(F50^2-F49^2),AC51),$FA$9+$FA$10*C50+$FA$11*I51+$FA$12*G51+$FA$13*H51+$FA$14*C50^2+$FA$15*I50+$FA$16*H50+$FA$17*B51+$FA$18*B51*I51+$FA$19*B51*I50+$FA$20*B51*H51+$FA$21*B51*H50+$FA$22*(F50-F49)+$FA$23*(F50-F49)*H50+$FA$24*(F50-F49)*H50*B51+$FA$25*P50+$FA$26*P50*I51+$FA$27*P50*G51+$FA$28*P50*H51+$FA$29*P50*(F50-F49)+$FA$30*P50*(F50^2-F49^2)) -> 0.25% | AT51: 0.0% | AU51: 1 | AV51: 0 | AW51: 0 | AX51: 1 | AY51: 1 | AZ51: 1 | BA51: 0 | BB51: 0 | BC51: 0 | BD51: 0 | BE51: =SUM($BD$32:BD51)/COUNT($BD$32:BD51) -> 0.7222222222 | BF51: 0 | BG51: =IF(Y51=0,CL51-CD51,"") -> 0 | BH51: 0 | BI51: 0 | BJ51: =SUM($BF$32:BF51)/COUNT($BF$32:BF51) -> 72.2% | BK51: =BJ51-AP51 -> 11.1% | BM51: =IF(AC51>0,1,0) -> 100.0% | BN51: =IF(AS51>0,1,0) -> 100.00% | BO51: =IF(AS51-AC51>0,1,0) -> 1 | BP51: =IF(BO51+AU51=2,1,0) -> 1 | BQ51: =IF(C50>0,1,0) -> 0 | BR51: =A51 -> 44803 | BS51: =IF(ABS(C51)>0,IF(BQ51>0,BS50*(1+(C51-E51)),BS50*(1-(C51-E51))),BS50) -> 96.5140344 | BT51: 0.01366790635 | BU51: =BU50*(1+C51) -> 1900-04-05T18:48:26.429 | BV51: -0.01102810741 | BW51: 0 | BX51: =IF(X51=0,IF(BM51>0,BX50*(1+(C51-E51)),BX50*(1-(C51-E51))),BX50) -> 106.2393522 | BY51: -0.01366790635 | BZ51: 0 | CA51: =IF(Y51=0,IF(BM51>0,CA50*(1+(C51-E51)),CA50*(1-(C51-E51))),CA50) -> 106.2393522 | CB51: =IF(Y51=0,IF(BM51>0,CA51/CA50-1,CA51/CA50-1),"") -> -0.01366790635 | CC51: -0.01366790635 | CD51: 0 | CE51: =SUM($CD$30:CD51)/COUNT($CD$30:CD51) -> 0.5789473684 | CF51: 103.0982432 | CG51: =IF(X51=0,IF(BN51>0,CG50*(1+(C51-E51)),CG50*(1-(C51-E51))),CG50) -> 108.3708666 | CH51: -1% | CI51: =IF(X51=0,IF(CG51/CG50-1>=0,1,0),"") -> 0 | CJ51: =IF(Y51=0,IF(BN51>0,CJ50*(1+(C51-E51)),CJ50*(1-(C51-E51))),CJ50) -> 108.3708666 | CK51: =IF(Y51=0,IF(BN51>0,CJ51/CJ50-1,CJ51/CJ50-1),"") -> -0.01366790635 | CL51: 0 | CM51: =SUM($CL$30:CL51)/COUNT($CL$30:CL51) -> 0.6842105263 | CN51: =IF(CK51="","",CK51-CC51) -> 0 | CO51: =COUNT($CN$32:CN51) -> 1800% | CP51: 0% | CQ51: 0 | CR51: =SUM($CP$32:CP51) -> 2.00 | CS51: =SUM($CQ$32:CQ51) -> 0 | CT51: 0.06 | CU51: 0.05 | CV51: 11% | CW51: 0 | CX51: 11.1% | CY51: 145.5% | CZ51: 7.3% | DA51: -0.01366790635 | DB51: =IF(Y51=0,IF(CJ51/CJ50-1>=0,1,0),"") -> 0 | DC51: =(CG51-BX51)/100 -> 0.02131514445 | DD51: =(CJ51-CA51)/100 -> 0.02131514445
A52: =A6072 -> 2022-08-31 | B52: 0 | C52: =C6072/C6071-1 -> -0.782% | D52: =D6072/C6071-1 -> 0.36% | E52: 0.4% | F52: =E6072 -> 25.87 | G52: =F6072/F6071-1 -> 0.03% | H52: =G6072/G6071-1 -> -0.37% | I52: =H6072/H6071-1 -> -1.14% | K52: 2022-08-31 | L52: 2.40 | M52: 2.53 | N52: 3.05 | O52: 2.79 | P52: 2.53 | Q52: 2022-08-31 | R52: 3.05 | S52: =IF(P52>$Q$29,1,0) -> 1 | U52: =IF($A$19=1,T52,0) -> 0 | Y52: 0 | AB52: 0 | AC52: =$EU$9+$EU$10*C51+$EU$11*I52+$EU$12*G52+$EU$13*H52+$EU$14*C51^2+$EU$15*I51+$EU$16*H51+$EU$17*B52+$EU$18*B52*I52+$EU$19*B52*I51+$EU$20*B52*H52+$EU$21*B52*H51+$EU$22*(F51-F50)+$EU$23*(F51-F50)*H51+$EU$24*(F51-F50)*H51*B52 -> -0.13% | AD52: 0 | AE52: 1 | AF52: 0 | AG52: 1 | AH52: 0 | AI52: 2 | AJ52: 0 | AK52: 1 | AL52: 1 | AM52: 1 | AN52: =SUM($AM$32:AM52)/COUNT($AM$32:AM52) -> 0.6315789474 | AO52: 1 | AP52: =SUM($AO$32:AO52)/COUNT($AO$32:AO52) -> 63.2% | AQ52: 63.2% | AR52: 66.7% | AS52: =IF($B$19=1,IF(S52=1,$FA$9+$FA$10*C51+$FA$11*I52+$FA$12*G52+$FA$13*H52+$FA$14*C51^2+$FA$15*I51+$FA$16*H51+$FA$17*B52+$FA$18*B52*I52+$FA$19*B52*I51+$FA$20*B52*H52+$FA$21*B52*H51+$FA$22*(F51-F50)+$FA$23*(F51-F50)*H51+$FA$24*(F51-F50)*H51*B52+$FA$25*P51+$FA$26*P51*I52+$FA$27*P51*G52+$FA$28*P51*H52+$FA$29*P51*(F51-F50)+$FA$30*P51*(F51^2-F50^2),AC52),$FA$9+$FA$10*C51+$FA$11*I52+$FA$12*G52+$FA$13*H52+$FA$14*C51^2+$FA$15*I51+$FA$16*H51+$FA$17*B52+$FA$18*B52*I52+$FA$19*B52*I51+$FA$20*B52*H52+$FA$21*B52*H51+$FA$22*(F51-F50)+$FA$23*(F51-F50)*H51+$FA$24*(F51-F50)*H51*B52+$FA$25*P51+$FA$26*P51*I52+$FA$27*P51*G52+$FA$28*P51*H52+$FA$29*P51*(F51-F50)+$FA$30*P51*(F51^2-F50^2)) -> -0.10% | AT52: -0.0% | AU52: 0 | AV52: 1 | AW52: 0 | AX52: 1 | AY52: 0 | AZ52: 2 | BA52: 0 | BB52: 1 | BC52: 1 | BD52: 1 | BE52: =SUM($BD$32:BD52)/COUNT($BD$32:BD52) -> 0.7368421053 | BF52: 1 | BG52: =IF(Y52=0,CL52-CD52,"") -> 0 | BH52: 0 | BI52: 0 | BJ52: =SUM($BF$32:BF52)/COUNT($BF$32:BF52) -> 73.7% | BK52: =BJ52-AP52 -> 10.5% | BM52: =IF(AC52>0,1,0) -> 0.0% | BN52: =IF(AS52>0,1,0) -> 0.00% | BO52: =IF(AS52-AC52>0,1,0) -> 1 | BP52: =IF(BO52+AU52=2,1,0) -> 0 | BQ52: =IF(C51>0,1,0) -> 0 | BR52: =A52 -> 44804 | BS52: =IF(ABS(C52)>0,IF(BQ52>0,BS51*(1+(C52-E52)),BS51*(1-(C52-E52))),BS51) -> 97.61980937 | BT52: 0.01145714171 | BU52: =BU51*(1+C52) -> 1900-04-05T00:38:59.450 | BV52: -0.007817046983 | BW52: 0 | BX52: =IF(X52=0,IF(BM52>0,BX51*(1+(C52-E52)),BX51*(1-(C52-E52))),BX51) -> 107.4565515 | BY52: 0.01145714171 | BZ52: 1 | CA52: =IF(Y52=0,IF(BM52>0,CA51*(1+(C52-E52)),CA51*(1-(C52-E52))),CA51) -> 107.4565515 | CB52: =IF(Y52=0,IF(BM52>0,CA52/CA51-1,CA52/CA51-1),"") -> 0.01145714171 | CC52: 0.01145714171 | CD52: 1 | CE52: =SUM($CD$30:CD52)/COUNT($CD$30:CD52) -> 0.6 | CF52: 103.6888488 | CG52: =IF(X52=0,IF(BN52>0,CG51*(1+(C52-E52)),CG51*(1-(C52-E52))),CG51) -> 109.612487 | CH52: 1% | CI52: =IF(X52=0,IF(CG52/CG51-1>=0,1,0),"") -> 1 | CJ52: =IF(Y52=0,IF(BN52>0,CJ51*(1+(C52-E52)),CJ51*(1-(C52-E52))),CJ51) -> 109.612487 | CK52: =IF(Y52=0,IF(BN52>0,CJ52/CJ51-1,CJ52/CJ51-1),"") -> 0.01145714171 | CL52: 1 | CM52: =SUM($CL$30:CL52)/COUNT($CL$30:CL52) -> 0.7 | CN52: =IF(CK52="","",CK52-CC52) -> 0 | CO52: =COUNT($CN$32:CN52) -> 1900% | CP52: 0% | CQ52: 0 | CR52: =SUM($CP$32:CP52) -> 2.00 | CS52: =SUM($CQ$32:CQ52) -> 0 | CT52: 0.05 | CU52: 0.05 | CV52: 11% | CW52: 0 | CX52: 10.5% | CY52: 145.3% | CZ52: 7.3% | DA52: 0.01145714171 | DB52: =IF(Y52=0,IF(CJ52/CJ51-1>=0,1,0),"") -> 1 | DC52: =(CG52-BX52)/100 -> 0.02155935508 | DD52: =(CJ52-CA52)/100 -> 0.02155935508
A53: =A6073 -> 2022-09-01 | B53: 0 | C53: =C6073/C6072-1 -> 0.300% | D53: =D6073/C6072-1 -> -0.46% | E53: -0.5% | F53: =E6073 -> 25.56 | G53: =F6073/F6072-1 -> -1.79% | H53: =G6073/G6072-1 -> -1.53% | I53: =H6073/H6072-1 -> -2.33% | K53: 2022-09-01 | L53: 1.97 | M53: 1.91 | N53: 3.31 | O53: 2.61 | P53: 1.91 | Q53: 2022-09-01 | R53: 3.31 | S53: =IF(P53>$Q$29,1,0) -> 0 | U53: =IF($A$19=1,T53,0) -> 0 | Y53: 0 | AB53: 0 | AC53: =$EU$9+$EU$10*C52+$EU$11*I53+$EU$12*G53+$EU$13*H53+$EU$14*C52^2+$EU$15*I52+$EU$16*H52+$EU$17*B53+$EU$18*B53*I53+$EU$19*B53*I52+$EU$20*B53*H53+$EU$21*B53*H52+$EU$22*(F52-F51)+$EU$23*(F52-F51)*H52+$EU$24*(F52-F51)*H52*B53 -> -1.04% | AD53: 0 | AE53: 1 | AF53: 1 | AG53: 0 | AH53: 1 | AI53: 1 | AJ53: 0 | AK53: 0 | AL53: 0 | AM53: 0 | AN53: =SUM($AM$32:AM53)/COUNT($AM$32:AM53) -> 0.6 | AO53: 0 | AP53: =SUM($AO$32:AO53)/COUNT($AO$32:AO53) -> 60.0% | AQ53: 60.0% | AR53: 63.6% | AS53: =IF($B$19=1,IF(S53=1,$FA$9+$FA$10*C52+$FA$11*I53+$FA$12*G53+$FA$13*H53+$FA$14*C52^2+$FA$15*I52+$FA$16*H52+$FA$17*B53+$FA$18*B53*I53+$FA$19*B53*I52+$FA$20*B53*H53+$FA$21*B53*H52+$FA$22*(F52-F51)+$FA$23*(F52-F51)*H52+$FA$24*(F52-F51)*H52*B53+$FA$25*P52+$FA$26*P52*I53+$FA$27*P52*G53+$FA$28*P52*H53+$FA$29*P52*(F52-F51)+$FA$30*P52*(F52^2-F51^2),AC53),$FA$9+$FA$10*C52+$FA$11*I53+$FA$12*G53+$FA$13*H53+$FA$14*C52^2+$FA$15*I52+$FA$16*H52+$FA$17*B53+$FA$18*B53*I53+$FA$19*B53*I52+$FA$20*B53*H53+$FA$21*B53*H52+$FA$22*(F52-F51)+$FA$23*(F52-F51)*H52+$FA$24*(F52-F51)*H52*B53+$FA$25*P52+$FA$26*P52*I53+$FA$27*P52*G53+$FA$28*P52*H53+$FA$29*P52*(F52-F51)+$FA$30*P52*(F52^2-F51^2)) -> -1.10% | AT53: 0.1% | AU53: 0 | AV53: 1 | AW53: 1 | AX53: 0 | AY53: 1 | AZ53: 1 | BA53: 0 | BB53: 0 | BC53: 0 | BD53: 0 | BE53: =SUM($BD$32:BD53)/COUNT($BD$32:BD53) -> 0.7 | BF53: 0 | BG53: =IF(Y53=0,CL53-CD53,"") -> 0 | BH53: 0 | BI53: 0 | BJ53: =SUM($BF$32:BF53)/COUNT($BF$32:BF53) -> 70.0% | BK53: =BJ53-AP53 -> 10.0% | BM53: =IF(AC53>0,1,0) -> 0.0% | BN53: =IF(AS53>0,1,0) -> 0.00% | BO53: =IF(AS53-AC53>0,1,0) -> 0 | BP53: =IF(BO53+AU53=2,1,0) -> 0 | BQ53: =IF(C52>0,1,0) -> 0 | BR53: =A53 -> 44805 | BS53: =IF(ABS(C53)>0,IF(BQ53>0,BS52*(1+(C53-E53)),BS52*(1-(C53-E53))),BS52) -> 96.8763685 | BT53: -0.007615676359 | BU53: =BU52*(1+C53) -> 1900-04-05T07:33:18.201 | BV53: 0.002996207332 | BW53: 1 | BX53: =IF(X53=0,IF(BM53>0,BX52*(1+(C53-E53)),BX52*(1-(C53-E53))),BX52) -> 106.6381972 | BY53: -0.007615676359 | BZ53: 0 | CA53: =IF(Y53=0,IF(BM53>0,CA52*(1+(C53-E53)),CA52*(1-(C53-E53))),CA52) -> 106.6381972 | CB53: =IF(Y53=0,IF(BM53>0,CA53/CA52-1,CA53/CA52-1),"") -> -0.007615676359 | CC53: -0.007615676359 | CD53: 0 | CE53: =SUM($CD$30:CD53)/COUNT($CD$30:CD53) -> 0.5714285714 | CF53: 103.2940185 | CG53: =IF(X53=0,IF(BN53>0,CG52*(1+(C53-E53)),CG52*(1-(C53-E53))),CG52) -> 108.7777138 | CH53: -1% | CI53: =IF(X53=0,IF(CG53/CG52-1>=0,1,0),"") -> 0 | CJ53: =IF(Y53=0,IF(BN53>0,CJ52*(1+(C53-E53)),CJ52*(1-(C53-E53))),CJ52) -> 108.7777138 | CK53: =IF(Y53=0,IF(BN53>0,CJ53/CJ52-1,CJ53/CJ52-1),"") -> -0.007615676359 | CL53: 0 | CM53: =SUM($CL$30:CL53)/COUNT($CL$30:CL53) -> 0.6666666667 | CN53: =IF(CK53="","",CK53-CC53) -> 0 | CO53: =COUNT($CN$32:CN53) -> 2000% | CP53: 0% | CQ53: 0 | CR53: =SUM($CP$32:CP53) -> 2.00 | CS53: =SUM($CQ$32:CQ53) -> 0 | CT53: 0.05 | CU53: 0.05 | CV53: 10% | CW53: 0 | CX53: 10.0% | CY53: 145.1% | CZ53: 7.3% | DA53: -0.007615676359 | DB53: =IF(Y53=0,IF(CJ53/CJ52-1>=0,1,0),"") -> 0 | DC53: =(CG53-BX53)/100 -> 0.02139516601 | DD53: =(CJ53-CA53)/100 -> 0.02139516601
A54: =A6074 -> 2022-09-02 | B54: 0 | C54: =C6074/C6073-1 -> -1.074% | D54: =D6074/C6073-1 -> 0.70% | E54: 0.7% | F54: =E6074 -> 25.47 | G54: =F6074/F6073-1 -> -0.74% | H54: =G6074/G6073-1 -> -0.04% | I54: =H6074/H6073-1 -> 2.64% | K54: 2022-09-02 | L54: 3.29 | M54: 2.88 | N54: 3.62 | O54: 3.25 | P54: 2.88 | Q54: 2022-09-02 | R54: 3.62 | S54: =IF(P54>$Q$29,1,0) -> 1 | U54: =IF($A$19=1,T54,0) -> 0 | Y54: 0 | AB54: 0 | AC54: =$EU$9+$EU$10*C53+$EU$11*I54+$EU$12*G54+$EU$13*H54+$EU$14*C53^2+$EU$15*I53+$EU$16*H53+$EU$17*B54+$EU$18*B54*I54+$EU$19*B54*I53+$EU$20*B54*H54+$EU$21*B54*H53+$EU$22*(F53-F52)+$EU$23*(F53-F52)*H53+$EU$24*(F53-F52)*H53*B54 -> 0.84% | AD54: 1 | AE54: 0 | AF54: 0 | AG54: 1 | AH54: 1 | AI54: 1 | AJ54: 0 | AK54: 0 | AL54: 0 | AM54: 0 | AN54: =SUM($AM$32:AM54)/COUNT($AM$32:AM54) -> 0.5714285714 | AO54: 0 | AP54: =SUM($AO$32:AO54)/COUNT($AO$32:AO54) -> 57.1% | AQ54: 57.1% | AR54: 60.9% | AS54: =IF($B$19=1,IF(S54=1,$FA$9+$FA$10*C53+$FA$11*I54+$FA$12*G54+$FA$13*H54+$FA$14*C53^2+$FA$15*I53+$FA$16*H53+$FA$17*B54+$FA$18*B54*I54+$FA$19*B54*I53+$FA$20*B54*H54+$FA$21*B54*H53+$FA$22*(F53-F52)+$FA$23*(F53-F52)*H53+$FA$24*(F53-F52)*H53*B54+$FA$25*P53+$FA$26*P53*I54+$FA$27*P53*G54+$FA$28*P53*H54+$FA$29*P53*(F53-F52)+$FA$30*P53*(F53^2-F52^2),AC54),$FA$9+$FA$10*C53+$FA$11*I54+$FA$12*G54+$FA$13*H54+$FA$14*C53^2+$FA$15*I53+$FA$16*H53+$FA$17*B54+$FA$18*B54*I54+$FA$19*B54*I53+$FA$20*B54*H54+$FA$21*B54*H53+$FA$22*(F53-F52)+$FA$23*(F53-F52)*H53+$FA$24*(F53-F52)*H53*B54+$FA$25*P53+$FA$26*P53*I54+$FA$27*P53*G54+$FA$28*P53*H54+$FA$29*P53*(F53-F52)+$FA$30*P53*(F53^2-F52^2)) -> 0.80% | AT54: -0.0% | AU54: 1 | AV54: 0 | AW54: 0 | AX54: 1 | AY54: 1 | AZ54: 1 | BA54: 0 | BB54: 0 | BC54: 0 | BD54: 0 | BE54: =SUM($BD$32:BD54)/COUNT($BD$32:BD54) -> 0.6666666667 | BF54: 0 | BG54: =IF(Y54=0,CL54-CD54,"") -> 0 | BH54: 0 | BI54: 0 | BJ54: =SUM($BF$32:BF54)/COUNT($BF$32:BF54) -> 66.7% | BK54: =BJ54-AP54 -> 9.5% | BM54: =IF(AC54>0,1,0) -> 100.0% | BN54: =IF(AS54>0,1,0) -> 100.00% | BO54: =IF(AS54-AC54>0,1,0) -> 0 | BP54: =IF(BO54+AU54=2,1,0) -> 0 | BQ54: =IF(C53>0,1,0) -> 1 | BR54: =A54 -> 44806 | BS54: =IF(ABS(C54)>0,IF(BQ54>0,BS53*(1+(C54-E54)),BS53*(1-(C54-E54))),BS53) -> 95.15709594 | BT54: -0.01774707892 | BU54: =BU53*(1+C54) -> 1900-04-04T06:44:13.541 | BV54: -0.01073647857 | BW54: 0 | BX54: =IF(X54=0,IF(BM54>0,BX53*(1+(C54-E54)),BX53*(1-(C54-E54))),BX53) -> 104.7456807 | BY54: -0.01774707892 | BZ54: 0 | CA54: =IF(Y54=0,IF(BM54>0,CA53*(1+(C54-E54)),CA53*(1-(C54-E54))),CA53) -> 104.7456807 | CB54: =IF(Y54=0,IF(BM54>0,CA54/CA53-1,CA54/CA53-1),"") -> -0.01774707892 | CC54: -0.01774707892 | CD54: 0 | CE54: =SUM($CD$30:CD54)/COUNT($CD$30:CD54) -> 0.5454545455 | CF54: 102.3774349 | CG54: =IF(X54=0,IF(BN54>0,CG53*(1+(C54-E54)),CG53*(1-(C54-E54))),CG53) -> 106.8472271 | CH54: -2% | CI54: =IF(X54=0,IF(CG54/CG53-1>=0,1,0),"") -> 0 | CJ54: =IF(Y54=0,IF(BN54>0,CJ53*(1+(C54-E54)),CJ53*(1-(C54-E54))),CJ53) -> 106.8472271 | CK54: =IF(Y54=0,IF(BN54>0,CJ54/CJ53-1,CJ54/CJ53-1),"") -> -0.01774707892 | CL54: 0 | CM54: =SUM($CL$30:CL54)/COUNT($CL$30:CL54) -> 0.6363636364 | CN54: =IF(CK54="","",CK54-CC54) -> -1.110223025e-16 | CO54: =COUNT($CN$32:CN54) -> 2100% | CP54: 0% | CQ54: 1.00 | CR54: =SUM($CP$32:CP54) -> 2.00 | CS54: =SUM($CQ$32:CQ54) -> 1.00 | CT54: 0.07 | CU54: 0.07 | CV54: 10% | CW54: 0.05 | CX54: 4.8% | CY54: 59.9% | CZ54: 27.5% | DA54: -0.01774707892 | DB54: =IF(Y54=0,IF(CJ54/CJ53-1>=0,1,0),"") -> 0 | DC54: =(CG54-BX54)/100 -> 0.02101546431 | DD54: =(CJ54-CA54)/100 -> 0.02101546431
A55: =A6075 -> 2022-09-05 | B55: 1 | C55: =C6075/C6074-1 -> 0.000% | D55: =D6075/C6074-1 -> 1.79% | E55: 1.8% | F55: =E6075 -> 25.99 | G55: =F6075/F6074-1 -> -1.16% | H55: =G6075/G6074-1 -> -0.11% | I55: =H6075/H6074-1 -> -1.36% | K55: 2022-09-05 | L55: 4.26 | M55: 4.06 | N55: 4.86 | O55: 4.46 | P55: 4.06 | Q55: 2022-09-05 | R55: 4.86 | S55: =IF(P55>$Q$29,1,0) -> 1 | U55: =IF($A$19=1,T55,0) -> 0 | W55: 1 | X55: =IF($C$19=1,W55,0) -> 1 | Y55: 1 | AA55: 1 | AB55: 0 | AC55: =$EU$9+$EU$10*C54+$EU$11*I55+$EU$12*G55+$EU$13*H55+$EU$14*C54^2+$EU$15*I54+$EU$16*H54+$EU$17*B55+$EU$18*B55*I55+$EU$19*B55*I54+$EU$20*B55*H55+$EU$21*B55*H54+$EU$22*(F54-F53)+$EU$23*(F54-F53)*H54+$EU$24*(F54-F53)*H54*B55 -> -0.51% | AD55: 0 | AE55: 1 | AF55: 0 | AG55: 0 | AH55: 0 | AI55: 1 | AJ55: 0 | AK55: 0 | AL55: 0 | AN55: =SUM($AM$32:AM55)/COUNT($AM$32:AM55) -> 0.5714285714 | AP55: =SUM($AO$32:AO55)/COUNT($AO$32:AO55) -> 57.1% | AQ55: 57.1% | AR55: 58.3% | AS55: =IF($B$19=1,IF(S55=1,$FA$9+$FA$10*C54+$FA$11*I55+$FA$12*G55+$FA$13*H55+$FA$14*C54^2+$FA$15*I54+$FA$16*H54+$FA$17*B55+$FA$18*B55*I55+$FA$19*B55*I54+$FA$20*B55*H55+$FA$21*B55*H54+$FA$22*(F54-F53)+$FA$23*(F54-F53)*H54+$FA$24*(F54-F53)*H54*B55+$FA$25*P54+$FA$26*P54*I55+$FA$27*P54*G55+$FA$28*P54*H55+$FA$29*P54*(F54-F53)+$FA$30*P54*(F54^2-F53^2),AC55),$FA$9+$FA$10*C54+$FA$11*I55+$FA$12*G55+$FA$13*H55+$FA$14*C54^2+$FA$15*I54+$FA$16*H54+$FA$17*B55+$FA$18*B55*I55+$FA$19*B55*I54+$FA$20*B55*H55+$FA$21*B55*H54+$FA$22*(F54-F53)+$FA$23*(F54-F53)*H54+$FA$24*(F54-F53)*H54*B55+$FA$25*P54+$FA$26*P54*I55+$FA$27*P54*G55+$FA$28*P54*H55+$FA$29*P54*(F54-F53)+$FA$30*P54*(F54^2-F53^2)) -> -0.51% | AT55: -0.0% | AU55: 0 | AV55: 1 | AW55: 0 | AX55: 0 | AY55: 0 | AZ55: 1 | BA55: 0 | BB55: 0 | BC55: 0 | BE55: =SUM($BD$32:BD55)/COUNT($BD$32:BD55) -> 0.6666666667 | BG55: =IF(Y55=0,CL55-CD55,"") ->  | BJ55: =SUM($BF$32:BF55)/COUNT($BF$32:BF55) -> 66.7% | BK55: =BJ55-AP55 -> 9.5% | BM55: =IF(AC55>0,1,0) -> 0.0% | BN55: =IF(AS55>0,1,0) -> 0.00% | BO55: =IF(AS55-AC55>0,1,0) -> 1 | BP55: =IF(BO55+AU55=2,1,0) -> 0 | BQ55: =IF(C54>0,1,0) -> 0 | BR55: =A55 -> 44809 | BS55: =IF(ABS(C55)>0,IF(BQ55>0,BS54*(1+(C55-E55)),BS54*(1-(C55-E55))),BS54) -> 95.15709594 | BU55: =BU54*(1+C55) -> 1900-04-04T06:44:13.541 | BX55: =IF(X55=0,IF(BM55>0,BX54*(1+(C55-E55)),BX54*(1-(C55-E55))),BX54) -> 104.7456807 | BY55: 0 | BZ55: 0 | CA55: =IF(Y55=0,IF(BM55>0,CA54*(1+(C55-E55)),CA54*(1-(C55-E55))),CA54) -> 104.7456807 | CB55: =IF(Y55=0,IF(BM55>0,CA55/CA54-1,CA55/CA54-1),"") ->  | CE55: =SUM($CD$30:CD55)/COUNT($CD$30:CD55) -> 0.5454545455 | CF55: 102.3774349 | CG55: =IF(X55=0,IF(BN55>0,CG54*(1+(C55-E55)),CG54*(1-(C55-E55))),CG54) -> 106.8472271 | CI55: =IF(X55=0,IF(CG55/CG54-1>=0,1,0),"") ->  | CJ55: =IF(Y55=0,IF(BN55>0,CJ54*(1+(C55-E55)),CJ54*(1-(C55-E55))),CJ54) -> 106.8472271 | CK55: =IF(Y55=0,IF(BN55>0,CJ55/CJ54-1,CJ55/CJ54-1),"") ->  | CM55: =SUM($CL$30:CL55)/COUNT($CL$30:CL55) -> 0.6363636364 | CN55: =IF(CK55="","",CK55-CC55) ->  | CO55: =COUNT($CN$32:CN55) -> 2100% | CR55: =SUM($CP$32:CP55) -> 2.00 | CS55: =SUM($CQ$32:CQ55) -> 1.00 | CT55: 0.07 | CU55: 0.07 | CV55: 10% | CW55: 0.05 | CX55: 4.8% | CY55: 59.9% | CZ55: 27.5% | DB55: =IF(Y55=0,IF(CJ55/CJ54-1>=0,1,0),"") ->  | DC55: =(CG55-BX55)/100 -> 0.02101546431 | DD55: =(CJ55-CA55)/100 -> 0.02101546431
A56: =A6076 -> 2022-09-06 | B56: 1 | C56: =C6076/C6075-1 -> -0.410% | D56: =D6076/C6075-1 -> 0.17% | E56: 0.2% | F56: =E6076 -> 26.91 | G56: =F6076/F6075-1 -> -0.12% | H56: =G6076/G6075-1 -> 0.02% | I56: =H6076/H6075-1 -> 0.23% | K56: 2022-09-06 | L56: 3.35 | M56: 3.08 | N56: 3.91 | O56: 3.49 | P56: =L56 -> 3.35 | Q56: 2022-09-06 | R56: 3.91 | S56: =IF(P56>$Q$29,1,0) -> 1 | U56: =IF($A$19=1,T56,0) -> 0 | W56: 1 | X56: =IF($C$19=1,W56,0) -> 1 | Y56: 1 | AB56: 0 | AC56: =$EU$9+$EU$10*C55+$EU$11*I56+$EU$12*G56+$EU$13*H56+$EU$14*C55^2+$EU$15*I55+$EU$16*H55+$EU$17*B56+$EU$18*B56*I56+$EU$19*B56*I55+$EU$20*B56*H56+$EU$21*B56*H55+$EU$22*(F55-F54)+$EU$23*(F55-F54)*H55+$EU$24*(F55-F54)*H55*B56 -> 0.10% | AD56: 1 | AE56: 0 | AF56: 0 | AG56: 1 | AH56: 1 | AI56: 1 | AJ56: 0 | AK56: 0 | AL56: 0 | AN56: =SUM($AM$32:AM56)/COUNT($AM$32:AM56) -> 0.5714285714 | AP56: =SUM($AO$32:AO56)/COUNT($AO$32:AO56) -> 57.1% | AQ56: 57.1% | AR56: 56.0% | AS56: =IF($B$19=1,IF(S56=1,$FA$9+$FA$10*C55+$FA$11*I56+$FA$12*G56+$FA$13*H56+$FA$14*C55^2+$FA$15*I55+$FA$16*H55+$FA$17*B56+$FA$18*B56*I56+$FA$19*B56*I55+$FA$20*B56*H56+$FA$21*B56*H55+$FA$22*(F55-F54)+$FA$23*(F55-F54)*H55+$FA$24*(F55-F54)*H55*B56+$FA$25*P55+$FA$26*P55*I56+$FA$27*P55*G56+$FA$28*P55*H56+$FA$29*P55*(F55-F54)+$FA$30*P55*(F55^2-F54^2),AC56),$FA$9+$FA$10*C55+$FA$11*I56+$FA$12*G56+$FA$13*H56+$FA$14*C55^2+$FA$15*I55+$FA$16*H55+$FA$17*B56+$FA$18*B56*I56+$FA$19*B56*I55+$FA$20*B56*H56+$FA$21*B56*H55+$FA$22*(F55-F54)+$FA$23*(F55-F54)*H55+$FA$24*(F55-F54)*H55*B56+$FA$25*P55+$FA$26*P55*I56+$FA$27*P55*G56+$FA$28*P55*H56+$FA$29*P55*(F55-F54)+$FA$30*P55*(F55^2-F54^2)) -> 0.12% | AT56: 0.0% | AU56: 1 | AV56: 0 | AW56: 0 | AX56: 1 | AY56: 1 | AZ56: 1 | BA56: 0 | BB56: 0 | BC56: 0 | BE56: =SUM($BD$32:BD56)/COUNT($BD$32:BD56) -> 0.6666666667 | BG56: =IF(Y56=0,CL56-CD56,"") ->  | BJ56: =SUM($BF$32:BF56)/COUNT($BF$32:BF56) -> 66.7% | BK56: =BJ56-AP56 -> 9.5% | BM56: =IF(AC56>0,1,0) -> 100.0% | BN56: =IF(AS56>0,1,0) -> 100.00% | BO56: =IF(AS56-AC56>0,1,0) -> 1 | BP56: =IF(BO56+AU56=2,1,0) -> 1 | BQ56: =IF(C55>0,1,0) -> 0 | BR56: =A56 -> 44810 | BS56: =IF(ABS(C56)>0,IF(BQ56>0,BS55*(1+(C56-E56)),BS55*(1-(C56-E56))),BS55) -> 95.70753503 | BT56: 0.005784530077 | BU56: =BU55*(1+C56) -> 1900-04-03T21:22:22.137 | BV56: =BU56/BU55-1 -> -0.004095039574 | BW56: 0 | BX56: =IF(X56=0,IF(BM56>0,BX55*(1+(C56-E56)),BX55*(1-(C56-E56))),BX55) -> 104.7456807 | BY56: 0 | BZ56: 0 | CA56: =IF(Y56=0,IF(BM56>0,CA55*(1+(C56-E56)),CA55*(1-(C56-E56))),CA55) -> 104.7456807 | CB56: =IF(Y56=0,IF(BM56>0,CA56/CA55-1,CA56/CA55-1),"") ->  | CC56: =CA56/CA55-1 -> 0 | CE56: =SUM($CD$30:CD56)/COUNT($CD$30:CD56) -> 0.5454545455 | CF56: 102.3774349 | CG56: =IF(X56=0,IF(BN56>0,CG55*(1+(C56-E56)),CG55*(1-(C56-E56))),CG55) -> 106.8472271 | CI56: =IF(X56=0,IF(CG56/CG55-1>=0,1,0),"") ->  | CJ56: =IF(Y56=0,IF(BN56>0,CJ55*(1+(C56-E56)),CJ55*(1-(C56-E56))),CJ55) -> 106.8472271 | CK56: =IF(Y56=0,IF(BN56>0,CJ56/CJ55-1,CJ56/CJ55-1),"") ->  | CM56: =SUM($CL$30:CL56)/COUNT($CL$30:CL56) -> 0.6363636364 | CN56: =IF(CK56="","",CK56-CC56) ->  | CO56: =COUNT($CN$32:CN56) -> 2100% | CR56: =SUM($CP$32:CP56) -> 2.00 | CS56: =SUM($CQ$32:CQ56) -> 1.00 | CT56: 0.07 | CU56: 0.07 | CV56: 10% | CW56: 0.05 | CX56: 4.8% | CY56: 59.9% | CZ56: 27.5% | DB56: =IF(Y56=0,IF(CJ56/CJ55-1>=0,1,0),"") ->  | DC56: =(CG56-BX56)/100 -> 0.02101546431 | DD56: =(CJ56-CA56)/100 -> 0.02101546431
A57: =A6077 -> 2022-09-07 | B57: 0 | C57: =C6077/C6076-1 -> 1.834% | D57: =D6077/C6076-1 -> 0.03% | E57: 0.0% | F57: =E6077 -> 24.64 | G57: =F6077/F6076-1 -> -0.83% | H57: =G6077/G6076-1 -> -0.71% | I57: =H6077/H6076-1 -> -0.29% | K57: 2022-09-07 | L57: 2.67 | M57: 2.63 | N57: 3.14 | O57: 2.88 | P57: 2.63 | Q57: 2022-09-07 | R57: 3.14 | S57: =IF(P57>$Q$29,1,0) -> 1 | U57: =IF($A$19=1,T57,0) -> 0 | Y57: 0 | AB57: -1 | AC57: =$EU$9+$EU$10*C56+$EU$11*I57+$EU$12*G57+$EU$13*H57+$EU$14*C56^2+$EU$15*I56+$EU$16*H56+$EU$17*B57+$EU$18*B57*I57+$EU$19*B57*I56+$EU$20*B57*H57+$EU$21*B57*H56+$EU$22*(F56-F55)+$EU$23*(F56-F55)*H56+$EU$24*(F56-F55)*H56*B57 -> -0.06% | AD57: 0 | AE57: 1 | AF57: 1 | AG57: 0 | AH57: 1 | AI57: 1 | AJ57: 0 | AK57: 0 | AL57: 0 | AM57: 0 | AN57: =SUM($AM$32:AM57)/COUNT($AM$32:AM57) -> 0.5454545455 | AO57: 0 | AP57: =SUM($AO$32:AO57)/COUNT($AO$32:AO57) -> 54.5% | AQ57: 54.5% | AR57: 53.8% | AS57: =IF($B$19=1,IF(S57=1,$FA$9+$FA$10*C56+$FA$11*I57+$FA$12*G57+$FA$13*H57+$FA$14*C56^2+$FA$15*I56+$FA$16*H56+$FA$17*B57+$FA$18*B57*I57+$FA$19*B57*I56+$FA$20*B57*H57+$FA$21*B57*H56+$FA$22*(F56-F55)+$FA$23*(F56-F55)*H56+$FA$24*(F56-F55)*H56*B57+$FA$25*P56+$FA$26*P56*I57+$FA$27*P56*G57+$FA$28*P56*H57+$FA$29*P56*(F56-F55)+$FA$30*P56*(F56^2-F55^2),AC57),$FA$9+$FA$10*C56+$FA$11*I57+$FA$12*G57+$FA$13*H57+$FA$14*C56^2+$FA$15*I56+$FA$16*H56+$FA$17*B57+$FA$18*B57*I57+$FA$19*B57*I56+$FA$20*B57*H57+$FA$21*B57*H56+$FA$22*(F56-F55)+$FA$23*(F56-F55)*H56+$FA$24*(F56-F55)*H56*B57+$FA$25*P56+$FA$26*P56*I57+$FA$27*P56*G57+$FA$28*P56*H57+$FA$29*P56*(F56-F55)+$FA$30*P56*(F56^2-F55^2)) -> 0.00% | AT57: -0.1% | AU57: 1 | AV57: 0 | AW57: 1 | AX57: 0 | AY57: 2 | AZ57: 0 | BA57: 1 | BB57: 0 | BC57: 1 | BD57: 1 | BE57: =SUM($BD$32:BD57)/COUNT($BD$32:BD57) -> 0.6818181818 | BF57: 1 | BG57: =IF(Y57=0,CL57-CD57,"") -> 1 | BH57: 1 | BI57: 0 | BJ57: =SUM($BF$32:BF57)/COUNT($BF$32:BF57) -> 68.2% | BK57: =BJ57-AP57 -> 13.6% | BM57: =IF(AC57>0,1,0) -> 0.0% | BN57: =IF(AS57>0,1,0) -> 100.00% | BO57: =IF(AS57-AC57>0,1,0) -> 1 | BP57: =IF(BO57+AU57=2,1,0) -> 1 | BQ57: =IF(C56>0,1,0) -> 0 | BR57: =A57 -> 44811 | BS57: =IF(ABS(C57)>0,IF(BQ57>0,BS56*(1+(C57-E57)),BS56*(1-(C57-E57))),BS56) -> 93.98253221 | BT57: -0.01802368872 | BU57: =BU56*(1+C57) -> 1900-04-05T15:08:31.361 | BV57: 0.01834097114 | BW57: 1 | BX57: =IF(X57=0,IF(BM57>0,BX56*(1+(C57-E57)),BX56*(1-(C57-E57))),BX56) -> 102.8577771 | BY57: -0.01802368872 | BZ57: 0 | CA57: =IF(Y57=0,IF(BM57>0,CA56*(1+(C57-E57)),CA56*(1-(C57-E57))),CA56) -> 102.8577771 | CB57: =IF(Y57=0,IF(BM57>0,CA57/CA56-1,CA57/CA56-1),"") -> -0.01802368872 | CC57: =CA57/CA56-1 -> -0.01802368872 | CD57: 0 | CE57: =SUM($CD$30:CD57)/COUNT($CD$30:CD57) -> 0.5217391304 | CF57: 101.4548254 | CG57: =IF(X57=0,IF(BN57>0,CG56*(1+(C57-E57)),CG56*(1-(C57-E57))),CG56) -> 108.7730083 | CH57: 2% | CI57: =IF(X57=0,IF(CG57/CG56-1>=0,1,0),"") -> 1 | CJ57: =IF(Y57=0,IF(BN57>0,CJ56*(1+(C57-E57)),CJ56*(1-(C57-E57))),CJ56) -> 108.7730083 | CK57: =IF(Y57=0,IF(BN57>0,CJ57/CJ56-1,CJ57/CJ56-1),"") -> 0.01802368872 | CL57: 1 | CM57: =SUM($CL$30:CL57)/COUNT($CL$30:CL57) -> 0.652173913 | CN57: =IF(CK57="","",CK57-CC57) -> 0.03604737743 | CO57: =COUNT($CN$32:CN57) -> 2200% | CP57: 100% | CQ57: 0 | CR57: =SUM($CP$32:CP57) -> 3.00 | CS57: =SUM($CQ$32:CQ57) -> 1.00 | CT57: 0.09 | CU57: 0.08 | CV57: 14% | CW57: 0.05 | CX57: 9.1% | CY57: 104.9% | CZ57: 14.7% | DA57: 0.01802368872 | DB57: =IF(Y57=0,IF(CJ57/CJ56-1>=0,1,0),"") -> 1 | DC57: =(CG57-BX57)/100 -> 0.05915231135 | DD57: =(CJ57-CA57)/100 -> 0.05915231135
A58: =A6078 -> 2022-09-08 | B58: 0 | C58: =C6078/C6077-1 -> 0.661% | D58: =D6078/C6077-1 -> -0.50% | E58: -0.5% | F58: =E6078 -> 23.61 | G58: =F6078/F6077-1 -> -1.00% | H58: =G6078/G6077-1 -> 2.31% | I58: =H6078/H6077-1 -> 0.50% | K58: 2022-09-08 | L58: 1.98 | M58: 1.96 | N58: 2.75 | O58: 2.36 | P58: 1.96 | Q58: 2022-09-08 | R58: 2.75 | S58: =IF(P58>$Q$29,1,0) -> 0 | U58: =IF($A$19=1,T58,0) -> 0 | Y58: 0 | AB58: 0 | AC58: =$EU$9+$EU$10*C57+$EU$11*I58+$EU$12*G58+$EU$13*H58+$EU$14*C57^2+$EU$15*I57+$EU$16*H57+$EU$17*B58+$EU$18*B58*I58+$EU$19*B58*I57+$EU$20*B58*H58+$EU$21*B58*H57+$EU$22*(F57-F56)+$EU$23*(F57-F56)*H57+$EU$24*(F57-F56)*H57*B58 -> -0.27% | AD58: 0 | AE58: 1 | AF58: 1 | AG58: 0 | AH58: 1 | AI58: 1 | AJ58: 0 | AK58: 0 | AL58: 0 | AM58: 0 | AN58: =SUM($AM$32:AM58)/COUNT($AM$32:AM58) -> 0.5217391304 | AO58: 0 | AP58: =SUM($AO$32:AO58)/COUNT($AO$32:AO58) -> 52.2% | AQ58: 52.2% | AR58: 51.9% | AS58: =IF($B$19=1,IF(S58=1,$FA$9+$FA$10*C57+$FA$11*I58+$FA$12*G58+$FA$13*H58+$FA$14*C57^2+$FA$15*I57+$FA$16*H57+$FA$17*B58+$FA$18*B58*I58+$FA$19*B58*I57+$FA$20*B58*H58+$FA$21*B58*H57+$FA$22*(F57-F56)+$FA$23*(F57-F56)*H57+$FA$24*(F57-F56)*H57*B58+$FA$25*P57+$FA$26*P57*I58+$FA$27*P57*G58+$FA$28*P57*H58+$FA$29*P57*(F57-F56)+$FA$30*P57*(F57^2-F56^2),AC58),$FA$9+$FA$10*C57+$FA$11*I58+$FA$12*G58+$FA$13*H58+$FA$14*C57^2+$FA$15*I57+$FA$16*H57+$FA$17*B58+$FA$18*B58*I58+$FA$19*B58*I57+$FA$20*B58*H58+$FA$21*B58*H57+$FA$22*(F57-F56)+$FA$23*(F57-F56)*H57+$FA$24*(F57-F56)*H57*B58+$FA$25*P57+$FA$26*P57*I58+$FA$27*P57*G58+$FA$28*P57*H58+$FA$29*P57*(F57-F56)+$FA$30*P57*(F57^2-F56^2)) -> -0.25% | AT58: -0.0% | AU58: 0 | AV58: 1 | AW58: 1 | AX58: 0 | AY58: 1 | AZ58: 1 | BA58: 0 | BB58: 0 | BC58: 0 | BD58: 0 | BE58: =SUM($BD$32:BD58)/COUNT($BD$32:BD58) -> 0.652173913 | BF58: 0 | BG58: =IF(Y58=0,CL58-CD58,"") -> 0 | BH58: 0 | BI58: 0 | BJ58: =SUM($BF$32:BF58)/COUNT($BF$32:BF58) -> 65.2% | BK58: =BJ58-AP58 -> 13.0% | BM58: =IF(AC58>0,1,0) -> 0.0% | BN58: =IF(AS58>0,1,0) -> 0.00% | BO58: =IF(AS58-AC58>0,1,0) -> 1 | BP58: =IF(BO58+AU58=2,1,0) -> 0 | BQ58: =IF(C57>0,1,0) -> 1 | BR58: =A58 -> 44812 | BS58: =IF(ABS(C58)>0,IF(BQ58>0,BS57*(1+(C58-E58)),BS57*(1-(C58-E58))),BS57) -> 95.07446543 | BT58: 0.01161846995 | BU58: =BU57*(1+C58) -> 1900-04-06T06:28:24.083 | BV58: 0.006610768693 | BW58: 1 | BX58: =IF(X58=0,IF(BM58>0,BX57*(1+(C58-E58)),BX57*(1-(C58-E58))),BX57) -> 101.6627271 | BY58: -0.01161846995 | BZ58: 0 | CA58: =IF(Y58=0,IF(BM58>0,CA57*(1+(C58-E58)),CA57*(1-(C58-E58))),CA57) -> 101.6627271 | CB58: =IF(Y58=0,IF(BM58>0,CA58/CA57-1,CA58/CA57-1),"") -> -0.01161846995 | CC58: =CA58/CA57-1 -> -0.01161846995 | CD58: 0 | CE58: =SUM($CD$30:CD58)/COUNT($CD$30:CD58) -> 0.5 | CF58: 100.8654505 | CG58: =IF(X58=0,IF(BN58>0,CG57*(1+(C58-E58)),CG57*(1-(C58-E58))),CG57) -> 107.5092323 | CH58: -1% | CI58: =IF(X58=0,IF(CG58/CG57-1>=0,1,0),"") -> 0 | CJ58: =IF(Y58=0,IF(BN58>0,CJ57*(1+(C58-E58)),CJ57*(1-(C58-E58))),CJ57) -> 107.5092323 | CK58: =IF(Y58=0,IF(BN58>0,CJ58/CJ57-1,CJ58/CJ57-1),"") -> -0.01161846995 | CL58: 0 | CM58: =SUM($CL$30:CL58)/COUNT($CL$30:CL58) -> 0.625 | CN58: =IF(CK58="","",CK58-CC58) -> -1.110223025e-16 | CO58: =COUNT($CN$32:CN58) -> 2300% | CP58: 0% | CQ58: 1.00 | CR58: =SUM($CP$32:CP58) -> 3.00 | CS58: =SUM($CQ$32:CQ58) -> 2.00 | CT58: 0.11 | CU58: 0.10 | CV58: 13% | CW58: 0.09 | CX58: 4.3% | CY58: 47.4% | CZ58: 31.8% | DA58: -0.01161846995 | DB58: =IF(Y58=0,IF(CJ58/CJ57-1>=0,1,0),"") -> 0 | DC58: =(CG58-BX58)/100 -> 0.058465052 | DD58: =(CJ58-CA58)/100 -> 0.058465052
A59: =A6079 -> 2022-09-09 | B59: 0 | C59: =C6079/C6078-1 -> 1.527% | D59: =D6079/C6078-1 -> 0.42% | E59: 0.4% | F59: =E6079 -> 22.79 | G59: =F6079/F6078-1 -> 2.69% | H59: =G6079/G6078-1 -> 0.53% | I59: =H6079/H6078-1 -> 1.40% | K59: 2022-09-09 | L59: 2.66 | M59: 2.60 | N59: 3.04 | O59: 2.82 | P59: 2.60 | Q59: 2022-09-09 | R59: 3.04 | S59: =IF(P59>$Q$29,1,0) -> 1 | U59: =IF($A$19=1,T59,0) -> 0 | Y59: 0 | AB59: 0 | AC59: =$EU$9+$EU$10*C58+$EU$11*I59+$EU$12*G59+$EU$13*H59+$EU$14*C58^2+$EU$15*I58+$EU$16*H58+$EU$17*B59+$EU$18*B59*I59+$EU$19*B59*I58+$EU$20*B59*H59+$EU$21*B59*H58+$EU$22*(F58-F57)+$EU$23*(F58-F57)*H58+$EU$24*(F58-F57)*H58*B59 -> 0.68% | AD59: 1 | AE59: 0 | AF59: 1 | AG59: 0 | AH59: 2 | AI59: 0 | AJ59: 1 | AK59: 0 | AL59: 1 | AM59: 1 | AN59: =SUM($AM$32:AM59)/COUNT($AM$32:AM59) -> 0.5416666667 | AO59: 1 | AP59: =SUM($AO$32:AO59)/COUNT($AO$32:AO59) -> 54.2% | AQ59: 54.2% | AR59: 53.6% | AS59: =IF($B$19=1,IF(S59=1,$FA$9+$FA$10*C58+$FA$11*I59+$FA$12*G59+$FA$13*H59+$FA$14*C58^2+$FA$15*I58+$FA$16*H58+$FA$17*B59+$FA$18*B59*I59+$FA$19*B59*I58+$FA$20*B59*H59+$FA$21*B59*H58+$FA$22*(F58-F57)+$FA$23*(F58-F57)*H58+$FA$24*(F58-F57)*H58*B59+$FA$25*P58+$FA$26*P58*I59+$FA$27*P58*G59+$FA$28*P58*H59+$FA$29*P58*(F58-F57)+$FA$30*P58*(F58^2-F57^2),AC59),$FA$9+$FA$10*C58+$FA$11*I59+$FA$12*G59+$FA$13*H59+$FA$14*C58^2+$FA$15*I58+$FA$16*H58+$FA$17*B59+$FA$18*B59*I59+$FA$19*B59*I58+$FA$20*B59*H59+$FA$21*B59*H58+$FA$22*(F58-F57)+$FA$23*(F58-F57)*H58+$FA$24*(F58-F57)*H58*B59+$FA$25*P58+$FA$26*P58*I59+$FA$27*P58*G59+$FA$28*P58*H59+$FA$29*P58*(F58-F57)+$FA$30*P58*(F58^2-F57^2)) -> 1.09% | AT59: 0.4% | AU59: 1 | AV59: 0 | AW59: 1 | AX59: 0 | AY59: 2 | AZ59: 0 | BA59: 1 | BB59: 0 | BC59: 1 | BD59: 1 | BE59: =SUM($BD$32:BD59)/COUNT($BD$32:BD59) -> 0.6666666667 | BF59: 1 | BG59: =IF(Y59=0,CL59-CD59,"") -> 0 | BH59: 0 | BI59: 0 | BJ59: =SUM($BF$32:BF59)/COUNT($BF$32:BF59) -> 66.7% | BK59: =BJ59-AP59 -> 12.5% | BM59: =IF(AC59>0,1,0) -> 100.0% | BN59: =IF(AS59>0,1,0) -> 100.00% | BO59: =IF(AS59-AC59>0,1,0) -> 1 | BP59: =IF(BO59+AU59=2,1,0) -> 1 | BQ59: =IF(C58>0,1,0) -> 1 | BR59: =A59 -> 44813 | BS59: =IF(ABS(C59)>0,IF(BQ59>0,BS58*(1+(C59-E59)),BS58*(1-(C59-E59))),BS58) -> 96.12863867 | BT59: 0.01108786924 | BU59: =BU58*(1+C59) -> 1900-04-07T18:07:26.566 | BV59: 0.01527140568 | BW59: 1 | BX59: =IF(X59=0,IF(BM59>0,BX58*(1+(C59-E59)),BX58*(1-(C59-E59))),BX58) -> 102.7899502 | BY59: 0.01108786924 | BZ59: 1 | CA59: =IF(Y59=0,IF(BM59>0,CA58*(1+(C59-E59)),CA58*(1-(C59-E59))),CA58) -> 102.7899502 | CB59: =IF(Y59=0,IF(BM59>0,CA59/CA58-1,CA59/CA58-1),"") -> 0.01108786924 | CC59: =CA59/CA58-1 -> 0.01108786924 | CD59: 1 | CE59: =SUM($CD$30:CD59)/COUNT($CD$30:CD59) -> 0.52 | CF59: 101.424642 | CG59: =IF(X59=0,IF(BN59>0,CG58*(1+(C59-E59)),CG58*(1-(C59-E59))),CG58) -> 108.7012806 | CH59: 1% | CI59: =IF(X59=0,IF(CG59/CG58-1>=0,1,0),"") -> 1 | CJ59: =IF(Y59=0,IF(BN59>0,CJ58*(1+(C59-E59)),CJ58*(1-(C59-E59))),CJ58) -> 108.7012806 | CK59: =IF(Y59=0,IF(BN59>0,CJ59/CJ58-1,CJ59/CJ58-1),"") -> 0.01108786924 | CL59: 1 | CM59: =SUM($CL$30:CL59)/COUNT($CL$30:CL59) -> 0.64 | CN59: =IF(CK59="","",CK59-CC59) -> 0 | CO59: =COUNT($CN$32:CN59) -> 2400% | CP59: 0% | CQ59: 0 | CR59: =SUM($CP$32:CP59) -> 3.00 | CS59: =SUM($CQ$32:CQ59) -> 2.00 | CT59: 0.10 | CU59: 0.09 | CV59: 13% | CW59: 0.08 | CX59: 4.2% | CY59: 47.2% | CZ59: 31.8% | DA59: 0.01108786924 | DB59: =IF(Y59=0,IF(CJ59/CJ58-1>=0,1,0),"") -> 1 | DC59: =(CG59-BX59)/100 -> 0.05911330485 | DD59: =(CJ59-CA59)/100 -> 0.05911330485
A60: =A6080 -> 2022-09-12 | B60: 1 | C60: =C6080/C6079-1 -> 1.058% | D60: =D6080/C6079-1 -> 0.40% | E60: 0.4% | F60: =E6080 -> 23.87 | G60: =F6080/F6079-1 -> 0.00% | H60: =G6080/G6079-1 -> 1.16% | I60: =H6080/H6079-1 -> 2.09% | K60: 2022-09-12 | L60: 2.50 | M60: 2.64 | N60: 3.14 | O60: 2.89 | P60: 2.64 | Q60: 2022-09-12 | R60: 3.14 | S60: =IF(P60>$Q$29,1,0) -> 1 | U60: =IF($A$19=1,T60,0) -> 0 | W60: 1 | X60: =IF($C$19=1,W60,0) -> 1 | Y60: 1 | AA60: 1 | AB60: 0 | AC60: =$EU$9+$EU$10*C59+$EU$11*I60+$EU$12*G60+$EU$13*H60+$EU$14*C59^2+$EU$15*I59+$EU$16*H59+$EU$17*B60+$EU$18*B60*I60+$EU$19*B60*I59+$EU$20*B60*H60+$EU$21*B60*H59+$EU$22*(F59-F58)+$EU$23*(F59-F58)*H59+$EU$24*(F59-F58)*H59*B60 -> 0.87% | AD60: 1 | AE60: 0 | AF60: 1 | AG60: 0 | AH60: 2 | AI60: 0 | AJ60: 1 | AK60: 0 | AL60: 1 | AN60: =SUM($AM$32:AM60)/COUNT($AM$32:AM60) -> 0.5416666667 | AP60: =SUM($AO$32:AO60)/COUNT($AO$32:AO60) -> 54.2% | AQ60: 54.2% | AR60: 55.2% | AS60: =IF($B$19=1,IF(S60=1,$FA$9+$FA$10*C59+$FA$11*I60+$FA$12*G60+$FA$13*H60+$FA$14*C59^2+$FA$15*I59+$FA$16*H59+$FA$17*B60+$FA$18*B60*I60+$FA$19*B60*I59+$FA$20*B60*H60+$FA$21*B60*H59+$FA$22*(F59-F58)+$FA$23*(F59-F58)*H59+$FA$24*(F59-F58)*H59*B60+$FA$25*P59+$FA$26*P59*I60+$FA$27*P59*G60+$FA$28*P59*H60+$FA$29*P59*(F59-F58)+$FA$30*P59*(F59^2-F58^2),AC60),$FA$9+$FA$10*C59+$FA$11*I60+$FA$12*G60+$FA$13*H60+$FA$14*C59^2+$FA$15*I59+$FA$16*H59+$FA$17*B60+$FA$18*B60*I60+$FA$19*B60*I59+$FA$20*B60*H60+$FA$21*B60*H59+$FA$22*(F59-F58)+$FA$23*(F59-F58)*H59+$FA$24*(F59-F58)*H59*B60+$FA$25*P59+$FA$26*P59*I60+$FA$27*P59*G60+$FA$28*P59*H60+$FA$29*P59*(F59-F58)+$FA$30*P59*(F59^2-F58^2)) -> 0.88% | AT60: 0.0% | AU60: 1 | AV60: 0 | AW60: 1 | AX60: 0 | AY60: 2 | AZ60: 0 | BA60: 1 | BB60: 0 | BC60: 1 | BE60: =SUM($BD$32:BD60)/COUNT($BD$32:BD60) -> 0.6666666667 | BG60: =IF(Y60=0,CL60-CD60,"") ->  | BJ60: =SUM($BF$32:BF60)/COUNT($BF$32:BF60) -> 66.7% | BK60: =BJ60-AP60 -> 12.5% | BM60: =IF(AC60>0,1,0) -> 100.0% | BN60: =IF(AS60>0,1,0) -> 100.00% | BO60: =IF(AS60-AC60>0,1,0) -> 1 | BP60: =IF(BO60+AU60=2,1,0) -> 1 | BQ60: =IF(C59>0,1,0) -> 1 | BR60: =A60 -> 44816 | BS60: =IF(ABS(C60)>0,IF(BQ60>0,BS59*(1+(C60-E60)),BS59*(1-(C60-E60))),BS59) -> 96.76061612 | BT60: 0.006574288974 | BU60: =BU59*(1+C60) -> 1900-04-08T19:12:36.208 | BV60: 0.01058426104 | BW60: 1 | BX60: =IF(X60=0,IF(BM60>0,BX59*(1+(C60-E60)),BX59*(1-(C60-E60))),BX59) -> 102.7899502 | CA60: =IF(Y60=0,IF(BM60>0,CA59*(1+(C60-E60)),CA59*(1-(C60-E60))),CA59) -> 102.7899502 | CB60: =IF(Y60=0,IF(BM60>0,CA60/CA59-1,CA60/CA59-1),"") ->  | CE60: =SUM($CD$30:CD60)/COUNT($CD$30:CD60) -> 0.52 | CF60: 101.424642 | CG60: =IF(X60=0,IF(BN60>0,CG59*(1+(C60-E60)),CG59*(1-(C60-E60))),CG59) -> 108.7012806 | CI60: =IF(X60=0,IF(CG60/CG59-1>=0,1,0),"") ->  | CJ60: =IF(Y60=0,IF(BN60>0,CJ59*(1+(C60-E60)),CJ59*(1-(C60-E60))),CJ59) -> 108.7012806 | CK60: =IF(Y60=0,IF(BN60>0,CJ60/CJ59-1,CJ60/CJ59-1),"") ->  | CM60: =SUM($CL$30:CL60)/COUNT($CL$30:CL60) -> 0.64 | CN60: =IF(CK60="","",CK60-CC60) ->  | CO60: =COUNT($CN$32:CN60) -> 2400% | CR60: =SUM($CP$32:CP60) -> 3.00 | CS60: =SUM($CQ$32:CQ60) -> 2.00 | CT60: 0.10 | CU60: 0.09 | CV60: 13% | CW60: 0.08 | CX60: 4.2% | CY60: 47.2% | CZ60: 31.8% | DB60: =IF(Y60=0,IF(CJ60/CJ59-1>=0,1,0),"") ->  | DC60: =(CG60-BX60)/100 -> 0.05911330485 | DD60: =(CJ60-CA60)/100 -> 0.05911330485
A61: =A6081 -> 2022-09-13 | B61: 0 | C61: =C6081/C6080-1 -> -4.324% | D61: =D6081/C6080-1 -> -1.78% | E61: -1.8% | F61: =E6081 -> 27.27 | G61: =F6081/F6080-1 -> -0.18% | H61: =G6081/G6080-1 -> 0.25% | I61: =H6081/H6080-1 -> -1.84% | K61: 2022-09-13 | L61: 3.31 | M61: 3.37 | N61: 3.48 | O61: 3.42 | P61: 3.37 | Q61: 2022-09-13 | R61: 3.48 | S61: =IF(P61>$Q$29,1,0) -> 1 | U61: =IF($A$19=1,T61,0) -> 0 | Y61: 0 | AB61: 0 | AC61: =$EU$9+$EU$10*C60+$EU$11*I61+$EU$12*G61+$EU$13*H61+$EU$14*C60^2+$EU$15*I60+$EU$16*H60+$EU$17*B61+$EU$18*B61*I61+$EU$19*B61*I60+$EU$20*B61*H61+$EU$21*B61*H60+$EU$22*(F60-F59)+$EU$23*(F60-F59)*H60+$EU$24*(F60-F59)*H60*B61 -> -0.95% | AD61: 0 | AE61: 1 | AF61: 0 | AG61: 1 | AH61: 0 | AI61: 2 | AJ61: 0 | AK61: 1 | AL61: 1 | AM61: 1 | AN61: =SUM($AM$32:AM61)/COUNT($AM$32:AM61) -> 0.56 | AO61: 1 | AP61: =SUM($AO$32:AO61)/COUNT($AO$32:AO61) -> 56.0% | AQ61: 56.0% | AR61: 56.7% | AS61: =IF($B$19=1,IF(S61=1,$FA$9+$FA$10*C60+$FA$11*I61+$FA$12*G61+$FA$13*H61+$FA$14*C60^2+$FA$15*I60+$FA$16*H60+$FA$17*B61+$FA$18*B61*I61+$FA$19*B61*I60+$FA$20*B61*H61+$FA$21*B61*H60+$FA$22*(F60-F59)+$FA$23*(F60-F59)*H60+$FA$24*(F60-F59)*H60*B61+$FA$25*P60+$FA$26*P60*I61+$FA$27*P60*G61+$FA$28*P60*H61+$FA$29*P60*(F60-F59)+$FA$30*P60*(F60^2-F59^2),AC61),$FA$9+$FA$10*C60+$FA$11*I61+$FA$12*G61+$FA$13*H61+$FA$14*C60^2+$FA$15*I60+$FA$16*H60+$FA$17*B61+$FA$18*B61*I61+$FA$19*B61*I60+$FA$20*B61*H61+$FA$21*B61*H60+$FA$22*(F60-F59)+$FA$23*(F60-F59)*H60+$FA$24*(F60-F59)*H60*B61+$FA$25*P60+$FA$26*P60*I61+$FA$27*P60*G61+$FA$28*P60*H61+$FA$29*P60*(F60-F59)+$FA$30*P60*(F60^2-F59^2)) -> -0.95% | AT61: 0.0% | AU61: 0 | AV61: 1 | AW61: 0 | AX61: 1 | AY61: 0 | AZ61: 2 | BA61: 0 | BB61: 1 | BC61: 1 | BD61: 1 | BE61: =SUM($BD$32:BD61)/COUNT($BD$32:BD61) -> 0.68 | BF61: 1 | BG61: =IF(Y61=0,CL61-CD61,"") -> 0 | BH61: 0 | BI61: 0 | BJ61: =SUM($BF$32:BF61)/COUNT($BF$32:BF61) -> 68.0% | BK61: =BJ61-AP61 -> 12.0% | BM61: =IF(AC61>0,1,0) -> 0.0% | BN61: =IF(AS61>0,1,0) -> 0.00% | BO61: =IF(AS61-AC61>0,1,0) -> 0 | BP61: =IF(BO61+AU61=2,1,0) -> 0 | BQ61: =IF(C60>0,1,0) -> 1 | BR61: =A61 -> 44817 | BS61: =IF(ABS(C61)>0,IF(BQ61>0,BS60*(1+(C61-E61)),BS60*(1-(C61-E61))),BS60) -> 94.30229417 | BT61: -0.02540622468 | BU61: =BU60*(1+C61) -> 1900-04-04T11:38:57.868 | BV61: -0.04323656278 | BW61: 0 | BX61: =IF(X61=0,IF(BM61>0,BX60*(1+(C61-E61)),BX60*(1-(C61-E61))),BX60) -> 105.4014547 | BY61: 0.02540622468 | BZ61: 1 | CA61: =IF(Y61=0,IF(BM61>0,CA60*(1+(C61-E61)),CA60*(1-(C61-E61))),CA60) -> 105.4014547 | CB61: =IF(Y61=0,IF(BM61>0,CA61/CA60-1,CA61/CA60-1),"") -> 0.02540622468 | CC61: =CA61/CA60-1 -> 0.02540622468 | CD61: 1 | CE61: =SUM($CD$30:CD61)/COUNT($CD$30:CD61) -> 0.5384615385 | CF61: 102.7130506 | CG61: =IF(X61=0,IF(BN61>0,CG60*(1+(C61-E61)),CG60*(1-(C61-E61))),CG60) -> 111.4629698 | CH61: 3% | CI61: =IF(X61=0,IF(CG61/CG60-1>=0,1,0),"") -> 1 | CJ61: =IF(Y61=0,IF(BN61>0,CJ60*(1+(C61-E61)),CJ60*(1-(C61-E61))),CJ60) -> 111.4629698 | CK61: =IF(Y61=0,IF(BN61>0,CJ61/CJ60-1,CJ61/CJ60-1),"") -> 0.02540622468 | CL61: 1 | CM61: =SUM($CL$30:CL61)/COUNT($CL$30:CL61) -> 0.6538461538 | CN61: =IF(CK61="","",CK61-CC61) -> 0 | CO61: =COUNT($CN$32:CN61) -> 2500% | CP61: 0% | CQ61: 0 | CR61: =SUM($CP$32:CP61) -> 3.00 | CS61: =SUM($CQ$32:CQ61) -> 2.00 | CT61: 0.10 | CU61: 0.09 | CV61: 12% | CW61: 0.08 | CX61: 4.0% | CY61: 47.1% | CZ61: 31.9% | DA61: 0.02540622468 | DB61: =IF(Y61=0,IF(CJ61/CJ60-1>=0,1,0),"") -> 1 | DC61: =(CG61-BX61)/100 -> 0.06061515076 | DD61: =(CJ61-CA61)/100 -> 0.06061515076
A62: =A6082 -> 2022-09-14 | B62: 0 | C62: =C6082/C6081-1 -> 0.339% | D62: =D6082/C6081-1 -> 0.20% | E62: 0.2% | F62: =E6082 -> 26.16 | G62: =F6082/F6081-1 -> -2.48% | H62: =G6082/G6081-1 -> -2.78% | I62: =H6082/H6081-1 -> -1.13% | K62: 2022-09-14 | L62: 2.75 | M62: 3.08 | N62: 3.38 | O62: 3.23 | P62: 3.08 | Q62: 2022-09-14 | R62: 3.38 | S62: =IF(P62>$Q$29,1,0) -> 1 | U62: =IF($A$19=1,T62,0) -> 0 | Y62: 0 | AB62: 0 | AC62: =$EU$9+$EU$10*C61+$EU$11*I62+$EU$12*G62+$EU$13*H62+$EU$14*C61^2+$EU$15*I61+$EU$16*H61+$EU$17*B62+$EU$18*B62*I62+$EU$19*B62*I61+$EU$20*B62*H62+$EU$21*B62*H61+$EU$22*(F61-F60)+$EU$23*(F61-F60)*H61+$EU$24*(F61-F60)*H61*B62 -> 0.59% | AD62: 1 | AE62: 0 | AF62: 1 | AG62: 0 | AH62: 2 | AI62: 0 | AJ62: 1 | AK62: 0 | AL62: 1 | AM62: 1 | AN62: =SUM($AM$32:AM62)/COUNT($AM$32:AM62) -> 0.5769230769 | AO62: 1 | AP62: =SUM($AO$32:AO62)/COUNT($AO$32:AO62) -> 57.7% | AQ62: 57.7% | AR62: 58.1% | AS62: =IF($B$19=1,IF(S62=1,$FA$9+$FA$10*C61+$FA$11*I62+$FA$12*G62+$FA$13*H62+$FA$14*C61^2+$FA$15*I61+$FA$16*H61+$FA$17*B62+$FA$18*B62*I62+$FA$19*B62*I61+$FA$20*B62*H62+$FA$21*B62*H61+$FA$22*(F61-F60)+$FA$23*(F61-F60)*H61+$FA$24*(F61-F60)*H61*B62+$FA$25*P61+$FA$26*P61*I62+$FA$27*P61*G62+$FA$28*P61*H62+$FA$29*P61*(F61-F60)+$FA$30*P61*(F61^2-F60^2),AC62),$FA$9+$FA$10*C61+$FA$11*I62+$FA$12*G62+$FA$13*H62+$FA$14*C61^2+$FA$15*I61+$FA$16*H61+$FA$17*B62+$FA$18*B62*I62+$FA$19*B62*I61+$FA$20*B62*H62+$FA$21*B62*H61+$FA$22*(F61-F60)+$FA$23*(F61-F60)*H61+$FA$24*(F61-F60)*H61*B62+$FA$25*P61+$FA$26*P61*I62+$FA$27*P61*G62+$FA$28*P61*H62+$FA$29*P61*(F61-F60)+$FA$30*P61*(F61^2-F60^2)) -> 0.69% | AT62: 0.1% | AU62: 1 | AV62: 0 | AW62: 1 | AX62: 0 | AY62: 2 | AZ62: 0 | BA62: 1 | BB62: 0 | BC62: 1 | BD62: 1 | BE62: =SUM($BD$32:BD62)/COUNT($BD$32:BD62) -> 0.6923076923 | BF62: 1 | BG62: =IF(Y62=0,CL62-CD62,"") -> 0 | BH62: 0 | BI62: 0 | BJ62: =SUM($BF$32:BF62)/COUNT($BF$32:BF62) -> 69.2% | BK62: =BJ62-AP62 -> 11.5% | BM62: =IF(AC62>0,1,0) -> 100.0% | BN62: =IF(AS62>0,1,0) -> 100.00% | BO62: =IF(AS62-AC62>0,1,0) -> 1 | BP62: =IF(BO62+AU62=2,1,0) -> 1 | BQ62: =IF(C61>0,1,0) -> 0 | BR62: =A62 -> 44818 | BS62: =IF(ABS(C62)>0,IF(BQ62>0,BS61*(1+(C62-E62)),BS61*(1-(C62-E62))),BS61) -> 94.17568462 | BT62: -0.001342592475 | BU62: =BU61*(1+C62) -> 1900-04-04T19:24:40.363 | BV62: 0.003386994653 | BW62: 1 | BX62: =IF(X62=0,IF(BM62>0,BX61*(1+(C62-E62)),BX61*(1-(C62-E62))),BX61) -> 105.5429659 | BY62: 0.001342592475 | BZ62: 1 | CA62: =IF(Y62=0,IF(BM62>0,CA61*(1+(C62-E62)),CA61*(1-(C62-E62))),CA61) -> 105.5429659 | CB62: =IF(Y62=0,IF(BM62>0,CA62/CA61-1,CA62/CA61-1),"") -> 0.001342592475 | CC62: =CA62/CA61-1 -> 0.001342592475 | CD62: 1 | CE62: =SUM($CD$30:CD62)/COUNT($CD$30:CD62) -> 0.5555555556 | CF62: 102.7820015 | CG62: =IF(X62=0,IF(BN62>0,CG61*(1+(C62-E62)),CG61*(1-(C62-E62))),CG61) -> 111.6126192 | CH62: 0% | CI62: =IF(X62=0,IF(CG62/CG61-1>=0,1,0),"") -> 1 | CJ62: =IF(Y62=0,IF(BN62>0,CJ61*(1+(C62-E62)),CJ61*(1-(C62-E62))),CJ61) -> 111.6126192 | CK62: =IF(Y62=0,IF(BN62>0,CJ62/CJ61-1,CJ62/CJ61-1),"") -> 0.001342592475 | CL62: 1 | CM62: =SUM($CL$30:CL62)/COUNT($CL$30:CL62) -> 0.6666666667 | CN62: =IF(CK62="","",CK62-CC62) -> 0 | CO62: =COUNT($CN$32:CN62) -> 2600% | CP62: 0% | CQ62: 0 | CR62: =SUM($CP$32:CP62) -> 3.00 | CS62: =SUM($CQ$32:CQ62) -> 2.00 | CT62: 0.10 | CU62: 0.09 | CV62: 12% | CW62: 0.08 | CX62: 3.8% | CY62: 47.0% | CZ62: 31.9% | DA62: 0.001342592475 | DB62: =IF(Y62=0,IF(CJ62/CJ61-1>=0,1,0),"") -> 1 | DC62: =(CG62-BX62)/100 -> 0.0606965322 | DD62: =(CJ62-CA62)/100 -> 0.0606965322
A63: =A6083 -> 2022-09-15 | B63: 0 | C63: =C6083/C6082-1 -> -1.132% | D63: =D6083/C6082-1 -> -0.34% | E63: -0.3% | F63: =E6083 -> 26.27 | G63: =F6083/F6082-1 -> 0.44% | H63: =G6083/G6082-1 -> 0.21% | I63: =H6083/H6082-1 -> -0.24% | K63: 2022-09-15 | L63: 3.13 | M63: 2.94 | N63: 3.79 | O63: 3.36 | P63: 2.94 | Q63: 2022-09-15 | R63: 3.79 | S63: =IF(P63>$Q$29,1,0) -> 1 | U63: =IF($A$19=1,T63,0) -> 0 | Y63: 0 | AB63: 0 | AC63: =$EU$9+$EU$10*C62+$EU$11*I63+$EU$12*G63+$EU$13*H63+$EU$14*C62^2+$EU$15*I62+$EU$16*H62+$EU$17*B63+$EU$18*B63*I63+$EU$19*B63*I62+$EU$20*B63*H63+$EU$21*B63*H62+$EU$22*(F62-F61)+$EU$23*(F62-F61)*H62+$EU$24*(F62-F61)*H62*B63 -> -0.27% | AD63: 0 | AE63: 1 | AF63: 0 | AG63: 1 | AH63: 0 | AI63: 2 | AJ63: 0 | AK63: 1 | AL63: 1 | AM63: 1 | AN63: =SUM($AM$32:AM63)/COUNT($AM$32:AM63) -> 0.5925925926 | AO63: 1 | AP63: =SUM($AO$32:AO63)/COUNT($AO$32:AO63) -> 59.3% | AQ63: 59.3% | AR63: 59.4% | AS63: =IF($B$19=1,IF(S63=1,$FA$9+$FA$10*C62+$FA$11*I63+$FA$12*G63+$FA$13*H63+$FA$14*C62^2+$FA$15*I62+$FA$16*H62+$FA$17*B63+$FA$18*B63*I63+$FA$19*B63*I62+$FA$20*B63*H63+$FA$21*B63*H62+$FA$22*(F62-F61)+$FA$23*(F62-F61)*H62+$FA$24*(F62-F61)*H62*B63+$FA$25*P62+$FA$26*P62*I63+$FA$27*P62*G63+$FA$28*P62*H63+$FA$29*P62*(F62-F61)+$FA$30*P62*(F62^2-F61^2),AC63),$FA$9+$FA$10*C62+$FA$11*I63+$FA$12*G63+$FA$13*H63+$FA$14*C62^2+$FA$15*I62+$FA$16*H62+$FA$17*B63+$FA$18*B63*I63+$FA$19*B63*I62+$FA$20*B63*H63+$FA$21*B63*H62+$FA$22*(F62-F61)+$FA$23*(F62-F61)*H62+$FA$24*(F62-F61)*H62*B63+$FA$25*P62+$FA$26*P62*I63+$FA$27*P62*G63+$FA$28*P62*H63+$FA$29*P62*(F62-F61)+$FA$30*P62*(F62^2-F61^2)) -> -0.24% | AT63: -0.0% | AU63: 0 | AV63: 1 | AW63: 0 | AX63: 1 | AY63: 0 | AZ63: 2 | BA63: 0 | BB63: 1 | BC63: 1 | BD63: 1 | BE63: =SUM($BD$32:BD63)/COUNT($BD$32:BD63) -> 0.7037037037 | BF63: 1 | BG63: =IF(Y63=0,CL63-CD63,"") -> 0 | BH63: 0 | BI63: 0 | BJ63: =SUM($BF$32:BF63)/COUNT($BF$32:BF63) -> 70.4% | BK63: =BJ63-AP63 -> 11.1% | BM63: =IF(AC63>0,1,0) -> 0.0% | BN63: =IF(AS63>0,1,0) -> 0.00% | BO63: =IF(AS63-AC63>0,1,0) -> 1 | BP63: =IF(BO63+AU63=2,1,0) -> 0 | BQ63: =IF(C62>0,1,0) -> 1 | BR63: =A63 -> 44819 | BS63: =IF(ABS(C63)>0,IF(BQ63>0,BS62*(1+(C63-E63)),BS62*(1-(C63-E63))),BS62) -> 93.43440501 | BT63: -0.00787124209 | BU63: =BU62*(1+C63) -> 1900-04-03T17:23:13.288 | BV63: -0.01131776149 | BW63: 0 | BX63: =IF(X63=0,IF(BM63>0,BX62*(1+(C63-E63)),BX62*(1-(C63-E63))),BX62) -> 106.3737202 | BY63: 0.00787124209 | BZ63: 1 | CA63: =IF(Y63=0,IF(BM63>0,CA62*(1+(C63-E63)),CA62*(1-(C63-E63))),CA62) -> 106.3737202 | CB63: =IF(Y63=0,IF(BM63>0,CA63/CA62-1,CA63/CA62-1),"") -> 0.00787124209 | CC63: =CA63/CA62-1 -> 0.00787124209 | CD63: 1 | CE63: =SUM($CD$30:CD63)/COUNT($CD$30:CD63) -> 0.5714285714 | CF63: 103.1865125 | CG63: =IF(X63=0,IF(BN63>0,CG62*(1+(C63-E63)),CG62*(1-(C63-E63))),CG62) -> 112.4911491 | CH63: 1% | CI63: =IF(X63=0,IF(CG63/CG62-1>=0,1,0),"") -> 1 | CJ63: =IF(Y63=0,IF(BN63>0,CJ62*(1+(C63-E63)),CJ62*(1-(C63-E63))),CJ62) -> 112.4911491 | CK63: =IF(Y63=0,IF(BN63>0,CJ63/CJ62-1,CJ63/CJ62-1),"") -> 0.00787124209 | CL63: 1 | CM63: =SUM($CL$30:CL63)/COUNT($CL$30:CL63) -> 0.6785714286 | CN63: =IF(CK63="","",CK63-CC63) -> 0 | CO63: =COUNT($CN$32:CN63) -> 2700% | CP63: 0% | CQ63: 0 | CR63: =SUM($CP$32:CP63) -> 3.00 | CS63: =SUM($CQ$32:CQ63) -> 2.00 | CT63: 0.09 | CU63: 0.08 | CV63: 11% | CW63: 0.07 | CX63: 3.7% | CY63: 46.9% | CZ63: 31.9% | DA63: 0.00787124209 | DB63: =IF(Y63=0,IF(CJ63/CJ62-1>=0,1,0),"") -> 1 | DC63: =(CG63-BX63)/100 -> 0.0611742893 | DD63: =(CJ63-CA63)/100 -> 0.0611742893
A64: =A6084 -> 2022-09-16 | B64: 0 | C64: =C6084/C6083-1 -> -0.718% | D64: =D6084/C6083-1 -> -0.52% | E64: -0.5% | F64: =E6084 -> 26.30 | G64: =F6084/F6083-1 -> -0.89% | H64: =G6084/G6083-1 -> -1.11% | I64: =H6084/H6083-1 -> -1.58% | K64: 2022-09-16 | L64: 2.72 | M64: 3.14 | N64: 3.64 | O64: 3.39 | P64: 3.14 | Q64: 2022-09-16 | R64: 3.64 | S64: =IF(P64>$Q$29,1,0) -> 1 | U64: =IF($A$19=1,T64,0) -> 0 | Y64: 0 | AB64: 0 | AC64: =$EU$9+$EU$10*C63+$EU$11*I64+$EU$12*G64+$EU$13*H64+$EU$14*C63^2+$EU$15*I63+$EU$16*H63+$EU$17*B64+$EU$18*B64*I64+$EU$19*B64*I63+$EU$20*B64*H64+$EU$21*B64*H63+$EU$22*(F63-F62)+$EU$23*(F63-F62)*H63+$EU$24*(F63-F62)*H63*B64 -> -0.45% | AD64: 0 | AE64: 1 | AF64: 0 | AG64: 1 | AH64: 0 | AI64: 2 | AJ64: 0 | AK64: 1 | AL64: 1 | AM64: 1 | AN64: =SUM($AM$32:AM64)/COUNT($AM$32:AM64) -> 0.6071428571 | AO64: 1 | AP64: =SUM($AO$32:AO64)/COUNT($AO$32:AO64) -> 60.7% | AQ64: 60.7% | AR64: 60.6% | AS64: =IF($B$19=1,IF(S64=1,$FA$9+$FA$10*C63+$FA$11*I64+$FA$12*G64+$FA$13*H64+$FA$14*C63^2+$FA$15*I63+$FA$16*H63+$FA$17*B64+$FA$18*B64*I64+$FA$19*B64*I63+$FA$20*B64*H64+$FA$21*B64*H63+$FA$22*(F63-F62)+$FA$23*(F63-F62)*H63+$FA$24*(F63-F62)*H63*B64+$FA$25*P63+$FA$26*P63*I64+$FA$27*P63*G64+$FA$28*P63*H64+$FA$29*P63*(F63-F62)+$FA$30*P63*(F63^2-F62^2),AC64),$FA$9+$FA$10*C63+$FA$11*I64+$FA$12*G64+$FA$13*H64+$FA$14*C63^2+$FA$15*I63+$FA$16*H63+$FA$17*B64+$FA$18*B64*I64+$FA$19*B64*I63+$FA$20*B64*H64+$FA$21*B64*H63+$FA$22*(F63-F62)+$FA$23*(F63-F62)*H63+$FA$24*(F63-F62)*H63*B64+$FA$25*P63+$FA$26*P63*I64+$FA$27*P63*G64+$FA$28*P63*H64+$FA$29*P63*(F63-F62)+$FA$30*P63*(F63^2-F62^2)) -> -0.40% | AT64: -0.0% | AU64: 0 | AV64: 1 | AW64: 0 | AX64: 1 | AY64: 0 | AZ64: 2 | BA64: 0 | BB64: 1 | BC64: 1 | BD64: 1 | BE64: =SUM($BD$32:BD64)/COUNT($BD$32:BD64) -> 0.7142857143 | BF64: 1 | BG64: =IF(Y64=0,CL64-CD64,"") -> 0 | BH64: 0 | BI64: 0 | BJ64: =SUM($BF$32:BF64)/COUNT($BF$32:BF64) -> 71.4% | BK64: =BJ64-AP64 -> 10.7% | BM64: =IF(AC64>0,1,0) -> 0.0% | BN64: =IF(AS64>0,1,0) -> 0.00% | BO64: =IF(AS64-AC64>0,1,0) -> 1 | BP64: =IF(BO64+AU64=2,1,0) -> 0 | BQ64: =IF(C63>0,1,0) -> 0 | BR64: =A64 -> 44820 | BS64: =IF(ABS(C64)>0,IF(BQ64>0,BS63*(1+(C64-E64)),BS63*(1-(C64-E64))),BS63) -> 93.61689829 | BT64: 0.001953170057 | BU64: =BU63*(1+C64) -> 1900-04-03T01:03:33.353 | BV64: -0.007182129263 | BW64: 0 | BX64: =IF(X64=0,IF(BM64>0,BX63*(1+(C64-E64)),BX63*(1-(C64-E64))),BX63) -> 106.5814861 | BY64: 0.001953170057 | BZ64: 1 | CA64: =IF(Y64=0,IF(BM64>0,CA63*(1+(C64-E64)),CA63*(1-(C64-E64))),CA63) -> 106.5814861 | CB64: =IF(Y64=0,IF(BM64>0,CA64/CA63-1,CA64/CA63-1),"") -> 0.001953170057 | CC64: =CA64/CA63-1 -> 0.001953170057 | CD64: 1 | CE64: =SUM($CD$30:CD64)/COUNT($CD$30:CD64) -> 0.5862068966 | CF64: 103.2872829 | CG64: =IF(X64=0,IF(BN64>0,CG63*(1+(C64-E64)),CG63*(1-(C64-E64))),CG63) -> 112.7108634 | CH64: 0% | CI64: =IF(X64=0,IF(CG64/CG63-1>=0,1,0),"") -> 1 | CJ64: =IF(Y64=0,IF(BN64>0,CJ63*(1+(C64-E64)),CJ63*(1-(C64-E64))),CJ63) -> 112.7108634 | CK64: =IF(Y64=0,IF(BN64>0,CJ64/CJ63-1,CJ64/CJ63-1),"") -> 0.001953170057 | CL64: 1 | CM64: =SUM($CL$30:CL64)/COUNT($CL$30:CL64) -> 0.6896551724 | CN64: =IF(CK64="","",CK64-CC64) -> 0 | CO64: =COUNT($CN$32:CN64) -> 2800% | CP64: 0% | CQ64: 0 | CR64: =SUM($CP$32:CP64) -> 3.00 | CS64: =SUM($CQ$32:CQ64) -> 2.00 | CT64: 0.09 | CU64: 0.08 | CV64: 11% | CW64: 0.07 | CX64: 3.6% | CY64: 46.9% | CZ64: 32.0% | DA64: 0.001953170057 | DB64: =IF(Y64=0,IF(CJ64/CJ63-1>=0,1,0),"") -> 1 | DC64: =(CG64-BX64)/100 -> 0.06129377309 | DD64: =(CJ64-CA64)/100 -> 0.06129377309
A65: =A6085 -> 2022-09-19 | B65: 1 | C65: =C6085/C6084-1 -> 0.686% | D65: =D6085/C6084-1 -> -0.60% | E65: -0.6% | F65: =E6085 -> 25.76 | G65: =F6085/F6084-1 -> -1.04% | H65: =G6085/G6084-1 -> 0.00% | I65: =H6085/H6084-1 -> -0.19% | K65: 2022-09-19 | L65: 2.94 | M65: 2.60 | N65: 3.06 | O65: 2.83 | P65: 2.60 | Q65: 2022-09-19 | R65: 3.06 | S65: =IF(P65>$Q$29,1,0) -> 1 | T65: 1 | U65: =IF($A$19=1,T65,0) -> 0 | W65: 1 | X65: =IF($C$19=1,W65,0) -> 1 | Y65: 1 | AA65: 1 | AB65: -1 | AC65: =$EU$9+$EU$10*C64+$EU$11*I65+$EU$12*G65+$EU$13*H65+$EU$14*C64^2+$EU$15*I64+$EU$16*H64+$EU$17*B65+$EU$18*B65*I65+$EU$19*B65*I64+$EU$20*B65*H65+$EU$21*B65*H64+$EU$22*(F64-F63)+$EU$23*(F64-F63)*H64+$EU$24*(F64-F63)*H64*B65 -> -0.04% | AD65: 0 | AE65: 1 | AF65: 1 | AG65: 0 | AH65: 1 | AI65: 1 | AJ65: 0 | AK65: 0 | AL65: 0 | AN65: =SUM($AM$32:AM65)/COUNT($AM$32:AM65) -> 0.6071428571 | AP65: =SUM($AO$32:AO65)/COUNT($AO$32:AO65) -> 60.7% | AQ65: 60.7% | AR65: 58.8% | AS65: =IF($B$19=1,IF(S65=1,$FA$9+$FA$10*C64+$FA$11*I65+$FA$12*G65+$FA$13*H65+$FA$14*C64^2+$FA$15*I64+$FA$16*H64+$FA$17*B65+$FA$18*B65*I65+$FA$19*B65*I64+$FA$20*B65*H65+$FA$21*B65*H64+$FA$22*(F64-F63)+$FA$23*(F64-F63)*H64+$FA$24*(F64-F63)*H64*B65+$FA$25*P64+$FA$26*P64*I65+$FA$27*P64*G65+$FA$28*P64*H65+$FA$29*P64*(F64-F63)+$FA$30*P64*(F64^2-F63^2),AC65),$FA$9+$FA$10*C64+$FA$11*I65+$FA$12*G65+$FA$13*H65+$FA$14*C64^2+$FA$15*I64+$FA$16*H64+$FA$17*B65+$FA$18*B65*I65+$FA$19*B65*I64+$FA$20*B65*H65+$FA$21*B65*H64+$FA$22*(F64-F63)+$FA$23*(F64-F63)*H64+$FA$24*(F64-F63)*H64*B65+$FA$25*P64+$FA$26*P64*I65+$FA$27*P64*G65+$FA$28*P64*H65+$FA$29*P64*(F64-F63)+$FA$30*P64*(F64^2-F63^2)) -> 0.08% | AT65: 0.0% | AU65: 1 | AV65: 0 | AW65: 1 | AX65: 0 | AY65: 2 | AZ65: 0 | BA65: 1 | BB65: 0 | BC65: 1 | BE65: =SUM($BD$32:BD65)/COUNT($BD$32:BD65) -> 0.7142857143 | BG65: =IF(Y65=0,CL65-CD65,"") ->  | BJ65: =SUM($BF$32:BF65)/COUNT($BF$32:BF65) -> 71.4% | BK65: =BJ65-AP65 -> 10.7% | BM65: =IF(AC65>0,1,0) -> 0.0% | BN65: =IF(AS65>0,1,0) -> 100.00% | BO65: =IF(AS65-AC65>0,1,0) -> 1 | BP65: =IF(BO65+AU65=2,1,0) -> 1 | BQ65: =IF(C64>0,1,0) -> 0 | BR65: =A65 -> 44823 | BS65: =IF(ABS(C65)>0,IF(BQ65>0,BS64*(1+(C65-E65)),BS64*(1-(C65-E65))),BS64) -> 92.40890089 | BT65: -0.01290362556 | BU65: =BU64*(1+C65) -> 1900-04-03T16:32:10.522 | BV65: 0.006857148758 | BW65: 1 | BX65: =IF(X65=0,IF(BM65>0,BX64*(1+(C65-E65)),BX64*(1-(C65-E65))),BX64) -> 106.5814861 | CA65: =IF(Y65=0,IF(BM65>0,CA64*(1+(C65-E65)),CA64*(1-(C65-E65))),CA64) -> 106.5814861 | CB65: =IF(Y65=0,IF(BM65>0,CA65/CA64-1,CA65/CA64-1),"") ->  | CE65: =SUM($CD$30:CD65)/COUNT($CD$30:CD65) -> 0.5862068966 | CF65: 103.2872829 | CG65: =IF(X65=0,IF(BN65>0,CG64*(1+(C65-E65)),CG64*(1-(C65-E65))),CG64) -> 112.7108634 | CI65: =IF(X65=0,IF(CG65/CG64-1>=0,1,0),"") ->  | CJ65: =IF(Y65=0,IF(BN65>0,CJ64*(1+(C65-E65)),CJ64*(1-(C65-E65))),CJ64) -> 112.7108634 | CK65: =IF(Y65=0,IF(BN65>0,CJ65/CJ64-1,CJ65/CJ64-1),"") ->  | CM65: =SUM($CL$30:CL65)/COUNT($CL$30:CL65) -> 0.6896551724 | CN65: =IF(CK65="","",CK65-CC65) ->  | CO65: =COUNT($CN$32:CN65) -> 2800% | CR65: =SUM($CP$32:CP65) -> 3.00 | CS65: =SUM($CQ$32:CQ65) -> 2.00 | CT65: 0.09 | CU65: 0.08 | CV65: 11% | CW65: 0.07 | CX65: 3.6% | CY65: 46.9% | CZ65: 32.0% | DB65: =IF(Y65=0,IF(CJ65/CJ64-1>=0,1,0),"") ->  | DC65: =(CG65-BX65)/100 -> 0.06129377309 | DD65: =(CJ65-CA65)/100 -> 0.06129377309
A66: =A6086 -> 2022-09-20 | B66: 0 | C66: =C6086/C6085-1 -> -1.127% | D66: =D6086/C6085-1 -> -0.63% | E66: -0.6% | F66: =E6086 -> 27.16 | G66: =F6086/F6085-1 -> 1.16% | H66: =G6086/G6085-1 -> 0.44% | I66: =H6086/H6085-1 -> -1.13% | K66: 2022-09-20 | L66: 2.43 | M66: 2.42 | N66: 3.18 | O66: 2.80 | P66: 2.42 | Q66: 2022-09-20 | R66: 3.18 | S66: =IF(P66>$Q$29,1,0) -> 1 | T66: 1 | U66: =IF($A$19=1,T66,0) -> 0 | W66: 1 | X66: =IF($C$19=1,W66,0) -> 1 | Y66: 1 | AB66: 0 | AC66: =$EU$9+$EU$10*C65+$EU$11*I66+$EU$12*G66+$EU$13*H66+$EU$14*C65^2+$EU$15*I65+$EU$16*H65+$EU$17*B66+$EU$18*B66*I66+$EU$19*B66*I65+$EU$20*B66*H66+$EU$21*B66*H65+$EU$22*(F65-F64)+$EU$23*(F65-F64)*H65+$EU$24*(F65-F64)*H65*B66 -> -0.61% | AD66: 0 | AE66: 1 | AF66: 0 | AG66: 1 | AH66: 0 | AI66: 2 | AJ66: 0 | AK66: 1 | AL66: 1 | AN66: =SUM($AM$32:AM66)/COUNT($AM$32:AM66) -> 0.6071428571 | AP66: =SUM($AO$32:AO66)/COUNT($AO$32:AO66) -> 60.7% | AQ66: 60.7% | AR66: 60.0% | AS66: =IF($B$19=1,IF(S66=1,$FA$9+$FA$10*C65+$FA$11*I66+$FA$12*G66+$FA$13*H66+$FA$14*C65^2+$FA$15*I65+$FA$16*H65+$FA$17*B66+$FA$18*B66*I66+$FA$19*B66*I65+$FA$20*B66*H66+$FA$21*B66*H65+$FA$22*(F65-F64)+$FA$23*(F65-F64)*H65+$FA$24*(F65-F64)*H65*B66+$FA$25*P65+$FA$26*P65*I66+$FA$27*P65*G66+$FA$28*P65*H66+$FA$29*P65*(F65-F64)+$FA$30*P65*(F65^2-F64^2),AC66),$FA$9+$FA$10*C65+$FA$11*I66+$FA$12*G66+$FA$13*H66+$FA$14*C65^2+$FA$15*I65+$FA$16*H65+$FA$17*B66+$FA$18*B66*I66+$FA$19*B66*I65+$FA$20*B66*H66+$FA$21*B66*H65+$FA$22*(F65-F64)+$FA$23*(F65-F64)*H65+$FA$24*(F65-F64)*H65*B66+$FA$25*P65+$FA$26*P65*I66+$FA$27*P65*G66+$FA$28*P65*H66+$FA$29*P65*(F65-F64)+$FA$30*P65*(F65^2-F64^2)) -> -0.57% | AT66: -0.0% | AU66: 0 | AV66: 1 | AW66: 0 | AX66: 1 | AY66: 0 | AZ66: 2 | BA66: 0 | BB66: 1 | BC66: 1 | BE66: =SUM($BD$32:BD66)/COUNT($BD$32:BD66) -> 0.7142857143 | BG66: =IF(Y66=0,CL66-CD66,"") ->  | BJ66: =SUM($BF$32:BF66)/COUNT($BF$32:BF66) -> 71.4% | BK66: =BJ66-AP66 -> 10.7% | BM66: =IF(AC66>0,1,0) -> 0.0% | BN66: =IF(AS66>0,1,0) -> 0.00% | BO66: =IF(AS66-AC66>0,1,0) -> 1 | BP66: =IF(BO66+AU66=2,1,0) -> 0 | BQ66: =IF(C65>0,1,0) -> 1 | BR66: =A66 -> 44824 | BS66: =IF(ABS(C66)>0,IF(BQ66>0,BS65*(1+(C66-E66)),BS65*(1-(C66-E66))),BS65) -> 91.9515824 | BT66: -0.004948857532 | BU66: =BU65*(1+C66) -> 1900-04-02T14:55:11.895 | BV66: -0.0112721128 | BW66: 0 | BX66: =IF(X66=0,IF(BM66>0,BX65*(1+(C66-E66)),BX65*(1-(C66-E66))),BX65) -> 106.5814861 | CA66: =IF(Y66=0,IF(BM66>0,CA65*(1+(C66-E66)),CA65*(1-(C66-E66))),CA65) -> 106.5814861 | CB66: =IF(Y66=0,IF(BM66>0,CA66/CA65-1,CA66/CA65-1),"") ->  | CE66: =SUM($CD$30:CD66)/COUNT($CD$30:CD66) -> 0.5862068966 | CF66: 103.2872829 | CG66: =IF(X66=0,IF(BN66>0,CG65*(1+(C66-E66)),CG65*(1-(C66-E66))),CG65) -> 112.7108634 | CI66: =IF(X66=0,IF(CG66/CG65-1>=0,1,0),"") ->  | CJ66: =IF(Y66=0,IF(BN66>0,CJ65*(1+(C66-E66)),CJ65*(1-(C66-E66))),CJ65) -> 112.7108634 | CK66: =IF(Y66=0,IF(BN66>0,CJ66/CJ65-1,CJ66/CJ65-1),"") ->  | CM66: =SUM($CL$30:CL66)/COUNT($CL$30:CL66) -> 0.6896551724 | CN66: =IF(CK66="","",CK66-CC66) ->  | CO66: =COUNT($CN$32:CN66) -> 2800% | CR66: =SUM($CP$32:CP66) -> 3.00 | CS66: =SUM($CQ$32:CQ66) -> 2.00 | CT66: 0.09 | CU66: 0.08 | CV66: 11% | CW66: 0.07 | CX66: 3.6% | CY66: 46.9% | CZ66: 32.0% | DB66: =IF(Y66=0,IF(CJ66/CJ65-1>=0,1,0),"") ->  | DC66: =(CG66-BX66)/100 -> 0.06129377309 | DD66: =(CJ66-CA66)/100 -> 0.06129377309
A67: =A6087 -> 2022-09-21 | B67: 0 | C67: =C6087/C6086-1 -> -1.712% | D67: =D6087/C6086-1 -> 0.40% | E67: 0.4% | F67: =E6087 -> 27.99 | G67: =F6087/F6086-1 -> -1.79% | H67: =G6087/G6086-1 -> -1.36% | I67: =H6087/H6086-1 -> 1.19% | K67: 2022-09-21 | L67: 2.52 | M67: 2.53 | N67: 3.44 | O67: 2.98 | P67: 2.53 | Q67: 2022-09-21 | R67: 3.44 | S67: =IF(P67>$Q$29,1,0) -> 1 | T67: 1 | U67: =IF($A$19=1,T67,0) -> 0 | Y67: 0 | AB67: 0 | AC67: =$EU$9+$EU$10*C66+$EU$11*I67+$EU$12*G67+$EU$13*H67+$EU$14*C66^2+$EU$15*I66+$EU$16*H66+$EU$17*B67+$EU$18*B67*I67+$EU$19*B67*I66+$EU$20*B67*H67+$EU$21*B67*H66+$EU$22*(F66-F65)+$EU$23*(F66-F65)*H66+$EU$24*(F66-F65)*H66*B67 -> 0.63% | AD67: 1 | AE67: 0 | AF67: 0 | AG67: 1 | AH67: 1 | AI67: 1 | AJ67: 0 | AK67: 0 | AL67: 0 | AM67: 0 | AN67: =SUM($AM$32:AM67)/COUNT($AM$32:AM67) -> 0.5862068966 | AO67: 0 | AP67: =SUM($AO$32:AO67)/COUNT($AO$32:AO67) -> 58.6% | AQ67: 58.6% | AR67: 58.3% | AS67: =IF($B$19=1,IF(S67=1,$FA$9+$FA$10*C66+$FA$11*I67+$FA$12*G67+$FA$13*H67+$FA$14*C66^2+$FA$15*I66+$FA$16*H66+$FA$17*B67+$FA$18*B67*I67+$FA$19*B67*I66+$FA$20*B67*H67+$FA$21*B67*H66+$FA$22*(F66-F65)+$FA$23*(F66-F65)*H66+$FA$24*(F66-F65)*H66*B67+$FA$25*P66+$FA$26*P66*I67+$FA$27*P66*G67+$FA$28*P66*H67+$FA$29*P66*(F66-F65)+$FA$30*P66*(F66^2-F65^2),AC67),$FA$9+$FA$10*C66+$FA$11*I67+$FA$12*G67+$FA$13*H67+$FA$14*C66^2+$FA$15*I66+$FA$16*H66+$FA$17*B67+$FA$18*B67*I67+$FA$19*B67*I66+$FA$20*B67*H67+$FA$21*B67*H66+$FA$22*(F66-F65)+$FA$23*(F66-F65)*H66+$FA$24*(F66-F65)*H66*B67+$FA$25*P66+$FA$26*P66*I67+$FA$27*P66*G67+$FA$28*P66*H67+$FA$29*P66*(F66-F65)+$FA$30*P66*(F66^2-F65^2)) -> 0.55% | AT67: -0.1% | AU67: 1 | AV67: 0 | AW67: 0 | AX67: 1 | AY67: 1 | AZ67: 1 | BA67: 0 | BB67: 0 | BC67: 0 | BD67: 0 | BE67: =SUM($BD$32:BD67)/COUNT($BD$32:BD67) -> 0.6896551724 | BF67: 0 | BG67: =IF(Y67=0,CL67-CD67,"") -> 0 | BH67: 0 | BI67: 0 | BJ67: =SUM($BF$32:BF67)/COUNT($BF$32:BF67) -> 69.0% | BK67: =BJ67-AP67 -> 10.3% | BM67: =IF(AC67>0,1,0) -> 100.0% | BN67: =IF(AS67>0,1,0) -> 100.00% | BO67: =IF(AS67-AC67>0,1,0) -> 0 | BP67: =IF(BO67+AU67=2,1,0) -> 0 | BQ67: =IF(C66>0,1,0) -> 0 | BR67: =A67 -> 44825 | BS67: =IF(ABS(C67)>0,IF(BQ67>0,BS66*(1+(C67-E67)),BS66*(1-(C67-E67))),BS66) -> 93.894381 | BT67: 0.02112849559 | BU67: =BU66*(1+C67) -> 1900-04-01T00:27:38.089 | BV67: -0.0171164933 | BW67: 0 | BX67: =IF(X67=0,IF(BM67>0,BX66*(1+(C67-E67)),BX66*(1-(C67-E67))),BX66) -> 104.3295797 | BY67: -0.02112849559 | BZ67: 0 | CA67: =IF(Y67=0,IF(BM67>0,CA66*(1+(C67-E67)),CA66*(1-(C67-E67))),CA66) -> 104.3295797 | CB67: =IF(Y67=0,IF(BM67>0,CA67/CA66-1,CA67/CA66-1),"") -> -0.02112849559 | CD67: 0 | CE67: =SUM($CD$30:CD67)/COUNT($CD$30:CD67) -> 0.5666666667 | CF67: 102.1961304 | CG67: =IF(X67=0,IF(BN67>0,CG66*(1+(C67-E67)),CG66*(1-(C67-E67))),CG66) -> 110.3294525 | CH67: -2% | CI67: =IF(X67=0,IF(CG67/CG66-1>=0,1,0),"") -> 0 | CJ67: =IF(Y67=0,IF(BN67>0,CJ66*(1+(C67-E67)),CJ66*(1-(C67-E67))),CJ66) -> 110.3294525 | CK67: =IF(Y67=0,IF(BN67>0,CJ67/CJ66-1,CJ67/CJ66-1),"") -> -0.02112849559 | CL67: 0 | CM67: =SUM($CL$30:CL67)/COUNT($CL$30:CL67) -> 0.6666666667 | CN67: =IF(CK67="","",CK67-CC67) -> -0.02112849559 | CO67: =COUNT($CN$32:CN67) -> 2900% | CP67: 0% | CQ67: 1.00 | CR67: =SUM($CP$32:CP67) -> 3.00 | CS67: =SUM($CQ$32:CQ67) -> 3.00 | CT67: 0.10 | CU67: 0.09 | CV67: 10% | CW67: 0.10 | CX67: 0.0% | CY67: 0.0% | CZ67: 50.0% | DA67: -0.02112849559 | DB67: =IF(Y67=0,IF(CJ67/CJ66-1>=0,1,0),"") -> 0 | DC67: =(CG67-BX67)/100 -> 0.05999872788 | DD67: =(CJ67-CA67)/100 -> 0.05999872788
A68: =A6088 -> 2022-09-22 | B68: 0 | C68: =C6088/C6087-1 -> -0.843% | D68: =D6088/C6087-1 -> -0.20% | E68: -0.2% | F68: =E6088 -> 27.35 | G68: =F6088/F6087-1 -> -1.61% | H68: =G6088/G6087-1 -> -0.58% | I68: =H6088/H6087-1 -> -2.17% | K68: 2022-09-22 | L68: 3.37 | M68: 3.68 | N68: 4.21 | O68: 3.94 | P68: 3.68 | Q68: 2022-09-22 | R68: 4.21 | S68: =IF(P68>$Q$29,1,0) -> 1 | T68: 1 | U68: =IF($A$19=1,T68,0) -> 0 | Y68: 0 | AB68: 0 | AC68: =$EU$9+$EU$10*C67+$EU$11*I68+$EU$12*G68+$EU$13*H68+$EU$14*C67^2+$EU$15*I67+$EU$16*H67+$EU$17*B68+$EU$18*B68*I68+$EU$19*B68*I67+$EU$20*B68*H68+$EU$21*B68*H67+$EU$22*(F67-F66)+$EU$23*(F67-F66)*H67+$EU$24*(F67-F66)*H67*B68 -> -0.43% | AD68: 0 | AE68: 1 | AF68: 0 | AG68: 1 | AH68: 0 | AI68: 2 | AJ68: 0 | AK68: 1 | AL68: 1 | AM68: 1 | AN68: =SUM($AM$32:AM68)/COUNT($AM$32:AM68) -> 0.6 | AO68: 1 | AP68: =SUM($AO$32:AO68)/COUNT($AO$32:AO68) -> 60.0% | AQ68: 60.0% | AR68: 59.5% | AS68: =IF($B$19=1,IF(S68=1,$FA$9+$FA$10*C67+$FA$11*I68+$FA$12*G68+$FA$13*H68+$FA$14*C67^2+$FA$15*I67+$FA$16*H67+$FA$17*B68+$FA$18*B68*I68+$FA$19*B68*I67+$FA$20*B68*H68+$FA$21*B68*H67+$FA$22*(F67-F66)+$FA$23*(F67-F66)*H67+$FA$24*(F67-F66)*H67*B68+$FA$25*P67+$FA$26*P67*I68+$FA$27*P67*G68+$FA$28*P67*H68+$FA$29*P67*(F67-F66)+$FA$30*P67*(F67^2-F66^2),AC68),$FA$9+$FA$10*C67+$FA$11*I68+$FA$12*G68+$FA$13*H68+$FA$14*C67^2+$FA$15*I67+$FA$16*H67+$FA$17*B68+$FA$18*B68*I68+$FA$19*B68*I67+$FA$20*B68*H68+$FA$21*B68*H67+$FA$22*(F67-F66)+$FA$23*(F67-F66)*H67+$FA$24*(F67-F66)*H67*B68+$FA$25*P67+$FA$26*P67*I68+$FA$27*P67*G68+$FA$28*P67*H68+$FA$29*P67*(F67-F66)+$FA$30*P67*(F67^2-F66^2)) -> -0.52% | AT68: 0.1% | AU68: 0 | AV68: 1 | AW68: 0 | AX68: 1 | AY68: 0 | AZ68: 2 | BA68: 0 | BB68: 1 | BC68: 1 | BD68: 1 | BE68: =SUM($BD$32:BD68)/COUNT($BD$32:BD68) -> 0.7 | BF68: 1 | BG68: =IF(Y68=0,CL68-CD68,"") -> 0 | BH68: 0 | BI68: 0 | BJ68: =SUM($BF$32:BF68)/COUNT($BF$32:BF68) -> 70.0% | BK68: =BJ68-AP68 -> 10.0% | BM68: =IF(AC68>0,1,0) -> 0.0% | BN68: =IF(AS68>0,1,0) -> 0.00% | BO68: =IF(AS68-AC68>0,1,0) -> 0 | BP68: =IF(BO68+AU68=2,1,0) -> 0 | BQ68: =IF(C67>0,1,0) -> 0 | BR68: =A68 -> 44826 | BS68: =IF(ABS(C68)>0,IF(BQ68>0,BS67*(1+(C68-E68)),BS67*(1-(C68-E68))),BS67) -> 94.49814046 | BT68: 0.006430197919 | BU68: =BU67*(1+C68) -> 1900-03-31T05:50:54.838 | BV68: -0.008427596288 | BW68: 0 | BX68: =IF(X68=0,IF(BM68>0,BX67*(1+(C68-E68)),BX67*(1-(C68-E68))),BX67) -> 105.0004395 | BY68: 0.006430197919 | BZ68: 1 | CA68: =IF(Y68=0,IF(BM68>0,CA67*(1+(C68-E68)),CA67*(1-(C68-E68))),CA67) -> 105.0004395 | CB68: =IF(Y68=0,IF(BM68>0,CA68/CA67-1,CA68/CA67-1),"") -> 0.006430197919 | CD68: 1 | CE68: =SUM($CD$30:CD68)/COUNT($CD$30:CD68) -> 0.5806451613 | CF68: 102.5247011 | CG68: =IF(X68=0,IF(BN68>0,CG67*(1+(C68-E68)),CG67*(1-(C68-E68))),CG67) -> 111.0388927 | CH68: 1% | CI68: =IF(X68=0,IF(CG68/CG67-1>=0,1,0),"") -> 1 | CJ68: =IF(Y68=0,IF(BN68>0,CJ67*(1+(C68-E68)),CJ67*(1-(C68-E68))),CJ67) -> 111.0388927 | CK68: =IF(Y68=0,IF(BN68>0,CJ68/CJ67-1,CJ68/CJ67-1),"") -> 0.006430197919 | CL68: 1 | CM68: =SUM($CL$30:CL68)/COUNT($CL$30:CL68) -> 0.6774193548 | CN68: =IF(CK68="","",CK68-CC68) -> 0.006430197919 | CO68: =COUNT($CN$32:CN68) -> 3000% | CP68: 100% | CQ68: 0 | CR68: =SUM($CP$32:CP68) -> 4.00 | CS68: =SUM($CQ$32:CQ68) -> 3.00 | CT68: 0.12 | CU68: 0.10 | CV68: 13% | CW68: 0.10 | CX68: 3.3% | CY68: 40.2% | CZ68: 34.4% | DA68: 0.006430197919 | DB68: =IF(Y68=0,IF(CJ68/CJ67-1>=0,1,0),"") -> 1 | DC68: =(CG68-BX68)/100 -> 0.06038453157 | DD68: =(CJ68-CA68)/100 -> 0.06038453157
A69: =A6089 -> 2022-09-23 | B69: 0 | C69: =C6089/C6088-1 -> -1.723% | D69: =D6089/C6088-1 -> -0.82% | E69: -0.8% | F69: =E6089 -> 29.92 | G69: =F6089/F6088-1 -> -1.18% | H69: =G6089/G6088-1 -> 0.00% | I69: =H6089/H6088-1 -> -1.09% | K69: 2022-09-23 | L69: 2.24 | M69: 2.64 | N69: 3.05 | O69: 2.84 | P69: 2.64 | Q69: 2022-09-23 | R69: 3.05 | S69: =IF(P69>$Q$29,1,0) -> 1 | T69: 1 | U69: =IF($A$19=1,T69,0) -> 0 | W69: 1 | X69: =IF($C$19=1,W69,0) -> 1 | Y69: 1 | AA69: 1 | AB69: 0 | AC69: =$EU$9+$EU$10*C68+$EU$11*I69+$EU$12*G69+$EU$13*H69+$EU$14*C68^2+$EU$15*I68+$EU$16*H68+$EU$17*B69+$EU$18*B69*I69+$EU$19*B69*I68+$EU$20*B69*H69+$EU$21*B69*H68+$EU$22*(F68-F67)+$EU$23*(F68-F67)*H68+$EU$24*(F68-F67)*H68*B69 -> -0.43% | AD69: 0 | AE69: 1 | AF69: 0 | AG69: 1 | AH69: 0 | AI69: 2 | AJ69: 0 | AK69: 1 | AL69: 1 | AN69: =SUM($AM$32:AM69)/COUNT($AM$32:AM69) -> 0.6 | AP69: =SUM($AO$32:AO69)/COUNT($AO$32:AO69) -> 60.0% | AQ69: 60.0% | AR69: 60.5% | AS69: =IF($B$19=1,IF(S69=1,$FA$9+$FA$10*C68+$FA$11*I69+$FA$12*G69+$FA$13*H69+$FA$14*C68^2+$FA$15*I68+$FA$16*H68+$FA$17*B69+$FA$18*B69*I69+$FA$19*B69*I68+$FA$20*B69*H69+$FA$21*B69*H68+$FA$22*(F68-F67)+$FA$23*(F68-F67)*H68+$FA$24*(F68-F67)*H68*B69+$FA$25*P68+$FA$26*P68*I69+$FA$27*P68*G69+$FA$28*P68*H69+$FA$29*P68*(F68-F67)+$FA$30*P68*(F68^2-F67^2),AC69),$FA$9+$FA$10*C68+$FA$11*I69+$FA$12*G69+$FA$13*H69+$FA$14*C68^2+$FA$15*I68+$FA$16*H68+$FA$17*B69+$FA$18*B69*I69+$FA$19*B69*I68+$FA$20*B69*H69+$FA$21*B69*H68+$FA$22*(F68-F67)+$FA$23*(F68-F67)*H68+$FA$24*(F68-F67)*H68*B69+$FA$25*P68+$FA$26*P68*I69+$FA$27*P68*G69+$FA$28*P68*H69+$FA$29*P68*(F68-F67)+$FA$30*P68*(F68^2-F67^2)) -> -0.11% | AT69: -0.3% | AU69: 0 | AV69: 1 | AW69: 0 | AX69: 1 | AY69: 0 | AZ69: 2 | BA69: 0 | BB69: 1 | BC69: 1 | BE69: =SUM($BD$32:BD69)/COUNT($BD$32:BD69) -> 0.7 | BG69: =IF(Y69=0,CL69-CD69,"") ->  | BJ69: =SUM($BF$32:BF69)/COUNT($BF$32:BF69) -> 70.0% | BK69: =BJ69-AP69 -> 10.0% | BM69: =IF(AC69>0,1,0) -> 0.0% | BN69: =IF(AS69>0,1,0) -> 0.00% | BO69: =IF(AS69-AC69>0,1,0) -> 1 | BP69: =IF(BO69+AU69=2,1,0) -> 0 | BQ69: =IF(C68>0,1,0) -> 0 | BR69: =A69 -> 44827 | BS69: =IF(ABS(C69)>0,IF(BQ69>0,BS68*(1+(C69-E69)),BS68*(1-(C69-E69))),BS68) -> 95.35083883 | BT69: 0.009023440722 | BU69: =BU68*(1+C69) -> 1900-03-29T16:06:42.285 | BV69: -0.01723261637 | BW69: 0 | BX69: =IF(X69=0,IF(BM69>0,BX68*(1+(C69-E69)),BX68*(1-(C69-E69))),BX68) -> 105.0004395 | CA69: =IF(Y69=0,IF(BM69>0,CA68*(1+(C69-E69)),CA68*(1-(C69-E69))),CA68) -> 105.0004395 | CB69: =IF(Y69=0,IF(BM69>0,CA69/CA68-1,CA69/CA68-1),"") ->  | CE69: =SUM($CD$30:CD69)/COUNT($CD$30:CD69) -> 0.5806451613 | CF69: 102.5247011 | CG69: =IF(X69=0,IF(BN69>0,CG68*(1+(C69-E69)),CG68*(1-(C69-E69))),CG68) -> 111.0388927 | CI69: =IF(X69=0,IF(CG69/CG68-1>=0,1,0),"") ->  | CJ69: =IF(Y69=0,IF(BN69>0,CJ68*(1+(C69-E69)),CJ68*(1-(C69-E69))),CJ68) -> 111.0388927 | CK69: =IF(Y69=0,IF(BN69>0,CJ69/CJ68-1,CJ69/CJ68-1),"") ->  | CM69: =SUM($CL$30:CL69)/COUNT($CL$30:CL69) -> 0.6774193548 | CN69: =IF(CK69="","",CK69-CC69) ->  | CO69: =COUNT($CN$32:CN69) -> 3000% | CR69: =SUM($CP$32:CP69) -> 4.00 | CS69: =SUM($CQ$32:CQ69) -> 3.00 | CT69: 0.12 | CU69: 0.10 | CV69: 13% | CW69: 0.10 | CX69: 3.3% | CY69: 40.2% | CZ69: 34.4% | DB69: =IF(Y69=0,IF(CJ69/CJ68-1>=0,1,0),"") ->  | DC69: =(CG69-BX69)/100 -> 0.06038453157 | DD69: =(CJ69-CA69)/100 -> 0.06038453157
A70: =A6090 -> 2022-09-26 | B70: 1 | C70: =C6090/C6089-1 -> -1.034% | D70: =D6090/C6089-1 -> -0.28% | E70: -0.3% | F70: =E6090 -> 32.26 | G70: =F6090/F6089-1 -> -0.44% | H70: =G6090/G6089-1 -> -2.66% | I70: =H6090/H6089-1 -> -0.34% | K70: 2022-09-26 | L70: 2.54 | M70: 2.43 | N70: 3.54 | O70: 2.98 | P70: 2.43 | Q70: 2022-09-26 | R70: 3.54 | S70: =IF(P70>$Q$29,1,0) -> 1 | U70: =IF($A$19=1,T70,0) -> 0 | W70: 1 | X70: =IF($C$19=1,W70,0) -> 1 | Y70: 1 | AB70: 0 | AC70: =$EU$9+$EU$10*C69+$EU$11*I70+$EU$12*G70+$EU$13*H70+$EU$14*C69^2+$EU$15*I69+$EU$16*H69+$EU$17*B70+$EU$18*B70*I70+$EU$19*B70*I69+$EU$20*B70*H70+$EU$21*B70*H69+$EU$22*(F69-F68)+$EU$23*(F69-F68)*H69+$EU$24*(F69-F68)*H69*B70 -> 0.05% | AD70: 1 | AE70: 0 | AF70: 0 | AG70: 1 | AH70: 1 | AI70: 1 | AJ70: 0 | AK70: 0 | AL70: 0 | AN70: =SUM($AM$32:AM70)/COUNT($AM$32:AM70) -> 0.6 | AP70: =SUM($AO$32:AO70)/COUNT($AO$32:AO70) -> 60.0% | AQ70: 60.0% | AR70: 59.0% | AS70: =IF($B$19=1,IF(S70=1,$FA$9+$FA$10*C69+$FA$11*I70+$FA$12*G70+$FA$13*H70+$FA$14*C69^2+$FA$15*I69+$FA$16*H69+$FA$17*B70+$FA$18*B70*I70+$FA$19*B70*I69+$FA$20*B70*H70+$FA$21*B70*H69+$FA$22*(F69-F68)+$FA$23*(F69-F68)*H69+$FA$24*(F69-F68)*H69*B70+$FA$25*P69+$FA$26*P69*I70+$FA$27*P69*G70+$FA$28*P69*H70+$FA$29*P69*(F69-F68)+$FA$30*P69*(F69^2-F68^2),AC70),$FA$9+$FA$10*C69+$FA$11*I70+$FA$12*G70+$FA$13*H70+$FA$14*C69^2+$FA$15*I69+$FA$16*H69+$FA$17*B70+$FA$18*B70*I70+$FA$19*B70*I69+$FA$20*B70*H70+$FA$21*B70*H69+$FA$22*(F69-F68)+$FA$23*(F69-F68)*H69+$FA$24*(F69-F68)*H69*B70+$FA$25*P69+$FA$26*P69*I70+$FA$27*P69*G70+$FA$28*P69*H70+$FA$29*P69*(F69-F68)+$FA$30*P69*(F69^2-F68^2)) -> 0.04% | AT70: -0.0% | AU70: 1 | AV70: 0 | AW70: 0 | AX70: 1 | AY70: 1 | AZ70: 1 | BA70: 0 | BB70: 0 | BC70: 0 | BE70: =SUM($BD$32:BD70)/COUNT($BD$32:BD70) -> 0.7 | BG70: =IF(Y70=0,CL70-CD70,"") ->  | BJ70: =SUM($BF$32:BF70)/COUNT($BF$32:BF70) -> 70.0% | BK70: =BJ70-AP70 -> 10.0% | BM70: =IF(AC70>0,1,0) -> 100.0% | BN70: =IF(AS70>0,1,0) -> 100.00% | BO70: =IF(AS70-AC70>0,1,0) -> 0 | BP70: =IF(BO70+AU70=2,1,0) -> 0 | BQ70: =IF(C69>0,1,0) -> 0 | BR70: =A70 -> 44830 | BS70: =IF(ABS(C70)>0,IF(BQ70>0,BS69*(1+(C70-E70)),BS69*(1-(C70-E70))),BS69) -> 96.06547377 | BT70: 0.007494794529 | BU70: =BU69*(1+C70) -> 1900-03-28T17:51:27.878 | BV70: -0.01034054202 | BW70: 0 | BX70: =IF(X70=0,IF(BM70>0,BX69*(1+(C70-E70)),BX69*(1-(C70-E70))),BX69) -> 105.0004395 | CA70: =IF(Y70=0,IF(BM70>0,CA69*(1+(C70-E70)),CA69*(1-(C70-E70))),CA69) -> 105.0004395 | CB70: =IF(Y70=0,IF(BM70>0,CA70/CA69-1,CA70/CA69-1),"") ->  | CC70: =CA70/CA69-1 -> 0 | CE70: =SUM($CD$30:CD70)/COUNT($CD$30:CD70) -> 0.5806451613 | CF70: 102.5247011 | CG70: =IF(X70=0,IF(BN70>0,CG69*(1+(C70-E70)),CG69*(1-(C70-E70))),CG69) -> 111.0388927 | CI70: =IF(X70=0,IF(CG70/CG69-1>=0,1,0),"") ->  | CJ70: =IF(Y70=0,IF(BN70>0,CJ69*(1+(C70-E70)),CJ69*(1-(C70-E70))),CJ69) -> 111.0388927 | CK70: =IF(Y70=0,IF(BN70>0,CJ70/CJ69-1,CJ70/CJ69-1),"") ->  | CM70: =SUM($CL$30:CL70)/COUNT($CL$30:CL70) -> 0.6774193548 | CN70: =IF(CK70="","",CK70-CC70) ->  | CO70: =COUNT($CN$32:CN70) -> 3000% | CR70: =SUM($CP$32:CP70) -> 4.00 | CS70: =SUM($CQ$32:CQ70) -> 3.00 | CT70: 0.12 | CU70: 0.10 | CV70: 13% | CW70: 0.10 | CX70: 3.3% | CY70: 40.2% | CZ70: 34.4% | DB70: =IF(Y70=0,IF(CJ70/CJ69-1>=0,1,0),"") ->  | DC70: =(CG70-BX70)/100 -> 0.06038453157 | DD70: =(CJ70-CA70)/100 -> 0.06038453157
A71: =A6091 -> 2022-09-27 | B71: 0 | C71: =C6091/C6090-1 -> -0.212% | D71: =D6091/C6090-1 -> 0.86% | E71: 0.9% | F71: =E6091 -> 32.60 | G71: =F6091/F6090-1 -> 0.03% | H71: =G6091/G6090-1 -> 0.53% | I71: =H6091/H6090-1 -> 0.97% | K71: 2022-09-27 | L71: 3.41 | M71: 3.24 | N71: 3.41 | O71: 3.33 | P71: 3.24 | Q71: 2022-09-27 | R71: 3.41 | S71: =IF(P71>$Q$29,1,0) -> 1 | U71: =IF($A$19=1,T71,0) -> 0 | Y71: 0 | AB71: 0 | AC71: =$EU$9+$EU$10*C70+$EU$11*I71+$EU$12*G71+$EU$13*H71+$EU$14*C70^2+$EU$15*I70+$EU$16*H70+$EU$17*B71+$EU$18*B71*I71+$EU$19*B71*I70+$EU$20*B71*H71+$EU$21*B71*H70+$EU$22*(F70-F69)+$EU$23*(F70-F69)*H70+$EU$24*(F70-F69)*H70*B71 -> 0.76% | AD71: 1 | AE71: 0 | AF71: 0 | AG71: 1 | AH71: 1 | AI71: 1 | AJ71: 0 | AK71: 0 | AL71: 0 | AM71: 0 | AN71: =SUM($AM$32:AM71)/COUNT($AM$32:AM71) -> 0.5806451613 | AO71: 0 | AP71: =SUM($AO$32:AO71)/COUNT($AO$32:AO71) -> 58.1% | AQ71: 58.1% | AR71: 57.5% | AS71: =IF($B$19=1,IF(S71=1,$FA$9+$FA$10*C70+$FA$11*I71+$FA$12*G71+$FA$13*H71+$FA$14*C70^2+$FA$15*I70+$FA$16*H70+$FA$17*B71+$FA$18*B71*I71+$FA$19*B71*I70+$FA$20*B71*H71+$FA$21*B71*H70+$FA$22*(F70-F69)+$FA$23*(F70-F69)*H70+$FA$24*(F70-F69)*H70*B71+$FA$25*P70+$FA$26*P70*I71+$FA$27*P70*G71+$FA$28*P70*H71+$FA$29*P70*(F70-F69)+$FA$30*P70*(F70^2-F69^2),AC71),$FA$9+$FA$10*C70+$FA$11*I71+$FA$12*G71+$FA$13*H71+$FA$14*C70^2+$FA$15*I70+$FA$16*H70+$FA$17*B71+$FA$18*B71*I71+$FA$19*B71*I70+$FA$20*B71*H71+$FA$21*B71*H70+$FA$22*(F70-F69)+$FA$23*(F70-F69)*H70+$FA$24*(F70-F69)*H70*B71+$FA$25*P70+$FA$26*P70*I71+$FA$27*P70*G71+$FA$28*P70*H71+$FA$29*P70*(F70-F69)+$FA$30*P70*(F70^2-F69^2)) -> 0.74% | AT71: -0.0% | AU71: 1 | AV71: 0 | AW71: 0 | AX71: 1 | AY71: 1 | AZ71: 1 | BA71: 0 | BB71: 0 | BC71: 0 | BD71: 0 | BE71: =SUM($BD$32:BD71)/COUNT($BD$32:BD71) -> 0.6774193548 | BF71: 0 | BG71: =IF(Y71=0,CL71-CD71,"") -> 0 | BH71: 0 | BI71: 0 | BJ71: =SUM($BF$32:BF71)/COUNT($BF$32:BF71) -> 67.7% | BK71: =BJ71-AP71 -> 9.7% | BM71: =IF(AC71>0,1,0) -> 100.0% | BN71: =IF(AS71>0,1,0) -> 100.00% | BO71: =IF(AS71-AC71>0,1,0) -> 0 | BP71: =IF(BO71+AU71=2,1,0) -> 0 | BQ71: =IF(C70>0,1,0) -> 0 | BR71: =A71 -> 44831 | BS71: =IF(ABS(C71)>0,IF(BQ71>0,BS70*(1+(C71-E71)),BS70*(1-(C71-E71))),BS70) -> 97.09445384 | BT71: 0.01071123709 | BU71: =BU70*(1+C71) -> 1900-03-28T13:20:30.045 | BV71: -0.002120359832 | BW71: 0 | BX71: =IF(X71=0,IF(BM71>0,BX70*(1+(C71-E71)),BX70*(1-(C71-E71))),BX70) -> 103.8757549 | BY71: -0.01071123709 | BZ71: 0 | CA71: =IF(Y71=0,IF(BM71>0,CA70*(1+(C71-E71)),CA70*(1-(C71-E71))),CA70) -> 103.8757549 | CB71: =IF(Y71=0,IF(BM71>0,CA71/CA70-1,CA71/CA70-1),"") -> -0.01071123709 | CC71: -0.01071123709 | CD71: 0 | CE71: =SUM($CD$30:CD71)/COUNT($CD$30:CD71) -> 0.5625 | CF71: 101.9756179 | CG71: =IF(X71=0,IF(BN71>0,CG70*(1+(C71-E71)),CG70*(1-(C71-E71))),CG70) -> 109.8495288 | CH71: -1% | CI71: =IF(X71=0,IF(CG71/CG70-1>=0,1,0),"") -> 0 | CJ71: =IF(Y71=0,IF(BN71>0,CJ70*(1+(C71-E71)),CJ70*(1-(C71-E71))),CJ70) -> 109.8495288 | CK71: =IF(Y71=0,IF(BN71>0,CJ71/CJ70-1,CJ71/CJ70-1),"") -> -0.01071123709 | CL71: 0 | CM71: =SUM($CL$30:CL71)/COUNT($CL$30:CL71) -> 0.65625 | CN71: =IF(CK71="","",CK71-CC71) -> 0 | CO71: =COUNT($CN$32:CN71) -> 3100% | CP71: 0% | CQ71: 0 | CR71: =SUM($CP$32:CP71) -> 4.00 | CS71: =SUM($CQ$32:CQ71) -> 3.00 | CT71: 0.11 | CU71: 0.10 | CV71: 13% | CW71: 0.10 | CX71: 3.2% | CY71: 40.1% | CZ71: 34.4% | DA71: -0.01071123709 | DB71: =IF(Y71=0,IF(CJ71/CJ70-1>=0,1,0),"") -> 0 | DC71: =(CG71-BX71)/100 -> 0.05973773854 | DD71: =(CJ71-CA71)/100 -> 0.05973773854
A72: =A6092 -> 2022-09-28 | B72: 0 | C72: =C6092/C6091-1 -> 1.967% | D72: =D6092/C6091-1 -> 0.13% | E72: 0.1% | F72: =E6092 -> 30.18 | G72: =F6092/F6091-1 -> -3.41% | H72: =G6092/G6091-1 -> -1.50% | I72: =H6092/H6091-1 -> 0.51% | K72: 2022-09-28 | L72: 2.41 | M72: 2.24 | N72: 3.15 | O72: 2.69 | P72: 2.24 | Q72: 2022-09-28 | R72: 3.15 | S72: =IF(P72>$Q$29,1,0) -> 0 | U72: =IF($A$19=1,T72,0) -> 0 | Y72: 0 | AB72: 0 | AC72: =$EU$9+$EU$10*C71+$EU$11*I72+$EU$12*G72+$EU$13*H72+$EU$14*C71^2+$EU$15*I71+$EU$16*H71+$EU$17*B72+$EU$18*B72*I72+$EU$19*B72*I71+$EU$20*B72*H72+$EU$21*B72*H71+$EU$22*(F71-F70)+$EU$23*(F71-F70)*H71+$EU$24*(F71-F70)*H71*B72 -> 0.09% | AD72: 1 | AE72: 0 | AF72: 1 | AG72: 0 | AH72: 2 | AI72: 0 | AJ72: 1 | AK72: 0 | AL72: 1 | AM72: 1 | AN72: =SUM($AM$32:AM72)/COUNT($AM$32:AM72) -> 0.59375 | AO72: 1 | AP72: =SUM($AO$32:AO72)/COUNT($AO$32:AO72) -> 59.4% | AQ72: 59.4% | AR72: 58.5% | AS72: =IF($B$19=1,IF(S72=1,$FA$9+$FA$10*C71+$FA$11*I72+$FA$12*G72+$FA$13*H72+$FA$14*C71^2+$FA$15*I71+$FA$16*H71+$FA$17*B72+$FA$18*B72*I72+$FA$19*B72*I71+$FA$20*B72*H72+$FA$21*B72*H71+$FA$22*(F71-F70)+$FA$23*(F71-F70)*H71+$FA$24*(F71-F70)*H71*B72+$FA$25*P71+$FA$26*P71*I72+$FA$27*P71*G72+$FA$28*P71*H72+$FA$29*P71*(F71-F70)+$FA$30*P71*(F71^2-F70^2),AC72),$FA$9+$FA$10*C71+$FA$11*I72+$FA$12*G72+$FA$13*H72+$FA$14*C71^2+$FA$15*I71+$FA$16*H71+$FA$17*B72+$FA$18*B72*I72+$FA$19*B72*I71+$FA$20*B72*H72+$FA$21*B72*H71+$FA$22*(F71-F70)+$FA$23*(F71-F70)*H71+$FA$24*(F71-F70)*H71*B72+$FA$25*P71+$FA$26*P71*I72+$FA$27*P71*G72+$FA$28*P71*H72+$FA$29*P71*(F71-F70)+$FA$30*P71*(F71^2-F70^2)) -> 0.41% | AT72: 0.3% | AU72: 1 | AV72: 0 | AW72: 1 | AX72: 0 | AY72: 2 | AZ72: 0 | BA72: 1 | BB72: 0 | BC72: 1 | BD72: 1 | BE72: =SUM($BD$32:BD72)/COUNT($BD$32:BD72) -> 0.6875 | BF72: 1 | BG72: =IF(Y72=0,CL72-CD72,"") -> 0 | BH72: 0 | BI72: 0 | BJ72: =SUM($BF$32:BF72)/COUNT($BF$32:BF72) -> 68.8% | BK72: =BJ72-AP72 -> 9.4% | BM72: =IF(AC72>0,1,0) -> 100.0% | BN72: =IF(AS72>0,1,0) -> 100.00% | BO72: =IF(AS72-AC72>0,1,0) -> 1 | BP72: =IF(BO72+AU72=2,1,0) -> 1 | BQ72: =IF(C71>0,1,0) -> 0 | BR72: =A72 -> 44832 | BS72: =IF(ABS(C72)>0,IF(BQ72>0,BS71*(1+(C72-E72)),BS71*(1-(C72-E72))),BS71) -> 95.30818572 | BT72: -0.01839722095 | BU72: =BU71*(1+C72) -> 1900-03-30T07:09:06.115 | BV72: 0.01967214014 | BW72: 1 | BX72: =IF(X72=0,IF(BM72>0,BX71*(1+(C72-E72)),BX71*(1-(C72-E72))),BX71) -> 105.7867801 | BY72: 0.01839722095 | BZ72: 1 | CA72: =IF(Y72=0,IF(BM72>0,CA71*(1+(C72-E72)),CA71*(1-(C72-E72))),CA71) -> 105.7867801 | CB72: =IF(Y72=0,IF(BM72>0,CA72/CA71-1,CA72/CA71-1),"") -> 0.01839722095 | CC72: 0.01839722095 | CD72: 1 | CE72: =SUM($CD$30:CD72)/COUNT($CD$30:CD72) -> 0.5757575758 | CF72: 102.9136519 | CG72: =IF(X72=0,IF(BN72>0,CG71*(1+(C72-E72)),CG71*(1-(C72-E72))),CG71) -> 111.8704548 | CH72: 2% | CI72: =IF(X72=0,IF(CG72/CG71-1>=0,1,0),"") -> 1 | CJ72: =IF(Y72=0,IF(BN72>0,CJ71*(1+(C72-E72)),CJ71*(1-(C72-E72))),CJ71) -> 111.8704548 | CK72: =IF(Y72=0,IF(BN72>0,CJ72/CJ71-1,CJ72/CJ71-1),"") -> 0.01839722095 | CL72: 1 | CM72: =SUM($CL$30:CL72)/COUNT($CL$30:CL72) -> 0.6666666667 | CN72: =IF(CK72="","",CK72-CC72) -> 0 | CO72: =COUNT($CN$32:CN72) -> 3200% | CP72: 0% | CQ72: 0 | CR72: =SUM($CP$32:CP72) -> 4.00 | CS72: =SUM($CQ$32:CQ72) -> 3.00 | CT72: 0.11 | CU72: 0.10 | CV72: 13% | CW72: 0.09 | CX72: 3.1% | CY72: 40.1% | CZ72: 34.4% | DA72: 0.01839722095 | DB72: =IF(Y72=0,IF(CJ72/CJ71-1>=0,1,0),"") -> 1 | DC72: =(CG72-BX72)/100 -> 0.06083674691 | DD72: =(CJ72-CA72)/100 -> 0.06083674691
A73: =A6093 -> 2022-09-29 | B73: 0 | C73: =C6093/C6092-1 -> -2.113% | D73: =D6093/C6092-1 -> -0.86% | E73: -0.9% | F73: =E6093 -> 31.84 | G73: =F6093/F6092-1 -> -0.49% | H73: =G6093/G6092-1 -> 0.95% | I73: =H6093/H6092-1 -> -2.41% | K73: 2022-09-29 | L73: 2.43 | M73: 2.57 | N73: 3.12 | O73: 2.84 | P73: 2.57 | Q73: 2022-09-29 | R73: 3.12 | S73: =IF(P73>$Q$29,1,0) -> 1 | U73: =IF($A$19=1,T73,0) -> 0 | Y73: 0 | AB73: 0 | AC73: =$EU$9+$EU$10*C72+$EU$11*I73+$EU$12*G73+$EU$13*H73+$EU$14*C72^2+$EU$15*I72+$EU$16*H72+$EU$17*B73+$EU$18*B73*I73+$EU$19*B73*I72+$EU$20*B73*H73+$EU$21*B73*H72+$EU$22*(F72-F71)+$EU$23*(F72-F71)*H72+$EU$24*(F72-F71)*H72*B73 -> -1.58% | AD73: 0 | AE73: 1 | AF73: 0 | AG73: 1 | AH73: 0 | AI73: 2 | AJ73: 0 | AK73: 1 | AL73: 1 | AM73: 1 | AN73: =SUM($AM$32:AM73)/COUNT($AM$32:AM73) -> 0.6060606061 | AO73: 1 | AP73: =SUM($AO$32:AO73)/COUNT($AO$32:AO73) -> 60.6% | AQ73: 60.6% | AR73: 59.5% | AS73: =IF($B$19=1,IF(S73=1,$FA$9+$FA$10*C72+$FA$11*I73+$FA$12*G73+$FA$13*H73+$FA$14*C72^2+$FA$15*I72+$FA$16*H72+$FA$17*B73+$FA$18*B73*I73+$FA$19*B73*I72+$FA$20*B73*H73+$FA$21*B73*H72+$FA$22*(F72-F71)+$FA$23*(F72-F71)*H72+$FA$24*(F72-F71)*H72*B73+$FA$25*P72+$FA$26*P72*I73+$FA$27*P72*G73+$FA$28*P72*H73+$FA$29*P72*(F72-F71)+$FA$30*P72*(F72^2-F71^2),AC73),$FA$9+$FA$10*C72+$FA$11*I73+$FA$12*G73+$FA$13*H73+$FA$14*C72^2+$FA$15*I72+$FA$16*H72+$FA$17*B73+$FA$18*B73*I73+$FA$19*B73*I72+$FA$20*B73*H73+$FA$21*B73*H72+$FA$22*(F72-F71)+$FA$23*(F72-F71)*H72+$FA$24*(F72-F71)*H72*B73+$FA$25*P72+$FA$26*P72*I73+$FA$27*P72*G73+$FA$28*P72*H73+$FA$29*P72*(F72-F71)+$FA$30*P72*(F72^2-F71^2)) -> -1.70% | AT73: 0.1% | AU73: 0 | AV73: 1 | AW73: 0 | AX73: 1 | AY73: 0 | AZ73: 2 | BA73: 0 | BB73: 1 | BC73: 1 | BD73: 1 | BE73: =SUM($BD$32:BD73)/COUNT($BD$32:BD73) -> 0.696969697 | BF73: 1 | BG73: =IF(Y73=0,CL73-CD73,"") -> 0 | BH73: 0 | BI73: 0 | BJ73: =SUM($BF$32:BF73)/COUNT($BF$32:BF73) -> 69.7% | BK73: =BJ73-AP73 -> 9.1% | BM73: =IF(AC73>0,1,0) -> 0.0% | BN73: =IF(AS73>0,1,0) -> 0.00% | BO73: =IF(AS73-AC73>0,1,0) -> 0 | BP73: =IF(BO73+AU73=2,1,0) -> 0 | BQ73: =IF(C72>0,1,0) -> 1 | BR73: =A73 -> 44833 | BS73: =IF(ABS(C73)>0,IF(BQ73>0,BS72*(1+(C73-E73)),BS72*(1-(C73-E73))),BS72) -> 94.11550079 | BT73: -0.0125139821 | BU73: =BU72*(1+C73) -> 1900-03-28T09:22:03.152 | BV73: -0.02112641972 | BW73: 0 | BX73: =IF(X73=0,IF(BM73>0,BX72*(1+(C73-E73)),BX72*(1-(C73-E73))),BX72) -> 107.110594 | BY73: 0.0125139821 | BZ73: 1 | CA73: =IF(Y73=0,IF(BM73>0,CA72*(1+(C73-E73)),CA72*(1-(C73-E73))),CA72) -> 107.110594 | CB73: =IF(Y73=0,IF(BM73>0,CA73/CA72-1,CA73/CA72-1),"") -> 0.0125139821 | CC73: 0.0125139821 | CD73: 1 | CE73: =SUM($CD$30:CD73)/COUNT($CD$30:CD73) -> 0.5882352941 | CF73: 103.5575817 | CG73: =IF(X73=0,IF(BN73>0,CG72*(1+(C73-E73)),CG72*(1-(C73-E73))),CG72) -> 113.2703997 | CH73: 1% | CI73: =IF(X73=0,IF(CG73/CG72-1>=0,1,0),"") -> 1 | CJ73: =IF(Y73=0,IF(BN73>0,CJ72*(1+(C73-E73)),CJ72*(1-(C73-E73))),CJ72) -> 113.2703997 | CK73: =IF(Y73=0,IF(BN73>0,CJ73/CJ72-1,CJ73/CJ72-1),"") -> 0.0125139821 | CL73: 1 | CM73: =SUM($CL$30:CL73)/COUNT($CL$30:CL73) -> 0.6764705882 | CN73: =IF(CK73="","",CK73-CC73) -> 0 | CO73: =COUNT($CN$32:CN73) -> 3300% | CP73: 0% | CQ73: 0 | CR73: =SUM($CP$32:CP73) -> 4.00 | CS73: =SUM($CQ$32:CQ73) -> 3.00 | CT73: 0.11 | CU73: 0.09 | CV73: 12% | CW73: 0.09 | CX73: 3.0% | CY73: 40.0% | CZ73: 34.5% | DA73: 0.0125139821 | DB73: =IF(Y73=0,IF(CJ73/CJ72-1>=0,1,0),"") -> 1 | DC73: =(CG73-BX73)/100 -> 0.06159805688 | DD73: =(CJ73-CA73)/100 -> 0.06159805688
A74: =A6094 -> 2022-09-30 | B74: 0 | C74: =C6094/C6093-1 -> -1.507% | D74: =D6094/C6093-1 -> -0.19% | E74: -0.2% | F74: =E6094 -> 31.62 | G74: =F6094/F6093-1 -> 0.33% | H74: =G6094/G6093-1 -> -1.83% | I74: =H6094/H6093-1 -> 1.93% | K74: 2022-09-30 | L74: 3.50 | M74: 3.56 | N74: 3.71 | O74: 3.63 | P74: 3.56 | Q74: 2022-09-30 | R74: 3.71 | S74: =IF(P74>$Q$29,1,0) -> 1 | U74: =IF($A$19=1,T74,0) -> 0 | Y74: 0 | AB74: 0 | AC74: =$EU$9+$EU$10*C73+$EU$11*I74+$EU$12*G74+$EU$13*H74+$EU$14*C73^2+$EU$15*I73+$EU$16*H73+$EU$17*B74+$EU$18*B74*I74+$EU$19*B74*I73+$EU$20*B74*H74+$EU$21*B74*H73+$EU$22*(F73-F72)+$EU$23*(F73-F72)*H73+$EU$24*(F73-F72)*H73*B74 -> 1.30% | AD74: 1 | AE74: 0 | AF74: 0 | AG74: 1 | AH74: 1 | AI74: 1 | AJ74: 0 | AK74: 0 | AL74: 0 | AM74: 0 | AN74: =SUM($AM$32:AM74)/COUNT($AM$32:AM74) -> 0.5882352941 | AO74: 0 | AP74: =SUM($AO$32:AO74)/COUNT($AO$32:AO74) -> 58.8% | AQ74: 58.8% | AR74: 58.1% | AS74: =IF($B$19=1,IF(S74=1,$FA$9+$FA$10*C73+$FA$11*I74+$FA$12*G74+$FA$13*H74+$FA$14*C73^2+$FA$15*I73+$FA$16*H73+$FA$17*B74+$FA$18*B74*I74+$FA$19*B74*I73+$FA$20*B74*H74+$FA$21*B74*H73+$FA$22*(F73-F72)+$FA$23*(F73-F72)*H73+$FA$24*(F73-F72)*H73*B74+$FA$25*P73+$FA$26*P73*I74+$FA$27*P73*G74+$FA$28*P73*H74+$FA$29*P73*(F73-F72)+$FA$30*P73*(F73^2-F72^2),AC74),$FA$9+$FA$10*C73+$FA$11*I74+$FA$12*G74+$FA$13*H74+$FA$14*C73^2+$FA$15*I73+$FA$16*H73+$FA$17*B74+$FA$18*B74*I74+$FA$19*B74*I73+$FA$20*B74*H74+$FA$21*B74*H73+$FA$22*(F73-F72)+$FA$23*(F73-F72)*H73+$FA$24*(F73-F72)*H73*B74+$FA$25*P73+$FA$26*P73*I74+$FA$27*P73*G74+$FA$28*P73*H74+$FA$29*P73*(F73-F72)+$FA$30*P73*(F73^2-F72^2)) -> 1.33% | AT74: 0.0% | AU74: 1 | AV74: 0 | AW74: 0 | AX74: 1 | AY74: 1 | AZ74: 1 | BA74: 0 | BB74: 0 | BC74: 0 | BD74: 0 | BE74: =SUM($BD$32:BD74)/COUNT($BD$32:BD74) -> 0.6764705882 | BF74: 0 | BG74: =IF(Y74=0,CL74-CD74,"") -> 0 | BH74: 0 | BI74: 0 | BJ74: =SUM($BF$32:BF74)/COUNT($BF$32:BF74) -> 67.6% | BK74: =BJ74-AP74 -> 8.8% | BM74: =IF(AC74>0,1,0) -> 100.0% | BN74: =IF(AS74>0,1,0) -> 100.00% | BO74: =IF(AS74-AC74>0,1,0) -> 1 | BP74: =IF(BO74+AU74=2,1,0) -> 1 | BQ74: =IF(C73>0,1,0) -> 0 | BR74: =A74 -> 44834 | BS74: =IF(ABS(C74)>0,IF(BQ74>0,BS73*(1+(C74-E74)),BS73*(1-(C74-E74))),BS73) -> 95.35280473 | BT74: 0.01314665414 | BU74: =BU73*(1+C74) -> 1900-03-27T01:24:19.648 | BV74: -0.01506673589 | BW74: 0 | BX74: =IF(X74=0,IF(BM74>0,BX73*(1+(C74-E74)),BX73*(1-(C74-E74))),BX73) -> 105.7024481 | BY74: -0.01314665414 | BZ74: 0 | CA74: =IF(Y74=0,IF(BM74>0,CA73*(1+(C74-E74)),CA73*(1-(C74-E74))),CA73) -> 105.7024481 | CB74: =IF(Y74=0,IF(BM74>0,CA74/CA73-1,CA74/CA73-1),"") -> -0.01314665414 | CC74: -0.01314665414 | CD74: 0 | CE74: =SUM($CD$30:CD74)/COUNT($CD$30:CD74) -> 0.5714285714 | CF74: 102.8768638 | CG74: =IF(X74=0,IF(BN74>0,CG73*(1+(C74-E74)),CG73*(1-(C74-E74))),CG73) -> 111.7812729 | CH74: -1% | CI74: =IF(X74=0,IF(CG74/CG73-1>=0,1,0),"") -> 0 | CJ74: =IF(Y74=0,IF(BN74>0,CJ73*(1+(C74-E74)),CJ73*(1-(C74-E74))),CJ73) -> 111.7812729 | CK74: =IF(Y74=0,IF(BN74>0,CJ74/CJ73-1,CJ74/CJ73-1),"") -> -0.01314665414 | CL74: 0 | CM74: =SUM($CL$30:CL74)/COUNT($CL$30:CL74) -> 0.6571428571 | CN74: =IF(CK74="","",CK74-CC74) -> 0 | CO74: =COUNT($CN$32:CN74) -> 3400% | CP74: 0% | CQ74: 0 | CR74: =SUM($CP$32:CP74) -> 4.00 | CS74: =SUM($CQ$32:CQ74) -> 3.00 | CT74: 0.10 | CU74: 0.09 | CV74: 12% | CW74: 0.09 | CX74: 2.9% | CY74: 39.9% | CZ74: 34.5% | DA74: -0.01314665414 | DB74: =IF(Y74=0,IF(CJ74/CJ73-1>=0,1,0),"") -> 0 | DC74: =(CG74-BX74)/100 -> 0.06078824853 | DD74: =(CJ74-CA74)/100 -> 0.06078824853
A75: =A6095 -> 2022-10-03 | B75: 1 | C75: =C6095/C6094-1 -> 2.588% | D75: =D6095/C6094-1 -> 0.67% | E75: 0.7% | F75: =E6095 -> 30.10 | G75: =F6095/F6094-1 -> -0.83% | H75: =G6095/G6094-1 -> 1.07% | I75: =H6095/H6094-1 -> 0.58% | K75: 2022-10-03 | L75: 2.07 | M75: 2.32 | N75: 3.25 | O75: 2.78 | P75: 2.32 | Q75: 2022-10-03 | R75: 3.25 | S75: =IF(P75>$Q$29,1,0) -> 0 | U75: =IF($A$19=1,T75,0) -> 0 | Y75: 0 | AB75: 0 | AC75: =$EU$9+$EU$10*C74+$EU$11*I75+$EU$12*G75+$EU$13*H75+$EU$14*C74^2+$EU$15*I74+$EU$16*H74+$EU$17*B75+$EU$18*B75*I75+$EU$19*B75*I74+$EU$20*B75*H75+$EU$21*B75*H74+$EU$22*(F74-F73)+$EU$23*(F74-F73)*H74+$EU$24*(F74-F73)*H74*B75 -> 0.71% | AD75: 1 | AE75: 0 | AF75: 1 | AG75: 0 | AH75: 2 | AI75: 0 | AJ75: 1 | AK75: 0 | AL75: 1 | AM75: 1 | AN75: =SUM($AM$32:AM75)/COUNT($AM$32:AM75) -> 0.6 | AO75: 1 | AP75: =SUM($AO$32:AO75)/COUNT($AO$32:AO75) -> 60.0% | AQ75: 60.0% | AR75: 59.1% | AS75: =IF($B$19=1,IF(S75=1,$FA$9+$FA$10*C74+$FA$11*I75+$FA$12*G75+$FA$13*H75+$FA$14*C74^2+$FA$15*I74+$FA$16*H74+$FA$17*B75+$FA$18*B75*I75+$FA$19*B75*I74+$FA$20*B75*H75+$FA$21*B75*H74+$FA$22*(F74-F73)+$FA$23*(F74-F73)*H74+$FA$24*(F74-F73)*H74*B75+$FA$25*P74+$FA$26*P74*I75+$FA$27*P74*G75+$FA$28*P74*H75+$FA$29*P74*(F74-F73)+$FA$30*P74*(F74^2-F73^2),AC75),$FA$9+$FA$10*C74+$FA$11*I75+$FA$12*G75+$FA$13*H75+$FA$14*C74^2+$FA$15*I74+$FA$16*H74+$FA$17*B75+$FA$18*B75*I75+$FA$19*B75*I74+$FA$20*B75*H75+$FA$21*B75*H74+$FA$22*(F74-F73)+$FA$23*(F74-F73)*H74+$FA$24*(F74-F73)*H74*B75+$FA$25*P74+$FA$26*P74*I75+$FA$27*P74*G75+$FA$28*P74*H75+$FA$29*P74*(F74-F73)+$FA$30*P74*(F74^2-F73^2)) -> 0.86% | AT75: 0.1% | AU75: 1 | AV75: 0 | AW75: 1 | AX75: 0 | AY75: 2 | AZ75: 0 | BA75: 1 | BB75: 0 | BC75: 1 | BD75: 1 | BE75: =SUM($BD$32:BD75)/COUNT($BD$32:BD75) -> 0.6857142857 | BF75: 1 | BG75: =IF(Y75=0,CL75-CD75,"") -> 0 | BH75: 0 | BI75: 0 | BJ75: =SUM($BF$32:BF75)/COUNT($BF$32:BF75) -> 68.6% | BK75: =BJ75-AP75 -> 8.6% | BM75: =IF(AC75>0,1,0) -> 100.0% | BN75: =IF(AS75>0,1,0) -> 100.00% | BO75: =IF(AS75-AC75>0,1,0) -> 1 | BP75: =IF(BO75+AU75=2,1,0) -> 1 | BQ75: =IF(C74>0,1,0) -> 0 | BR75: =A75 -> 44837 | BS75: =IF(ABS(C75)>0,IF(BQ75>0,BS74*(1+(C75-E75)),BS74*(1-(C75-E75))),BS74) -> 93.52718739 | BT75: -0.01914592177 | BU75: =BU74*(1+C75) -> 1900-03-29T07:29:15.068 | BV75: 0.02588394755 | BW75: 1 | BX75: =IF(X75=0,IF(BM75>0,BX74*(1+(C75-E75)),BX74*(1-(C75-E75))),BX74) -> 107.7262189 | BY75: 0.01914592177 | BZ75: 1 | CA75: =IF(Y75=0,IF(BM75>0,CA74*(1+(C75-E75)),CA74*(1-(C75-E75))),CA74) -> 107.7262189 | CB75: =IF(Y75=0,IF(BM75>0,CA75/CA74-1,CA75/CA74-1),"") -> 0.01914592177 | CC75: 0.01914592177 | CD75: 1 | CE75: =SUM($CD$30:CD75)/COUNT($CD$30:CD75) -> 0.5833333333 | CF75: 103.8617 | CG75: =IF(X75=0,IF(BN75>0,CG74*(1+(C75-E75)),CG74*(1-(C75-E75))),CG74) -> 113.9214284 | CH75: 2% | CI75: =IF(X75=0,IF(CG75/CG74-1>=0,1,0),"") -> 1 | CJ75: =IF(Y75=0,IF(BN75>0,CJ74*(1+(C75-E75)),CJ74*(1-(C75-E75))),CJ74) -> 113.9214284 | CK75: =IF(Y75=0,IF(BN75>0,CJ75/CJ74-1,CJ75/CJ74-1),"") -> 0.01914592177 | CL75: 1 | CM75: =SUM($CL$30:CL75)/COUNT($CL$30:CL75) -> 0.6666666667 | CN75: =IF(CK75="","",CK75-CC75) -> 0 | CO75: =COUNT($CN$32:CN75) -> 3500% | CP75: 0% | CQ75: 0 | CR75: =SUM($CP$32:CP75) -> 4.00 | CS75: =SUM($CQ$32:CQ75) -> 3.00 | CT75: 0.10 | CU75: 0.09 | CV75: 11% | CW75: 0.09 | CX75: 2.9% | CY75: 39.8% | CZ75: 34.5% | DA75: 0.01914592177 | DB75: =IF(Y75=0,IF(CJ75/CJ74-1>=0,1,0),"") -> 1 | DC75: =(CG75-BX75)/100 -> 0.06195209558 | DD75: =(CJ75-CA75)/100 -> 0.06195209558
A76: =A6096 -> 2022-10-04 | B76: 0 | C76: =C6096/C6095-1 -> 3.058% | D76: =D6096/C6095-1 -> 1.31% | E76: 1.3% | F76: =E6096 -> 29.07 | G76: =F6096/F6095-1 -> 0.00% | H76: =G6096/G6095-1 -> 2.96% | I76: =H6096/H6095-1 -> 3.81% | K76: 2022-10-04 | L76: 2.34 | M76: 2.41 | N76: 3.55 | O76: 2.98 | P76: 2.41 | Q76: 2022-10-04 | R76: 3.55 | S76: =IF(P76>$Q$29,1,0) -> 1 | U76: =IF($A$19=1,T76,0) -> 0 | W76: 1 | X76: =IF($C$19=1,W76,0) -> 1 | Y76: 1 | AA76: 1 | AB76: 0 | AC76: =$EU$9+$EU$10*C75+$EU$11*I76+$EU$12*G76+$EU$13*H76+$EU$14*C75^2+$EU$15*I75+$EU$16*H75+$EU$17*B76+$EU$18*B76*I76+$EU$19*B76*I75+$EU$20*B76*H76+$EU$21*B76*H75+$EU$22*(F75-F74)+$EU$23*(F75-F74)*H75+$EU$24*(F75-F74)*H75*B76 -> 1.15% | AD76: 1 | AE76: 0 | AF76: 1 | AG76: 0 | AH76: 2 | AI76: 0 | AJ76: 1 | AK76: 0 | AL76: 1 | AN76: =SUM($AM$32:AM76)/COUNT($AM$32:AM76) -> 0.6 | AP76: =SUM($AO$32:AO76)/COUNT($AO$32:AO76) -> 60.0% | AQ76: 60.0% | AR76: 60.0% | AS76: =IF($B$19=1,IF(S76=1,$FA$9+$FA$10*C75+$FA$11*I76+$FA$12*G76+$FA$13*H76+$FA$14*C75^2+$FA$15*I75+$FA$16*H75+$FA$17*B76+$FA$18*B76*I76+$FA$19*B76*I75+$FA$20*B76*H76+$FA$21*B76*H75+$FA$22*(F75-F74)+$FA$23*(F75-F74)*H75+$FA$24*(F75-F74)*H75*B76+$FA$25*P75+$FA$26*P75*I76+$FA$27*P75*G76+$FA$28*P75*H76+$FA$29*P75*(F75-F74)+$FA$30*P75*(F75^2-F74^2),AC76),$FA$9+$FA$10*C75+$FA$11*I76+$FA$12*G76+$FA$13*H76+$FA$14*C75^2+$FA$15*I75+$FA$16*H75+$FA$17*B76+$FA$18*B76*I76+$FA$19*B76*I75+$FA$20*B76*H76+$FA$21*B76*H75+$FA$22*(F75-F74)+$FA$23*(F75-F74)*H75+$FA$24*(F75-F74)*H75*B76+$FA$25*P75+$FA$26*P75*I76+$FA$27*P75*G76+$FA$28*P75*H76+$FA$29*P75*(F75-F74)+$FA$30*P75*(F75^2-F74^2)) -> 1.14% | AT76: -0.0% | AU76: 1 | AV76: 0 | AW76: 1 | AX76: 0 | AY76: 2 | AZ76: 0 | BA76: 1 | BB76: 0 | BC76: 1 | BE76: =SUM($BD$32:BD76)/COUNT($BD$32:BD76) -> 0.6857142857 | BG76: =IF(Y76=0,CL76-CD76,"") ->  | BJ76: =SUM($BF$32:BF76)/COUNT($BF$32:BF76) -> 68.6% | BK76: =BJ76-AP76 -> 8.6% | BM76: =IF(AC76>0,1,0) -> 100.0% | BN76: =IF(AS76>0,1,0) -> 100.00% | BO76: =IF(AS76-AC76>0,1,0) -> 0 | BP76: =IF(BO76+AU76=2,1,0) -> 0 | BQ76: =IF(C75>0,1,0) -> 1 | BR76: =A76 -> 44838 | BS76: =IF(ABS(C76)>0,IF(BQ76>0,BS75*(1+(C76-E76)),BS75*(1-(C76-E76))),BS75) -> 95.16639155 | BT76: 0.01752649908 | BU76: =BU75*(1+C76) -> 1900-04-01T01:02:35.874 | BV76: 0.03058370011 | BW76: 1 | BX76: =IF(X76=0,IF(BM76>0,BX75*(1+(C76-E76)),BX75*(1-(C76-E76))),BX75) -> 107.7262189 | CA76: =IF(Y76=0,IF(BM76>0,CA75*(1+(C76-E76)),CA75*(1-(C76-E76))),CA75) -> 107.7262189 | CB76: =IF(Y76=0,IF(BM76>0,CA76/CA75-1,CA76/CA75-1),"") ->  | CE76: =SUM($CD$30:CD76)/COUNT($CD$30:CD76) -> 0.5833333333 | CF76: 103.8617 | CG76: =IF(X76=0,IF(BN76>0,CG75*(1+(C76-E76)),CG75*(1-(C76-E76))),CG75) -> 113.9214284 | CI76: =IF(X76=0,IF(CG76/CG75-1>=0,1,0),"") ->  | CJ76: =IF(Y76=0,IF(BN76>0,CJ75*(1+(C76-E76)),CJ75*(1-(C76-E76))),CJ75) -> 113.9214284 | CK76: =IF(Y76=0,IF(BN76>0,CJ76/CJ75-1,CJ76/CJ75-1),"") ->  | CM76: =SUM($CL$30:CL76)/COUNT($CL$30:CL76) -> 0.6666666667 | CN76: =IF(CK76="","",CK76-CC76) ->  | CO76: =COUNT($CN$32:CN76) -> 3500% | CR76: =SUM($CP$32:CP76) -> 4.00 | CS76: =SUM($CQ$32:CQ76) -> 3.00 | CT76: 0.10 | CU76: 0.09 | CV76: 11% | CW76: 0.09 | CX76: 2.9% | CY76: 39.8% | CZ76: 34.5% | DB76: =IF(Y76=0,IF(CJ76/CJ75-1>=0,1,0),"") ->  | DC76: =(CG76-BX76)/100 -> 0.06195209558 | DD76: =(CJ76-CA76)/100 -> 0.06195209558
A77: =A6097 -> 2022-10-05 | B77: 0 | C77: =C6097/C6096-1 -> -0.202% | D77: =D6097/C6096-1 -> -0.99% | E77: -1.0% | F77: =E6097 -> 28.55 | G77: =F6097/F6096-1 -> 5.90% | H77: =G6097/G6096-1 -> 0.48% | I77: =H6097/H6096-1 -> -1.40% | K77: 2022-10-05 | L77: 2.54 | M77: 2.35 | N77: 3.44 | O77: 2.89 | P77: 2.35 | Q77: 2022-10-05 | R77: 3.44 | S77: =IF(P77>$Q$29,1,0) -> 1 | U77: =IF($A$19=1,T77,0) -> 0 | Y77: 0 | AB77: 0 | AC77: =$EU$9+$EU$10*C76+$EU$11*I77+$EU$12*G77+$EU$13*H77+$EU$14*C76^2+$EU$15*I76+$EU$16*H76+$EU$17*B77+$EU$18*B77*I77+$EU$19*B77*I76+$EU$20*B77*H77+$EU$21*B77*H76+$EU$22*(F76-F75)+$EU$23*(F76-F75)*H76+$EU$24*(F76-F75)*H76*B77 -> -0.76% | AD77: 0 | AE77: 1 | AF77: 0 | AG77: 1 | AH77: 0 | AI77: 2 | AJ77: 0 | AK77: 1 | AL77: 1 | AM77: 1 | AN77: =SUM($AM$32:AM77)/COUNT($AM$32:AM77) -> 0.6111111111 | AO77: 1 | AP77: =SUM($AO$32:AO77)/COUNT($AO$32:AO77) -> 61.1% | AQ77: 61.1% | AR77: 60.9% | AS77: =IF($B$19=1,IF(S77=1,$FA$9+$FA$10*C76+$FA$11*I77+$FA$12*G77+$FA$13*H77+$FA$14*C76^2+$FA$15*I76+$FA$16*H76+$FA$17*B77+$FA$18*B77*I77+$FA$19*B77*I76+$FA$20*B77*H77+$FA$21*B77*H76+$FA$22*(F76-F75)+$FA$23*(F76-F75)*H76+$FA$24*(F76-F75)*H76*B77+$FA$25*P76+$FA$26*P76*I77+$FA$27*P76*G77+$FA$28*P76*H77+$FA$29*P76*(F76-F75)+$FA$30*P76*(F76^2-F75^2),AC77),$FA$9+$FA$10*C76+$FA$11*I77+$FA$12*G77+$FA$13*H77+$FA$14*C76^2+$FA$15*I76+$FA$16*H76+$FA$17*B77+$FA$18*B77*I77+$FA$19*B77*I76+$FA$20*B77*H77+$FA$21*B77*H76+$FA$22*(F76-F75)+$FA$23*(F76-F75)*H76+$FA$24*(F76-F75)*H76*B77+$FA$25*P76+$FA$26*P76*I77+$FA$27*P76*G77+$FA$28*P76*H77+$FA$29*P76*(F76-F75)+$FA$30*P76*(F76^2-F75^2)) -> -0.43% | AT77: -0.3% | AU77: 0 | AV77: 1 | AW77: 0 | AX77: 1 | AY77: 0 | AZ77: 2 | BA77: 0 | BB77: 1 | BC77: 1 | BD77: 1 | BE77: =SUM($BD$32:BD77)/COUNT($BD$32:BD77) -> 0.6944444444 | BF77: 1 | BG77: =IF(Y77=0,CL77-CD77,"") -> 0 | BH77: 0 | BI77: 0 | BJ77: =SUM($BF$32:BF77)/COUNT($BF$32:BF77) -> 69.4% | BK77: =BJ77-AP77 -> 8.3% | BM77: =IF(AC77>0,1,0) -> 0.0% | BN77: =IF(AS77>0,1,0) -> 0.00% | BO77: =IF(AS77-AC77>0,1,0) -> 1 | BP77: =IF(BO77+AU77=2,1,0) -> 0 | BQ77: =IF(C76>0,1,0) -> 1 | BR77: =A77 -> 44839 | BS77: =IF(ABS(C77)>0,IF(BQ77>0,BS76*(1+(C77-E77)),BS76*(1-(C77-E77))),BS76) -> 95.92025584 | BT77: 0.007921539042 | BU77: =BU76*(1+C77) -> 1900-03-31T20:35:07.819 | BV77: -0.002017974481 | BW77: 0 | BX77: =IF(X77=0,IF(BM77>0,BX76*(1+(C77-E77)),BX76*(1-(C77-E77))),BX76) -> 106.8728614 | BY77: -0.007921539042 | BZ77: 0 | CA77: =IF(Y77=0,IF(BM77>0,CA76*(1+(C77-E77)),CA76*(1-(C77-E77))),CA76) -> 106.8728614 | CB77: =IF(Y77=0,IF(BM77>0,CA77/CA76-1,CA77/CA76-1),"") -> -0.007921539042 | CC77: =CA77/CA76-1 -> -0.007921539042 | CD77: 0 | CE77: =SUM($CD$30:CD77)/COUNT($CD$30:CD77) -> 0.5675675676 | CF77: 103.4503278 | CG77: =IF(X77=0,IF(BN77>0,CG76*(1+(C77-E77)),CG76*(1-(C77-E77))),CG76) -> 113.0189954 | CH77: -1% | CI77: =IF(X77=0,IF(CG77/CG76-1>=0,1,0),"") -> 0 | CJ77: =IF(Y77=0,IF(BN77>0,CJ76*(1+(C77-E77)),CJ76*(1-(C77-E77))),CJ76) -> 113.0189954 | CK77: =IF(Y77=0,IF(BN77>0,CJ77/CJ76-1,CJ77/CJ76-1),"") -> -0.007921539042 | CL77: 0 | CM77: =SUM($CL$30:CL77)/COUNT($CL$30:CL77) -> 0.6486486486 | CN77: =IF(CK77="","",CK77-CC77) -> 0 | CO77: =COUNT($CN$32:CN77) -> 3600% | CP77: 0% | CQ77: 0 | CR77: =SUM($CP$32:CP77) -> 4.00 | CS77: =SUM($CQ$32:CQ77) -> 3.00 | CT77: 0.10 | CU77: 0.09 | CV77: 11% | CW77: 0.08 | CX77: 2.8% | CY77: 39.8% | CZ77: 34.5% | DA77: -0.007921539042 | DB77: =IF(Y77=0,IF(CJ77/CJ76-1>=0,1,0),"") -> 0 | DC77: =(CG77-BX77)/100 -> 0.06146133963 | DD77: =(CJ77-CA77)/100 -> 0.06146133963
A78: =A6098 -> 2022-10-06 | B78: 0 | C78: =C6098/C6097-1 -> -1.025% | D78: =D6098/C6097-1 -> -0.30% | E78: -0.3% | F78: =E6098 -> 30.52 | G78: =F6098/F6097-1 -> -0.42% | H78: =G6098/G6097-1 -> 0.70% | I78: =H6098/H6097-1 -> 0.01% | K78: 2022-10-06 | L78: 2.11 | M78: 2.29 | N78: 3.44 | O78: 2.86 | P78: 2.29 | Q78: 2022-10-06 | R78: 3.44 | S78: =IF(P78>$Q$29,1,0) -> 0 | U78: =IF($A$19=1,T78,0) -> 0 | Y78: 0 | AB78: 0 | AC78: =$EU$9+$EU$10*C77+$EU$11*I78+$EU$12*G78+$EU$13*H78+$EU$14*C77^2+$EU$15*I77+$EU$16*H77+$EU$17*B78+$EU$18*B78*I78+$EU$19*B78*I77+$EU$20*B78*H78+$EU$21*B78*H77+$EU$22*(F77-F76)+$EU$23*(F77-F76)*H77+$EU$24*(F77-F76)*H77*B78 -> -0.01% | AD78: 0 | AE78: 1 | AF78: 0 | AG78: 1 | AH78: 0 | AI78: 2 | AJ78: 0 | AK78: 1 | AL78: 1 | AM78: 1 | AN78: =SUM($AM$32:AM78)/COUNT($AM$32:AM78) -> 0.6216216216 | AO78: 1 | AP78: =SUM($AO$32:AO78)/COUNT($AO$32:AO78) -> 62.2% | AQ78: 62.2% | AR78: 61.7% | AS78: =IF($B$19=1,IF(S78=1,$FA$9+$FA$10*C77+$FA$11*I78+$FA$12*G78+$FA$13*H78+$FA$14*C77^2+$FA$15*I77+$FA$16*H77+$FA$17*B78+$FA$18*B78*I78+$FA$19*B78*I77+$FA$20*B78*H78+$FA$21*B78*H77+$FA$22*(F77-F76)+$FA$23*(F77-F76)*H77+$FA$24*(F77-F76)*H77*B78+$FA$25*P77+$FA$26*P77*I78+$FA$27*P77*G78+$FA$28*P77*H78+$FA$29*P77*(F77-F76)+$FA$30*P77*(F77^2-F76^2),AC78),$FA$9+$FA$10*C77+$FA$11*I78+$FA$12*G78+$FA$13*H78+$FA$14*C77^2+$FA$15*I77+$FA$16*H77+$FA$17*B78+$FA$18*B78*I78+$FA$19*B78*I77+$FA$20*B78*H78+$FA$21*B78*H77+$FA$22*(F77-F76)+$FA$23*(F77-F76)*H77+$FA$24*(F77-F76)*H77*B78+$FA$25*P77+$FA$26*P77*I78+$FA$27*P77*G78+$FA$28*P77*H78+$FA$29*P77*(F77-F76)+$FA$30*P77*(F77^2-F76^2)) -> -0.05% | AT78: 0.0% | AU78: 0 | AV78: 1 | AW78: 0 | AX78: 1 | AY78: 0 | AZ78: 2 | BA78: 0 | BB78: 1 | BC78: 1 | BD78: 1 | BE78: =SUM($BD$32:BD78)/COUNT($BD$32:BD78) -> 0.7027027027 | BF78: 1 | BG78: =IF(Y78=0,CL78-CD78,"") -> 0 | BH78: 0 | BI78: 0 | BJ78: =SUM($BF$32:BF78)/COUNT($BF$32:BF78) -> 70.3% | BK78: =BJ78-AP78 -> 8.1% | BM78: =IF(AC78>0,1,0) -> 0.0% | BN78: =IF(AS78>0,1,0) -> 0.00% | BO78: =IF(AS78-AC78>0,1,0) -> 0 | BP78: =IF(BO78+AU78=2,1,0) -> 0 | BQ78: =IF(C77>0,1,0) -> 0 | BR78: =A78 -> 44840 | BS78: =IF(ABS(C78)>0,IF(BQ78>0,BS77*(1+(C78-E78)),BS77*(1-(C78-E78))),BS77) -> 96.6162157 | BT78: 0.00725560889 | BU78: =BU77*(1+C78) -> 1900-03-30T21:59:57.675 | BV78: -0.01024507834 | BW78: 0 | BX78: =IF(X78=0,IF(BM78>0,BX77*(1+(C78-E78)),BX77*(1-(C78-E78))),BX77) -> 107.6482891 | BY78: 0.00725560889 | BZ78: 1 | CA78: =IF(Y78=0,IF(BM78>0,CA77*(1+(C78-E78)),CA77*(1-(C78-E78))),CA77) -> 107.6482891 | CB78: =IF(Y78=0,IF(BM78>0,CA78/CA77-1,CA78/CA77-1),"") -> 0.00725560889 | CC78: =CA78/CA77-1 -> 0.00725560889 | CD78: 1 | CE78: =SUM($CD$30:CD78)/COUNT($CD$30:CD78) -> 0.5789473684 | CF78: 103.8256253 | CG78: =IF(X78=0,IF(BN78>0,CG77*(1+(C78-E78)),CG77*(1-(C78-E78))),CG77) -> 113.839017 | CH78: 1% | CI78: =IF(X78=0,IF(CG78/CG77-1>=0,1,0),"") -> 1 | CJ78: =IF(Y78=0,IF(BN78>0,CJ77*(1+(C78-E78)),CJ77*(1-(C78-E78))),CJ77) -> 113.839017 | CK78: =IF(Y78=0,IF(BN78>0,CJ78/CJ77-1,CJ78/CJ77-1),"") -> 0.00725560889 | CL78: 1 | CM78: =SUM($CL$30:CL78)/COUNT($CL$30:CL78) -> 0.6578947368 | CN78: =IF(CK78="","",CK78-CC78) -> 0 | CO78: =COUNT($CN$32:CN78) -> 3700% | CP78: 0% | CQ78: 0 | CR78: =SUM($CP$32:CP78) -> 4.00 | CS78: =SUM($CQ$32:CQ78) -> 3.00 | CT78: 0.09 | CU78: 0.09 | CV78: 11% | CW78: 0.08 | CX78: 2.7% | CY78: 39.7% | CZ78: 34.6% | DA78: 0.00725560889 | DB78: =IF(Y78=0,IF(CJ78/CJ77-1>=0,1,0),"") -> 1 | DC78: =(CG78-BX78)/100 -> 0.06190727908 | DD78: =(CJ78-CA78)/100 -> 0.06190727908
A79: =A6099 -> 2022-10-07 | B79: 0 | C79: =C6099/C6098-1 -> -2.800% | D79: =D6099/C6098-1 -> -1.01% | E79: -1.0% | F79: =E6099 -> 31.36 | G79: =F6099/F6098-1 -> -1.51% | H79: =G6099/G6098-1 -> -0.71% | I79: =H6099/H6098-1 -> -2.19% | K79: 2022-10-07 | L79: 3.00 | M79: 2.92 | N79: 2.99 | O79: 2.95 | P79: 2.92 | Q79: 2022-10-07 | R79: 2.99 | S79: =IF(P79>$Q$29,1,0) -> 1 | U79: =IF($A$19=1,T79,0) -> 0 | Y79: 0 | AB79: 0 | AC79: =$EU$9+$EU$10*C78+$EU$11*I79+$EU$12*G79+$EU$13*H79+$EU$14*C78^2+$EU$15*I78+$EU$16*H78+$EU$17*B79+$EU$18*B79*I79+$EU$19*B79*I78+$EU$20*B79*H79+$EU$21*B79*H78+$EU$22*(F78-F77)+$EU$23*(F78-F77)*H78+$EU$24*(F78-F77)*H78*B79 -> -0.75% | AD79: 0 | AE79: 1 | AF79: 0 | AG79: 1 | AH79: 0 | AI79: 2 | AJ79: 0 | AK79: 1 | AL79: 1 | AM79: 1 | AN79: =SUM($AM$32:AM79)/COUNT($AM$32:AM79) -> 0.6315789474 | AO79: 1 | AP79: =SUM($AO$32:AO79)/COUNT($AO$32:AO79) -> 63.2% | AQ79: 63.2% | AR79: 62.5% | AS79: =IF($B$19=1,IF(S79=1,$FA$9+$FA$10*C78+$FA$11*I79+$FA$12*G79+$FA$13*H79+$FA$14*C78^2+$FA$15*I78+$FA$16*H78+$FA$17*B79+$FA$18*B79*I79+$FA$19*B79*I78+$FA$20*B79*H79+$FA$21*B79*H78+$FA$22*(F78-F77)+$FA$23*(F78-F77)*H78+$FA$24*(F78-F77)*H78*B79+$FA$25*P78+$FA$26*P78*I79+$FA$27*P78*G79+$FA$28*P78*H79+$FA$29*P78*(F78-F77)+$FA$30*P78*(F78^2-F77^2),AC79),$FA$9+$FA$10*C78+$FA$11*I79+$FA$12*G79+$FA$13*H79+$FA$14*C78^2+$FA$15*I78+$FA$16*H78+$FA$17*B79+$FA$18*B79*I79+$FA$19*B79*I78+$FA$20*B79*H79+$FA$21*B79*H78+$FA$22*(F78-F77)+$FA$23*(F78-F77)*H78+$FA$24*(F78-F77)*H78*B79+$FA$25*P78+$FA$26*P78*I79+$FA$27*P78*G79+$FA$28*P78*H79+$FA$29*P78*(F78-F77)+$FA$30*P78*(F78^2-F77^2)) -> -0.87% | AT79: 0.1% | AU79: 0 | AV79: 1 | AW79: 0 | AX79: 1 | AY79: 0 | AZ79: 2 | BA79: 0 | BB79: 1 | BC79: 1 | BD79: 1 | BE79: =SUM($BD$32:BD79)/COUNT($BD$32:BD79) -> 0.7105263158 | BF79: 1 | BG79: =IF(Y79=0,CL79-CD79,"") -> 0 | BH79: 0 | BI79: 0 | BJ79: =SUM($BF$32:BF79)/COUNT($BF$32:BF79) -> 71.1% | BK79: =BJ79-AP79 -> 7.9% | BM79: =IF(AC79>0,1,0) -> 0.0% | BN79: =IF(AS79>0,1,0) -> 0.00% | BO79: =IF(AS79-AC79>0,1,0) -> 0 | BP79: =IF(BO79+AU79=2,1,0) -> 0 | BQ79: =IF(C78>0,1,0) -> 0 | BR79: =A79 -> 44841 | BS79: =IF(ABS(C79)>0,IF(BQ79>0,BS78*(1+(C79-E79)),BS78*(1-(C79-E79))),BS78) -> 98.34701584 | BT79: 0.01791417859 | BU79: =BU78*(1+C79) -> 1900-03-28T08:53:43.946 | BV79: -0.02800358925 | BW79: 0 | BX79: =IF(X79=0,IF(BM79>0,BX78*(1+(C79-E79)),BX78*(1-(C79-E79))),BX78) -> 109.5767198 | BY79: 0.01791417859 | BZ79: 1 | CA79: =IF(Y79=0,IF(BM79>0,CA78*(1+(C79-E79)),CA78*(1-(C79-E79))),CA78) -> 109.5767198 | CB79: =IF(Y79=0,IF(BM79>0,CA79/CA78-1,CA79/CA78-1),"") -> 0.01791417859 | CC79: =CA79/CA78-1 -> 0.01791417859 | CD79: 1 | CE79: =SUM($CD$30:CD79)/COUNT($CD$30:CD79) -> 0.5897435897 | CF79: 104.7556007 | CG79: =IF(X79=0,IF(BN79>0,CG78*(1+(C79-E79)),CG78*(1-(C79-E79))),CG78) -> 115.8783495 | CH79: 2% | CI79: =IF(X79=0,IF(CG79/CG78-1>=0,1,0),"") -> 1 | CJ79: =IF(Y79=0,IF(BN79>0,CJ78*(1+(C79-E79)),CJ78*(1-(C79-E79))),CJ78) -> 115.8783495 | CK79: =IF(Y79=0,IF(BN79>0,CJ79/CJ78-1,CJ79/CJ78-1),"") -> 0.01791417859 | CL79: 1 | CM79: =SUM($CL$30:CL79)/COUNT($CL$30:CL79) -> 0.6666666667 | CN79: =IF(CK79="","",CK79-CC79) -> 0 | CO79: =COUNT($CN$32:CN79) -> 3800% | CP79: 0% | CQ79: 0 | CR79: =SUM($CP$32:CP79) -> 4.00 | CS79: =SUM($CQ$32:CQ79) -> 3.00 | CT79: 0.09 | CU79: 0.08 | CV79: 11% | CW79: 0.08 | CX79: 2.6% | CY79: 39.7% | CZ79: 34.6% | DA79: 0.01791417859 | DB79: =IF(Y79=0,IF(CJ79/CJ78-1>=0,1,0),"") -> 1 | DC79: =(CG79-BX79)/100 -> 0.06301629713 | DD79: =(CJ79-CA79)/100 -> 0.06301629713
A80: =A6100 -> 2022-10-10 | B80: 1 | C80: =C6100/C6099-1 -> -0.749% | D80: =D6100/C6099-1 -> 0.22% | E80: 0.2% | F80: =E6100 -> 32.45 | G80: =F6100/F6099-1 -> -2.95% | H80: =G6100/G6099-1 -> 0.00% | I80: =H6100/H6099-1 -> -0.26% | K80: 2022-10-10 | L80: 2.85 | M80: 3.05 | N80: 3.45 | O80: 3.25 | P80: 3.05 | Q80: 2022-10-10 | R80: 3.45 | S80: =IF(P80>$Q$29,1,0) -> 1 | U80: =IF($A$19=1,T80,0) -> 0 | W80: 1 | X80: =IF($C$19=1,W80,0) -> 1 | Y80: 1 | AA80: 1 | AB80: 0 | AC80: =$EU$9+$EU$10*C79+$EU$11*I80+$EU$12*G80+$EU$13*H80+$EU$14*C79^2+$EU$15*I79+$EU$16*H79+$EU$17*B80+$EU$18*B80*I80+$EU$19*B80*I79+$EU$20*B80*H80+$EU$21*B80*H79+$EU$22*(F79-F78)+$EU$23*(F79-F78)*H79+$EU$24*(F79-F78)*H79*B80 -> 0.56% | AD80: 1 | AE80: 0 | AF80: 0 | AG80: 1 | AH80: 1 | AI80: 1 | AJ80: 0 | AK80: 0 | AL80: 0 | AN80: =SUM($AM$32:AM80)/COUNT($AM$32:AM80) -> 0.6315789474 | AP80: =SUM($AO$32:AO80)/COUNT($AO$32:AO80) -> 63.2% | AQ80: 63.2% | AR80: 61.2% | AS80: =IF($B$19=1,IF(S80=1,$FA$9+$FA$10*C79+$FA$11*I80+$FA$12*G80+$FA$13*H80+$FA$14*C79^2+$FA$15*I79+$FA$16*H79+$FA$17*B80+$FA$18*B80*I80+$FA$19*B80*I79+$FA$20*B80*H80+$FA$21*B80*H79+$FA$22*(F79-F78)+$FA$23*(F79-F78)*H79+$FA$24*(F79-F78)*H79*B80+$FA$25*P79+$FA$26*P79*I80+$FA$27*P79*G80+$FA$28*P79*H80+$FA$29*P79*(F79-F78)+$FA$30*P79*(F79^2-F78^2),AC80),$FA$9+$FA$10*C79+$FA$11*I80+$FA$12*G80+$FA$13*H80+$FA$14*C79^2+$FA$15*I79+$FA$16*H79+$FA$17*B80+$FA$18*B80*I80+$FA$19*B80*I79+$FA$20*B80*H80+$FA$21*B80*H79+$FA$22*(F79-F78)+$FA$23*(F79-F78)*H79+$FA$24*(F79-F78)*H79*B80+$FA$25*P79+$FA$26*P79*I80+$FA$27*P79*G80+$FA$28*P79*H80+$FA$29*P79*(F79-F78)+$FA$30*P79*(F79^2-F78^2)) -> 0.69% | AT80: 0.1% | AU80: 1 | AV80: 0 | AW80: 0 | AX80: 1 | AY80: 1 | AZ80: 1 | BA80: 0 | BB80: 0 | BC80: 0 | BE80: =SUM($BD$32:BD80)/COUNT($BD$32:BD80) -> 0.7105263158 | BG80: =IF(Y80=0,CL80-CD80,"") ->  | BJ80: =SUM($BF$32:BF80)/COUNT($BF$32:BF80) -> 71.1% | BK80: =BJ80-AP80 -> 7.9% | BM80: =IF(AC80>0,1,0) -> 100.0% | BN80: =IF(AS80>0,1,0) -> 100.00% | BO80: =IF(AS80-AC80>0,1,0) -> 1 | BP80: =IF(BO80+AU80=2,1,0) -> 1 | BQ80: =IF(C79>0,1,0) -> 0 | BR80: =A80 -> 44844 | BS80: =IF(ABS(C80)>0,IF(BQ80>0,BS79*(1+(C80-E80)),BS79*(1-(C80-E80))),BS79) -> 99.29599107 | BT80: 0.009649252952 | BU80: =BU79*(1+C80) -> 1900-03-27T17:00:17.350 | BV80: -0.007492458087 | BW80: 0 | BX80: =IF(X80=0,IF(BM80>0,BX79*(1+(C80-E80)),BX79*(1-(C80-E80))),BX79) -> 109.5767198 | CA80: =IF(Y80=0,IF(BM80>0,CA79*(1+(C80-E80)),CA79*(1-(C80-E80))),CA79) -> 109.5767198 | CB80: =IF(Y80=0,IF(BM80>0,CA80/CA79-1,CA80/CA79-1),"") ->  | CE80: =SUM($CD$30:CD80)/COUNT($CD$30:CD80) -> 0.5897435897 | CF80: 104.7556007 | CG80: =IF(X80=0,IF(BN80>0,CG79*(1+(C80-E80)),CG79*(1-(C80-E80))),CG79) -> 115.8783495 | CI80: =IF(X80=0,IF(CG80/CG79-1>=0,1,0),"") ->  | CJ80: =IF(Y80=0,IF(BN80>0,CJ79*(1+(C80-E80)),CJ79*(1-(C80-E80))),CJ79) -> 115.8783495 | CK80: =IF(Y80=0,IF(BN80>0,CJ80/CJ79-1,CJ80/CJ79-1),"") ->  | CM80: =SUM($CL$30:CL80)/COUNT($CL$30:CL80) -> 0.6666666667 | CN80: =IF(CK80="","",CK80-CC80) ->  | CO80: =COUNT($CN$32:CN80) -> 3800% | CR80: =SUM($CP$32:CP80) -> 4.00 | CS80: =SUM($CQ$32:CQ80) -> 3.00 | CT80: 0.09 | CU80: 0.08 | CV80: 11% | CW80: 0.08 | CX80: 2.6% | CY80: 39.7% | CZ80: 34.6% | DB80: =IF(Y80=0,IF(CJ80/CJ79-1>=0,1,0),"") ->  | DC80: =(CG80-BX80)/100 -> 0.06301629713 | DD80: =(CJ80-CA80)/100 -> 0.06301629713
A81: =A6101 -> 2022-10-11 | B81: 0 | C81: =C6101/C6100-1 -> -0.652% | D81: =D6101/C6100-1 -> -0.46% | E81: -0.5% | F81: =E6101 -> 33.63 | G81: =F6101/F6100-1 -> -2.23% | H81: =G6101/G6100-1 -> -2.64% | I81: =H6101/H6100-1 -> -0.15% | K81: 2022-10-11 | L81: 2.74 | M81: 2.92 | N81: 3.48 | O81: 3.20 | P81: 2.92 | Q81: 2022-10-11 | R81: 3.48 | S81: =IF(P81>$Q$29,1,0) -> 1 | U81: =IF($A$19=1,T81,0) -> 0 | W81: 1 | X81: =IF($C$19=1,W81,0) -> 1 | Y81: 1 | AB81: 0 | AC81: =$EU$9+$EU$10*C80+$EU$11*I81+$EU$12*G81+$EU$13*H81+$EU$14*C80^2+$EU$15*I80+$EU$16*H80+$EU$17*B81+$EU$18*B81*I81+$EU$19*B81*I80+$EU$20*B81*H81+$EU$21*B81*H80+$EU$22*(F80-F79)+$EU$23*(F80-F79)*H80+$EU$24*(F80-F79)*H80*B81 -> -0.12% | AD81: 0 | AE81: 1 | AF81: 0 | AG81: 1 | AH81: 0 | AI81: 2 | AJ81: 0 | AK81: 1 | AL81: 1 | AN81: =SUM($AM$32:AM81)/COUNT($AM$32:AM81) -> 0.6315789474 | AP81: =SUM($AO$32:AO81)/COUNT($AO$32:AO81) -> 63.2% | AQ81: 63.2% | AR81: 62.0% | AS81: =IF($B$19=1,IF(S81=1,$FA$9+$FA$10*C80+$FA$11*I81+$FA$12*G81+$FA$13*H81+$FA$14*C80^2+$FA$15*I80+$FA$16*H80+$FA$17*B81+$FA$18*B81*I81+$FA$19*B81*I80+$FA$20*B81*H81+$FA$21*B81*H80+$FA$22*(F80-F79)+$FA$23*(F80-F79)*H80+$FA$24*(F80-F79)*H80*B81+$FA$25*P80+$FA$26*P80*I81+$FA$27*P80*G81+$FA$28*P80*H81+$FA$29*P80*(F80-F79)+$FA$30*P80*(F80^2-F79^2),AC81),$FA$9+$FA$10*C80+$FA$11*I81+$FA$12*G81+$FA$13*H81+$FA$14*C80^2+$FA$15*I80+$FA$16*H80+$FA$17*B81+$FA$18*B81*I81+$FA$19*B81*I80+$FA$20*B81*H81+$FA$21*B81*H80+$FA$22*(F80-F79)+$FA$23*(F80-F79)*H80+$FA$24*(F80-F79)*H80*B81+$FA$25*P80+$FA$26*P80*I81+$FA$27*P80*G81+$FA$28*P80*H81+$FA$29*P80*(F80-F79)+$FA$30*P80*(F80^2-F79^2)) -> -0.01% | AT81: -0.1% | AU81: 0 | AV81: 1 | AW81: 0 | AX81: 1 | AY81: 0 | AZ81: 2 | BA81: 0 | BB81: 1 | BC81: 1 | BE81: =SUM($BD$32:BD81)/COUNT($BD$32:BD81) -> 0.7105263158 | BG81: =IF(Y81=0,CL81-CD81,"") ->  | BJ81: =SUM($BF$32:BF81)/COUNT($BF$32:BF81) -> 71.1% | BK81: =BJ81-AP81 -> 7.9% | BM81: =IF(AC81>0,1,0) -> 0.0% | BN81: =IF(AS81>0,1,0) -> 0.00% | BO81: =IF(AS81-AC81>0,1,0) -> 1 | BP81: =IF(BO81+AU81=2,1,0) -> 0 | BQ81: =IF(C80>0,1,0) -> 0 | BR81: =A81 -> 44845 | BS81: =IF(ABS(C81)>0,IF(BQ81>0,BS80*(1+(C81-E81)),BS80*(1-(C81-E81))),BS80) -> 99.48895414 | BT81: 0.001943311769 | BU81: =BU80*(1+C81) -> 1900-03-27T03:16:54.515 | BV81: -0.006519229651 | BW81: 0 | BX81: =IF(X81=0,IF(BM81>0,BX80*(1+(C81-E81)),BX80*(1-(C81-E81))),BX80) -> 109.5767198 | CA81: =IF(Y81=0,IF(BM81>0,CA80*(1+(C81-E81)),CA80*(1-(C81-E81))),CA80) -> 109.5767198 | CB81: =IF(Y81=0,IF(BM81>0,CA81/CA80-1,CA81/CA80-1),"") ->  | CC81: =CA81/CA80-1 -> 0 | CE81: =SUM($CD$30:CD81)/COUNT($CD$30:CD81) -> 0.5897435897 | CF81: 104.7556007 | CG81: =IF(X81=0,IF(BN81>0,CG80*(1+(C81-E81)),CG80*(1-(C81-E81))),CG80) -> 115.8783495 | CI81: =IF(X81=0,IF(CG81/CG80-1>=0,1,0),"") ->  | CJ81: =IF(Y81=0,IF(BN81>0,CJ80*(1+(C81-E81)),CJ80*(1-(C81-E81))),CJ80) -> 115.8783495 | CK81: =IF(Y81=0,IF(BN81>0,CJ81/CJ80-1,CJ81/CJ80-1),"") ->  | CM81: =SUM($CL$30:CL81)/COUNT($CL$30:CL81) -> 0.6666666667 | CN81: =IF(CK81="","",CK81-CC81) ->  | CO81: =COUNT($CN$32:CN81) -> 3800% | CR81: =SUM($CP$32:CP81) -> 4.00 | CS81: =SUM($CQ$32:CQ81) -> 3.00 | CT81: 0.09 | CU81: 0.08 | CV81: 11% | CW81: 0.08 | CX81: 2.6% | CY81: 39.7% | CZ81: 34.6% | DB81: =IF(Y81=0,IF(CJ81/CJ80-1>=0,1,0),"") ->  | DC81: =(CG81-BX81)/100 -> 0.06301629713 | DD81: =(CJ81-CA81)/100 -> 0.06301629713
A82: =A6102 -> 2022-10-12 | B82: 0 | C82: =C6102/C6101-1 -> -0.329% | D82: =D6102/C6101-1 -> 0.06% | E82: 0.1% | F82: =E6102 -> 33.57 | G82: =F6102/F6101-1 -> -0.78% | H82: =G6102/G6101-1 -> -0.02% | I82: =H6102/H6101-1 -> 0.01% | K82: 2022-10-12 | L82: 2.74 | M82: 2.63 | N82: 3.26 | O82: 2.94 | P82: 2.63 | Q82: 2022-10-12 | R82: 3.26 | S82: =IF(P82>$Q$29,1,0) -> 1 | U82: =IF($A$19=1,T82,0) -> 0 | Y82: 0 | AB82: 0 | AC82: =$EU$9+$EU$10*C81+$EU$11*I82+$EU$12*G82+$EU$13*H82+$EU$14*C81^2+$EU$15*I81+$EU$16*H81+$EU$17*B82+$EU$18*B82*I82+$EU$19*B82*I81+$EU$20*B82*H82+$EU$21*B82*H81+$EU$22*(F81-F80)+$EU$23*(F81-F80)*H81+$EU$24*(F81-F80)*H81*B82 -> 0.15% | AD82: 1 | AE82: 0 | AF82: 0 | AG82: 1 | AH82: 1 | AI82: 1 | AJ82: 0 | AK82: 0 | AL82: 0 | AM82: 0 | AN82: =SUM($AM$32:AM82)/COUNT($AM$32:AM82) -> 0.6153846154 | AO82: 0 | AP82: =SUM($AO$32:AO82)/COUNT($AO$32:AO82) -> 61.5% | AQ82: 61.5% | AR82: 60.8% | AS82: =IF($B$19=1,IF(S82=1,$FA$9+$FA$10*C81+$FA$11*I82+$FA$12*G82+$FA$13*H82+$FA$14*C81^2+$FA$15*I81+$FA$16*H81+$FA$17*B82+$FA$18*B82*I82+$FA$19*B82*I81+$FA$20*B82*H82+$FA$21*B82*H81+$FA$22*(F81-F80)+$FA$23*(F81-F80)*H81+$FA$24*(F81-F80)*H81*B82+$FA$25*P81+$FA$26*P81*I82+$FA$27*P81*G82+$FA$28*P81*H82+$FA$29*P81*(F81-F80)+$FA$30*P81*(F81^2-F80^2),AC82),$FA$9+$FA$10*C81+$FA$11*I82+$FA$12*G82+$FA$13*H82+$FA$14*C81^2+$FA$15*I81+$FA$16*H81+$FA$17*B82+$FA$18*B82*I82+$FA$19*B82*I81+$FA$20*B82*H82+$FA$21*B82*H81+$FA$22*(F81-F80)+$FA$23*(F81-F80)*H81+$FA$24*(F81-F80)*H81*B82+$FA$25*P81+$FA$26*P81*I82+$FA$27*P81*G82+$FA$28*P81*H82+$FA$29*P81*(F81-F80)+$FA$30*P81*(F81^2-F80^2)) -> 0.15% | AT82: 0.0% | AU82: 1 | AV82: 0 | AW82: 0 | AX82: 1 | AY82: 1 | AZ82: 1 | BA82: 0 | BB82: 0 | BC82: 0 | BD82: 0 | BE82: =SUM($BD$32:BD82)/COUNT($BD$32:BD82) -> 0.6923076923 | BF82: 0 | BG82: =IF(Y82=0,CL82-CD82,"") -> 0 | BH82: 0 | BI82: 0 | BJ82: =SUM($BF$32:BF82)/COUNT($BF$32:BF82) -> 69.2% | BK82: =BJ82-AP82 -> 7.7% | BM82: =IF(AC82>0,1,0) -> 100.0% | BN82: =IF(AS82>0,1,0) -> 100.00% | BO82: =IF(AS82-AC82>0,1,0) -> 1 | BP82: =IF(BO82+AU82=2,1,0) -> 1 | BQ82: =IF(C81>0,1,0) -> 0 | BR82: =A82 -> 44846 | BS82: =IF(ABS(C82)>0,IF(BQ82>0,BS81*(1+(C82-E82)),BS81*(1-(C82-E82))),BS81) -> 99.8715144 | BT82: 0.00384525362 | BU82: =BU81*(1+C82) -> 1900-03-26T20:23:59.675 | BV82: -0.003290756902 | BW82: 0 | BX82: =IF(X82=0,IF(BM82>0,BX81*(1+(C82-E82)),BX81*(1-(C82-E82))),BX81) -> 109.1553695 | BY82: -0.00384525362 | BZ82: 0 | CA82: =IF(Y82=0,IF(BM82>0,CA81*(1+(C82-E82)),CA81*(1-(C82-E82))),CA81) -> 109.1553695 | CB82: =IF(Y82=0,IF(BM82>0,CA82/CA81-1,CA82/CA81-1),"") -> -0.00384525362 | CC82: -0.00384525362 | CD82: 0 | CE82: =SUM($CD$30:CD82)/COUNT($CD$30:CD82) -> 0.575 | CF82: 104.5541948 | CG82: =IF(X82=0,IF(BN82>0,CG81*(1+(C82-E82)),CG81*(1-(C82-E82))),CG81) -> 115.4327679 | CH82: -0% | CI82: =IF(X82=0,IF(CG82/CG81-1>=0,1,0),"") -> 0 | CJ82: =IF(Y82=0,IF(BN82>0,CJ81*(1+(C82-E82)),CJ81*(1-(C82-E82))),CJ81) -> 115.4327679 | CK82: =IF(Y82=0,IF(BN82>0,CJ82/CJ81-1,CJ82/CJ81-1),"") -> -0.00384525362 | CL82: 0 | CM82: =SUM($CL$30:CL82)/COUNT($CL$30:CL82) -> 0.65 | CN82: =IF(CK82="","",CK82-CC82) -> 0 | CO82: =COUNT($CN$32:CN82) -> 3900% | CP82: 0% | CQ82: 0 | CR82: =SUM($CP$32:CP82) -> 4.00 | CS82: =SUM($CQ$32:CQ82) -> 3.00 | CT82: 0.09 | CU82: 0.08 | CV82: 10% | CW82: 0.08 | CX82: 2.6% | CY82: 39.6% | CZ82: 34.6% | DA82: -0.00384525362 | DB82: =IF(Y82=0,IF(CJ82/CJ81-1>=0,1,0),"") -> 0 | DC82: =(CG82-BX82)/100 -> 0.06277398348 | DD82: =(CJ82-CA82)/100 -> 0.06277398348
A83: =A6103 -> 2022-10-13 | B83: 0 | C83: =C6103/C6102-1 -> 2.597% | D83: =D6103/C6102-1 -> -1.58% | E83: -1.6% | F83: =E6103 -> 31.94 | G83: =F6103/F6102-1 -> -1.87% | H83: =G6103/G6102-1 -> -0.60% | I83: =H6103/H6102-1 -> 1.23% | K83: 2022-10-13 | L83: 3.21 | M83: 3.37 | N83: 4.32 | O83: 3.85 | P83: 3.37 | Q83: 2022-10-13 | R83: 4.32 | S83: =IF(P83>$Q$29,1,0) -> 1 | U83: =IF($A$19=1,T83,0) -> 0 | Y83: 0 | AB83: 0 | AC83: =$EU$9+$EU$10*C82+$EU$11*I83+$EU$12*G83+$EU$13*H83+$EU$14*C82^2+$EU$15*I82+$EU$16*H82+$EU$17*B83+$EU$18*B83*I83+$EU$19*B83*I82+$EU$20*B83*H83+$EU$21*B83*H82+$EU$22*(F82-F81)+$EU$23*(F82-F81)*H82+$EU$24*(F82-F81)*H82*B83 -> 0.51% | AD83: 1 | AE83: 0 | AF83: 1 | AG83: 0 | AH83: 2 | AI83: 0 | AJ83: 1 | AK83: 0 | AL83: 1 | AM83: 1 | AN83: =SUM($AM$32:AM83)/COUNT($AM$32:AM83) -> 0.625 | AO83: 1 | AP83: =SUM($AO$32:AO83)/COUNT($AO$32:AO83) -> 62.5% | AQ83: 62.5% | AR83: 61.5% | AS83: =IF($B$19=1,IF(S83=1,$FA$9+$FA$10*C82+$FA$11*I83+$FA$12*G83+$FA$13*H83+$FA$14*C82^2+$FA$15*I82+$FA$16*H82+$FA$17*B83+$FA$18*B83*I83+$FA$19*B83*I82+$FA$20*B83*H83+$FA$21*B83*H82+$FA$22*(F82-F81)+$FA$23*(F82-F81)*H82+$FA$24*(F82-F81)*H82*B83+$FA$25*P82+$FA$26*P82*I83+$FA$27*P82*G83+$FA$28*P82*H83+$FA$29*P82*(F82-F81)+$FA$30*P82*(F82^2-F81^2),AC83),$FA$9+$FA$10*C82+$FA$11*I83+$FA$12*G83+$FA$13*H83+$FA$14*C82^2+$FA$15*I82+$FA$16*H82+$FA$17*B83+$FA$18*B83*I83+$FA$19*B83*I82+$FA$20*B83*H83+$FA$21*B83*H82+$FA$22*(F82-F81)+$FA$23*(F82-F81)*H82+$FA$24*(F82-F81)*H82*B83+$FA$25*P82+$FA$26*P82*I83+$FA$27*P82*G83+$FA$28*P82*H83+$FA$29*P82*(F82-F81)+$FA$30*P82*(F82^2-F81^2)) -> 0.48% | AT83: -0.0% | AU83: 1 | AV83: 0 | AW83: 1 | AX83: 0 | AY83: 2 | AZ83: 0 | BA83: 1 | BB83: 0 | BC83: 1 | BD83: 1 | BE83: =SUM($BD$32:BD83)/COUNT($BD$32:BD83) -> 0.7 | BF83: 1 | BG83: =IF(Y83=0,CL83-CD83,"") -> 0 | BH83: 0 | BI83: 0 | BJ83: =SUM($BF$32:BF83)/COUNT($BF$32:BF83) -> 70.0% | BK83: =BJ83-AP83 -> 7.5% | BM83: =IF(AC83>0,1,0) -> 100.0% | BN83: =IF(AS83>0,1,0) -> 100.00% | BO83: =IF(AS83-AC83>0,1,0) -> 0 | BP83: =IF(BO83+AU83=2,1,0) -> 0 | BQ83: =IF(C82>0,1,0) -> 0 | BR83: =A83 -> 44847 | BS83: =IF(ABS(C83)>0,IF(BQ83>0,BS82*(1+(C83-E83)),BS82*(1-(C83-E83))),BS82) -> 95.69632262 | BT83: -0.04180563205 | BU83: =BU82*(1+C83) -> 1900-03-29T02:31:21.940 | BV83: 0.02596567543 | BW83: 1 | BX83: =IF(X83=0,IF(BM83>0,BX82*(1+(C83-E83)),BX82*(1-(C83-E83))),BX82) -> 113.7186787 | BY83: 0.04180563205 | BZ83: 1 | CA83: =IF(Y83=0,IF(BM83>0,CA82*(1+(C83-E83)),CA82*(1-(C83-E83))),CA82) -> 113.7186787 | CB83: =IF(Y83=0,IF(BM83>0,CA83/CA82-1,CA83/CA82-1),"") -> 0.04180563205 | CC83: 0.04180563205 | CD83: 1 | CE83: =SUM($CD$30:CD83)/COUNT($CD$30:CD83) -> 0.5853658537 | CF83: 106.7396719 | CG83: =IF(X83=0,IF(BN83>0,CG82*(1+(C83-E83)),CG82*(1-(C83-E83))),CG82) -> 120.2585077 | CH83: 4% | CI83: =IF(X83=0,IF(CG83/CG82-1>=0,1,0),"") -> 1 | CJ83: =IF(Y83=0,IF(BN83>0,CJ82*(1+(C83-E83)),CJ82*(1-(C83-E83))),CJ82) -> 120.2585077 | CK83: =IF(Y83=0,IF(BN83>0,CJ83/CJ82-1,CJ83/CJ82-1),"") -> 0.04180563205 | CL83: 1 | CM83: =SUM($CL$30:CL83)/COUNT($CL$30:CL83) -> 0.6585365854 | CN83: =IF(CK83="","",CK83-CC83) -> 0 | CO83: =COUNT($CN$32:CN83) -> 4000% | CP83: 0% | CQ83: 0 | CR83: =SUM($CP$32:CP83) -> 4.00 | CS83: =SUM($CQ$32:CQ83) -> 3.00 | CT83: 0.09 | CU83: 0.08 | CV83: 10% | CW83: 0.08 | CX83: 2.5% | CY83: 39.6% | CZ83: 34.6% | DA83: 0.04180563205 | DB83: =IF(Y83=0,IF(CJ83/CJ82-1>=0,1,0),"") -> 1 | DC83: =(CG83-BX83)/100 -> 0.06539828954 | DD83: =(CJ83-CA83)/100 -> 0.06539828954
A84: =A6104 -> 2022-10-14 | B84: 0 | C84: =C6104/C6103-1 -> -2.366% | D84: =D6104/C6103-1 -> 0.56% | E84: 0.6% | F84: =E6104 -> 32.02 | G84: =F6104/F6103-1 -> 1.21% | H84: =G6104/G6103-1 -> 3.25% | I84: =H6104/H6103-1 -> 0.66% | K84: 2022-10-14 | L84: 2.33 | M84: 2.39 | N84: 3.85 | O84: 3.12 | P84: 2.39 | Q84: 2022-10-14 | R84: 3.85 | S84: =IF(P84>$Q$29,1,0) -> 1 | U84: =IF($A$19=1,T84,0) -> 0 | Y84: 0 | AB84: 0 | AC84: =$EU$9+$EU$10*C83+$EU$11*I84+$EU$12*G84+$EU$13*H84+$EU$14*C83^2+$EU$15*I83+$EU$16*H83+$EU$17*B84+$EU$18*B84*I84+$EU$19*B84*I83+$EU$20*B84*H84+$EU$21*B84*H83+$EU$22*(F83-F82)+$EU$23*(F83-F82)*H83+$EU$24*(F83-F82)*H83*B84 -> -0.11% | AD84: 0 | AE84: 1 | AF84: 0 | AG84: 1 | AH84: 0 | AI84: 2 | AJ84: 0 | AK84: 1 | AL84: 1 | AM84: 1 | AN84: =SUM($AM$32:AM84)/COUNT($AM$32:AM84) -> 0.6341463415 | AO84: 1 | AP84: =SUM($AO$32:AO84)/COUNT($AO$32:AO84) -> 63.4% | AQ84: 63.4% | AR84: 62.3% | AS84: =IF($B$19=1,IF(S84=1,$FA$9+$FA$10*C83+$FA$11*I84+$FA$12*G84+$FA$13*H84+$FA$14*C83^2+$FA$15*I83+$FA$16*H83+$FA$17*B84+$FA$18*B84*I84+$FA$19*B84*I83+$FA$20*B84*H84+$FA$21*B84*H83+$FA$22*(F83-F82)+$FA$23*(F83-F82)*H83+$FA$24*(F83-F82)*H83*B84+$FA$25*P83+$FA$26*P83*I84+$FA$27*P83*G84+$FA$28*P83*H84+$FA$29*P83*(F83-F82)+$FA$30*P83*(F83^2-F82^2),AC84),$FA$9+$FA$10*C83+$FA$11*I84+$FA$12*G84+$FA$13*H84+$FA$14*C83^2+$FA$15*I83+$FA$16*H83+$FA$17*B84+$FA$18*B84*I84+$FA$19*B84*I83+$FA$20*B84*H84+$FA$21*B84*H83+$FA$22*(F83-F82)+$FA$23*(F83-F82)*H83+$FA$24*(F83-F82)*H83*B84+$FA$25*P83+$FA$26*P83*I84+$FA$27*P83*G84+$FA$28*P83*H84+$FA$29*P83*(F83-F82)+$FA$30*P83*(F83^2-F82^2)) -> -0.12% | AT84: 0.0% | AU84: 0 | AV84: 1 | AW84: 0 | AX84: 1 | AY84: 0 | AZ84: 2 | BA84: 0 | BB84: 1 | BC84: 1 | BD84: 1 | BE84: =SUM($BD$32:BD84)/COUNT($BD$32:BD84) -> 0.7073170732 | BF84: 1 | BG84: =IF(Y84=0,CL84-CD84,"") -> 0 | BH84: 0 | BI84: 0 | BJ84: =SUM($BF$32:BF84)/COUNT($BF$32:BF84) -> 70.7% | BK84: =BJ84-AP84 -> 7.3% | BM84: =IF(AC84>0,1,0) -> 0.0% | BN84: =IF(AS84>0,1,0) -> 0.00% | BO84: =IF(AS84-AC84>0,1,0) -> 0 | BP84: =IF(BO84+AU84=2,1,0) -> 0 | BQ84: =IF(C83>0,1,0) -> 1 | BR84: =A84 -> 44848 | BS84: =IF(ABS(C84)>0,IF(BQ84>0,BS83*(1+(C84-E84)),BS83*(1-(C84-E84))),BS83) -> 92.89733211 | BT84: -0.02924867367 | BU84: =BU83*(1+C84) -> 1900-03-26T23:55:10.296 | BV84: -0.02366270562 | BW84: 0 | BX84: =IF(X84=0,IF(BM84>0,BX83*(1+(C84-E84)),BX83*(1-(C84-E84))),BX83) -> 117.0447992 | BY84: 0.02924867367 | BZ84: 1 | CA84: =IF(Y84=0,IF(BM84>0,CA83*(1+(C84-E84)),CA83*(1-(C84-E84))),CA83) -> 117.0447992 | CB84: =IF(Y84=0,IF(BM84>0,CA84/CA83-1,CA84/CA83-1),"") -> 0.02924867367 | CC84: 0.02924867367 | CD84: 1 | CE84: =SUM($CD$30:CD84)/COUNT($CD$30:CD84) -> 0.5952380952 | CF84: 108.3006688 | CG84: =IF(X84=0,IF(BN84>0,CG83*(1+(C84-E84)),CG83*(1-(C84-E84))),CG83) -> 123.7759095 | CH84: 3% | CI84: =IF(X84=0,IF(CG84/CG83-1>=0,1,0),"") -> 1 | CJ84: =IF(Y84=0,IF(BN84>0,CJ83*(1+(C84-E84)),CJ83*(1-(C84-E84))),CJ83) -> 123.7759095 | CK84: =IF(Y84=0,IF(BN84>0,CJ84/CJ83-1,CJ84/CJ83-1),"") -> 0.02924867367 | CL84: 1 | CM84: =SUM($CL$30:CL84)/COUNT($CL$30:CL84) -> 0.6666666667 | CN84: =IF(CK84="","",CK84-CC84) -> 0 | CO84: =COUNT($CN$32:CN84) -> 4100% | CP84: 0% | CQ84: 0 | CR84: =SUM($CP$32:CP84) -> 4.00 | CS84: =SUM($CQ$32:CQ84) -> 3.00 | CT84: 0.09 | CU84: 0.08 | CV84: 10% | CW84: 0.07 | CX84: 2.4% | CY84: 39.5% | CZ84: 34.6% | DA84: 0.02924867367 | DB84: =IF(Y84=0,IF(CJ84/CJ83-1>=0,1,0),"") -> 1 | DC84: =(CG84-BX84)/100 -> 0.06731110277 | DD84: =(CJ84-CA84)/100 -> 0.06731110277
A85: =A6105 -> 2022-10-17 | B85: 1 | C85: =C6105/C6104-1 -> 2.648% | D85: =D6105/C6104-1 -> 1.55% | E85: 1.6% | F85: =E6105 -> 31.37 | G85: =F6105/F6104-1 -> 0.15% | H85: =G6105/G6104-1 -> -1.16% | I85: =H6105/H6104-1 -> 2.11% | K85: 2022-10-17 | L85: 2.34 | M85: 2.36 | N85: 3.27 | O85: 2.82 | P85: 2.36 | Q85: 2022-10-17 | R85: 3.27 | S85: =IF(P85>$Q$29,1,0) -> 1 | U85: =IF($A$19=1,T85,0) -> 0 | Y85: 0 | AB85: 0 | AC85: =$EU$9+$EU$10*C84+$EU$11*I85+$EU$12*G85+$EU$13*H85+$EU$14*C84^2+$EU$15*I84+$EU$16*H84+$EU$17*B85+$EU$18*B85*I85+$EU$19*B85*I84+$EU$20*B85*H85+$EU$21*B85*H84+$EU$22*(F84-F83)+$EU$23*(F84-F83)*H84+$EU$24*(F84-F83)*H84*B85 -> 2.07% | AD85: 1 | AE85: 0 | AF85: 1 | AG85: 0 | AH85: 2 | AI85: 0 | AJ85: 1 | AK85: 0 | AL85: 1 | AM85: 1 | AN85: =SUM($AM$32:AM85)/COUNT($AM$32:AM85) -> 0.6428571429 | AO85: 1 | AP85: =SUM($AO$32:AO85)/COUNT($AO$32:AO85) -> 64.3% | AQ85: 64.3% | AR85: 63.0% | AS85: =IF($B$19=1,IF(S85=1,$FA$9+$FA$10*C84+$FA$11*I85+$FA$12*G85+$FA$13*H85+$FA$14*C84^2+$FA$15*I84+$FA$16*H84+$FA$17*B85+$FA$18*B85*I85+$FA$19*B85*I84+$FA$20*B85*H85+$FA$21*B85*H84+$FA$22*(F84-F83)+$FA$23*(F84-F83)*H84+$FA$24*(F84-F83)*H84*B85+$FA$25*P84+$FA$26*P84*I85+$FA$27*P84*G85+$FA$28*P84*H85+$FA$29*P84*(F84-F83)+$FA$30*P84*(F84^2-F83^2),AC85),$FA$9+$FA$10*C84+$FA$11*I85+$FA$12*G85+$FA$13*H85+$FA$14*C84^2+$FA$15*I84+$FA$16*H84+$FA$17*B85+$FA$18*B85*I85+$FA$19*B85*I84+$FA$20*B85*H85+$FA$21*B85*H84+$FA$22*(F84-F83)+$FA$23*(F84-F83)*H84+$FA$24*(F84-F83)*H84*B85+$FA$25*P84+$FA$26*P84*I85+$FA$27*P84*G85+$FA$28*P84*H85+$FA$29*P84*(F84-F83)+$FA$30*P84*(F84^2-F83^2)) -> 2.09% | AT85: 0.0% | AU85: 1 | AV85: 0 | AW85: 1 | AX85: 0 | AY85: 2 | AZ85: 0 | BA85: 1 | BB85: 0 | BC85: 1 | BD85: 1 | BE85: =SUM($BD$32:BD85)/COUNT($BD$32:BD85) -> 0.7142857143 | BF85: 1 | BG85: =IF(Y85=0,CL85-CD85,"") -> 0 | BH85: 0 | BI85: 0 | BJ85: =SUM($BF$32:BF85)/COUNT($BF$32:BF85) -> 71.4% | BK85: =BJ85-AP85 -> 7.1% | BM85: =IF(AC85>0,1,0) -> 100.0% | BN85: =IF(AS85>0,1,0) -> 100.00% | BO85: =IF(AS85-AC85>0,1,0) -> 1 | BP85: =IF(BO85+AU85=2,1,0) -> 1 | BQ85: =IF(C84>0,1,0) -> 0 | BR85: =A85 -> 44851 | BS85: =IF(ABS(C85)>0,IF(BQ85>0,BS84*(1+(C85-E85)),BS84*(1-(C85-E85))),BS84) -> 91.87841114 | BT85: -0.0109682479 | BU85: =BU84*(1+C85) -> 1900-03-29T07:12:28.131 | BV85: 0.02648008551 | BW85: 1 | BX85: =IF(X85=0,IF(BM85>0,BX84*(1+(C85-E85)),BX84*(1-(C85-E85))),BX84) -> 118.3285756 | BY85: 0.0109682479 | BZ85: 1 | CA85: =IF(Y85=0,IF(BM85>0,CA84*(1+(C85-E85)),CA84*(1-(C85-E85))),CA84) -> 118.3285756 | CB85: =IF(Y85=0,IF(BM85>0,CA85/CA84-1,CA85/CA84-1),"") -> 0.0109682479 | CC85: 0.0109682479 | CD85: 1 | CE85: =SUM($CD$30:CD85)/COUNT($CD$30:CD85) -> 0.6046511628 | CF85: 108.8946031 | CG85: =IF(X85=0,IF(BN85>0,CG84*(1+(C85-E85)),CG84*(1-(C85-E85))),CG84) -> 125.1335144 | CH85: 1% | CI85: =IF(X85=0,IF(CG85/CG84-1>=0,1,0),"") -> 1 | CJ85: =IF(Y85=0,IF(BN85>0,CJ84*(1+(C85-E85)),CJ84*(1-(C85-E85))),CJ84) -> 125.1335144 | CK85: =IF(Y85=0,IF(BN85>0,CJ85/CJ84-1,CJ85/CJ84-1),"") -> 0.0109682479 | CL85: 1 | CM85: =SUM($CL$30:CL85)/COUNT($CL$30:CL85) -> 0.6744186047 | CN85: =IF(CK85="","",CK85-CC85) -> 0 | CO85: =COUNT($CN$32:CN85) -> 4200% | CP85: 0% | CQ85: 0 | CR85: =SUM($CP$32:CP85) -> 4.00 | CS85: =SUM($CQ$32:CQ85) -> 3.00 | CT85: 0.08 | CU85: 0.08 | CV85: 10% | CW85: 0.07 | CX85: 2.4% | CY85: 39.5% | CZ85: 34.7% | DA85: 0.0109682479 | DB85: =IF(Y85=0,IF(CJ85/CJ84-1>=0,1,0),"") -> 1 | DC85: =(CG85-BX85)/100 -> 0.06804938763 | DD85: =(CJ85-CA85)/100 -> 0.06804938763
A86: =A6106 -> 2022-10-18 | B86: 0 | C86: =C6106/C6105-1 -> 1.143% | D86: =D6106/C6105-1 -> 1.86% | E86: 1.9% | F86: =E6106 -> 30.50 | G86: =F6106/F6105-1 -> 1.82% | H86: =G6106/G6105-1 -> 1.42% | I86: =H6106/H6105-1 -> 1.58% | K86: 2022-10-18 | L86: 2.37 | M86: 2.11 | N86: 3.02 | O86: 2.57 | P86: 2.11 | Q86: 2022-10-18 | R86: 3.02 | S86: =IF(P86>$Q$29,1,0) -> 0 | U86: =IF($A$19=1,T86,0) -> 0 | Y86: 0 | AB86: 0 | AC86: =$EU$9+$EU$10*C85+$EU$11*I86+$EU$12*G86+$EU$13*H86+$EU$14*C85^2+$EU$15*I85+$EU$16*H85+$EU$17*B86+$EU$18*B86*I86+$EU$19*B86*I85+$EU$20*B86*H86+$EU$21*B86*H85+$EU$22*(F85-F84)+$EU$23*(F85-F84)*H85+$EU$24*(F85-F84)*H85*B86 -> 0.28% | AD86: 1 | AE86: 0 | AF86: 1 | AG86: 0 | AH86: 2 | AI86: 0 | AJ86: 1 | AK86: 0 | AL86: 1 | AM86: 1 | AN86: =SUM($AM$32:AM86)/COUNT($AM$32:AM86) -> 0.6511627907 | AO86: 1 | AP86: =SUM($AO$32:AO86)/COUNT($AO$32:AO86) -> 65.1% | AQ86: 65.1% | AR86: 63.6% | AS86: =IF($B$19=1,IF(S86=1,$FA$9+$FA$10*C85+$FA$11*I86+$FA$12*G86+$FA$13*H86+$FA$14*C85^2+$FA$15*I85+$FA$16*H85+$FA$17*B86+$FA$18*B86*I86+$FA$19*B86*I85+$FA$20*B86*H86+$FA$21*B86*H85+$FA$22*(F85-F84)+$FA$23*(F85-F84)*H85+$FA$24*(F85-F84)*H85*B86+$FA$25*P85+$FA$26*P85*I86+$FA$27*P85*G86+$FA$28*P85*H86+$FA$29*P85*(F85-F84)+$FA$30*P85*(F85^2-F84^2),AC86),$FA$9+$FA$10*C85+$FA$11*I86+$FA$12*G86+$FA$13*H86+$FA$14*C85^2+$FA$15*I85+$FA$16*H85+$FA$17*B86+$FA$18*B86*I86+$FA$19*B86*I85+$FA$20*B86*H86+$FA$21*B86*H85+$FA$22*(F85-F84)+$FA$23*(F85-F84)*H85+$FA$24*(F85-F84)*H85*B86+$FA$25*P85+$FA$26*P85*I86+$FA$27*P85*G86+$FA$28*P85*H86+$FA$29*P85*(F85-F84)+$FA$30*P85*(F85^2-F84^2)) -> 0.40% | AT86: 0.1% | AU86: 1 | AV86: 0 | AW86: 1 | AX86: 0 | AY86: 2 | AZ86: 0 | BA86: 1 | BB86: 0 | BC86: 1 | BD86: 1 | BE86: =SUM($BD$32:BD86)/COUNT($BD$32:BD86) -> 0.7209302326 | BF86: 1 | BG86: =IF(Y86=0,CL86-CD86,"") -> 0 | BH86: 0 | BI86: 0 | BJ86: =SUM($BF$32:BF86)/COUNT($BF$32:BF86) -> 72.1% | BK86: =BJ86-AP86 -> 7.0% | BM86: =IF(AC86>0,1,0) -> 100.0% | BN86: =IF(AS86>0,1,0) -> 100.00% | BO86: =IF(AS86-AC86>0,1,0) -> 1 | BP86: =IF(BO86+AU86=2,1,0) -> 1 | BQ86: =IF(C85>0,1,0) -> 1 | BR86: =A86 -> 44852 | BS86: =IF(ABS(C86)>0,IF(BQ86>0,BS85*(1+(C86-E86)),BS85*(1-(C86-E86))),BS85) -> 91.22191373 | BT86: -0.007145284737 | BU86: =BU85*(1+C86) -> 1900-03-30T07:41:58.032 | BV86: 0.01142756155 | BW86: 1 | BX86: =IF(X86=0,IF(BM86>0,BX85*(1+(C86-E86)),BX85*(1-(C86-E86))),BX85) -> 117.4830842 | BY86: -0.007145284737 | BZ86: 0 | CA86: =IF(Y86=0,IF(BM86>0,CA85*(1+(C86-E86)),CA85*(1-(C86-E86))),CA85) -> 117.4830842 | CB86: =IF(Y86=0,IF(BM86>0,CA86/CA85-1,CA86/CA85-1),"") -> -0.007145284737 | CC86: -0.007145284737 | CD86: 0 | CE86: =SUM($CD$30:CD86)/COUNT($CD$30:CD86) -> 0.5909090909 | CF86: 108.5055616 | CG86: =IF(X86=0,IF(BN86>0,CG85*(1+(C86-E86)),CG85*(1-(C86-E86))),CG85) -> 124.2393998 | CH86: -1% | CI86: =IF(X86=0,IF(CG86/CG85-1>=0,1,0),"") -> 0 | CJ86: =IF(Y86=0,IF(BN86>0,CJ85*(1+(C86-E86)),CJ85*(1-(C86-E86))),CJ85) -> 124.2393998 | CK86: =IF(Y86=0,IF(BN86>0,CJ86/CJ85-1,CJ86/CJ85-1),"") -> -0.007145284737 | CL86: 0 | CM86: =SUM($CL$30:CL86)/COUNT($CL$30:CL86) -> 0.6590909091 | CN86: =IF(CK86="","",CK86-CC86) -> 0 | CO86: =COUNT($CN$32:CN86) -> 4300% | CP86: 0% | CQ86: 0 | CR86: =SUM($CP$32:CP86) -> 4.00 | CS86: =SUM($CQ$32:CQ86) -> 3.00 | CT86: 0.08 | CU86: 0.07 | CV86: 9% | CW86: 0.07 | CX86: 2.3% | CY86: 39.4% | CZ86: 34.7% | DA86: -0.007145284737 | DB86: =IF(Y86=0,IF(CJ86/CJ85-1>=0,1,0),"") -> 0 | DC86: =(CG86-BX86)/100 -> 0.06756315538 | DD86: =(CJ86-CA86)/100 -> 0.06756315538
A87: =A6107 -> 2022-10-19 | B87: 0 | C87: =C6107/C6106-1 -> -0.667% | D87: =D6107/C6106-1 -> -0.45% | E87: -0.5% | F87: =E6107 -> 30.76 | G87: =F6107/F6106-1 -> -2.38% | H87: =G6107/G6106-1 -> 0.37% | I87: =H6107/H6106-1 -> -0.63% | K87: 2022-10-19 | L87: 2.83 | M87: 2.46 | N87: 3.12 | O87: 2.79 | P87: 2.46 | Q87: 2022-10-19 | R87: 3.12 | S87: =IF(P87>$Q$29,1,0) -> 1 | U87: =IF($A$19=1,T87,0) -> 0 | Y87: 0 | AB87: 0 | AC87: =$EU$9+$EU$10*C86+$EU$11*I87+$EU$12*G87+$EU$13*H87+$EU$14*C86^2+$EU$15*I86+$EU$16*H86+$EU$17*B87+$EU$18*B87*I87+$EU$19*B87*I86+$EU$20*B87*H87+$EU$21*B87*H86+$EU$22*(F86-F85)+$EU$23*(F86-F85)*H86+$EU$24*(F86-F85)*H86*B87 -> -0.60% | AD87: 0 | AE87: 1 | AF87: 0 | AG87: 1 | AH87: 0 | AI87: 2 | AJ87: 0 | AK87: 1 | AL87: 1 | AM87: 1 | AN87: =SUM($AM$32:AM87)/COUNT($AM$32:AM87) -> 0.6590909091 | AO87: 1 | AP87: =SUM($AO$32:AO87)/COUNT($AO$32:AO87) -> 65.9% | AQ87: 65.9% | AR87: 64.3% | AS87: =IF($B$19=1,IF(S87=1,$FA$9+$FA$10*C86+$FA$11*I87+$FA$12*G87+$FA$13*H87+$FA$14*C86^2+$FA$15*I86+$FA$16*H86+$FA$17*B87+$FA$18*B87*I87+$FA$19*B87*I86+$FA$20*B87*H87+$FA$21*B87*H86+$FA$22*(F86-F85)+$FA$23*(F86-F85)*H86+$FA$24*(F86-F85)*H86*B87+$FA$25*P86+$FA$26*P86*I87+$FA$27*P86*G87+$FA$28*P86*H87+$FA$29*P86*(F86-F85)+$FA$30*P86*(F86^2-F85^2),AC87),$FA$9+$FA$10*C86+$FA$11*I87+$FA$12*G87+$FA$13*H87+$FA$14*C86^2+$FA$15*I86+$FA$16*H86+$FA$17*B87+$FA$18*B87*I87+$FA$19*B87*I86+$FA$20*B87*H87+$FA$21*B87*H86+$FA$22*(F86-F85)+$FA$23*(F86-F85)*H86+$FA$24*(F86-F85)*H86*B87+$FA$25*P86+$FA$26*P86*I87+$FA$27*P86*G87+$FA$28*P86*H87+$FA$29*P86*(F86-F85)+$FA$30*P86*(F86^2-F85^2)) -> -0.93% | AT87: 0.3% | AU87: 0 | AV87: 1 | AW87: 0 | AX87: 1 | AY87: 0 | AZ87: 2 | BA87: 0 | BB87: 1 | BC87: 1 | BD87: 1 | BE87: =SUM($BD$32:BD87)/COUNT($BD$32:BD87) -> 0.7272727273 | BF87: 1 | BG87: =IF(Y87=0,CL87-CD87,"") -> 0 | BH87: 0 | BI87: 0 | BJ87: =SUM($BF$32:BF87)/COUNT($BF$32:BF87) -> 72.7% | BK87: =BJ87-AP87 -> 6.8% | BM87: =IF(AC87>0,1,0) -> 0.0% | BN87: =IF(AS87>0,1,0) -> 0.00% | BO87: =IF(AS87-AC87>0,1,0) -> 0 | BP87: =IF(BO87+AU87=2,1,0) -> 0 | BQ87: =IF(C86>0,1,0) -> 1 | BR87: =A87 -> 44853 | BS87: =IF(ABS(C87)>0,IF(BQ87>0,BS86*(1+(C87-E87)),BS86*(1-(C87-E87))),BS86) -> 91.02696262 | BT87: -0.002137108264 | BU87: =BU86*(1+C87) -> 1900-03-29T17:14:11.010 | BV87: -0.006672078882 | BW87: 0 | BX87: =IF(X87=0,IF(BM87>0,BX86*(1+(C87-E87)),BX86*(1-(C87-E87))),BX86) -> 117.7341583 | BY87: 0.002137108264 | BZ87: 1 | CA87: =IF(Y87=0,IF(BM87>0,CA86*(1+(C87-E87)),CA86*(1-(C87-E87))),CA86) -> 117.7341583 | CB87: =IF(Y87=0,IF(BM87>0,CA87/CA86-1,CA87/CA86-1),"") -> 0.002137108264 | CC87: 0.002137108264 | CD87: 1 | CE87: =SUM($CD$30:CD87)/COUNT($CD$30:CD87) -> 0.6 | CF87: 108.6215057 | CG87: =IF(X87=0,IF(BN87>0,CG86*(1+(C87-E87)),CG86*(1-(C87-E87))),CG86) -> 124.5049128 | CH87: 0% | CI87: =IF(X87=0,IF(CG87/CG86-1>=0,1,0),"") -> 1 | CJ87: =IF(Y87=0,IF(BN87>0,CJ86*(1+(C87-E87)),CJ86*(1-(C87-E87))),CJ86) -> 124.5049128 | CK87: =IF(Y87=0,IF(BN87>0,CJ87/CJ86-1,CJ87/CJ86-1),"") -> 0.002137108264 | CL87: 1 | CM87: =SUM($CL$30:CL87)/COUNT($CL$30:CL87) -> 0.6666666667 | CN87: =IF(CK87="","",CK87-CC87) -> 0 | CO87: =COUNT($CN$32:CN87) -> 4400% | CP87: 0% | CQ87: 0 | CR87: =SUM($CP$32:CP87) -> 4.00 | CS87: =SUM($CQ$32:CQ87) -> 3.00 | CT87: 0.08 | CU87: 0.07 | CV87: 9% | CW87: 0.07 | CX87: 2.3% | CY87: 39.4% | CZ87: 34.7% | DA87: 0.002137108264 | DB87: =IF(Y87=0,IF(CJ87/CJ86-1>=0,1,0),"") -> 1 | DC87: =(CG87-BX87)/100 -> 0.06770754516 | DD87: =(CJ87-CA87)/100 -> 0.06770754516
A88: =A6108 -> 2022-10-20 | B88: 0 | C88: =C6108/C6107-1 -> -0.795% | D88: =D6108/C6107-1 -> -0.17% | E88: -0.2% | F88: =E6108 -> 29.98 | G88: =F6108/F6107-1 -> -1.40% | H88: =G6108/G6107-1 -> -0.92% | I88: =H6108/H6107-1 -> -1.06% | K88: 2022-10-20 | L88: 2.11 | M88: 1.99 | N88: 2.97 | O88: 2.48 | P88: 1.99 | Q88: 2022-10-20 | R88: 2.97 | S88: =IF(P88>$Q$29,1,0) -> 0 | U88: =IF($A$19=1,T88,0) -> 0 | Y88: 0 | AB88: 0 | AC88: =$EU$9+$EU$10*C87+$EU$11*I88+$EU$12*G88+$EU$13*H88+$EU$14*C87^2+$EU$15*I87+$EU$16*H87+$EU$17*B88+$EU$18*B88*I88+$EU$19*B88*I87+$EU$20*B88*H88+$EU$21*B88*H87+$EU$22*(F87-F86)+$EU$23*(F87-F86)*H87+$EU$24*(F87-F86)*H87*B88 -> -0.42% | AD88: 0 | AE88: 1 | AF88: 0 | AG88: 1 | AH88: 0 | AI88: 2 | AJ88: 0 | AK88: 1 | AL88: 1 | AM88: 1 | AN88: =SUM($AM$32:AM88)/COUNT($AM$32:AM88) -> 0.6666666667 | AO88: 1 | AP88: =SUM($AO$32:AO88)/COUNT($AO$32:AO88) -> 66.7% | AQ88: 66.7% | AR88: 64.9% | AS88: =IF($B$19=1,IF(S88=1,$FA$9+$FA$10*C87+$FA$11*I88+$FA$12*G88+$FA$13*H88+$FA$14*C87^2+$FA$15*I87+$FA$16*H87+$FA$17*B88+$FA$18*B88*I88+$FA$19*B88*I87+$FA$20*B88*H88+$FA$21*B88*H87+$FA$22*(F87-F86)+$FA$23*(F87-F86)*H87+$FA$24*(F87-F86)*H87*B88+$FA$25*P87+$FA$26*P87*I88+$FA$27*P87*G88+$FA$28*P87*H88+$FA$29*P87*(F87-F86)+$FA$30*P87*(F87^2-F86^2),AC88),$FA$9+$FA$10*C87+$FA$11*I88+$FA$12*G88+$FA$13*H88+$FA$14*C87^2+$FA$15*I87+$FA$16*H87+$FA$17*B88+$FA$18*B88*I88+$FA$19*B88*I87+$FA$20*B88*H88+$FA$21*B88*H87+$FA$22*(F87-F86)+$FA$23*(F87-F86)*H87+$FA$24*(F87-F86)*H87*B88+$FA$25*P87+$FA$26*P87*I88+$FA$27*P87*G88+$FA$28*P87*H88+$FA$29*P87*(F87-F86)+$FA$30*P87*(F87^2-F86^2)) -> -0.48% | AT88: 0.1% | AU88: 0 | AV88: 1 | AW88: 0 | AX88: 1 | AY88: 0 | AZ88: 2 | BA88: 0 | BB88: 1 | BC88: 1 | BD88: 1 | BE88: =SUM($BD$32:BD88)/COUNT($BD$32:BD88) -> 0.7333333333 | BF88: 1 | BG88: =IF(Y88=0,CL88-CD88,"") -> 0 | BH88: 0 | BI88: 0 | BJ88: =SUM($BF$32:BF88)/COUNT($BF$32:BF88) -> 73.3% | BK88: =BJ88-AP88 -> 6.7% | BM88: =IF(AC88>0,1,0) -> 0.0% | BN88: =IF(AS88>0,1,0) -> 0.00% | BO88: =IF(AS88-AC88>0,1,0) -> 0 | BP88: =IF(BO88+AU88=2,1,0) -> 0 | BQ88: =IF(C87>0,1,0) -> 0 | BR88: =A88 -> 44854 | BS88: =IF(ABS(C88)>0,IF(BQ88>0,BS87*(1+(C88-E88)),BS87*(1-(C88-E88))),BS87) -> 91.60019827 | BT88: 0.006297426904 | BU88: =BU87*(1+C88) -> 1900-03-29T00:06:58.089 | BV88: -0.007950941231 | BW88: 0 | BX88: =IF(X88=0,IF(BM88>0,BX87*(1+(C88-E88)),BX87*(1-(C88-E88))),BX87) -> 118.4755806 | BY88: 0.006297426904 | BZ88: 1 | CA88: =IF(Y88=0,IF(BM88>0,CA87*(1+(C88-E88)),CA87*(1-(C88-E88))),CA87) -> 118.4755806 | CB88: =IF(Y88=0,IF(BM88>0,CA88/CA87-1,CA88/CA87-1),"") -> 0.006297426904 | CC88: 0.006297426904 | CD88: 1 | CE88: =SUM($CD$30:CD88)/COUNT($CD$30:CD88) -> 0.6086956522 | CF88: 108.9635237 | CG88: =IF(X88=0,IF(BN88>0,CG87*(1+(C88-E88)),CG87*(1-(C88-E88))),CG87) -> 125.2889734 | CH88: 1% | CI88: =IF(X88=0,IF(CG88/CG87-1>=0,1,0),"") -> 1 | CJ88: =IF(Y88=0,IF(BN88>0,CJ87*(1+(C88-E88)),CJ87*(1-(C88-E88))),CJ87) -> 125.2889734 | CK88: =IF(Y88=0,IF(BN88>0,CJ88/CJ87-1,CJ88/CJ87-1),"") -> 0.006297426904 | CL88: 1 | CM88: =SUM($CL$30:CL88)/COUNT($CL$30:CL88) -> 0.6739130435 | CN88: =IF(CK88="","",CK88-CC88) -> 0 | CO88: =COUNT($CN$32:CN88) -> 4500% | CP88: 0% | CQ88: 0 | CR88: =SUM($CP$32:CP88) -> 4.00 | CS88: =SUM($CQ$32:CQ88) -> 3.00 | CT88: 0.08 | CU88: 0.07 | CV88: 9% | CW88: 0.07 | CX88: 2.2% | CY88: 39.4% | CZ88: 34.7% | DA88: 0.006297426904 | DB88: =IF(Y88=0,IF(CJ88/CJ87-1>=0,1,0),"") -> 1 | DC88: =(CG88-BX88)/100 -> 0.06813392847 | DD88: =(CJ88-CA88)/100 -> 0.06813392847
A89: =A6109 -> 2022-10-21 | B89: 0 | C89: =C6109/C6108-1 -> 2.372% | D89: =D6109/C6108-1 -> -0.24% | E89: -0.2% | F89: =E6109 -> 29.69 | G89: =F6109/F6108-1 -> -0.42% | H89: =G6109/G6108-1 -> -0.43% | I89: =H6109/H6108-1 -> -0.24% | K89: 2022-10-21 | L89: 2.96 | M89: 2.72 | N89: 3.58 | O89: 3.15 | P89: 2.72 | Q89: 2022-10-21 | R89: 3.58 | S89: =IF(P89>$Q$29,1,0) -> 1 | U89: =IF($A$19=1,T89,0) -> 0 | Y89: 0 | AB89: 1 | AC89: =$EU$9+$EU$10*C88+$EU$11*I89+$EU$12*G89+$EU$13*H89+$EU$14*C88^2+$EU$15*I88+$EU$16*H88+$EU$17*B89+$EU$18*B89*I89+$EU$19*B89*I88+$EU$20*B89*H89+$EU$21*B89*H88+$EU$22*(F88-F87)+$EU$23*(F88-F87)*H88+$EU$24*(F88-F87)*H88*B89 -> 0.03% | AD89: 1 | AE89: 0 | AF89: 1 | AG89: 0 | AH89: 2 | AI89: 0 | AJ89: 1 | AK89: 0 | AL89: 1 | AM89: 1 | AN89: =SUM($AM$32:AM89)/COUNT($AM$32:AM89) -> 0.6739130435 | AO89: 1 | AP89: =SUM($AO$32:AO89)/COUNT($AO$32:AO89) -> 67.4% | AQ89: 67.4% | AR89: 65.5% | AS89: =IF($B$19=1,IF(S89=1,$FA$9+$FA$10*C88+$FA$11*I89+$FA$12*G89+$FA$13*H89+$FA$14*C88^2+$FA$15*I88+$FA$16*H88+$FA$17*B89+$FA$18*B89*I89+$FA$19*B89*I88+$FA$20*B89*H89+$FA$21*B89*H88+$FA$22*(F88-F87)+$FA$23*(F88-F87)*H88+$FA$24*(F88-F87)*H88*B89+$FA$25*P88+$FA$26*P88*I89+$FA$27*P88*G89+$FA$28*P88*H89+$FA$29*P88*(F88-F87)+$FA$30*P88*(F88^2-F87^2),AC89),$FA$9+$FA$10*C88+$FA$11*I89+$FA$12*G89+$FA$13*H89+$FA$14*C88^2+$FA$15*I88+$FA$16*H88+$FA$17*B89+$FA$18*B89*I89+$FA$19*B89*I88+$FA$20*B89*H89+$FA$21*B89*H88+$FA$22*(F88-F87)+$FA$23*(F88-F87)*H88+$FA$24*(F88-F87)*H88*B89+$FA$25*P88+$FA$26*P88*I89+$FA$27*P88*G89+$FA$28*P88*H89+$FA$29*P88*(F88-F87)+$FA$30*P88*(F88^2-F87^2)) -> -0.05% | AT89: 0.0% | AU89: 0 | AV89: 1 | AW89: 1 | AX89: 0 | AY89: 1 | AZ89: 1 | BA89: 0 | BB89: 0 | BC89: 0 | BD89: 0 | BE89: =SUM($BD$32:BD89)/COUNT($BD$32:BD89) -> 0.7173913043 | BF89: 0 | BG89: =IF(Y89=0,CL89-CD89,"") -> -1 | BH89: 0 | BI89: 1 | BJ89: =SUM($BF$32:BF89)/COUNT($BF$32:BF89) -> 71.7% | BK89: =BJ89-AP89 -> 4.3% | BM89: =IF(AC89>0,1,0) -> 100.0% | BN89: =IF(AS89>0,1,0) -> 0.00% | BO89: =IF(AS89-AC89>0,1,0) -> 0 | BP89: =IF(BO89+AU89=2,1,0) -> 0 | BQ89: =IF(C88>0,1,0) -> 0 | BR89: =A89 -> 44855 | BS89: =IF(ABS(C89)>0,IF(BQ89>0,BS88*(1+(C89-E89)),BS88*(1-(C89-E89))),BS88) -> 89.21010422 | BT89: -0.02609267332 | BU89: =BU88*(1+C89) -> 1900-03-31T02:47:42.445 | BV89: 0.023724828 | BW89: 1 | BX89: =IF(X89=0,IF(BM89>0,BX88*(1+(C89-E89)),BX88*(1-(C89-E89))),BX88) -> 121.5669252 | BY89: 0.02609267332 | BZ89: 1 | CA89: =IF(Y89=0,IF(BM89>0,CA88*(1+(C89-E89)),CA88*(1-(C89-E89))),CA88) -> 121.5669252 | CB89: =IF(Y89=0,IF(BM89>0,CA89/CA88-1,CA89/CA88-1),"") -> 0.02609267332 | CC89: 0.02609267332 | CD89: 1 | CE89: =SUM($CD$30:CD89)/COUNT($CD$30:CD89) -> 0.6170212766 | CF89: 110.3850985 | CG89: =IF(X89=0,IF(BN89>0,CG88*(1+(C89-E89)),CG88*(1-(C89-E89))),CG88) -> 122.0198492 | CH89: -3% | CI89: =IF(X89=0,IF(CG89/CG88-1>=0,1,0),"") -> 0 | CJ89: =IF(Y89=0,IF(BN89>0,CJ88*(1+(C89-E89)),CJ88*(1-(C89-E89))),CJ88) -> 122.0198492 | CK89: =IF(Y89=0,IF(BN89>0,CJ89/CJ88-1,CJ89/CJ88-1),"") -> -0.02609267332 | CL89: 0 | CM89: =SUM($CL$30:CL89)/COUNT($CL$30:CL89) -> 0.6595744681 | CN89: =IF(CK89="","",CK89-CC89) -> -0.05218534664 | CO89: =COUNT($CN$32:CN89) -> 4600% | CP89: 0% | CQ89: 1.00 | CR89: =SUM($CP$32:CP89) -> 4.00 | CS89: =SUM($CQ$32:CQ89) -> 4.00 | CT89: 0.09 | CU89: 0.08 | CV89: 9% | CW89: 0.09 | CX89: 0.0% | CY89: 0.0% | CZ89: 50.0% | DA89: -0.02609267332 | DB89: =IF(Y89=0,IF(CJ89/CJ88-1>=0,1,0),"") -> 0 | DC89: =(CG89-BX89)/100 -> 0.004529239732 | DD89: =(CJ89-CA89)/100 -> 0.004529239732
A90: =A6110 -> 2022-10-24 | B90: 1 | C90: =C6110/C6109-1 -> 1.188% | D90: =D6110/C6109-1 -> 0.25% | E90: 0.2% | F90: =E6110 -> 29.85 | G90: =F6110/F6109-1 -> -6.36% | H90: =G6110/G6109-1 -> 0.31% | I90: =H6110/H6109-1 -> 1.96% | K90: 2022-10-24 | L90: 3.20 | M90: 2.79 | N90: 3.44 | O90: 3.12 | P90: 2.79 | Q90: 2022-10-24 | R90: 3.44 | S90: =IF(P90>$Q$29,1,0) -> 1 | U90: =IF($A$19=1,T90,0) -> 0 | Y90: 0 | AB90: -1 | AC90: =$EU$9+$EU$10*C89+$EU$11*I90+$EU$12*G90+$EU$13*H90+$EU$14*C89^2+$EU$15*I89+$EU$16*H89+$EU$17*B90+$EU$18*B90*I90+$EU$19*B90*I89+$EU$20*B90*H90+$EU$21*B90*H89+$EU$22*(F89-F88)+$EU$23*(F89-F88)*H89+$EU$24*(F89-F88)*H89*B90 -> -0.02% | AD90: 0 | AE90: 1 | AF90: 1 | AG90: 0 | AH90: 1 | AI90: 1 | AJ90: 0 | AK90: 0 | AL90: 0 | AM90: 0 | AN90: =SUM($AM$32:AM90)/COUNT($AM$32:AM90) -> 0.6595744681 | AO90: 0 | AP90: =SUM($AO$32:AO90)/COUNT($AO$32:AO90) -> 66.0% | AQ90: 66.0% | AR90: 64.4% | AS90: =IF($B$19=1,IF(S90=1,$FA$9+$FA$10*C89+$FA$11*I90+$FA$12*G90+$FA$13*H90+$FA$14*C89^2+$FA$15*I89+$FA$16*H89+$FA$17*B90+$FA$18*B90*I90+$FA$19*B90*I89+$FA$20*B90*H90+$FA$21*B90*H89+$FA$22*(F89-F88)+$FA$23*(F89-F88)*H89+$FA$24*(F89-F88)*H89*B90+$FA$25*P89+$FA$26*P89*I90+$FA$27*P89*G90+$FA$28*P89*H90+$FA$29*P89*(F89-F88)+$FA$30*P89*(F89^2-F88^2),AC90),$FA$9+$FA$10*C89+$FA$11*I90+$FA$12*G90+$FA$13*H90+$FA$14*C89^2+$FA$15*I89+$FA$16*H89+$FA$17*B90+$FA$18*B90*I90+$FA$19*B90*I89+$FA$20*B90*H90+$FA$21*B90*H89+$FA$22*(F89-F88)+$FA$23*(F89-F88)*H89+$FA$24*(F89-F88)*H89*B90+$FA$25*P89+$FA$26*P89*I90+$FA$27*P89*G90+$FA$28*P89*H90+$FA$29*P89*(F89-F88)+$FA$30*P89*(F89^2-F88^2)) -> 0.04% | AT90: 0.0% | AU90: 1 | AV90: 0 | AW90: 1 | AX90: 0 | AY90: 2 | AZ90: 0 | BA90: 1 | BB90: 0 | BC90: 1 | BD90: 1 | BE90: =SUM($BD$32:BD90)/COUNT($BD$32:BD90) -> 0.7234042553 | BF90: 1 | BG90: =IF(Y90=0,CL90-CD90,"") -> 1 | BH90: 1 | BI90: 0 | BJ90: =SUM($BF$32:BF90)/COUNT($BF$32:BF90) -> 72.3% | BK90: =BJ90-AP90 -> 6.4% | BM90: =IF(AC90>0,1,0) -> 0.0% | BN90: =IF(AS90>0,1,0) -> 100.00% | BO90: =IF(AS90-AC90>0,1,0) -> 1 | BP90: =IF(BO90+AU90=2,1,0) -> 1 | BQ90: =IF(C89>0,1,0) -> 1 | BR90: =A90 -> 44858 | BS90: =IF(ABS(C90)>0,IF(BQ90>0,BS89*(1+(C90-E90)),BS89*(1-(C90-E90))),BS89) -> 90.04996645 | BT90: 0.009414429418 | BU90: =BU89*(1+C90) -> 1900-04-01T04:46:42.676 | BV90: 0.01188195323 | BW90: 1 | BX90: =IF(X90=0,IF(BM90>0,BX89*(1+(C90-E90)),BX89*(1-(C90-E90))),BX89) -> 120.422442 | BY90: -0.009414429418 | BZ90: 0 | CA90: =IF(Y90=0,IF(BM90>0,CA89*(1+(C90-E90)),CA89*(1-(C90-E90))),CA89) -> 120.422442 | CB90: =IF(Y90=0,IF(BM90>0,CA90/CA89-1,CA90/CA89-1),"") -> -0.009414429418 | CC90: -0.009414429418 | CD90: 0 | CE90: =SUM($CD$30:CD90)/COUNT($CD$30:CD90) -> 0.6041666667 | CF90: 109.8654922 | CG90: =IF(X90=0,IF(BN90>0,CG89*(1+(C90-E90)),CG89*(1-(C90-E90))),CG89) -> 123.1685964 | CH90: 1% | CI90: =IF(X90=0,IF(CG90/CG89-1>=0,1,0),"") -> 1 | CJ90: =IF(Y90=0,IF(BN90>0,CJ89*(1+(C90-E90)),CJ89*(1-(C90-E90))),CJ89) -> 123.1685964 | CK90: =IF(Y90=0,IF(BN90>0,CJ90/CJ89-1,CJ90/CJ89-1),"") -> 0.009414429418 | CL90: 1 | CM90: =SUM($CL$30:CL90)/COUNT($CL$30:CL90) -> 0.6666666667 | CN90: =IF(CK90="","",CK90-CC90) -> 0.01882885884 | CO90: =COUNT($CN$32:CN90) -> 4700% | CP90: 100% | CQ90: 0 | CR90: =SUM($CP$32:CP90) -> 5.00 | CS90: =SUM($CQ$32:CQ90) -> 4.00 | CT90: 0.10 | CU90: 0.09 | CV90: 11% | CW90: 0.09 | CX90: 2.1% | CY90: 35.1% | CZ90: 36.3% | DA90: 0.009414429418 | DB90: =IF(Y90=0,IF(CJ90/CJ89-1>=0,1,0),"") -> 1 | DC90: =(CG90-BX90)/100 -> 0.02746154468 | DD90: =(CJ90-CA90)/100 -> 0.02746154468
A91: =A6111 -> 2022-10-25 | B91: 0 | C91: =C6111/C6110-1 -> 1.627% | D91: =D6111/C6110-1 -> 0.06% | E91: 0.1% | F91: =E6111 -> 28.46 | G91: =F6111/F6110-1 -> -0.10% | H91: =G6111/G6110-1 -> 1.02% | I91: =H6111/H6110-1 -> 1.37% | K91: 2022-10-25 | L91: 3.45 | M91: 3.68 | N91: 3.81 | O91: 3.75 | P91: 3.68 | Q91: 2022-10-25 | R91: 3.81 | S91: =IF(P91>$Q$29,1,0) -> 1 | U91: =IF($A$19=1,T91,0) -> 0 | Y91: 0 | AB91: 0 | AC91: =$EU$9+$EU$10*C90+$EU$11*I91+$EU$12*G91+$EU$13*H91+$EU$14*C90^2+$EU$15*I90+$EU$16*H90+$EU$17*B91+$EU$18*B91*I91+$EU$19*B91*I90+$EU$20*B91*H91+$EU$21*B91*H90+$EU$22*(F90-F89)+$EU$23*(F90-F89)*H90+$EU$24*(F90-F89)*H90*B91 -> 0.45% | AD91: 1 | AE91: 0 | AF91: 1 | AG91: 0 | AH91: 2 | AI91: 0 | AJ91: 1 | AK91: 0 | AL91: 1 | AM91: 1 | AN91: =SUM($AM$32:AM91)/COUNT($AM$32:AM91) -> 0.6666666667 | AO91: 1 | AP91: =SUM($AO$32:AO91)/COUNT($AO$32:AO91) -> 66.7% | AQ91: 66.7% | AR91: 65.0% | AS91: =IF($B$19=1,IF(S91=1,$FA$9+$FA$10*C90+$FA$11*I91+$FA$12*G91+$FA$13*H91+$FA$14*C90^2+$FA$15*I90+$FA$16*H90+$FA$17*B91+$FA$18*B91*I91+$FA$19*B91*I90+$FA$20*B91*H91+$FA$21*B91*H90+$FA$22*(F90-F89)+$FA$23*(F90-F89)*H90+$FA$24*(F90-F89)*H90*B91+$FA$25*P90+$FA$26*P90*I91+$FA$27*P90*G91+$FA$28*P90*H91+$FA$29*P90*(F90-F89)+$FA$30*P90*(F90^2-F89^2),AC91),$FA$9+$FA$10*C90+$FA$11*I91+$FA$12*G91+$FA$13*H91+$FA$14*C90^2+$FA$15*I90+$FA$16*H90+$FA$17*B91+$FA$18*B91*I91+$FA$19*B91*I90+$FA$20*B91*H91+$FA$21*B91*H90+$FA$22*(F90-F89)+$FA$23*(F90-F89)*H90+$FA$24*(F90-F89)*H90*B91+$FA$25*P90+$FA$26*P90*I91+$FA$27*P90*G91+$FA$28*P90*H91+$FA$29*P90*(F90-F89)+$FA$30*P90*(F90^2-F89^2)) -> 0.46% | AT91: 0.0% | AU91: 1 | AV91: 0 | AW91: 1 | AX91: 0 | AY91: 2 | AZ91: 0 | BA91: 1 | BB91: 0 | BC91: 1 | BD91: 1 | BE91: =SUM($BD$32:BD91)/COUNT($BD$32:BD91) -> 0.7291666667 | BF91: 1 | BG91: =IF(Y91=0,CL91-CD91,"") -> 0 | BH91: 0 | BI91: 0 | BJ91: =SUM($BF$32:BF91)/COUNT($BF$32:BF91) -> 72.9% | BK91: =BJ91-AP91 -> 6.3% | BM91: =IF(AC91>0,1,0) -> 100.0% | BN91: =IF(AS91>0,1,0) -> 100.00% | BO91: =IF(AS91-AC91>0,1,0) -> 1 | BP91: =IF(BO91+AU91=2,1,0) -> 1 | BQ91: =IF(C90>0,1,0) -> 1 | BR91: =A91 -> 44859 | BS91: =IF(ABS(C91)>0,IF(BQ91>0,BS90*(1+(C91-E91)),BS90*(1-(C91-E91))),BS90) -> 91.4649784 | BT91: 0.01571363112 | BU91: =BU90*(1+C91) -> 1900-04-02T16:46:22.852 | BV91: 0.01626664981 | BW91: 1 | BX91: =IF(X91=0,IF(BM91>0,BX90*(1+(C91-E91)),BX90*(1-(C91-E91))),BX90) -> 122.3147158 | BY91: 0.01571363112 | BZ91: 1 | CA91: =IF(Y91=0,IF(BM91>0,CA90*(1+(C91-E91)),CA90*(1-(C91-E91))),CA90) -> 122.3147158 | CB91: =IF(Y91=0,IF(BM91>0,CA91/CA90-1,CA91/CA90-1),"") -> 0.01571363112 | CC91: 0.01571363112 | CD91: 1 | CE91: =SUM($CD$30:CD91)/COUNT($CD$30:CD91) -> 0.612244898 | CF91: 110.7286851 | CG91: =IF(X91=0,IF(BN91>0,CG90*(1+(C91-E91)),CG90*(1-(C91-E91))),CG90) -> 125.1040223 | CH91: 2% | CI91: =IF(X91=0,IF(CG91/CG90-1>=0,1,0),"") -> 1 | CJ91: =IF(Y91=0,IF(BN91>0,CJ90*(1+(C91-E91)),CJ90*(1-(C91-E91))),CJ90) -> 125.1040223 | CK91: =IF(Y91=0,IF(BN91>0,CJ91/CJ90-1,CJ91/CJ90-1),"") -> 0.01571363112 | CL91: 1 | CM91: =SUM($CL$30:CL91)/COUNT($CL$30:CL91) -> 0.6734693878 | CN91: =IF(CK91="","",CK91-CC91) -> 0 | CO91: =COUNT($CN$32:CN91) -> 4800% | CP91: 0% | CQ91: 0 | CR91: =SUM($CP$32:CP91) -> 5.00 | CS91: =SUM($CQ$32:CQ91) -> 4.00 | CT91: 0.09 | CU91: 0.08 | CV91: 10% | CW91: 0.08 | CX91: 2.1% | CY91: 35.0% | CZ91: 36.3% | DA91: 0.01571363112 | DB91: =IF(Y91=0,IF(CJ91/CJ90-1>=0,1,0),"") -> 1 | DC91: =(CG91-BX91)/100 -> 0.02789306526 | DD91: =(CJ91-CA91)/100 -> 0.02789306526
A92: =A6112 -> 2022-10-26 | B92: 0 | C92: =C6112/C6111-1 -> -0.739% | D92: =D6112/C6111-1 -> -0.86% | E92: -0.9% | F92: =E6112 -> 27.28 | G92: =F6112/F6111-1 -> 1.00% | H92: =G6112/G6111-1 -> 0.67% | I92: =H6112/H6111-1 -> 0.24% | K92: 2022-10-26 | L92: 2.33 | M92: 2.45 | N92: 3.83 | O92: 3.14 | P92: 2.45 | Q92: 2022-10-26 | R92: 3.83 | S92: =IF(P92>$Q$29,1,0) -> 1 | U92: =IF($A$19=1,T92,0) -> 0 | Y92: 0 | AB92: 0 | AC92: =$EU$9+$EU$10*C91+$EU$11*I92+$EU$12*G92+$EU$13*H92+$EU$14*C91^2+$EU$15*I91+$EU$16*H91+$EU$17*B92+$EU$18*B92*I92+$EU$19*B92*I91+$EU$20*B92*H92+$EU$21*B92*H91+$EU$22*(F91-F90)+$EU$23*(F91-F90)*H91+$EU$24*(F91-F90)*H91*B92 -> -0.15% | AD92: 0 | AE92: 1 | AF92: 0 | AG92: 1 | AH92: 0 | AI92: 2 | AJ92: 0 | AK92: 1 | AL92: 1 | AM92: 1 | AN92: =SUM($AM$32:AM92)/COUNT($AM$32:AM92) -> 0.6734693878 | AO92: 1 | AP92: =SUM($AO$32:AO92)/COUNT($AO$32:AO92) -> 67.3% | AQ92: 67.3% | AR92: 65.6% | AS92: =IF($B$19=1,IF(S92=1,$FA$9+$FA$10*C91+$FA$11*I92+$FA$12*G92+$FA$13*H92+$FA$14*C91^2+$FA$15*I91+$FA$16*H91+$FA$17*B92+$FA$18*B92*I92+$FA$19*B92*I91+$FA$20*B92*H92+$FA$21*B92*H91+$FA$22*(F91-F90)+$FA$23*(F91-F90)*H91+$FA$24*(F91-F90)*H91*B92+$FA$25*P91+$FA$26*P91*I92+$FA$27*P91*G92+$FA$28*P91*H92+$FA$29*P91*(F91-F90)+$FA$30*P91*(F91^2-F90^2),AC92),$FA$9+$FA$10*C91+$FA$11*I92+$FA$12*G92+$FA$13*H92+$FA$14*C91^2+$FA$15*I91+$FA$16*H91+$FA$17*B92+$FA$18*B92*I92+$FA$19*B92*I91+$FA$20*B92*H92+$FA$21*B92*H91+$FA$22*(F91-F90)+$FA$23*(F91-F90)*H91+$FA$24*(F91-F90)*H91*B92+$FA$25*P91+$FA$26*P91*I92+$FA$27*P91*G92+$FA$28*P91*H92+$FA$29*P91*(F91-F90)+$FA$30*P91*(F91^2-F90^2)) -> -0.24% | AT92: 0.1% | AU92: 0 | AV92: 1 | AW92: 0 | AX92: 1 | AY92: 0 | AZ92: 2 | BA92: 0 | BB92: 1 | BC92: 1 | BD92: 1 | BE92: =SUM($BD$32:BD92)/COUNT($BD$32:BD92) -> 0.7346938776 | BF92: 1 | BG92: =IF(Y92=0,CL92-CD92,"") -> 0 | BH92: 0 | BI92: 0 | BJ92: =SUM($BF$32:BF92)/COUNT($BF$32:BF92) -> 73.5% | BK92: =BJ92-AP92 -> 6.1% | BM92: =IF(AC92>0,1,0) -> 0.0% | BN92: =IF(AS92>0,1,0) -> 0.00% | BO92: =IF(AS92-AC92>0,1,0) -> 0 | BP92: =IF(BO92+AU92=2,1,0) -> 0 | BQ92: =IF(C91>0,1,0) -> 1 | BR92: =A92 -> 44860 | BS92: =IF(ABS(C92)>0,IF(BQ92>0,BS91*(1+(C92-E92)),BS91*(1-(C92-E92))),BS91) -> 91.57471429 | BT92: 0.001199758494 | BU92: =BU91*(1+C92) -> 1900-04-02T00:09:35.003 | BV92: -0.007387713747 | BW92: 0 | BX92: =IF(X92=0,IF(BM92>0,BX91*(1+(C92-E92)),BX91*(1-(C92-E92))),BX91) -> 122.1679677 | BY92: -0.001199758494 | BZ92: 0 | CA92: =IF(Y92=0,IF(BM92>0,CA91*(1+(C92-E92)),CA91*(1-(C92-E92))),CA91) -> 122.1679677 | CB92: =IF(Y92=0,IF(BM92>0,CA92/CA91-1,CA92/CA91-1),"") -> -0.001199758494 | CC92: -0.001199758494 | CD92: 0 | CE92: =SUM($CD$30:CD92)/COUNT($CD$30:CD92) -> 0.6 | CF92: 110.6622612 | CG92: =IF(X92=0,IF(BN92>0,CG91*(1+(C92-E92)),CG91*(1-(C92-E92))),CG91) -> 124.9539277 | CH92: -0% | CI92: =IF(X92=0,IF(CG92/CG91-1>=0,1,0),"") -> 0 | CJ92: =IF(Y92=0,IF(BN92>0,CJ91*(1+(C92-E92)),CJ91*(1-(C92-E92))),CJ91) -> 124.9539277 | CK92: =IF(Y92=0,IF(BN92>0,CJ92/CJ91-1,CJ92/CJ91-1),"") -> -0.001199758494 | CL92: 0 | CM92: =SUM($CL$30:CL92)/COUNT($CL$30:CL92) -> 0.66 | CN92: =IF(CK92="","",CK92-CC92) -> 0 | CO92: =COUNT($CN$32:CN92) -> 4900% | CP92: 0% | CQ92: 0 | CR92: =SUM($CP$32:CP92) -> 5.00 | CS92: =SUM($CQ$32:CQ92) -> 4.00 | CT92: 0.09 | CU92: 0.08 | CV92: 10% | CW92: 0.08 | CX92: 2.0% | CY92: 35.0% | CZ92: 36.3% | DA92: -0.001199758494 | DB92: =IF(Y92=0,IF(CJ92/CJ91-1>=0,1,0),"") -> 0 | DC92: =(CG92-BX92)/100 -> 0.02785960032 | DD92: =(CJ92-CA92)/100 -> 0.02785960032
A93: =A6113 -> 2022-10-27 | B93: 0 | C93: =C6113/C6112-1 -> -0.608% | D93: =D6113/C6112-1 -> 0.11% | E93: 0.1% | F93: =E6113 -> 27.39 | G93: =F6113/F6112-1 -> 0.72% | H93: =G6113/G6112-1 -> -0.32% | I93: =H6113/H6112-1 -> -0.09% | K93: 2022-10-27 | L93: 2.86 | M93: 2.78 | N93: 3.11 | O93: 2.95 | P93: 2.78 | Q93: 2022-10-27 | R93: 3.11 | S93: =IF(P93>$Q$29,1,0) -> 1 | U93: =IF($A$19=1,T93,0) -> 0 | Y93: 0 | AB93: 0 | AC93: =$EU$9+$EU$10*C92+$EU$11*I93+$EU$12*G93+$EU$13*H93+$EU$14*C92^2+$EU$15*I92+$EU$16*H92+$EU$17*B93+$EU$18*B93*I93+$EU$19*B93*I92+$EU$20*B93*H93+$EU$21*B93*H92+$EU$22*(F92-F91)+$EU$23*(F92-F91)*H92+$EU$24*(F92-F91)*H92*B93 -> 0.26% | AD93: 1 | AE93: 0 | AF93: 0 | AG93: 1 | AH93: 1 | AI93: 1 | AJ93: 0 | AK93: 0 | AL93: 0 | AM93: 0 | AN93: =SUM($AM$32:AM93)/COUNT($AM$32:AM93) -> 0.66 | AO93: 0 | AP93: =SUM($AO$32:AO93)/COUNT($AO$32:AO93) -> 66.0% | AQ93: 66.0% | AR93: 64.5% | AS93: =IF($B$19=1,IF(S93=1,$FA$9+$FA$10*C92+$FA$11*I93+$FA$12*G93+$FA$13*H93+$FA$14*C92^2+$FA$15*I92+$FA$16*H92+$FA$17*B93+$FA$18*B93*I93+$FA$19*B93*I92+$FA$20*B93*H93+$FA$21*B93*H92+$FA$22*(F92-F91)+$FA$23*(F92-F91)*H92+$FA$24*(F92-F91)*H92*B93+$FA$25*P92+$FA$26*P92*I93+$FA$27*P92*G93+$FA$28*P92*H93+$FA$29*P92*(F92-F91)+$FA$30*P92*(F92^2-F91^2),AC93),$FA$9+$FA$10*C92+$FA$11*I93+$FA$12*G93+$FA$13*H93+$FA$14*C92^2+$FA$15*I92+$FA$16*H92+$FA$17*B93+$FA$18*B93*I93+$FA$19*B93*I92+$FA$20*B93*H93+$FA$21*B93*H92+$FA$22*(F92-F91)+$FA$23*(F92-F91)*H92+$FA$24*(F92-F91)*H92*B93+$FA$25*P92+$FA$26*P92*I93+$FA$27*P92*G93+$FA$28*P92*H93+$FA$29*P92*(F92-F91)+$FA$30*P92*(F92^2-F91^2)) -> 0.30% | AT93: 0.0% | AU93: 1 | AV93: 0 | AW93: 0 | AX93: 1 | AY93: 1 | AZ93: 1 | BA93: 0 | BB93: 0 | BC93: 0 | BD93: 0 | BE93: =SUM($BD$32:BD93)/COUNT($BD$32:BD93) -> 0.72 | BF93: 0 | BG93: =IF(Y93=0,CL93-CD93,"") -> 0 | BH93: 0 | BI93: 0 | BJ93: =SUM($BF$32:BF93)/COUNT($BF$32:BF93) -> 72.0% | BK93: =BJ93-AP93 -> 6.0% | BM93: =IF(AC93>0,1,0) -> 100.0% | BN93: =IF(AS93>0,1,0) -> 100.00% | BO93: =IF(AS93-AC93>0,1,0) -> 1 | BP93: =IF(BO93+AU93=2,1,0) -> 1 | BQ93: =IF(C92>0,1,0) -> 0 | BR93: =A93 -> 44861 | BS93: =IF(ABS(C93)>0,IF(BQ93>0,BS92*(1+(C93-E93)),BS92*(1-(C93-E93))),BS92) -> 92.22950242 | BT93: 0.007150315877 | BU93: =BU92*(1+C93) -> 1900-04-01T10:34:56.614 | BV93: -0.006082598026 | BW93: 0 | BX93: =IF(X93=0,IF(BM93>0,BX92*(1+(C93-E93)),BX92*(1-(C93-E93))),BX92) -> 121.2944281 | BY93: -0.007150315877 | BZ93: 0 | CA93: =IF(Y93=0,IF(BM93>0,CA92*(1+(C93-E93)),CA92*(1-(C93-E93))),CA92) -> 121.2944281 | CB93: =IF(Y93=0,IF(BM93>0,CA93/CA92-1,CA93/CA92-1),"") -> -0.007150315877 | CC93: -0.007150315877 | CD93: 0 | CE93: =SUM($CD$30:CD93)/COUNT($CD$30:CD93) -> 0.5882352941 | CF93: 110.2666262 | CG93: =IF(X93=0,IF(BN93>0,CG92*(1+(C93-E93)),CG92*(1-(C93-E93))),CG92) -> 124.0604676 | CH93: -1% | CI93: =IF(X93=0,IF(CG93/CG92-1>=0,1,0),"") -> 0 | CJ93: =IF(Y93=0,IF(BN93>0,CJ92*(1+(C93-E93)),CJ92*(1-(C93-E93))),CJ92) -> 124.0604676 | CK93: =IF(Y93=0,IF(BN93>0,CJ93/CJ92-1,CJ93/CJ92-1),"") -> -0.007150315877 | CL93: 0 | CM93: =SUM($CL$30:CL93)/COUNT($CL$30:CL93) -> 0.6470588235 | CN93: =IF(CK93="","",CK93-CC93) -> 0 | CO93: =COUNT($CN$32:CN93) -> 5000% | CP93: 0% | CQ93: 0 | CR93: =SUM($CP$32:CP93) -> 5.00 | CS93: =SUM($CQ$32:CQ93) -> 4.00 | CT93: 0.09 | CU93: 0.08 | CV93: 10% | CW93: 0.08 | CX93: 2.0% | CY93: 34.9% | CZ93: 36.3% | DA93: -0.007150315877 | DB93: =IF(Y93=0,IF(CJ93/CJ92-1>=0,1,0),"") -> 0 | DC93: =(CG93-BX93)/100 -> 0.02766039538 | DD93: =(CJ93-CA93)/100 -> 0.02766039538
A94: =A6114 -> 2022-10-28 | B94: 0 | C94: =C6114/C6113-1 -> 2.463% | D94: =D6114/C6113-1 -> 0.03% | E94: 0.0% | F94: =E6114 -> 25.75 | G94: =F6114/F6113-1 -> -3.66% | H94: =G6114/G6113-1 -> -0.88% | I94: =H6114/H6113-1 -> 0.31% | K94: 2022-10-28 | L94: 2.36 | M94: 2.55 | N94: 3.27 | O94: 2.91 | P94: 2.55 | Q94: 2022-10-28 | R94: 3.27 | S94: =IF(P94>$Q$29,1,0) -> 1 | U94: =IF($A$19=1,T94,0) -> 0 | Y94: 0 | AB94: 0 | AC94: =$EU$9+$EU$10*C93+$EU$11*I94+$EU$12*G94+$EU$13*H94+$EU$14*C93^2+$EU$15*I93+$EU$16*H93+$EU$17*B94+$EU$18*B94*I94+$EU$19*B94*I93+$EU$20*B94*H94+$EU$21*B94*H93+$EU$22*(F93-F92)+$EU$23*(F93-F92)*H93+$EU$24*(F93-F92)*H93*B94 -> 0.06% | AD94: 1 | AE94: 0 | AF94: 1 | AG94: 0 | AH94: 2 | AI94: 0 | AJ94: 1 | AK94: 0 | AL94: 1 | AM94: 1 | AN94: =SUM($AM$32:AM94)/COUNT($AM$32:AM94) -> 0.6666666667 | AO94: 1 | AP94: =SUM($AO$32:AO94)/COUNT($AO$32:AO94) -> 66.7% | AQ94: 66.7% | AR94: 65.1% | AS94: =IF($B$19=1,IF(S94=1,$FA$9+$FA$10*C93+$FA$11*I94+$FA$12*G94+$FA$13*H94+$FA$14*C93^2+$FA$15*I93+$FA$16*H93+$FA$17*B94+$FA$18*B94*I94+$FA$19*B94*I93+$FA$20*B94*H94+$FA$21*B94*H93+$FA$22*(F93-F92)+$FA$23*(F93-F92)*H93+$FA$24*(F93-F92)*H93*B94+$FA$25*P93+$FA$26*P93*I94+$FA$27*P93*G94+$FA$28*P93*H94+$FA$29*P93*(F93-F92)+$FA$30*P93*(F93^2-F92^2),AC94),$FA$9+$FA$10*C93+$FA$11*I94+$FA$12*G94+$FA$13*H94+$FA$14*C93^2+$FA$15*I93+$FA$16*H93+$FA$17*B94+$FA$18*B94*I94+$FA$19*B94*I93+$FA$20*B94*H94+$FA$21*B94*H93+$FA$22*(F93-F92)+$FA$23*(F93-F92)*H93+$FA$24*(F93-F92)*H93*B94+$FA$25*P93+$FA$26*P93*I94+$FA$27*P93*G94+$FA$28*P93*H94+$FA$29*P93*(F93-F92)+$FA$30*P93*(F93^2-F92^2)) -> 0.11% | AT94: 0.1% | AU94: 1 | AV94: 0 | AW94: 1 | AX94: 0 | AY94: 2 | AZ94: 0 | BA94: 1 | BB94: 0 | BC94: 1 | BD94: 1 | BE94: =SUM($BD$32:BD94)/COUNT($BD$32:BD94) -> 0.7254901961 | BF94: 1 | BG94: =IF(Y94=0,CL94-CD94,"") -> 0 | BH94: 0 | BI94: 0 | BJ94: =SUM($BF$32:BF94)/COUNT($BF$32:BF94) -> 72.5% | BK94: =BJ94-AP94 -> 5.9% | BM94: =IF(AC94>0,1,0) -> 100.0% | BN94: =IF(AS94>0,1,0) -> 100.00% | BO94: =IF(AS94-AC94>0,1,0) -> 1 | BP94: =IF(BO94+AU94=2,1,0) -> 1 | BQ94: =IF(C93>0,1,0) -> 0 | BR94: =A94 -> 44862 | BS94: =IF(ABS(C94)>0,IF(BQ94>0,BS93*(1+(C94-E94)),BS93*(1-(C94-E94))),BS93) -> 89.98147946 | BT94: -0.02437422846 | BU94: =BU93*(1+C94) -> 1900-04-03T17:13:04.930 | BV94: 0.02462637565 | BW94: 1 | BX94: =IF(X94=0,IF(BM94>0,BX93*(1+(C94-E94)),BX93*(1-(C94-E94))),BX93) -> 124.2508862 | BY94: 0.02437422846 | BZ94: 1 | CA94: =IF(Y94=0,IF(BM94>0,CA93*(1+(C94-E94)),CA93*(1-(C94-E94))),CA93) -> 124.2508862 | CB94: =IF(Y94=0,IF(BM94>0,CA94/CA93-1,CA94/CA93-1),"") -> 0.02437422846 | CC94: 0.02437422846 | CD94: 1 | CE94: =SUM($CD$30:CD94)/COUNT($CD$30:CD94) -> 0.5961538462 | CF94: 111.6104581 | CG94: =IF(X94=0,IF(BN94>0,CG93*(1+(C94-E94)),CG93*(1-(C94-E94))),CG93) -> 127.0843458 | CH94: 2% | CI94: =IF(X94=0,IF(CG94/CG93-1>=0,1,0),"") -> 1 | CJ94: =IF(Y94=0,IF(BN94>0,CJ93*(1+(C94-E94)),CJ93*(1-(C94-E94))),CJ93) -> 127.0843458 | CK94: =IF(Y94=0,IF(BN94>0,CJ94/CJ93-1,CJ94/CJ93-1),"") -> 0.02437422846 | CL94: 1 | CM94: =SUM($CL$30:CL94)/COUNT($CL$30:CL94) -> 0.6538461538 | CN94: =IF(CK94="","",CK94-CC94) -> 0 | CO94: =COUNT($CN$32:CN94) -> 5100% | CP94: 0% | CQ94: 0 | CR94: =SUM($CP$32:CP94) -> 5.00 | CS94: =SUM($CQ$32:CQ94) -> 4.00 | CT94: 0.09 | CU94: 0.08 | CV94: 10% | CW94: 0.08 | CX94: 2.0% | CY94: 34.9% | CZ94: 36.4% | DA94: 0.02437422846 | DB94: =IF(Y94=0,IF(CJ94/CJ93-1>=0,1,0),"") -> 1 | DC94: =(CG94-BX94)/100 -> 0.02833459617 | DD94: =(CJ94-CA94)/100 -> 0.02833459617
A95: =A6115 -> 2022-10-31 | B95: =IF(C94=0,1,IF(WEEKDAY(A95,2)=1,1,0)) -> 1 | C95: =C6115/C6114-1 -> -0.745% | D95: =D6115/C6114-1 -> -0.49% | E95: =D95 -> -0.5% | F95: =E6115 -> 25.88 | G95: =F6115/F6114-1 -> -1.18% | H95: =G6115/G6114-1 -> 1.78% | I95: =H6115/H6114-1 -> -0.29% | K95: 2022-10-31 | L95: 1.99 | M95: 1.96 | N95: 2.76 | O95: 2.36 | P95: =M95 -> 1.96 | Q95: 2022-10-31 | R95: 2.76 | S95: =IF(P95>$Q$29,1,0) -> 0 | T95: 1 | U95: =IF($A$19=1,T95,0) -> 0 | Y95: 0 | AB95: 0 | AC95: =$EU$9+$EU$10*C94+$EU$11*I95+$EU$12*G95+$EU$13*H95+$EU$14*C94^2+$EU$15*I94+$EU$16*H94+$EU$17*B95+$EU$18*B95*I95+$EU$19*B95*I94+$EU$20*B95*H95+$EU$21*B95*H94+$EU$22*(F94-F93)+$EU$23*(F94-F93)*H94+$EU$24*(F94-F93)*H94*B95 -> -0.89% | AD95: 0 | AE95: =IF(AC95<=0,1,0) -> 1 | AF95: =IF(C95>0,1,0) -> 0 | AG95: =IF(C95<0,1,0) -> 1 | AH95: 0 | AI95: 2 | AJ95: 0 | AK95: 1 | AL95: 1 | AM95: 1 | AN95: =SUM($AM$32:AM95)/COUNT($AM$32:AM95) -> 0.6730769231 | AO95: =IF(Y95=0,AL95,"") -> 1 | AP95: =SUM($AO$32:AO95)/COUNT($AO$32:AO95) -> 67.3% | AQ95: 67.3% | AR95: 65.6% | AS95: =IF($B$19=1,IF(S95=1,$FA$9+$FA$10*C94+$FA$11*I95+$FA$12*G95+$FA$13*H95+$FA$14*C94^2+$FA$15*I94+$FA$16*H94+$FA$17*B95+$FA$18*B95*I95+$FA$19*B95*I94+$FA$20*B95*H95+$FA$21*B95*H94+$FA$22*(F94-F93)+$FA$23*(F94-F93)*H94+$FA$24*(F94-F93)*H94*B95+$FA$25*P94+$FA$26*P94*I95+$FA$27*P94*G95+$FA$28*P94*H95+$FA$29*P94*(F94-F93)+$FA$30*P94*(F94^2-F93^2),AC95),$FA$9+$FA$10*C94+$FA$11*I95+$FA$12*G95+$FA$13*H95+$FA$14*C94^2+$FA$15*I94+$FA$16*H94+$FA$17*B95+$FA$18*B95*I95+$FA$19*B95*I94+$FA$20*B95*H95+$FA$21*B95*H94+$FA$22*(F94-F93)+$FA$23*(F94-F93)*H94+$FA$24*(F94-F93)*H94*B95+$FA$25*P94+$FA$26*P94*I95+$FA$27*P94*G95+$FA$28*P94*H95+$FA$29*P94*(F94-F93)+$FA$30*P94*(F94^2-F93^2)) -> -0.91% | AT95: 0.0% | AU95: 0 | AV95: 1 | AW95: =IF(C95>0,1,0) -> 0 | AX95: =IF(C95<0,1,0) -> 1 | AY95: 0 | AZ95: 2 | BA95: 0 | BB95: 1 | BC95: 1 | BD95: 1 | BE95: =SUM($BD$32:BD95)/COUNT($BD$32:BD95) -> 0.7307692308 | BF95: =IF(Y95=0,BC95,"") -> 1 | BG95: =IF(Y95=0,CL95-CD95,"") -> 0 | BH95: 0 | BI95: =IF(Y95=0,IF(BG95=-1,1,0),"") -> 0 | BJ95: =SUM($BF$32:BF95)/COUNT($BF$32:BF95) -> 73.1% | BK95: =BJ95-AP95 -> 5.8% | BM95: =IF(AC95>0,1,0) -> 0.0% | BN95: =IF(AS95>0,1,0) -> 0.00% | BO95: =IF(AS95-AC95>0,1,0) -> 0 | BP95: =IF(BO95+AU95=2,1,0) -> 0 | BQ95: =IF(C94>0,1,0) -> 1 | BR95: =A95 -> 44865 | BS95: =IF(ABS(C95)>0,IF(BQ95>0,BS94*(1+(C95-E95)),BS94*(1-(C95-E95))),BS94) -> 89.75381898 | BT95: =BS95/BS94-1 -> -0.002530081568 | BU95: =BU94*(1+C95) -> 1900-04-03T00:16:21.344 | BV95: -0.007454384193 | BW95: 0 | BX95: =IF(X95=0,IF(BM95>0,BX94*(1+(C95-E95)),BX94*(1-(C95-E95))),BX94) -> 124.5652511 | BY95: =BX95/BX94-1 -> 0.002530081568 | BZ95: =IF(BY95>0,1,0) -> 1 | CA95: =IF(Y95=0,IF(BM95>0,CA94*(1+(C95-E95)),CA94*(1-(C95-E95))),CA94) -> 124.5652511 | CB95: =IF(Y95=0,IF(BM95>0,CA95/CA94-1,CA95/CA94-1),"") -> 0.002530081568 | CD95: 1 | CE95: =SUM($CD$30:CD95)/COUNT($CD$30:CD95) -> 0.6037735849 | CF95: 111.7516499 | CG95: =IF(X95=0,IF(BN95>0,CG94*(1+(C95-E95)),CG94*(1-(C95-E95))),CG94) -> 127.4058796 | CH95: 0% | CI95: =IF(X95=0,IF(CG95/CG94-1>=0,1,0),"") -> 1 | CJ95: =IF(Y95=0,IF(BN95>0,CJ94*(1+(C95-E95)),CJ94*(1-(C95-E95))),CJ94) -> 127.4058796 | CK95: =IF(Y95=0,IF(BN95>0,CJ95/CJ94-1,CJ95/CJ94-1),"") -> 0.002530081568 | CL95: =IF(ABS(CJ95-CJ94)>0,IF(CJ95/CJ94-1>=0,1,0),"") -> 1 | CM95: =SUM($CL$30:CL95)/COUNT($CL$30:CL95) -> 0.6603773585 | CN95: =IF(CK95="","",CK95-CC95) -> 0.002530081568 | CO95: =COUNT($CN$32:CN95) -> 5200% | CP95: 100% | CQ95: 0 | CR95: =SUM($CP$32:CP95) -> 6.00 | CS95: =SUM($CQ$32:CQ95) -> 4.00 | CT95: 0.10 | CU95: 0.09 | CV95: 12% | CW95: 0.08 | CX95: 3.8% | CY95: 66.5% | CZ95: 25.3% | DA95: =IF(ABS(CJ95/CJ94-1)>0,CJ95/CJ94-1,"") -> 0.002530081568 | DB95: =IF(Y95=0,IF(CJ95/CJ94-1>=0,1,0),"") -> 1 | DC95: =(CG95-BX95)/100 -> 0.02840628501 | DD95: =(CJ95-CA95)/100 -> 0.02840628501
A96: =A6116 -> 2022-11-01 | B96: 0 | C96: =C6116/C6115-1 -> -0.410% | D96: =D6116/C6115-1 -> 0.77% | E96: 0.8% | F96: =E6116 -> 25.81 | G96: =F6116/F6115-1 -> 5.23% | H96: =G6116/G6115-1 -> 0.33% | I96: =H6116/H6115-1 -> 0.33% | K96: 2022-11-01 | L96: 2.18 | M96: 2.37 | N96: 3.23 | O96: =AVERAGE(M96:N96) -> 2.80 | P96: 2.37 | Q96: 2022-11-01 | R96: 3.23 | S96: =IF(P96>$Q$29,1,0) -> 1 | T96: 1 | U96: =IF($A$19=1,T96,0) -> 0 | Y96: 0 | AB96: 0 | AC96: =$EU$9+$EU$10*C95+$EU$11*I96+$EU$12*G96+$EU$13*H96+$EU$14*C95^2+$EU$15*I95+$EU$16*H95+$EU$17*B96+$EU$18*B96*I96+$EU$19*B96*I95+$EU$20*B96*H96+$EU$21*B96*H95+$EU$22*(F95-F94)+$EU$23*(F95-F94)*H95+$EU$24*(F95-F94)*H95*B96 -> 0.73% | AD96: 1 | AE96: 0 | AF96: 0 | AG96: 1 | AH96: 1 | AI96: 1 | AJ96: 0 | AK96: 0 | AL96: 0 | AM96: 0 | AN96: =SUM($AM$32:AM96)/COUNT($AM$32:AM96) -> 0.6603773585 | AO96: 0 | AP96: =SUM($AO$32:AO96)/COUNT($AO$32:AO96) -> 66.0% | AQ96: 66.0% | AR96: 64.6% | AS96: =IF($B$19=1,IF(S96=1,$FA$9+$FA$10*C95+$FA$11*I96+$FA$12*G96+$FA$13*H96+$FA$14*C95^2+$FA$15*I95+$FA$16*H95+$FA$17*B96+$FA$18*B96*I96+$FA$19*B96*I95+$FA$20*B96*H96+$FA$21*B96*H95+$FA$22*(F95-F94)+$FA$23*(F95-F94)*H95+$FA$24*(F95-F94)*H95*B96+$FA$25*P95+$FA$26*P95*I96+$FA$27*P95*G96+$FA$28*P95*H96+$FA$29*P95*(F95-F94)+$FA$30*P95*(F95^2-F94^2),AC96),$FA$9+$FA$10*C95+$FA$11*I96+$FA$12*G96+$FA$13*H96+$FA$14*C95^2+$FA$15*I95+$FA$16*H95+$FA$17*B96+$FA$18*B96*I96+$FA$19*B96*I95+$FA$20*B96*H96+$FA$21*B96*H95+$FA$22*(F95-F94)+$FA$23*(F95-F94)*H95+$FA$24*(F95-F94)*H95*B96+$FA$25*P95+$FA$26*P95*I96+$FA$27*P95*G96+$FA$28*P95*H96+$FA$29*P95*(F95-F94)+$FA$30*P95*(F95^2-F94^2)) -> 1.51% | AT96: 0.8% | AU96: 1 | AV96: =IF(AS96<=0,1,0) -> 0 | AW96: 0 | AX96: 1 | AY96: 1 | AZ96: 1 | BA96: 0 | BB96: 0 | BC96: 0 | BD96: 0 | BE96: =SUM($BD$32:BD96)/COUNT($BD$32:BD96) -> 0.7169811321 | BF96: 0 | BG96: =IF(Y96=0,CL96-CD96,"") -> 0 | BH96: =IF(Y96=0,IF(BG96=1,1,0),"") -> 0 | BI96: 0 | BJ96: =SUM($BF$32:BF96)/COUNT($BF$32:BF96) -> 71.7% | BK96: =BJ96-AP96 -> 5.7% | BM96: =IF(AC96>0,1,0) -> 100.0% | BN96: =IF(AS96>0,1,0) -> 100.00% | BO96: =IF(AS96-AC96>0,1,0) -> 1 | BP96: =IF(BO96+AU96=2,1,0) -> 1 | BQ96: =IF(C95>0,1,0) -> 0 | BR96: =A96 -> 44866 | BS96: =IF(ABS(C96)>0,IF(BQ96>0,BS95*(1+(C96-E96)),BS95*(1-(C96-E96))),BS95) -> 90.81292878 | BT96: 0.01180016426 | BU96: =BU95*(1+C96) -> 1900-04-02T15:01:08.519 | BV96: -0.004101260854 | BW96: =IF(BV96>0,1,0) -> 0 | BX96: =IF(X96=0,IF(BM96>0,BX95*(1+(C96-E96)),BX95*(1-(C96-E96))),BX95) -> 123.0953607 | BY96: -0.01180016426 | BZ96: 0 | CA96: =IF(Y96=0,IF(BM96>0,CA95*(1+(C96-E96)),CA95*(1-(C96-E96))),CA95) -> 123.0953607 | CB96: =IF(Y96=0,IF(BM96>0,CA96/CA95-1,CA96/CA95-1),"") -> -0.01180016426 | CD96: =IF(ABS(CA96-CA95)>0,IF(CA96/CA95-1>=0,1,0),"") -> 0 | CE96: =SUM($CD$30:CD96)/COUNT($CD$30:CD96) -> 0.5925925926 | CF96: 111.092306 | CG96: =IF(X96=0,IF(BN96>0,CG95*(1+(C96-E96)),CG95*(1-(C96-E96))),CG95) -> 125.9024693 | CH96: -1% | CI96: =IF(X96=0,IF(CG96/CG95-1>=0,1,0),"") -> 0 | CJ96: =IF(Y96=0,IF(BN96>0,CJ95*(1+(C96-E96)),CJ95*(1-(C96-E96))),CJ95) -> 125.9024693 | CK96: =IF(Y96=0,IF(BN96>0,CJ96/CJ95-1,CJ96/CJ95-1),"") -> -0.01180016426 | CL96: 0 | CM96: =SUM($CL$30:CL96)/COUNT($CL$30:CL96) -> 0.6481481481 | CN96: =IF(CK96="","",CK96-CC96) -> -0.01180016426 | CO96: =COUNT($CN$32:CN96) -> 5300% | CP96: 0% | CQ96: 1.00 | CR96: =SUM($CP$32:CP96) -> 6.00 | CS96: =SUM($CQ$32:CQ96) -> 5.00 | CT96: 0.10 | CU96: 0.09 | CV96: 11% | CW96: 0.09 | CX96: 1.9% | CY96: 31.8% | CZ96: 37.5% | DA96: -0.01180016426 | DB96: =IF(Y96=0,IF(CJ96/CJ95-1>=0,1,0),"") -> 0 | DC96: =(CG96-BX96)/100 -> 0.02807108618 | DD96: =(CJ96-CA96)/100 -> 0.02807108618
A97: =A6117 -> 2022-11-02 | B97: 0 | C97: =C6117/C6116-1 -> -2.500% | D97: =D6117/C6116-1 -> -0.08% | E97: -0.1% | F97: =E6117 -> 25.86 | G97: =F6117/F6116-1 -> 2.41% | H97: =G6117/G6116-1 -> -0.06% | I97: =H6117/H6116-1 -> 0.28% | K97: 2022-11-02 | L97: 3.31 | M97: 2.96 | N97: 3.51 | O97: 3.23 | P97: 2.96 | Q97: 2022-11-02 | R97: 3.51 | S97: =IF(P97>$Q$29,1,0) -> 1 | T97: 1 | U97: =IF($A$19=1,T97,0) -> 0 | Y97: 0 | AB97: =AL97-BC97 -> 0 | AC97: =$EU$9+$EU$10*C96+$EU$11*I97+$EU$12*G97+$EU$13*H97+$EU$14*C96^2+$EU$15*I96+$EU$16*H96+$EU$17*B97+$EU$18*B97*I97+$EU$19*B97*I96+$EU$20*B97*H97+$EU$21*B97*H96+$EU$22*(F96-F95)+$EU$23*(F96-F95)*H96+$EU$24*(F96-F95)*H96*B97 -> 0.44% | AD97: =IF(AC97>0,1,0) -> 1 | AE97: 0 | AF97: 0 | AG97: 1 | AH97: =AD97+AF97 -> 1 | AI97: 1 | AJ97: =IF(AH97=2,1,0) -> 0 | AK97: 0 | AL97: =SUM(AJ97:AK97) -> 0 | AM97: =IF(X97=0,AL97,"") -> 0 | AN97: =SUM($AM$32:AM97)/COUNT($AM$32:AM97) -> 0.6481481481 | AO97: 0 | AP97: =SUM($AO$32:AO97)/COUNT($AO$32:AO97) -> 64.8% | AQ97: 64.8% | AR97: 63.6% | AS97: =IF($B$19=1,IF(S97=1,$FA$9+$FA$10*C96+$FA$11*I97+$FA$12*G97+$FA$13*H97+$FA$14*C96^2+$FA$15*I96+$FA$16*H96+$FA$17*B97+$FA$18*B97*I97+$FA$19*B97*I96+$FA$20*B97*H97+$FA$21*B97*H96+$FA$22*(F96-F95)+$FA$23*(F96-F95)*H96+$FA$24*(F96-F95)*H96*B97+$FA$25*P96+$FA$26*P96*I97+$FA$27*P96*G97+$FA$28*P96*H97+$FA$29*P96*(F96-F95)+$FA$30*P96*(F96^2-F95^2),AC97),$FA$9+$FA$10*C96+$FA$11*I97+$FA$12*G97+$FA$13*H97+$FA$14*C96^2+$FA$15*I96+$FA$16*H96+$FA$17*B97+$FA$18*B97*I97+$FA$19*B97*I96+$FA$20*B97*H97+$FA$21*B97*H96+$FA$22*(F96-F95)+$FA$23*(F96-F95)*H96+$FA$24*(F96-F95)*H96*B97+$FA$25*P96+$FA$26*P96*I97+$FA$27*P96*G97+$FA$28*P96*H97+$FA$29*P96*(F96-F95)+$FA$30*P96*(F96^2-F95^2)) -> 0.60% | AT97: =ABS(AS97)-ABS(AC97) -> 0.2% | AU97: =IF(AS97>0,1,0) -> 1 | AV97: 0 | AW97: 0 | AX97: 1 | AY97: =AU97+AW97 -> 1 | AZ97: 1 | BA97: =IF(AY97=2,1,0) -> 0 | BB97: 0 | BC97: =SUM(BA97:BB97) -> 0 | BD97: =IF(X97=0,BC97,"") -> 0 | BE97: =SUM($BD$32:BD97)/COUNT($BD$32:BD97) -> 0.7037037037 | BF97: 0 | BG97: =IF(Y97=0,CL97-CD97,"") -> 0 | BH97: 0 | BI97: 0 | BJ97: =SUM($BF$32:BF97)/COUNT($BF$32:BF97) -> 70.4% | BK97: =BJ97-AP97 -> 5.6% | BM97: =IF(AC97>0,1,0) -> 100.0% | BN97: =IF(AS97>0,1,0) -> 100.00% | BO97: =IF(AS97-AC97>0,1,0) -> 1 | BP97: =IF(BO97+AU97=2,1,0) -> 1 | BQ97: =IF(C96>0,1,0) -> 0 | BR97: =A97 -> 44867 | BS97: =IF(ABS(C97)>0,IF(BQ97>0,BS96*(1+(C97-E97)),BS96*(1-(C97-E97))),BS96) -> 93.00806716 | BT97: 0.02417209097 | BU97: =BU96*(1+C97) -> 1900-03-31T06:50:21.073 | BV97: -0.02500194497 | BW97: 0 | BX97: =IF(X97=0,IF(BM97>0,BX96*(1+(C97-E97)),BX96*(1-(C97-E97))),BX96) -> 120.1198884 | BY97: -0.02417209097 | BZ97: 0 | CA97: =IF(Y97=0,IF(BM97>0,CA96*(1+(C97-E97)),CA96*(1-(C97-E97))),CA96) -> 120.1198884 | CB97: =IF(Y97=0,IF(BM97>0,CA97/CA96-1,CA97/CA96-1),"") -> -0.02417209097 | CD97: 0 | CE97: =SUM($CD$30:CD97)/COUNT($CD$30:CD97) -> 0.5818181818 | CF97: 109.7496393 | CG97: =IF(X97=0,IF(BN97>0,CG96*(1+(C97-E97)),CG96*(1-(C97-E97))),CG96) -> 122.8591433 | CH97: -2% | CI97: =IF(X97=0,IF(CG97/CG96-1>=0,1,0),"") -> 0 | CJ97: =IF(Y97=0,IF(BN97>0,CJ96*(1+(C97-E97)),CJ96*(1-(C97-E97))),CJ96) -> 122.8591433 | CK97: =IF(Y97=0,IF(BN97>0,CJ97/CJ96-1,CJ97/CJ96-1),"") -> -0.02417209097 | CL97: 0 | CM97: =SUM($CL$30:CL97)/COUNT($CL$30:CL97) -> 0.6363636364 | CN97: =IF(CK97="","",CK97-CC97) -> -0.02417209097 | CO97: =COUNT($CN$32:CN97) -> 5400% | CP97: =IF(CN97="","",IF(CN97>0,1,0)) -> 0% | CQ97: =IF(CN97="","",IF(CN97<0,1,0)) -> 1.00 | CR97: =SUM($CP$32:CP97) -> 6.00 | CS97: =SUM($CQ$32:CQ97) -> 6.00 | CT97: =(CR97+CS97)/(CO97*2) -> 0.11 | CU97: =CT97*(1-CT97) -> 0.10 | CV97: 11% | CW97: =CS97/CO97 -> 0.11 | CX97: 0.0% | CY97: 0.0% | CZ97: 50.0% | DA97: -0.02417209097 | DB97: =IF(Y97=0,IF(CJ97/CJ96-1>=0,1,0),"") -> 0 | DC97: =(CG97-BX97)/100 -> 0.02739254933 | DD97: =(CJ97-CA97)/100 -> 0.02739254933
A98: =A6118 -> 2022-11-03 | B98: 0 | C98: =C6118/C6117-1 -> -1.059% | D98: =D6118/C6117-1 -> -0.70% | E98: -0.7% | F98: =E6118 -> 25.30 | G98: =F6118/F6117-1 -> -3.08% | H98: =G6118/G6117-1 -> 0.00% | I98: =H6118/H6117-1 -> -1.03% | K98: 2022-11-03 | L98: 3.60 | M98: 3.82 | N98: 4.07 | O98: 3.95 | P98: 3.82 | Q98: 2022-11-03 | R98: 4.07 | S98: =IF(P98>$Q$29,1,0) -> 1 | T98: 1 | U98: =IF($A$19=1,T98,0) -> 0 | W98: 1 | X98: =IF($C$19=1,W98,0) -> 1 | Y98: 1 | AA98: 1 | AB98: 0 | AC98: =$EU$9+$EU$10*C97+$EU$11*I98+$EU$12*G98+$EU$13*H98+$EU$14*C97^2+$EU$15*I97+$EU$16*H97+$EU$17*B98+$EU$18*B98*I98+$EU$19*B98*I97+$EU$20*B98*H98+$EU$21*B98*H97+$EU$22*(F97-F96)+$EU$23*(F97-F96)*H97+$EU$24*(F97-F96)*H97*B98 -> 0.23% | AD98: 1 | AE98: 0 | AF98: 0 | AG98: 1 | AH98: 1 | AI98: 1 | AJ98: 0 | AK98: 0 | AL98: 0 | AN98: =SUM($AM$32:AM98)/COUNT($AM$32:AM98) -> 0.6481481481 | AP98: =SUM($AO$32:AO98)/COUNT($AO$32:AO98) -> 64.8% | AQ98: 64.8% | AR98: 62.7% | AS98: =IF($B$19=1,IF(S98=1,$FA$9+$FA$10*C97+$FA$11*I98+$FA$12*G98+$FA$13*H98+$FA$14*C97^2+$FA$15*I97+$FA$16*H97+$FA$17*B98+$FA$18*B98*I98+$FA$19*B98*I97+$FA$20*B98*H98+$FA$21*B98*H97+$FA$22*(F97-F96)+$FA$23*(F97-F96)*H97+$FA$24*(F97-F96)*H97*B98+$FA$25*P97+$FA$26*P97*I98+$FA$27*P97*G98+$FA$28*P97*H98+$FA$29*P97*(F97-F96)+$FA$30*P97*(F97^2-F96^2),AC98),$FA$9+$FA$10*C97+$FA$11*I98+$FA$12*G98+$FA$13*H98+$FA$14*C97^2+$FA$15*I97+$FA$16*H97+$FA$17*B98+$FA$18*B98*I98+$FA$19*B98*I97+$FA$20*B98*H98+$FA$21*B98*H97+$FA$22*(F97-F96)+$FA$23*(F97-F96)*H97+$FA$24*(F97-F96)*H97*B98+$FA$25*P97+$FA$26*P97*I98+$FA$27*P97*G98+$FA$28*P97*H98+$FA$29*P97*(F97-F96)+$FA$30*P97*(F97^2-F96^2)) -> 0.38% | AT98: 0.2% | AU98: 1 | AV98: 0 | AW98: 0 | AX98: 1 | AY98: 1 | AZ98: 1 | BA98: 0 | BB98: 0 | BC98: 0 | BE98: =SUM($BD$32:BD98)/COUNT($BD$32:BD98) -> 0.7037037037 | BG98: =IF(Y98=0,CL98-CD98,"") ->  | BJ98: =SUM($BF$32:BF98)/COUNT($BF$32:BF98) -> 70.4% | BK98: =BJ98-AP98 -> 5.6% | BM98: =IF(AC98>0,1,0) -> 100.0% | BN98: =IF(AS98>0,1,0) -> 100.00% | BO98: =IF(AS98-AC98>0,1,0) -> 1 | BP98: =IF(BO98+AU98=2,1,0) -> 1 | BQ98: =IF(C97>0,1,0) -> 0 | BR98: =A98 -> 44868 | BS98: =IF(ABS(C98)>0,IF(BQ98>0,BS97*(1+(C98-E98)),BS97*(1-(C98-E98))),BS97) -> 93.33856988 | BT98: 0.003553484463 | BU98: =BU97*(1+C98) -> 1900-03-30T07:38:49.232 | BV98: -0.01058597916 | BW98: 0 | BX98: =IF(X98=0,IF(BM98>0,BX97*(1+(C98-E98)),BX97*(1-(C98-E98))),BX97) -> 120.1198884 | CA98: =IF(Y98=0,IF(BM98>0,CA97*(1+(C98-E98)),CA97*(1-(C98-E98))),CA97) -> 120.1198884 | CB98: =IF(Y98=0,IF(BM98>0,CA98/CA97-1,CA98/CA97-1),"") ->  | CE98: =SUM($CD$30:CD98)/COUNT($CD$30:CD98) -> 0.5818181818 | CF98: 109.7496393 | CG98: =IF(X98=0,IF(BN98>0,CG97*(1+(C98-E98)),CG97*(1-(C98-E98))),CG97) -> 122.8591433 | CI98: =IF(X98=0,IF(CG98/CG97-1>=0,1,0),"") ->  | CJ98: =IF(Y98=0,IF(BN98>0,CJ97*(1+(C98-E98)),CJ97*(1-(C98-E98))),CJ97) -> 122.8591433 | CK98: =IF(Y98=0,IF(BN98>0,CJ98/CJ97-1,CJ98/CJ97-1),"") ->  | CM98: =SUM($CL$30:CL98)/COUNT($CL$30:CL98) -> 0.6363636364 | CN98: =IF(CK98="","",CK98-CC98) ->  | CO98: =COUNT($CN$32:CN98) -> 5400% | CR98: =SUM($CP$32:CP98) -> 6.00 | CS98: =SUM($CQ$32:CQ98) -> 6.00 | CT98: 0.11 | CU98: 0.10 | CV98: 11% | CW98: 0.11 | CX98: 0.0% | CY98: 0.0% | CZ98: 50.0% | DB98: =IF(Y98=0,IF(CJ98/CJ97-1>=0,1,0),"") ->  | DC98: =(CG98-BX98)/100 -> 0.02739254933 | DD98: =(CJ98-CA98)/100 -> 0.02739254933
A99: =A6119 -> 2022-11-04 | B99: 0 | C99: =C6119/C6118-1 -> 1.362% | D99: =D6119/C6118-1 -> 1.27% | E99: 1.3% | F99: =E6119 -> 24.55 | G99: =F6119/F6118-1 -> 5.36% | H99: =G6119/G6118-1 -> -1.68% | I99: =H6119/H6118-1 -> 1.99% | K99: 2022-11-04 | L99: 3.03 | M99: 2.47 | N99: 2.88 | O99: 2.67 | P99: 2.47 | Q99: 2022-11-04 | R99: 2.88 | S99: =IF(P99>$Q$29,1,0) -> 1 | T99: 1 | U99: =IF($A$19=1,T99,0) -> 0 | W99: 1 | X99: =IF($C$19=1,W99,0) -> 1 | Y99: 1 | AB99: 0 | AC99: =$EU$9+$EU$10*C98+$EU$11*I99+$EU$12*G99+$EU$13*H99+$EU$14*C98^2+$EU$15*I98+$EU$16*H98+$EU$17*B99+$EU$18*B99*I99+$EU$19*B99*I98+$EU$20*B99*H99+$EU$21*B99*H98+$EU$22*(F98-F97)+$EU$23*(F98-F97)*H98+$EU$24*(F98-F97)*H98*B99 -> 1.39% | AD99: 1 | AE99: 0 | AF99: 1 | AG99: 0 | AH99: 2 | AI99: 0 | AJ99: 1 | AK99: 0 | AL99: 1 | AN99: =SUM($AM$32:AM99)/COUNT($AM$32:AM99) -> 0.6481481481 | AP99: =SUM($AO$32:AO99)/COUNT($AO$32:AO99) -> 64.8% | AQ99: 64.8% | AR99: 63.2% | AS99: =IF($B$19=1,IF(S99=1,$FA$9+$FA$10*C98+$FA$11*I99+$FA$12*G99+$FA$13*H99+$FA$14*C98^2+$FA$15*I98+$FA$16*H98+$FA$17*B99+$FA$18*B99*I99+$FA$19*B99*I98+$FA$20*B99*H99+$FA$21*B99*H98+$FA$22*(F98-F97)+$FA$23*(F98-F97)*H98+$FA$24*(F98-F97)*H98*B99+$FA$25*P98+$FA$26*P98*I99+$FA$27*P98*G99+$FA$28*P98*H99+$FA$29*P98*(F98-F97)+$FA$30*P98*(F98^2-F97^2),AC99),$FA$9+$FA$10*C98+$FA$11*I99+$FA$12*G99+$FA$13*H99+$FA$14*C98^2+$FA$15*I98+$FA$16*H98+$FA$17*B99+$FA$18*B99*I99+$FA$19*B99*I98+$FA$20*B99*H99+$FA$21*B99*H98+$FA$22*(F98-F97)+$FA$23*(F98-F97)*H98+$FA$24*(F98-F97)*H98*B99+$FA$25*P98+$FA$26*P98*I99+$FA$27*P98*G99+$FA$28*P98*H99+$FA$29*P98*(F98-F97)+$FA$30*P98*(F98^2-F97^2)) -> 0.05% | AT99: -1.3% | AU99: 1 | AV99: 0 | AW99: 1 | AX99: 0 | AY99: 2 | AZ99: 0 | BA99: 1 | BB99: 0 | BC99: 1 | BE99: =SUM($BD$32:BD99)/COUNT($BD$32:BD99) -> 0.7037037037 | BG99: =IF(Y99=0,CL99-CD99,"") ->  | BJ99: =SUM($BF$32:BF99)/COUNT($BF$32:BF99) -> 70.4% | BK99: =BJ99-AP99 -> 5.6% | BM99: =IF(AC99>0,1,0) -> 100.0% | BN99: =IF(AS99>0,1,0) -> 100.00% | BO99: =IF(AS99-AC99>0,1,0) -> 0 | BP99: =IF(BO99+AU99=2,1,0) -> 0 | BQ99: =IF(C98>0,1,0) -> 0 | BR99: =A99 -> 44869 | BS99: =IF(ABS(C99)>0,IF(BQ99>0,BS98*(1+(C99-E99)),BS98*(1-(C99-E99))),BS98) -> 93.24899231 | BT99: -0.0009597057978 | BU99: =BU98*(1+C99) -> 1900-03-31T13:10:03.017 | BV99: 0.01361868227 | BW99: 1 | BX99: =IF(X99=0,IF(BM99>0,BX98*(1+(C99-E99)),BX98*(1-(C99-E99))),BX98) -> 120.1198884 | CA99: =IF(Y99=0,IF(BM99>0,CA98*(1+(C99-E99)),CA98*(1-(C99-E99))),CA98) -> 120.1198884 | CB99: =IF(Y99=0,IF(BM99>0,CA99/CA98-1,CA99/CA98-1),"") ->  | CE99: =SUM($CD$30:CD99)/COUNT($CD$30:CD99) -> 0.5818181818 | CF99: 109.7496393 | CG99: =IF(X99=0,IF(BN99>0,CG98*(1+(C99-E99)),CG98*(1-(C99-E99))),CG98) -> 122.8591433 | CI99: =IF(X99=0,IF(CG99/CG98-1>=0,1,0),"") ->  | CJ99: =IF(Y99=0,IF(BN99>0,CJ98*(1+(C99-E99)),CJ98*(1-(C99-E99))),CJ98) -> 122.8591433 | CK99: =IF(Y99=0,IF(BN99>0,CJ99/CJ98-1,CJ99/CJ98-1),"") ->  | CM99: =SUM($CL$30:CL99)/COUNT($CL$30:CL99) -> 0.6363636364 | CN99: =IF(CK99="","",CK99-CC99) ->  | CO99: =COUNT($CN$32:CN99) -> 5400% | CR99: =SUM($CP$32:CP99) -> 6.00 | CS99: =SUM($CQ$32:CQ99) -> 6.00 | CT99: 0.11 | CU99: 0.10 | CV99: 11% | CW99: 0.11 | CX99: 0.0% | CY99: 0.0% | CZ99: 50.0% | DB99: =IF(Y99=0,IF(CJ99/CJ98-1>=0,1,0),"") ->  | DC99: =(CG99-BX99)/100 -> 0.02739254933 | DD99: =(CJ99-CA99)/100 -> 0.02739254933
A100: =A6120 -> 2022-11-07 | B100: 1 | C100: =C6120/C6119-1 -> 0.961% | D100: =D6120/C6119-1 -> 0.27% | E100: 0.3% | F100: =E6120 -> 24.35 | G100: =F6120/F6119-1 -> 2.69% | H100: =G6120/G6119-1 -> 1.21% | I100: =H6120/H6119-1 -> 0.48% | K100: 2022-11-07 | L100: 3.18 | M100: 2.71 | N100: 3.73 | O100: 3.22 | P100: 2.71 | Q100: 2022-11-07 | R100: 3.73 | S100: =IF(P100>$Q$29,1,0) -> 1 | U100: =IF($A$19=1,T100,0) -> 0 | Y100: 0 | AB100: -1 | AC100: =$EU$9+$EU$10*C99+$EU$11*I100+$EU$12*G100+$EU$13*H100+$EU$14*C99^2+$EU$15*I99+$EU$16*H99+$EU$17*B100+$EU$18*B100*I100+$EU$19*B100*I99+$EU$20*B100*H100+$EU$21*B100*H99+$EU$22*(F99-F98)+$EU$23*(F99-F98)*H99+$EU$24*(F99-F98)*H99*B100 -> -0.03% | AD100: 0 | AE100: 1 | AF100: 1 | AG100: 0 | AH100: 1 | AI100: 1 | AJ100: 0 | AK100: 0 | AL100: 0 | AM100: 0 | AN100: =SUM($AM$32:AM100)/COUNT($AM$32:AM100) -> 0.6363636364 | AO100: 0 | AP100: =SUM($AO$32:AO100)/COUNT($AO$32:AO100) -> 63.6% | AQ100: 63.6% | AR100: 62.3% | AS100: =IF($B$19=1,IF(S100=1,$FA$9+$FA$10*C99+$FA$11*I100+$FA$12*G100+$FA$13*H100+$FA$14*C99^2+$FA$15*I99+$FA$16*H99+$FA$17*B100+$FA$18*B100*I100+$FA$19*B100*I99+$FA$20*B100*H100+$FA$21*B100*H99+$FA$22*(F99-F98)+$FA$23*(F99-F98)*H99+$FA$24*(F99-F98)*H99*B100+$FA$25*P99+$FA$26*P99*I100+$FA$27*P99*G100+$FA$28*P99*H100+$FA$29*P99*(F99-F98)+$FA$30*P99*(F99^2-F98^2),AC100),$FA$9+$FA$10*C99+$FA$11*I100+$FA$12*G100+$FA$13*H100+$FA$14*C99^2+$FA$15*I99+$FA$16*H99+$FA$17*B100+$FA$18*B100*I100+$FA$19*B100*I99+$FA$20*B100*H100+$FA$21*B100*H99+$FA$22*(F99-F98)+$FA$23*(F99-F98)*H99+$FA$24*(F99-F98)*H99*B100+$FA$25*P99+$FA$26*P99*I100+$FA$27*P99*G100+$FA$28*P99*H100+$FA$29*P99*(F99-F98)+$FA$30*P99*(F99^2-F98^2)) -> 0.08% | AT100: 0.1% | AU100: 1 | AV100: 0 | AW100: 1 | AX100: 0 | AY100: 2 | AZ100: 0 | BA100: 1 | BB100: 0 | BC100: 1 | BD100: 1 | BE100: =SUM($BD$32:BD100)/COUNT($BD$32:BD100) -> 0.7090909091 | BF100: 1 | BG100: =IF(Y100=0,CL100-CD100,"") -> 1 | BH100: 1 | BI100: 0 | BJ100: =SUM($BF$32:BF100)/COUNT($BF$32:BF100) -> 70.9% | BK100: =BJ100-AP100 -> 7.3% | BM100: =IF(AC100>0,1,0) -> 0.0% | BN100: =IF(AS100>0,1,0) -> 100.00% | BO100: =IF(AS100-AC100>0,1,0) -> 1 | BP100: =IF(BO100+AU100=2,1,0) -> 1 | BQ100: =IF(C99>0,1,0) -> 1 | BR100: =A100 -> 44872 | BS100: =IF(ABS(C100)>0,IF(BQ100>0,BS99*(1+(C100-E100)),BS99*(1-(C100-E100))),BS99) -> 93.89422078 | BT100: 0.006919414939 | BU100: =BU99*(1+C100) -> 1900-04-01T10:17:27.721 | BV100: 0.009613982045 | BW100: 1 | BX100: =IF(X100=0,IF(BM100>0,BX99*(1+(C100-E100)),BX99*(1-(C100-E100))),BX99) -> 119.2887291 | BY100: -0.006919414939 | BZ100: 0 | CA100: =IF(Y100=0,IF(BM100>0,CA99*(1+(C100-E100)),CA99*(1-(C100-E100))),CA99) -> 119.2887291 | CB100: =IF(Y100=0,IF(BM100>0,CA100/CA99-1,CA100/CA99-1),"") -> -0.006919414939 | CC100: =CA100/CA99-1 -> -0.006919414939 | CD100: 0 | CE100: =SUM($CD$30:CD100)/COUNT($CD$30:CD100) -> 0.5714285714 | CF100: 109.3699377 | CG100: =IF(X100=0,IF(BN100>0,CG99*(1+(C100-E100)),CG99*(1-(C100-E100))),CG99) -> 123.7092567 | CH100: 1% | CI100: =IF(X100=0,IF(CG100/CG99-1>=0,1,0),"") -> 1 | CJ100: =IF(Y100=0,IF(BN100>0,CJ99*(1+(C100-E100)),CJ99*(1-(C100-E100))),CJ99) -> 123.7092567 | CK100: =IF(Y100=0,IF(BN100>0,CJ100/CJ99-1,CJ100/CJ99-1),"") -> 0.006919414939 | CL100: 1 | CM100: =SUM($CL$30:CL100)/COUNT($CL$30:CL100) -> 0.6428571429 | CN100: =IF(CK100="","",CK100-CC100) -> 0.01383882988 | CO100: =COUNT($CN$32:CN100) -> 5500% | CP100: 100% | CQ100: 0 | CR100: =SUM($CP$32:CP100) -> 7.00 | CS100: =SUM($CQ$32:CQ100) -> 6.00 | CT100: 0.12 | CU100: 0.10 | CV100: 13% | CW100: 0.11 | CX100: 1.8% | CY100: 29.5% | CZ100: 38.4% | DA100: 0.006919414939 | DB100: =IF(Y100=0,IF(CJ100/CJ99-1>=0,1,0),"") -> 1 | DC100: =(CG100-BX100)/100 -> 0.04420527676 | DD100: =(CJ100-CA100)/100 -> 0.04420527676
A101: =A6121 -> 2022-11-08 | B101: 0 | C101: =C6121/C6120-1 -> 0.560% | D101: =D6121/C6120-1 -> 0.27% | E101: 0.3% | F101: =E6121 -> 25.54 | G101: =F6121/F6120-1 -> -0.23% | H101: =G6121/G6120-1 -> 1.25% | I101: =H6121/H6120-1 -> 1.36% | K101: 2022-11-08 | L101: 2.27 | M101: 2.14 | N101: 3.51 | O101: 2.83 | P101: 2.14 | Q101: 2022-11-08 | R101: 3.51 | S101: =IF(P101>$Q$29,1,0) -> 0 | U101: =IF($A$19=1,T101,0) -> 0 | Y101: 0 | AB101: 0 | AC101: =$EU$9+$EU$10*C100+$EU$11*I101+$EU$12*G101+$EU$13*H101+$EU$14*C100^2+$EU$15*I100+$EU$16*H100+$EU$17*B101+$EU$18*B101*I101+$EU$19*B101*I100+$EU$20*B101*H101+$EU$21*B101*H100+$EU$22*(F100-F99)+$EU$23*(F100-F99)*H100+$EU$24*(F100-F99)*H100*B101 -> 0.42% | AD101: 1 | AE101: 0 | AF101: 1 | AG101: 0 | AH101: 2 | AI101: 0 | AJ101: 1 | AK101: 0 | AL101: 1 | AM101: 1 | AN101: =SUM($AM$32:AM101)/COUNT($AM$32:AM101) -> 0.6428571429 | AO101: 1 | AP101: =SUM($AO$32:AO101)/COUNT($AO$32:AO101) -> 64.3% | AQ101: 64.3% | AR101: 62.9% | AS101: =IF($B$19=1,IF(S101=1,$FA$9+$FA$10*C100+$FA$11*I101+$FA$12*G101+$FA$13*H101+$FA$14*C100^2+$FA$15*I100+$FA$16*H100+$FA$17*B101+$FA$18*B101*I101+$FA$19*B101*I100+$FA$20*B101*H101+$FA$21*B101*H100+$FA$22*(F100-F99)+$FA$23*(F100-F99)*H100+$FA$24*(F100-F99)*H100*B101+$FA$25*P100+$FA$26*P100*I101+$FA$27*P100*G101+$FA$28*P100*H101+$FA$29*P100*(F100-F99)+$FA$30*P100*(F100^2-F99^2),AC101),$FA$9+$FA$10*C100+$FA$11*I101+$FA$12*G101+$FA$13*H101+$FA$14*C100^2+$FA$15*I100+$FA$16*H100+$FA$17*B101+$FA$18*B101*I101+$FA$19*B101*I100+$FA$20*B101*H101+$FA$21*B101*H100+$FA$22*(F100-F99)+$FA$23*(F100-F99)*H100+$FA$24*(F100-F99)*H100*B101+$FA$25*P100+$FA$26*P100*I101+$FA$27*P100*G101+$FA$28*P100*H101+$FA$29*P100*(F100-F99)+$FA$30*P100*(F100^2-F99^2)) -> 0.43% | AT101: 0.0% | AU101: 1 | AV101: 0 | AW101: 1 | AX101: 0 | AY101: 2 | AZ101: 0 | BA101: 1 | BB101: 0 | BC101: 1 | BD101: 1 | BE101: =SUM($BD$32:BD101)/COUNT($BD$32:BD101) -> 0.7142857143 | BF101: 1 | BG101: =IF(Y101=0,CL101-CD101,"") -> 0 | BH101: 0 | BI101: 0 | BJ101: =SUM($BF$32:BF101)/COUNT($BF$32:BF101) -> 71.4% | BK101: =BJ101-AP101 -> 7.1% | BM101: =IF(AC101>0,1,0) -> 100.0% | BN101: =IF(AS101>0,1,0) -> 100.00% | BO101: =IF(AS101-AC101>0,1,0) -> 1 | BP101: =IF(BO101+AU101=2,1,0) -> 1 | BQ101: =IF(C100>0,1,0) -> 1 | BR101: =A101 -> 44873 | BS101: =IF(ABS(C101)>0,IF(BQ101>0,BS100*(1+(C101-E101)),BS100*(1-(C101-E101))),BS100) -> 94.16775417 | BT101: 0.002913207944 | BU101: =BU100*(1+C101) -> 1900-04-01T22:42:31.518 | BV101: 0.005597877482 | BW101: 1 | BX101: =IF(X101=0,IF(BM101>0,BX100*(1+(C101-E101)),BX100*(1-(C101-E101))),BX100) -> 119.6362419 | BY101: 0.002913207944 | BZ101: 1 | CA101: =IF(Y101=0,IF(BM101>0,CA100*(1+(C101-E101)),CA100*(1-(C101-E101))),CA100) -> 119.6362419 | CB101: =IF(Y101=0,IF(BM101>0,CA101/CA100-1,CA101/CA100-1),"") -> 0.002913207944 | CC101: 0.002913207944 | CD101: 1 | CE101: =SUM($CD$30:CD101)/COUNT($CD$30:CD101) -> 0.5789473684 | CF101: 109.5292464 | CG101: =IF(X101=0,IF(BN101>0,CG100*(1+(C101-E101)),CG100*(1-(C101-E101))),CG100) -> 124.0696475 | CH101: 0% | CI101: =IF(X101=0,IF(CG101/CG100-1>=0,1,0),"") -> 1 | CJ101: =IF(Y101=0,IF(BN101>0,CJ100*(1+(C101-E101)),CJ100*(1-(C101-E101))),CJ100) -> 124.0696475 | CK101: =IF(Y101=0,IF(BN101>0,CJ101/CJ100-1,CJ101/CJ100-1),"") -> 0.002913207944 | CL101: 1 | CM101: =SUM($CL$30:CL101)/COUNT($CL$30:CL101) -> 0.649122807 | CN101: =IF(CK101="","",CK101-CC101) -> 0 | CO101: =COUNT($CN$32:CN101) -> 5600% | CP101: 0% | CQ101: 0 | CR101: =SUM($CP$32:CP101) -> 7.00 | CS101: =SUM($CQ$32:CQ101) -> 6.00 | CT101: 0.12 | CU101: 0.10 | CV101: 13% | CW101: 0.11 | CX101: 1.8% | CY101: 29.5% | CZ101: 38.4% | DA101: 0.002913207944 | DB101: =IF(Y101=0,IF(CJ101/CJ100-1>=0,1,0),"") -> 1 | DC101: =(CG101-BX101)/100 -> 0.04433405592 | DD101: =(CJ101-CA101)/100 -> 0.04433405592
A102: =A6122 -> 2022-11-09 | B102: 0 | C102: =C6122/C6121-1 -> -2.078% | D102: =D6122/C6121-1 -> -0.45% | E102: -0.4% | F102: =E6122 -> 26.09 | G102: =F6122/F6121-1 -> -1.20% | H102: =G6122/G6121-1 -> -0.56% | I102: =H6122/H6121-1 -> -0.14% | K102: 2022-11-09 | L102: 2.42 | M102: 2.89 | N102: 3.44 | O102: 3.16 | P102: 2.89 | Q102: 2022-11-09 | R102: 3.44 | S102: =IF(P102>$Q$29,1,0) -> 1 | U102: =IF($A$19=1,T102,0) -> 0 | Y102: 0 | AB102: 0 | AC102: =$EU$9+$EU$10*C101+$EU$11*I102+$EU$12*G102+$EU$13*H102+$EU$14*C101^2+$EU$15*I101+$EU$16*H101+$EU$17*B102+$EU$18*B102*I102+$EU$19*B102*I101+$EU$20*B102*H102+$EU$21*B102*H101+$EU$22*(F101-F100)+$EU$23*(F101-F100)*H101+$EU$24*(F101-F100)*H101*B102 -> -0.22% | AD102: 0 | AE102: 1 | AF102: 0 | AG102: 1 | AH102: 0 | AI102: 2 | AJ102: 0 | AK102: 1 | AL102: 1 | AM102: 1 | AN102: =SUM($AM$32:AM102)/COUNT($AM$32:AM102) -> 0.649122807 | AO102: 1 | AP102: =SUM($AO$32:AO102)/COUNT($AO$32:AO102) -> 64.9% | AQ102: 64.9% | AR102: 63.4% | AS102: =IF($B$19=1,IF(S102=1,$FA$9+$FA$10*C101+$FA$11*I102+$FA$12*G102+$FA$13*H102+$FA$14*C101^2+$FA$15*I101+$FA$16*H101+$FA$17*B102+$FA$18*B102*I102+$FA$19*B102*I101+$FA$20*B102*H102+$FA$21*B102*H101+$FA$22*(F101-F100)+$FA$23*(F101-F100)*H101+$FA$24*(F101-F100)*H101*B102+$FA$25*P101+$FA$26*P101*I102+$FA$27*P101*G102+$FA$28*P101*H102+$FA$29*P101*(F101-F100)+$FA$30*P101*(F101^2-F100^2),AC102),$FA$9+$FA$10*C101+$FA$11*I102+$FA$12*G102+$FA$13*H102+$FA$14*C101^2+$FA$15*I101+$FA$16*H101+$FA$17*B102+$FA$18*B102*I102+$FA$19*B102*I101+$FA$20*B102*H102+$FA$21*B102*H101+$FA$22*(F101-F100)+$FA$23*(F101-F100)*H101+$FA$24*(F101-F100)*H101*B102+$FA$25*P101+$FA$26*P101*I102+$FA$27*P101*G102+$FA$28*P101*H102+$FA$29*P101*(F101-F100)+$FA$30*P101*(F101^2-F100^2)) -> -0.32% | AT102: 0.1% | AU102: 0 | AV102: 1 | AW102: 0 | AX102: 1 | AY102: 0 | AZ102: 2 | BA102: 0 | BB102: 1 | BC102: 1 | BD102: 1 | BE102: =SUM($BD$32:BD102)/COUNT($BD$32:BD102) -> 0.7192982456 | BF102: 1 | BG102: =IF(Y102=0,CL102-CD102,"") -> 0 | BH102: 0 | BI102: 0 | BJ102: =SUM($BF$32:BF102)/COUNT($BF$32:BF102) -> 71.9% | BK102: =BJ102-AP102 -> 7.0% | BM102: =IF(AC102>0,1,0) -> 0.0% | BN102: =IF(AS102>0,1,0) -> 0.00% | BO102: =IF(AS102-AC102>0,1,0) -> 0 | BP102: =IF(BO102+AU102=2,1,0) -> 0 | BQ102: =IF(C101>0,1,0) -> 1 | BR102: =A102 -> 44874 | BS102: =IF(ABS(C102)>0,IF(BQ102>0,BS101*(1+(C102-E102)),BS101*(1-(C102-E102))),BS101) -> 92.6335133 | BT102: -0.01629263527 | BU102: =BU101*(1+C102) -> 1900-03-31T00:21:33.704 | BV102: -0.02077787733 | BW102: 0 | BX102: =IF(X102=0,IF(BM102>0,BX101*(1+(C102-E102)),BX101*(1-(C102-E102))),BX101) -> 121.5854316 | BY102: 0.01629263527 | BZ102: 1 | CA102: =IF(Y102=0,IF(BM102>0,CA101*(1+(C102-E102)),CA101*(1-(C102-E102))),CA101) -> 121.5854316 | CB102: =IF(Y102=0,IF(BM102>0,CA102/CA101-1,CA102/CA101-1),"") -> 0.01629263527 | CC102: 0.01629263527 | CD102: 1 | CE102: =SUM($CD$30:CD102)/COUNT($CD$30:CD102) -> 0.5862068966 | CF102: 110.4215064 | CG102: =IF(X102=0,IF(BN102>0,CG101*(1+(C102-E102)),CG101*(1-(C102-E102))),CG101) -> 126.091069 | CH102: 2% | CI102: =IF(X102=0,IF(CG102/CG101-1>=0,1,0),"") -> 1 | CJ102: =IF(Y102=0,IF(BN102>0,CJ101*(1+(C102-E102)),CJ101*(1-(C102-E102))),CJ101) -> 126.091069 | CK102: =IF(Y102=0,IF(BN102>0,CJ102/CJ101-1,CJ102/CJ101-1),"") -> 0.01629263527 | CL102: 1 | CM102: =SUM($CL$30:CL102)/COUNT($CL$30:CL102) -> 0.6551724138 | CN102: =IF(CK102="","",CK102-CC102) -> 0 | CO102: =COUNT($CN$32:CN102) -> 5700% | CP102: 0% | CQ102: 0 | CR102: =SUM($CP$32:CP102) -> 7.00 | CS102: =SUM($CQ$32:CQ102) -> 6.00 | CT102: 0.11 | CU102: 0.10 | CV102: 12% | CW102: 0.11 | CX102: 1.8% | CY102: 29.5% | CZ102: 38.4% | DA102: 0.01629263527 | DB102: =IF(Y102=0,IF(CJ102/CJ101-1>=0,1,0),"") -> 1 | DC102: =(CG102-BX102)/100 -> 0.04505637452 | DD102: =(CJ102-CA102)/100 -> 0.04505637452
A103: =A6123 -> 2022-11-10 | B103: 0 | C103: =C6123/C6122-1 -> 5.543% | D103: =D6123/C6122-1 -> 2.97% | E103: 3.0% | F103: =E6123 -> 23.53 | G103: =F6123/F6122-1 -> -1.70% | H103: =G6123/G6122-1 -> -0.98% | I103: =H6123/H6122-1 -> 3.59% | K103: 2022-11-10 | L103: 2.28 | M103: 2.08 | N103: 3.14 | O103: 2.61 | P103: 2.08 | Q103: 2022-11-10 | R103: 3.14 | S103: =IF(P103>$Q$29,1,0) -> 0 | U103: =IF($A$19=1,T103,0) -> 0 | Y103: =X103+U103 -> 0 | AB103: 0 | AC103: =$EU$9+$EU$10*C102+$EU$11*I103+$EU$12*G103+$EU$13*H103+$EU$14*C102^2+$EU$15*I102+$EU$16*H102+$EU$17*B103+$EU$18*B103*I103+$EU$19*B103*I102+$EU$20*B103*H103+$EU$21*B103*H102+$EU$22*(F102-F101)+$EU$23*(F102-F101)*H102+$EU$24*(F102-F101)*H102*B103 -> 2.10% | AD103: 1 | AE103: 0 | AF103: 1 | AG103: 0 | AH103: 2 | AI103: 0 | AJ103: 1 | AK103: 0 | AL103: 1 | AM103: 1 | AN103: =SUM($AM$32:AM103)/COUNT($AM$32:AM103) -> 0.6551724138 | AO103: 1 | AP103: =SUM($AO$32:AO103)/COUNT($AO$32:AO103) -> 65.5% | AQ103: 65.5% | AR103: 63.9% | AS103: =IF($B$19=1,IF(S103=1,$FA$9+$FA$10*C102+$FA$11*I103+$FA$12*G103+$FA$13*H103+$FA$14*C102^2+$FA$15*I102+$FA$16*H102+$FA$17*B103+$FA$18*B103*I103+$FA$19*B103*I102+$FA$20*B103*H103+$FA$21*B103*H102+$FA$22*(F102-F101)+$FA$23*(F102-F101)*H102+$FA$24*(F102-F101)*H102*B103+$FA$25*P102+$FA$26*P102*I103+$FA$27*P102*G103+$FA$28*P102*H103+$FA$29*P102*(F102-F101)+$FA$30*P102*(F102^2-F101^2),AC103),$FA$9+$FA$10*C102+$FA$11*I103+$FA$12*G103+$FA$13*H103+$FA$14*C102^2+$FA$15*I102+$FA$16*H102+$FA$17*B103+$FA$18*B103*I103+$FA$19*B103*I102+$FA$20*B103*H103+$FA$21*B103*H102+$FA$22*(F102-F101)+$FA$23*(F102-F101)*H102+$FA$24*(F102-F101)*H102*B103+$FA$25*P102+$FA$26*P102*I103+$FA$27*P102*G103+$FA$28*P102*H103+$FA$29*P102*(F102-F101)+$FA$30*P102*(F102^2-F101^2)) -> 2.08% | AT103: -0.0% | AU103: 1 | AV103: 0 | AW103: 1 | AX103: 0 | AY103: 2 | AZ103: 0 | BA103: 1 | BB103: 0 | BC103: 1 | BD103: 1 | BE103: =SUM($BD$32:BD103)/COUNT($BD$32:BD103) -> 0.724137931 | BF103: 1 | BG103: =IF(Y103=0,CL103-CD103,"") -> 0 | BH103: 0 | BI103: 0 | BJ103: =SUM($BF$32:BF103)/COUNT($BF$32:BF103) -> 72.4% | BK103: =BJ103-AP103 -> 6.9% | BM103: =IF(AC103>0,1,0) -> 100.0% | BN103: =IF(AS103>0,1,0) -> 100.00% | BO103: =IF(AS103-AC103>0,1,0) -> 0 | BP103: =IF(BO103+AU103=2,1,0) -> 0 | BQ103: =IF(C102>0,1,0) -> 0 | BR103: =A103 -> 44875 | BS103: =IF(ABS(C103)>0,IF(BQ103>0,BS102*(1+(C103-E103)),BS102*(1-(C103-E103))),BS102) -> 90.2493291 | BT103: -0.02573781469 | BU103: =BU102*(1+C103) -> 1900-04-05T01:26:53.415 | BV103: 0.05543447235 | BW103: 1 | BX103: =IF(X103=0,IF(BM103>0,BX102*(1+(C103-E103)),BX102*(1-(C103-E103))),BX102) -> 124.7147749 | BY103: 0.02573781469 | BZ103: 1 | CA103: =IF(Y103=0,IF(BM103>0,CA102*(1+(C103-E103)),CA102*(1-(C103-E103))),CA102) -> 124.7147749 | CB103: =IF(Y103=0,IF(BM103>0,CA103/CA102-1,CA103/CA102-1),"") -> 0.02573781469 | CC103: 0.02573781469 | CD103: 1 | CE103: =SUM($CD$30:CD103)/COUNT($CD$30:CD103) -> 0.593220339 | CF103: 111.8425105 | CG103: =IF(X103=0,IF(BN103>0,CG102*(1+(C103-E103)),CG102*(1-(C103-E103))),CG102) -> 129.3363776 | CH103: 3% | CI103: =IF(X103=0,IF(CG103/CG102-1>=0,1,0),"") -> 1 | CJ103: =IF(Y103=0,IF(BN103>0,CJ102*(1+(C103-E103)),CJ102*(1-(C103-E103))),CJ102) -> 129.3363776 | CK103: =IF(Y103=0,IF(BN103>0,CJ103/CJ102-1,CJ103/CJ102-1),"") -> 0.02573781469 | CL103: 1 | CM103: =SUM($CL$30:CL103)/COUNT($CL$30:CL103) -> 0.6610169492 | CN103: =IF(CK103="","",CK103-CC103) -> 0 | CO103: =COUNT($CN$32:CN103) -> 5800% | CP103: 0% | CQ103: 0 | CR103: =SUM($CP$32:CP103) -> 7.00 | CS103: =SUM($CQ$32:CQ103) -> 6.00 | CT103: 0.11 | CU103: 0.10 | CV103: 12% | CW103: 0.10 | CX103: 1.7% | CY103: 29.4% | CZ103: 38.4% | DA103: 0.02573781469 | DB103: =IF(Y103=0,IF(CJ103/CJ102-1>=0,1,0),"") -> 1 | DC103: =(CG103-BX103)/100 -> 0.04621602714 | DD103: =(CJ103-CA103)/100 -> 0.04621602714
